Workbook

Sheet Controllo_UPLOAD (hidden)
A1: ID_ATO | B1: ID_Aeeg_Gestore | D1: SONO PRESENTI ATO E GESTORE ? | E1: il file può essere caricato ?
A2: =idato -> 0 | B2: =Codice_ARERA -> 0 | D2: =IF(A2*B2>0,"SI","NO") -> NO | E2: SI
D3: PRECOMPILATO
D4: 0
D5: 1 = precompilato; 0 = deve fornire tutti i dati
D7: Tipo_file
D8: RDT
D10: SI
D13: Versione_file
D14: Tool

Sheet Menu
B1: RACCOLTA DATI TARIFFARI | F1: Per la compilazione seguire l'ordine dei fogli | K1: RACCOLTA DATI "Qualità tecnica, PdI e POS"
B2: ATO | E2: GESTORE
B3: ID_ATO | C3: ATO | D3: campo_vuoto | E3: ID_Aeeg_Gestore | F3: Gestore | H3: DATA CALCOLO
H4: RDT2020
F6: Indicare la natura dei dati forniti per l'anno 2019
F7: dati preconsutivi
B8: Sono presenti Errori | C8: elenco schede: | G8: foglio | I8: nomi delle tabelle | K8: Sono presenti Errori | L8: elenco schede: | P8: foglio | R8: nomi delle tabelle
C9: Dati tecnici | G9: Dati_tecnici | H9: scrittura | L9: QT-Acquedotto | P9: QT-Acquedotto | Q9: lettura/scrittura
C10: Dati di conto economico | G10: Dati_conto_economico | H10: scrittura | L10: QT-Fognatura | P10: QT-Fognatura | Q10: lettura/scrittura
C11: Altri dati economico finanziari | G11: Altri dati economico_finanziari | H11: scrittura | L11: QT-Depurazione | P11: QT-Depurazione | Q11: lettura/scrittura
C12: Finanziamenti | G12: finanziamenti | H12: scrittura | I12: finanziamenti | L12: QT-Altri dati | P12: QT-Altri dati | Q12: lettura/scrittura
C13: Elenco soggetti proprietari | G13: soggetti_proprietari | H13: lettura/scrittura | I13: Elenco_Proprietari | K13: =+IF(B66="","",B66) ->  | L13: Riepilogo RQTI 2020-2021 | P13: Riepilogo_RQTI_20-21 | Q13: lettura/scrittura
C14: Corrispettivi su infrastrutture di terzi | G14: Corrispettivi_proprietari | H14: lettura/scrittura | I14: Corrispettivi_Proprietari | L14: Programma degli Interventi: legenda | P14: PdI-legenda | Q14: lettura
C15: Servizi all'ingrosso: soggetti | G15: Soggetti_Scambio | H15: scrittura | I15: Soggetti_Elenco | K15: =+IF(B68="","",B68) ->  | L15: Programma degli Interventi: cronoprogramma_investimenti | P15: PdI-cronoprogramma_investimenti | Q15: lettura/scrittura | R15: crono_investimenti
C16: Servizi all'ingrosso: vendita | G16: Vendita_Servizi_ingrosso | H16: scrittura | I16: Vendita_Servizi | L16: Programma degli Interventi: POS - Piano Opere Strategiche | P16: POS-Piano_Opere_Strategiche | Q16: lettura/scrittura | R16: crono_pos
C17: Servizi all'ingrosso: acquisto | G17: Acquisto_Servizi_ingrosso | H17: scrittura | I17: Acquisto_Servizi | K17: =+IF(B70="","",B70) ->  | L17: Programma degli Interventi: cronoprogramma_gestionale | P17: PdI-cronoprogramma_gestionale | Q17: lettura/scrittura | R17: crono_gestionale
C18: Nuovi investimenti (2018-2019) | G18: Nuovi_Investimenti | H18: scrittura | I18: Nuovi_Investimenti | K18: =+IF(B67="","",B67) ->  | L18: Programma degli Interventi: riepilogo | P18: PdI-riepilogo | Q18: lettura
C19: Dismissioni | G19: Dismissioni | H19: scrittura | I19: Dismissioni | L19: Programma degli Interventi: consolidamento dati | P19: PdI_consolidamento | Q19: lettura
C20: Ammortamento finanziario | G20: Ammortamento_Finanziario | H20: lettura/scrittura | L20: Riepilogo RQSII 2020-2021 | P20: Riepilogo_RQSII_20-21 | Q20: lettura
C21: Informazioni su aggregazioni (anche ai fini dello schema di convergenza) | G21: Info_eventuali_aggregazioni | H21: scrittura | I21: Info_Soggetti_Aggregati
C22: Elenco Bacini Tariffari | G22: Elenco_Bacini_Tariffari | H22: scrittura | I22: BaciniTariffariElenco
C23: Bacini Tariffari e Comuni per Bacino Tariffario | G23: Bacini_Tariffari_Comuni | H23: scrittura | I23: Bacini_Tariffari_Comuni
C24: Struttura dei corrispettivi | G24: Struttura_corrispettivi | H24: scrittura
C25: Ricavi tariffari - Collettamento e depurazione reflui industriali | G25: Ricavi_Coll_Dep | H25: lettura/scrittura
C26: Ricavi tariffari totali per Bacino Tariffario | G26: Ricavi_bacini_tariffari | H26: lettura/scrittura | I26: Bacini_Tariffari_Ricavi
C27: Dati Bonus 2018 e 2019 | G27: Dati Bonus 2018 e 2019 | H27: lettura/scrittura
C28: Informazioni per completamento proposta tariffaria | G28: Input_per_calcoli_finali | H28: lettura/scrittura
C29: Ulteriori specificazioni del VRG | G29: VRG_ulteriori_specificazioni | H29: lettura/scrittura
C30: Dati anni precedenti | G30: Dati_Anni_precedenti | H30: lettura
C31: Frontiera efficiente | G31: frontiera_efficiente
C32: Vite utili anni precedenti | G32: vite_utili_precedenti
C33: Immobilizzazioni ante 2017 | G33: IMN_cespiti_ante2017 | H33: lettura | I33: IMN_cespiti_ante2017
C34: Conferma investimenti 2017 | G34: Conferma_investimenti_2017 | H34: lettura/scrittura | I34: Investimenti_2017
C35: Immobilizzazioni dei proprietari | G35: IMN_Proprietari | H35: lettura | I35: cespiti_proprietari
C36: DCUIT | G36: dcuit | H36: calcolo
G37: Storico_Elenco_Ambiti_Tariffari | H37: lettura/scrittura | I37: Storico_AmbitiTariffariElenco
G38: Storico_Ambiti_Tariffari_Comuni | H38: lettura/scrittura | I38: Storico_Ambiti_Tariffari_Comuni
G39: Storico_Articolaz tariff QV | H39: lettura/scrittura
G40: Storico_Articolaz tariff QF | H40: lettura/scrittura
G41: Storico_Ricavi_ambiti_tariffari | H41: lettura/scrittura | I41: Storico_Ambiti_Tariffari_Ricavi
G42: Storico_Piano_Tariffario | H42: lettura
C43: Ricostruzione immobilizzazioni del gestore | G43: IMN_consolidamento | H43: lettura
C44: Calcolo IMN gestore MTI-3 | G44: IMN_gestore | H44: lettura
C45: Riepilogo valore delle immobilizzazioni del gestore | G45: IMN_riepilogo | H45: lettura
C46: FRAMEWORK SCHEMI | G46: framework_schemi | H46: calcolo
C47: VRG TETA | G47: vrg_teta | H47: calcolo
C48: CAPEX | G48: capex | H48: calcolo
C49: FoNI | G49: FoNI | H49: calcolo
C50: OPEX | G50: opex | H50: calcolo
C51: ERC | G51: erc | H51: calcolo
C52: RC | G52: rc | H52: calcolo
C53: Schema di convergenza | G53: Schema di convergenza | H53: calcolo
C54: PEF - Piano tariffario | G54: piano_tariffario | H54: lettura/scrittura
C55: PEF - Conto economico | G55: conto_economico | H55: scrittura
C56: PEF - Stato patrimoniale | G56: Stato_patrimoniale | H56: scrittura
C57: PEF - Rendiconto finanziario | G57: rendiconto_finanziario | H57: scrittura
C58: Elenco Gestori | G58: TT_Gestori | H58: fogli di supporto
C59: Tabelle di supporto anagrafica territorio | G59: TT_Comuni_ATO | H59: fogli di supporto
C60: Tabelle di riferimento (per i menu) | G60: TT_Tabelle_Riferimento | H60: fogli di supporto
C61: Parametri | G61: TT_parametri | H61: sola lettura
C62: QT-Acquedotto | G62: QT-Acquedotto | H62: lettura/scrittura
C63: QT-Fognatura | G63: QT-Fognatura | H63: lettura/scrittura
C64: QT-Depurazione | G64: QT-Depurazione | H64: lettura/scrittura
C65: QT-Altri dati | G65: QT-Altri dati | H65: lettura/scrittura
C66: Riepilogo RQTI 20-21 | G66: Riepilogo_RQTI_20-21 | H66: lettura/scrittura
C67: Programma degli Interventi: legenda | G67: PdI-legenda | H67: lettura
C68: Programma degli Interventi: cronoprogramma_investimenti | G68: PdI-cronoprogramma_investimenti | H68: lettura/scrittura | I68: crono_investimenti
C69: Programma degli Interventi: POS - Piano Opere Strategiche | G69: POS-Piano_Opere_Strategiche | H69: lettura/scrittura | I69: crono_pos
C70: Programma degli Interventi: cronoprogramma_gestionale | G70: PdI-cronoprogramma_gestionale | H70: lettura/scrittura | I70: crono_gestionale
C71: Programma degli Interventi: riepilogo | G71: PdI-riepilogo | H71: lettura
C72: Programma degli Interventi: consolidamento dati | G72: PdI_consolidamento | H72: lettura

Sheet Dati_tecnici
B1: DATI TECNICI
B2: FORNITURA ELETTRICA | E2: ANNO 2018 | F2: ANNO 2019 | G2: ANNO 2017 | M2: Errore compilazione | N2: Errore dati EE | O2: Errore dati pop | P2: Sono presenti errori
C3: Consumo di energia elettrica | D3: kWh | M3: =+COUNTA(E3:F3,E5:F5,E7:F7,E9:F9,E32,E33,E34,E35,E36,E37)<>14 -> TRUE | N3: =+MIN(E3:F3,E5:F5,E7:F7)<=0 -> TRUE | O3: =+OR(COUNT(E12,E20,E26)=0,COUNT(F12,F20,F26)=0) -> TRUE | P3: =+OR(M3:O3) -> TRUE
C4: di cui, in salvaguardia | D4: kWh
C5: Costo energia elettrica a bilancio | D5: Euro
C6: di cui, in salvaguardia | D6: Euro
C7: Costo medio della fornitura elettrica | D7: Euro/kWh
C8: Costo medio della fornitura elettrica per l'acquisto in regime di salvaguardia | D8: Euro/kWh
C9: Si esclude di avere acquistato energia elettrica in regime di salvaguardia per almeno 4 mesi | D9: SI/NO
B10: SERVIZIO ACQUEDOTTO
C11: Numero di comuni serviti (ComA) | D11: N
C12: Popolazione residente servita (PRA) | D12: N
C13: Volume di acqua fatturato (A20) | D13: m3
C14: Utenze totali (UtT) | D14: N
C15: Popolazione fluttuante (PFA) | D15: N
C16: Superficie (SUA) | D16: km2
C17: Lunghezza rete (L) | D17: km
B18: SERVIZIO FOGNATURA
C19: Numero di comuni serviti (ComF) | D19: N
C20: Popolazione residente servita (PRF) | D20: N
C21: Lunghezza rete fognaria (LL) | D21: km
C22: Popolazione fluttuante (PFF) | D22: N
C23: Superficie (SUF) | D23: km2
B24: SERVIZIO DEPURAZIONE
C25: Numero di comuni serviti (ComD) | D25: N
C26: Popolazione residente servita (PRD) | D26: N
C27: Popolazione fluttuante (PFD) | D27: N
C28: Superficie (SUD) | D28: km2
C29: Abitanti Equivalenti serviti da depurazione | D29: A.E.
B31: TERRITORIO GESTITO E AFFIDAMENTO
C32: Tipo affidamento | D32: -
C33: Data inizio affidamento | D33: gg/mm/aaaa
C34: Data fine affidamento | D34: gg/mm/aaaa
C35: Presenza Carta dei servizi | D35: SI/NO
C36: Presenza di un consumo minimo impegnato per la fatturazione delle utenze | D36: SI/NO
C37: Versamento delle componenti perequative a CSEA | D37: SI/NO

Sheet Dati_conto_economico
B1: DATI DI CONTO ECONOMICO | Q1: Sono presenti errori | R1: errore_voci_di_cui | S1: mancata_compilazione
C2: ANNO 2018 | I2: ANNO 2019 | Q2: =+OR(R2:S2) -> TRUE | R2: =+OR(P:P) -> FALSE | S2: =SUM(C:M)=0 -> TRUE
C3: Totale SII | D3: di cui ERC | E3: SII escluso ERC | F3: Altre attività idriche (c.d. Attività b) | G3: Attività diverse | I3: Totale SII | J3: di cui ERC | K3: SII escluso ERC | L3: Altre attività idriche (c.d. Attività b) | M3: Attività diverse | O3: n_riga | P3: errore compilazione
A4: VALORE DELLA PRODUZIONE (Euro) | C4: =C5+C7+C8+C9+C11 -> 0 | E4: =+C4-D4 -> 0 | F4: =F5+F7+F8+F9+F11 -> 0 | G4: =G5+G7+G8+G9+G11 -> 0 | I4: =I5+I7+I8+I9+I11 -> 0 | K4: =+I4-J4 -> 0 | L4: =L5+L7+L8+L9+L11 -> 0 | M4: =M5+M7+M8+M9+M11 -> 0 | O4: 0 | P4: =OR(C13>C4,F13>F4,G13>G4,I13>I4,L13>L4,M13>M4) -> FALSE
B5: A1) Ricavi delle vendite e delle prestazioni | E5: =+C5-D5 -> 0 | K5: =+I5-J5 -> 0 | O5: 1
B6: di cui da altre imprese del gruppo | E6: =+C6-D6 -> 0 | K6: =+I6-J6 -> 0 | O6: 2 | P6: =OR(C6>C5,F6>F5,G6>G5,I6>I5,L6>L5,M6>M5) -> FALSE
B7: A2) Variazioni rimanenze di prodotti in corso di lavorazione, semilavorati e finiti | E7: 0 | K7: 0 | O7: 3
B8: A3) Variazioni dei lavori in corso su ordinazione | E8: 0 | K8: 0 | O8: 4
B9: A4) Incrementi di immobilizzazioni per lavori interni (inclusi costi del personale) | E9: 0 | K9: 0 | O9: 5
B10: di cui per realizzazione allacciamenti idrici e fognari | E10: 0 | K10: 0 | O10: 6 | P10: =OR(C10>C9,F10>F9,G10>G9,I10>I9,L10>L9,M10>M9) -> FALSE
B11: A5) Altri ricavi e proventi | E11: 0 | K11: 0 | O11: 7
B12: di cui da altre imprese del gruppo | E12: 0 | K12: 0 | O12: 8 | P12: =OR(C12>C11,F12>F11,G12>G11,I12>I11,L12>L11,M12>M11) -> FALSE
A13: ULTERIORI SPECIFICAZIONI DEI RICAVI (Euro) | C13: =SUM(C14:C40) -> 0 | E13: =+C13-D13 -> 0 | F13: =SUM(F14:F40) -> 0 | G13: =SUM(G14:G40) -> 0 | I13: =SUM(I14:I40) -> 0 | K13: =+I13-J13 -> 0 | L13: =SUM(L14:L40) -> 0 | M13: =SUM(M14:M40) -> 0 | O13: 9
B14: Ricavi da articolazione tariffaria | E14: =+C14-D14 -> 0 | K14: =+I14-J14 -> 0 | O14: 10
B15: Vendita di acqua all’ingrosso | E15: 0 | K15: 0 | O15: 11
B16: Acquedotto (utenti non allacciati alla pubblica fognatura) | E16: 0 | K16: 0 | O16: 13
B17: Vendita di acqua non potabile o ad uso industriale | E17: 0 | K17: 0 | O17: 14
B18: Vendita di acqua forfetaria | E18: 0 | K18: 0 | O18: 15
B19: Fornitura bocche antincendio | E19: 0 | K19: 0 | O19: 16
B20: Fognatura e depurazione civile (approvvigionamento autonomo) | E20: 0 | K20: 0 | O20: 17
B21: Fognatura e depurazione di acque reflue industriali | E21: 0 | K21: 0 | O21: 18
B22: Contributi di allacciamento | E22: 0 | K22: 0 | O22: 19
B23: Prestazioni e servizi accessori (v. comma 1.1 All. A del. 580/2019/R/IDR) | E23: 0 | K23: =+I23-J23 -> 0 | O23: 20
B24: Vendita di acqua con autobotte (v. comma 1.1 All. A del. 580/2019/R/IDR) | E24: 0 | K24: =+I24-J24 -> 0 | O24: 22
B25: Trattamento percolati | O25: 23
B26: Trattamento bottini | O26: 24
B27: Gestione fognature bianche (v. comma 1.1 All. A del. 580/2019/R/IDR) | E27: 0 | K27: 0 | O27: 25
B28: Pulizia e manutenzione caditoie stradali (v. comma 1.1 All. A del. 580/2019/R/IDR) | E28: 0 | K28: 0 | O28: 26
B29: Installazione/gestione bocche antincendio | O29: 27
B30: Vendita di servizi a terzi | O30: 28
B31: Lavori conto terzi | E31: 0 | K31: 0 | O31: 29
B32: Spurgo pozzi neri | O32: 30
B33: Rilascio autorizzazioni allo scarico | O33: 31
B34: Lottizzazioni | O34: 32
B35: Riuso delle acque di depurazione | O35: 33
B36: Case dell’acqua | O36: 34
B37: Proventi straordinari | E37: 0 | K37: 0 | O37: 35
B38: Contributi in conto esercizio | E38: 0 | K38: 0 | O38: 36
B39: Rimborsi e indennizzi | E39: 0 | K39: 0 | O39: 37
B40: Ricavi da altre attività (non inclusi nelle suddette voci) | O40: 38
O41: 39
A42: COSTI DELLA PRODUZIONE (Euro) | C42: =C43+C46++C59+C62+C65+SUM(C69:C72) -> 0 | D42: =D43+D46++D59+D62+D65+SUM(D69:D72) -> 0 | E42: =+C42-D42 -> 0 | F42: =F43+F46++F59+F62+F65+SUM(F69:F72) -> 0 | G42: =G43+G46++G59+G62+G65+SUM(G69:G72) -> 0 | I42: =I43+I46++I59+I62+I65+SUM(I69:I72) -> 0 | J42: =J43+J46++J59+J62+J65+SUM(J69:J72) -> 0 | K42: =+I42-J42 -> 0 | L42: =L43+L46++L59+L62+L65+SUM(L69:L72) -> 0 | M42: =M43+M46++M59+M62+M65+SUM(M69:M72) -> 0 | O42: 40 | P42: =+OR(C42<(C43+C46+C59+C62+C65+SUM(C69:C72)),D42<(D43+D46+D59+D62+D65+SUM(D69:D72)),F42<(F43+F46+F59+F62+F65+SUM(F69:F72)),G42<(G43+G46+G59+G62+G65+SUM(G69:G72)),I42<(I43+I46+I59+I62+I65+SUM(I69:I72)),J42<(J43+J46+J59+J62+J65+SUM(J69:J72)),L42<(L43+L46+L59+L62+L65+SUM(L69:L72)),M42<(M43+M46+M59+M62+M65+SUM(M69:M72))) -> FALSE
B43: B6) Per materie prime, sussidiarie, di consumo e merci | E43: =+C43-D43 -> 0 | K43: =+I43-J43 -> 0 | O43: 41
B44: di cui per materiali per manutenzioni | E44: =+C44-D44 -> 0 | K44: =+I44-J44 -> 0 | O44: 44
B45: di cui per reagenti | E45: 0 | K45: 0 | O45: 45
B46: B7) Per servizi | C46: =+SUM(C47:C58) -> 0 | D46: =+SUM(D47:D58) -> 0 | E46: =+C46-D46 -> 0 | F46: =+SUM(F47:F58) -> 0 | G46: 0 | I46: =+SUM(I47:I58) -> 0 | J46: 0 | K46: =+I46-J46 -> 0 | L46: =+SUM(L47:L58) -> 0 | M46: 0 | O46: 46
B47: energia elettrica da altre imprese del gruppo | E47: =+C47-D47 -> 0 | K47: =+I47-J47 -> 0 | O47: 47
B48: energia elettrica da altre imprese | E48: 0 | K48: 0 | O48: 48
B49: ricerca perdite (da terzi) | E49: 0 | K49: 0 | O49: 49
B50: ricerca perdite (da altre imprese del gruppo) | E50: 0 | K50: 0 | O50: 50
B51: smaltimento rifiuti (da terzi) | E51: 0 | K51: 0 | O51: 51
B52: smaltimento rifiuti (da altre imprese del gruppo) | E52: 0 | K52: 0 | O52: 52
B53: trasporto e smaltimento fanghi (da terzi) | E53: 0 | K53: 0 | O53: 53
B54: trasporto e smaltimento fanghi (da altre imprese del gruppo) | E54: 0 | K54: 0 | O54: 54
B55: manutenzioni ordinarie (da terzi) | E55: 0 | K55: 0 | O55: 55
B56: manutenzioni ordinarie (da altre imprese del gruppo) | E56: 0 | K56: 0 | O56: 56
B57: altri servizi da altre imprese del gruppo | E57: 0 | K57: 0 | O57: 57
B58: altri servizi da altre imprese | E58: 0 | K58: 0 | O58: 58
B59: B8) Per godimento beni di terzi | E59: 0 | K59: 0 | O59: 59 | P59: =OR(C59<SUM(C60:C61),D59<SUM(D60:D61),F59<SUM(F60:F61),G59<SUM(G60:G61),I59<SUM(I60:I61),J59<SUM(J60:J61),L59<SUM(L60:L61),M59<SUM(M60:M61)) -> FALSE
B60: di cui per uso impianti di altre imprese del gruppo | E60: 0 | K60: 0
B61: di cui altre spese verso altre imprese del gruppo | E61: 0 | K61: 0
B62: B9) Per il personale | E62: 0 | K62: 0 | O62: 74 | P62: =+OR(C62<(C63+C64),D62<(D63+D64),F62<(F63+F64),G62<(G63+G64),I62<(I63+I64),J62<(J63+J64),L62<(L63+L64),M62<(M63+M64)) -> FALSE
B63: di cui per salari e stipendi | E63: 0 | K63: 0 | O63: 75
B64: di cui per trattamento di fine rapporto (inclusa rivalutazione) | E64: 0 | K64: 0 | O64: 76
B65: B10) Ammortamenti e svalutazioni | E65: 0 | K65: 0 | O65: 77 | P65: =OR(C65<SUM(C66:C68),D65<SUM(D66:D68),F65<SUM(F66:F68),G65<SUM(G66:G68),I65<SUM(I66:I68),J65<SUM(J66:J68),L65<SUM(L66:L68),M65<SUM(M66:M68)) -> FALSE
B66: di cui per altre svalutazioni delle immobilizzazioni | E66: 0 | K66: 0 | O66: 78
B67: di cui per svalutazione dei crediti compresi nell'attivo circolante e delle disponibilità liquide | E67: 0 | K67: 0 | O67: 79
B68: di cui per Immobilizzazioni immateriali: avviamenti, capitalizzazione concessione, etc. | E68: 0 | K68: 0 | O68: 80
B69: B11) Variazione delle rimanenze di materie prime, sussidiarie, di consumo e merci | E69: 0 | K69: 0 | O69: 81
B70: B12) Accantonamenti per rischi | E70: 0 | K70: 0 | O70: 82
B71: B13) Altri accantonamenti | E71: 0 | K71: 0 | O71: 83
B72: B14) Oneri diversi di gestione | E72: 0 | K72: 0 | O72: 84
A73: ULTERIORI SPECIFICAZIONI DEI COSTI (Euro) | C73: =SUM(C74:C91)+C92+C96 -> 0 | D73: =SUM(D74:D91)+D92+D96 -> 0 | E73: 0 | F73: =SUM(F74:F91)+F92+F96 -> 0 | G73: 0 | I73: =SUM(I74:I91)+I92+I96 -> 0 | J73: 0 | K73: 0 | L73: =SUM(L74:L91)+L92+L96 -> 0 | M73: 0 | O73: 85
B74: Accantonamenti e rettifiche in eccesso rispetto all'applicazione di norme tributarie | E74: 0 | K74: 0 | O74: 86
B75: Rettifiche di valori di attività finanziarie | E75: 0 | K75: 0 | O75: 87
B76: Costi connessi all'erogazione di liberalità | E76: 0 | K76: 0 | O76: 88
B77: Costi pubblicitari e di marketing (incluse le imposte connesse) | E77: 0 | K77: 0 | O77: 89
B78: Oneri per sanzioni, penalità, risarcimenti automatici e simili | E78: 0 | K78: 0 | O78: 90
B79: Oneri straordinari | E79: 0 | K79: 0 | O79: 91
B80: Spese processuali in cui la parte è risultata soccombente | E80: 0 | K80: 0 | O80: 92
B81: Contributi associativi | E81: 0 | K81: 0 | O81: 93
B82: Spese di viaggio e di rappresentanza | E82: 0 | K82: 0 | O82: 94
B83: Spese di funzionamento Ente di governo dell'ambito | E83: 0 | K83: 0 | O83: 95
B84: Canoni di affitto immobili non industriali | E84: 0 | K84: 0 | O84: 96
B85: Costi di realizzazione degli allacciamenti idrici e fognari | E85: 0 | K85: 0 | O85: 97
B86: Gestione fognature bianche (* solo se già incluse nel SII; v. v. comma 1.1 All. A del. 580/2019/R/IDR) | E86: 0 | K86: 0 | O86: 98
B87: Pulizia e manutenzione caditoie stradali (* solo se già incluse nel SII; v. v. comma 1.1 All. A del. 580/2019/R/IDR) | E87: 0 | K87: 0 | O87: 99
B88: Perdite su crediti per la sola quota parte eccedente l'utilizzo del fondo | E88: 0 | K88: 0 | O88: 100
B89: Costi di strutturazione dei progetti di finanziamento (non capitalizzati) | E89: 0 | K89: 0 | O89: 101
B90: di cui della voce B7): lavorazioni eseguite da terzi di tipo labour intensive (ad esempio gestione call center) e consulenze | O90: 102 | P90: =OR(C90>C46,F90>F46,G90>G46,I90>I46,L90>L46,M90>M46) -> FALSE
B91: Trasporto e smaltimento fanghi non già inclusi nella voce B7) | E91: 0 | K91: 0 | O91: 103
B92: Uso infrastrutture di terzi | C92: =+SUM(C93:C95) -> 0 | D92: =+SUM(D93:D95) -> 0 | E92: 0 | F92: =+SUM(F93:F95) -> 0 | G92: 0 | I92: =+SUM(I93:I95) -> 0 | J92: 0 | K92: 0 | L92: =+SUM(L93:L95) -> 0 | M92: 0 | O92: 104
B93: rimborso mutui di comuni, aziende speciali, società patrimoniali | E93: 0 | K93: =+I93-J93 -> 0 | O93: 105
B94: altri corrispettivi a comuni, aziende speciali, società patrimoniali | E94: 0 | K94: =+I94-J94 -> 0 | O94: 106
B95: corrispettivi a gestori preesistenti, altri proprietari | E95: 0 | K95: =+I95-J95 -> 0 | O95: 107
B96: Oneri locali | C96: =+SUM(C97:C102) -> 0 | D96: =+SUM(D97:D102) -> 0 | E96: 0 | F96: =+SUM(F97:F102) -> 0 | G96: 0 | I96: =+SUM(I97:I102) -> 0 | J96: 0 | K96: =+I96-J96 -> 0 | L96: =+SUM(L97:L102) -> 0 | M96: 0 | O96: 108
B97: canoni di derivazione/sottensione idrica | E97: 0 | K97: =+I97-J97 -> 0 | O97: 109
B98: contributi per consorzi di bonifica | E98: 0 | K98: 0 | O98: 110
B99: contributi a comunità montane | E99: 0 | K99: 0 | O99: 111
B100: canoni per restituzione acque | E100: 0 | K100: 0 | O100: 112
B101: oneri per la gestione di aree di salvaguardia | E101: 0 | K101: 0 | O101: 113
B102: altri oneri locali (TOSAP, COSAP, TARSU) | E102: 0 | K102: 0 | O102: 114
A106: ULTERIORI SPECIFICAZIONI DELLE ALTRE ATTIVITÀ IDRICHE (Euro) | D106: ANNO 2018 | J106: ANNO 2019
A108: Altre attività idriche relative ai seguenti obiettivi di sostenibilità energetica ed ambientale | D108: Ricavi | F108: Costi | J108: Ricavi | L108: Costi
B110: a) efficienza energetica nelle attività e nelle infrastrutture qualora non riconducibile al servizio idrico integrato
B111: b) riduzione dell’utilizzo della plastica mediante la promozione del consumo di acqua potabile anche tramite l’installazione di fontanelle
B112: c) recupero di energia - elettrica e termica - e di materie prime mediante impianti o specifici trattamenti integrati nelle infrastrutture idriche, nonché diffusione di energia da fonti rinnovabili per l’alimentazione degli impianti del servizio idrico integrato
B113: d) riuso dell’acqua trattata (ad esempio ai fini agricoli e industriali) al fine di promuovere una maggiore razionalizzazione della risorsa in particolare in contesti caratterizzati da fenomeni di siccità
O114: 115 | P114: =+OR(SUM(D110:D113)>F4,SUM(J110:J113)>L4,SUM(F110:F113)>F42,SUM(L110:L113)>L42) -> FALSE

Sheet Altri dati economico_finanziari
B1: FONTI DI FINANZIAMENTO
E2: ANNO 2018 | F2: ANNO 2019 | M2: errore nei dati per morosità | N2: errore nei dati in valore assoluto | O2: errore nelle voci "di cui" | P2: Sono presenti errori
C3: Mezzi Propri | D3: Euro | M3: =+OR(E31*F31=0,E31="",F31="") -> TRUE | N3: =+OR(E17:F19="",E24:F25="",E27:F27="",E31:F32="",E47:F51="",E52="",E53:F54="",E61:H61="",E65:F67="",E62="") -> TRUE | O3: =OR(E6>E5,F6>F5,E12>E11,F12>F11,ABS(E49)>ABS(E48),ABS(F49)>ABS(F48)) -> FALSE | P3: =+OR(M3:O3) -> TRUE
B4: MEZZI DI TERZI
C5: Finanziamenti a medio-lungo termine | D5: Euro
C6: di cui verso società controllate e collegate e verso controllanti | D6: Euro
C7: Tasso medio finanziamenti a medio-lungo termine | D7: %
C8: Prestiti obbligazionari | D8: Euro
C9: Tasso medio Prestiti obbligazionari | D9: %
C10: Altre passitivtà consolidate | D10: Euro
C11: Finanziamenti a breve termine | D11: Euro
C12: di cui verso società controllate e collegate e verso controllanti | D12: Euro
C13: Tasso medio Finanziamenti a breve termine | D13: %
C14: Altre passività correnti | D14: Euro
C15: Debiti tributari | D15: Euro
B16: TFR, FONDO RISCHI E ALTRI
C17: TFR | D17: Euro
C18: Fondo di quiescenza | D18: Euro
C19: Fondo rischi e oneri | D19: Euro
C20: Fondo rischi su crediti | D20: Euro
C21: Fondo svalutazione crediti | D21: Euro
C22: Valore Deposito cauzionale | D22: Euro
C23: Fondo imposte e tasse (anche differite) | D23: Euro
C24: Fondo sentenza Corte Costituzionale 335/2008 | D24: Euro
C25: Fondo per il ripristino di beni di terzi | D25: Euro
C26: Fondo vincolato al finanziamento della spesa per investimenti comma 9.1 lett. f) MTI-3 | D26: Euro
C27: Fondo per il finanziamento di tariffe sociali o di solidarietà | D27: Euro
B29: ALTRI DATI ECONOMICO FINANZIARI
B30: MOROSITA' | E30: ANNO 2018 | F30: ANNO 2019 | G30: ANNO 2020 | H30: ANNO 2021
C31: Unpaid Ratio (UR) a 24 mesi effettivamente rilevato | D31: %
C32: Rimborsi dagli utenti finali relativi alla gestione della morosità | D32: Euro
C33: Percentuale al fatturato per COdil (comma 28.4 MTI-3) | D33: %
B34: IMPOSTE
C35: IRES | D35: Euro
C36: IRAP | D36: Euro
C37: Imposte differite | D37: Euro
C38: Imposte anticipate | D38: Euro
C39: Aliquota media di tassazione, IRAP inclusa | D39: %
B40: ALTRI IMPORTI IN BOLLETTA
C41: Ui1 (importo fatturato componente Ui1) | D41: Euro
C42: Ui2 (importo fatturato componente Ui2) | D42: Euro
C43: Ui3 (importo fatturato componente Ui3) | D43: Euro
C44: Ui4 (importo fatturato componente Ui4) | D44: Euro
C45: Altre componenti perequative | D45: Euro
B46: ALTRI DATI PER CALCOLO RC
C47: Contributo versato ad ARERA | D47: Euro
C48: Costi per variazioni sistemiche o per eventi eccezionali | D48: Euro
C49: di cui: per eventi eccezionali | D49: Euro
C50: Costo delle forniture all’ingrosso transfrontaliere | D50: Euro
C51: Rimborsi effettuati ai sensi sentenza CC 335/2008 ed eccedenti la quota riconosciuta in tariffa | D51: Euro
C52: Σtarifnew,a*vscalnew,a-2 (ai fini del calcolo del ΔTG,TOT) | D52: Euro
C53: FONInoninv - riportare il dato in eccedenza rispetto alle componenti DCUITFoNI e AMMFoNI - comma 27.1 lett. e) MTI-3 | D53: Euro
C54: FoNIspesa ai sensi del comma 35.3 MTI-3 | D54: Euro
E56: ANNO 2020 | F56: ANNO 2021 | G56: ANNO 2022 | H56: ANNO 2023
C57: COVID: Rinvio di quota parte degli oneri ammissibili a riconoscimento tariffario nel 2020 e successivo recupero entro il 2023 | D57: Euro | J57: ATTENZIONE: la somma dei quattro anni deve essere nulla
B60: ALTRI DATI PER IL CALCOLO DELLA COMPONENTE CAPEX
C61: DCUIT capex (dettagliare nella relazione le motivazioni della collocazione tra i capex) | D61: Euro
C62: Ammortamento finanziario ammissibile ai sensi del comma 10.7 lettera a) MTI-3 | D62: SI/NO
B63: ALTRI DATI PER IL CALCOLO DELLA COMPONENTE OPEX
C64: OpexQT effettivamente sostenuti dal gestore (al lordo degli ERC) (commi 18.8, 26.1 e 27.1 MTI-3) | D64: Euro | E64: ='PdI-riepilogo'!F39+'PdI-riepilogo'!D39+'PdI-riepilogo'!E39 -> 0 | F64: ='PdI-riepilogo'!I39+'PdI-riepilogo'!G39+'PdI-riepilogo'!H39 -> 0
C65: OpexQC effettivamente sostenuti dal gestore (commi 18.9 lett. a) e 27.1 MTI-3) | D65: Euro
C66: Opsocial effettivamente sostenuti dal gestore (comma 27.1 MTI-3) | D66: Euro
C67: COΔfanghi (rispetto condizionalità comma 22.2 MTI-3) | D67: SI/NO
E69: 2020 | F69: 2021 | G69: 2022 | H69: 2023
C70: Opexqc - comma 18.9 lettera b) MTI-3 | D70: Euro
C71: Opsocial - scostamento da destinare all'emergenza COVID (comma 27.1 MTI-3) | D71: Euro
C72: Opsocial per il mantenimento o l'introduzione di eventuali agevolazioni migliorative | D72: Euro
C73: Opsocial - comma 7.3 lett. a) REMSI | D73: Euro
C74: Opmis - comma 18.11 MTI-3 | D74: Euro
C75: OpCOVID - comma 18.11 bis MTI-3 | D75: Euro
B77: ALTRI DATI RELATIVI ALLA GESTIONE
B78: CONSISTENZA DEL PERSONALE | E78: 2018 | F78: 2019 | G78: 2016 | H78: 2017
C79: Dirigenti | D79: N.
C80: Quadri | D80: N.
C81: Impiegati | D81: N.
C82: Operai | D82: N.
C83: Collaboratori | D83: N.
B84: COSTI DEL PERSONALE | E84: 2018 | F84: 2019 | G84: 2016 | H84: 2017
C85: Dirigenti | D85: Euro
C86: Quadri | D86: Euro
C87: Impiegati | D87: Euro
C88: Operai | D88: Euro
C89: Collaboratori | D89: Euro
B90: SPESA IN RICERCA E SVILUPPO | E90: 2018 | F90: 2019 | G90: 2016 | H90: 2017
C91: Totale spesa in ricerca e sviluppo | D91: Euro

Sheet Finanziamenti
B1: Finanziamenti (capitale di terzi)
A7: n_riga | B7: Importo finanziato (€) | C7: Soggetto finanziatore | D7: Data di sottoscrizione del finanziamento (gg/mm/aaaa) | E7: Data di scadenza del finanziamento (gg/mm/aaaa) | F7: Garanzie richieste | G7: Quota capitale 2018 (€) | H7: Tasso medio d'interesse 2018 (€) | I7: Quota interessi 2018 (€) | J7: Debito residuo (€) 2018 | K7: Quota capitale 2019 (€) | L7: Tasso medio d'interesse 2019 (€) | M7: Quota interessi 2019 (€) | N7: Debito residuo (€) 2019
A8: =+ROW()-7 -> 1

Sheet Soggetti_proprietari
B1: ELENCO SOGGETTI PROPRIETARI
C3: Elenco proprietari infrastrutture per calcolo Mutui/Altri corrispettivi ed eventuale Stratificazione di terzi | O3: Sono presenti Errori
O4: =+AND(O5:Q5) -> FALSE
O5: =AND(INDEX(Elenco_Proprietari,0,15)) -> FALSE | P5: =AND(INDEX(Elenco_Proprietari,0,16)) -> FALSE | Q5: =AND(INDEX(Elenco_Proprietari,0,17)) -> FALSE
A7: N_riga | B7: Key_Prop | C7: Soggetto Proprietario | D7: Tipologia di proprietario | E7: P. IVA Proprietario | F7: Codice Istat Comune proprietario | G7: Proprietario ai fini dei corrispettivi AC/MT | H7: Proprietario non più presente ai fini della RAB di terzi | I7: Fusione | J7: Numero Cespiti | K7: Key_Prop_bis | L7: New_Key_prop | M7: Proprietario risultante dalla fusione | N7: per costruzione | O7: Errore Proprietari duplicati | P7: Errore PIVA o CodiceISTAT | Q7: Errore tipologia
A8: =+ROW(A8)-7 -> 1 | B8: =idato & "_" & idgestore & "-" & IF($D8="Comune",$F8,"") & "-" &IF($D8="Comune","",$E8) -> _-- | K8: =B8 -> _-- | L8: =IF(I8="SI",VLOOKUP(M8,C:K,9,0),K8) -> _-- | N8: =+IF(H8="SI",L8,0) -> 0 | O8: =IF(COUNTIF(B:B,B8)>1,IF(COUNTA(C8:H8)=0,FALSE,TRUE),FALSE) -> FALSE | P8: =IF(COUNTA(E8:F8)<1,IF(COUNTA(C8:H8)=0,FALSE,TRUE),FALSE) -> FALSE | Q8: =IF(COUNTA(D8)<1,IF(COUNTA(C8:H8)=0,FALSE,TRUE),FALSE) -> FALSE

Sheet Corrispettivi_proprietari
B1: COSTI ASSOCIATI AI SOGGETTI PROPRIETARI
C3: Imputare per ciascun soggetto proprietario il valore dei Mutui MT e altri corrispettivi AC
AC4: Sono presenti errori
AC5: =OR(INDEX(Corrispettivi_Proprietari,0,COLUMN($AC$8)-COLUMN($A$8)+1)) -> FALSE
G6: Rimborso della rata dei mutui (MT) | L6: Altri corrispettivi (AC) | S6: MT - controllo Anno deliberazione e Tipologia Proprietario | X6: AC - controllo Anno deliberazione e Tipologia Proprietario
A7: N_riga | B7: Key_Prop | C7: Soggetto Proprietario | D7: Tipologia di proprietario | E7: P. IVA Proprietario | F7: Codice Istat Comune proprietario | G7: Anno di deliberazione | H7: previsto 2020 (€) | I7: previsto 2021 (€) | J7: previsto 2022 (€) | K7: previsto 2023 (€) | L7: Anno di deliberazione | M7: Canoni connessi alla stipula di ulteriori contratti di finanziamento (tipo contratti di locazione finanziaria di opere di pubblica utilità) | N7: previsto 2020 (€) | O7: previsto 2021 (€) | P7: previsto 2022 (€) | Q7: previsto 2023 (€) | S7: MT 2020 | T7: MT 2021 | U7: MT 2022 | V7: MT 2023 | X7: AC 2020 | Y7: AC 2021 | Z7: AC 2022 | AA7: AC 2023 | AC7: Errore duplicazione soggetto
A8: =+ROW(A8)-7 -> 1 | B8: =IFERROR(IF(VLOOKUP(C8,Soggetti_proprietari!C:K,9,0)=0,"",VLOOKUP(C8,Soggetti_proprietari!C:K,9,0)),"") ->  | D8: =IFERROR(IF(VLOOKUP(C8,Soggetti_proprietari!C:K,2,0)=0,"",VLOOKUP(C8,Soggetti_proprietari!C:K,2,0)),"") ->  | E8: =IFERROR(IF(VLOOKUP(C8,Soggetti_proprietari!C:K,3,0)=0,"",VLOOKUP(C8,Soggetti_proprietari!C:K,3,0)),"") ->  | F8: =IFERROR(IF(VLOOKUP(C8,Soggetti_proprietari!C:K,4,0)=0,"",VLOOKUP(C8,Soggetti_proprietari!C:K,4,0)),"") ->  | S8: =+IF(AND($G8<=2019,$G8<>"",$D8<>"Altra società privata",$B8<>""),H8,0) -> 0 | T8: =+IF(AND($G8<=2019,$G8<>"",$D8<>"Altra società privata",$B8<>""),I8,0) -> 0 | U8: =+IF(AND($G8<=2019,$G8<>"",$D8<>"Altra società privata",$B8<>""),J8,0) -> 0 | V8: =+IF(AND($G8<=2019,$G8<>"",$D8<>"Altra società privata",$B8<>""),K8,0) -> 0 | X8: =+IF(AND($L8<=2006,$L8<>"",$D8<>"Altra società privata",$B8<>""),N8,IF($M8="SI",N8,0)) -> 0 | Y8: =+IF(AND($L8<=2006,$L8<>"",$D8<>"Altra società privata",$B8<>""),O8,IF($M8="SI",O8,0)) -> 0 | Z8: =+IF(AND($L8<=2006,$L8<>"",$D8<>"Altra società privata",$B8<>""),P8,IF($M8="SI",P8,0)) -> 0 | AA8: =+IF(AND($L8<=2006,$L8<>"",$D8<>"Altra società privata",$B8<>""),Q8,IF($M8="SI",Q8,0)) -> 0 | AC8: =IF(COUNTIF(B:B,B8)>1,IF(AND(G8="",J8="",K8="",L8="",P8="",Q8="",C8=""),FALSE,TRUE),FALSE) -> FALSE

Sheet Soggetti_Scambio
B1: SCAMBI ALL'INGROSSO
Q2: Sono presenti errori
B3: per ciascun soggetto indicare almeno l'ID gestore oppure la Partita IVA | Q3: =+OR(INDEX(Soggetti_Elenco,0,13)) -> FALSE
B5: 1. Soggetti con cui si hanno scambi di Servizi all'ingrosso (Vendita e/o Acquisto)
B7: IDGestore | C7: Nome soggetto | D7: Partita Iva | H7: nome_soggetto | I7: id_gestore | J7: P.IVA | K7: errore idgestore | L7: errore P.IVA | M7: errore idgestore o Partita Iva
A8: =+ROW(A8)-7 -> 1 | H8: =+IFERROR(VLOOKUP(I8,TT_Gestori!A:C,3,FALSE),IFERROR(VLOOKUP(D8,TT_Gestori!B:C,2,FALSE),+C8)) -> 0 | I8: =IFERROR(VLOOKUP(B8,TT_Gestori!A:C,1,FALSE),IFERROR(VLOOKUP(D8,TT_Gestori!B:D,3,FALSE),B8)) -> 0 | J8: =IFERROR(VLOOKUP(D8,TT_Gestori!C:C,1,FALSE),IFERROR(VLOOKUP(I8,TT_Gestori!A:C,2,FALSE),D8)) -> 0 | K8: =+OR(I8="",I8=0) -> TRUE | L8: =+OR(J8="",J8=0) -> TRUE | M8: =+IF(AND(B8="",C8="",D8="",ROW(B8)=8),FALSE,IF(OR(H8="",H8=0,K8=TRUE,L8=TRUE),TRUE,FALSE)) -> FALSE

Sheet Vendita_Servizi_ingrosso
B1: SCAMBI ALL'INGROSSO
B3: 2. Ricavi da tariffe applicate nella Vendita all'ingrosso
L4: ANNO 2018 | R4: ANNO 2019 | Z4: J ANNO 2018 | AE4: J ANNO 2019
A5: N_riga | B5: Idgestore | C5: Soggetto a cui si vende | D5: ATO | E5: Servizio | L5: Volumi erogati / trattati (m3/anno) | M5: QV (Euro/m3) | N5: - | O5: Utenze (numero) | P5: QF (Euro/utente/anno) | Q5: Importo (Euro/anno) | R5: Volumi erogati / trattati (m3/anno) | S5: QV (Euro/m3) | T5: - | U5: Utenze (numero) | V5: QF (Euro/utente/anno) | W5: Importo (Euro/anno) | X5: Le tariffe riportate per il 2018 includono l'applicazione del Teta? | Y5: Teta medio applicato nella fatturazione dell'anno 2018 | Z5: Teta approvato dal soggetto competente per l'anno 2018 | AA5: Teta approvato dall'Autorità per l'anno 2018 | AB5: delibera Autorità | AC5: Le tariffe riportate per il 2019 includono l'applicazione del Teta? | AD5: Teta medio applicato nella fatturazione dell'anno 2019 | AE5: Teta approvato dal soggetto competente per l'anno 2019 | AF5: Teta approvato dall'Autorità per l'anno 2019 | AG5: delibera Autorità | AJ5: tar2019*vol2018 | AK5: tar2018*vol2018 | AL5: tar2019*vol2019
A6: =+ROW(A6)-5 -> 1 | B6: =+IF(ISNA(VLOOKUP(C6,soggetto_j,2,FALSE)),0,VLOOKUP(C6,soggetto_j,2,FALSE)) -> 0 | Q6: =+L6*M6+O6*P6 -> 0 | W6: =+U6*V6+R6*S6 -> 0 | AA6: =+Dati_Anni_precedenti!$E$5 -> 0 | AB6: =+Dati_Anni_precedenti!$G$4 -> 0 | AF6: =+Dati_Anni_precedenti!$F$5 -> 0 | AG6: =+Dati_Anni_precedenti!$G$4 -> 0 | AJ6: =+O6*$V6+L6*$S6 -> 0 | AK6: =+Q6 -> 0 | AL6: =+W6 -> 0

Sheet Acquisto_Servizi_ingrosso
B1: SCAMBI ALL'INGROSSO
B3: 3. Costi per acquisto all'ingrosso | F3: costi sostenuti di fornitura all'ingrosso, criterio di competenza | Q3: costi a seguito dell'applicazione del J al grossista | W3: costi sostenuti di fornitura all'ingrosso, criterio di competenza | AH3: costi a seguito dell'applicazione del J al grossista
F4: ANNO 2018 - COeffettivo,2018 ai fini del COws comma 21.1 All.A del. 580/2019/R/idr | L4: informazione sui J ANNO 2018 | Q4: ANNO 2018 - COeffettivo,2018 ai fini del RCws comma 27.1 All.A del. 580/2019/R/idr | W4: ANNO 2019 - COeffettivo,2019 ai fini del COws comma 21.1 All.A del. 580/2019/R/idr | AC4: informazione sui J ANNO 2019 | AH4: ANNO 2019 - COeffettivo,2019 ai fini del RCws comma 27.1 All.A del. 580/2019/R/idr
A5: N_riga | B5: Idgestore | C5: Soggetto da cui si acquista | D5: ATO | E5: Servizio | F5: Volumi erogati / trattati (m3/anno) | G5: QV (Euro/m3) | H5: - | I5: Utenze (numero) | J5: QF (Euro/utente/anno) | K5: Importo (Euro/anno) | L5: Le tariffe applicate per la fatturazione 2018 includono l'applicazione del Teta? | M5: Teta medio applicato dal grossista nella fatturazione dell'anno 2018 | N5: Teta approvato dal soggetto competente per l'anno 2018 | O5: Teta approvato dall'Autorità per l'anno 2018 | P5: delibera Autorità | Q5: Volumi erogati / trattati (m3/anno) | R5: QV (Euro/m3) | S5: - | T5: Utenze (numero) | U5: QF (Euro/utente/anno) | V5: Importo (Euro/anno) | W5: Volumi erogati / trattati (m3/anno) | X5: QV (Euro/m3) | Y5: - | Z5: Utenze (numero) | AA5: QF (Euro/utente/anno) | AB5: Importo (Euro/anno) | AC5: Le tariffe applicate per la fatturazione 2019 includono l'applicazione del Teta? | AD5: Teta medio applicato dal grossista nella fatturazione dell'anno 2019 | AE5: Teta approvato dal soggetto competente per l'anno 2019 | AF5: Teta approvato dall'Autorità per l'anno 2019 | AG5: delibera Autorità | AH5: Volumi erogati / trattati (m3/anno) | AI5: QV (Euro/m3) | AJ5: - | AK5: Utenze (numero) | AL5: QF (Euro/utente/anno) | AM5: Importo (Euro/anno) | AP5: check per RCws 2018 | AQ5: check per RCws 2019
A6: =+ROW(A6)-5 -> 1 | B6: =+IFERROR(VLOOKUP(C6,soggetto_j,2,FALSE),"") -> 0 | K6: =+F6*G6+I6*J6 -> 0 | V6: =+Q6*R6+T6*U6 -> 0 | AB6: =+W6*X6+Z6*AA6 -> 0 | AM6: =+AH6*AI6+AK6*AL6 -> 0 | AP6: =IF(OR(K6=0,V6=0),0,1) -> 0 | AQ6: =IF(OR(AB6=0,AM6=0),0,1) -> 0

Sheet Nuovi_Investimenti
B1: IMMOBILIZZAZIONI DEL GESTORE | G1: Tutti i valori si intendono a moneta dell'anno del cespite (2018-2019)
A2: 1. LAVORI IN CORSO | M2: errori_compilazione | N2: errore_PdI | O2: Sono_presenti_errori
D3: 2018 | E3: 2019 | F3: 2020 | G3: 2021 | M3: =+OR(INDEX(Nuovi_Investimenti,0,29)) -> TRUE | N3: =+D10+E10-'PdI-riepilogo'!D4-'PdI-riepilogo'!E4<>0 -> FALSE | O3: =++OR(M3:N3) -> TRUE
C4: Saldo LICord (al netto dei saldi che risultino invariati da più di 4 anni)
C5: Saldo LICpos (al netto dei saldi che risultino invariati da più di 5 anni)
A7: 2. NUOVI INVESTIMENTI (2018-2019)
D8: 2018 | E8: 2019 | F8: 2020 | G8: 2021 | AA8: =+IF(OR(D8="Acquedotto",D8="Fognatura",D8="Depurazione",D8="Comune"),D8,"") -> 
C9: FoNIa-2 da riportare a CFP | D9: ='Altri dati economico_finanziari'!E54 -> 0 | E9: ='Altri dati economico_finanziari'!F54 -> 0
C10: Totale nuovi investimenti | D10: =+SUMIF($T:$T,D$8,$U:$U) -> 0 | E10: =+SUMIF($T:$T,E$8,$U:$U) -> 0 | F10: =+'PdI-riepilogo'!D18 -> 0 | G10: =+'PdI-riepilogo'!E18 -> 0 | K10: Valore | L10: Spazio per eventuale compilazione manuale del valore di incidenza
C11: incidenza ENV (%) | D11: =IF(K11="",IFERROR((SUMIFS($U:$U,$Z:$Z,"Env",$T:$T,D$8))/D10,0),K11) -> 0 | E11: =IF(K11="",IFERROR((SUMIFS($U:$U,$Z:$Z,"Env",$T:$T,E$8))/E10,0),K11) -> 0 | F11: =IF(K11="",'PdI-riepilogo'!D19,K11) -> 0 | G11: =IF(K11="",'PdI-riepilogo'!E19,K11) -> 0 | L11: incidenza ENV (%)
C12: incidenza RES (%) | D12: =IF(K12="",IFERROR((SUMIFS($U:$U,$Z:$Z,"Res",$T:$T,D$8))/D10,0),K12) -> 0 | E12: =IF(K12="",IFERROR((SUMIFS($U:$U,$Z:$Z,"Res",$T:$T,E$8))/E10,0),K12) -> 0 | F12: =IF(K12="",'PdI-riepilogo'!D20,K12) -> 0 | G12: =IF(K12="",'PdI-riepilogo'!E20,K12) -> 0 | L12: incidenza RES (%)
C13: incidenza FoNI (%) | D13: =IFERROR(D9/D10,0) -> 0 | E13: =IFERROR(E9/E10,0) -> 0 | F13: =IFERROR(F9/F10,0) -> 0 | G13: =IFERROR(G9/G10,0) -> 0
A15: N_riga | B15: Categoria del cespite | C15: Categoria di Immobilizzazione | D15: Attività | E15: Tipologia di costo sotteso ("Env", "Res", "Non ERC") | F15: Anno cespite | G15: IP (Euro) | H15: CFP (Euro) | I15: CFP da FoNI | J15: CFP Totale | K15: IDATO | L15: IDGestore | M15: Gestore_Proprietario | N15: N_prop | O15: Fonte | P15: ID_Categoria_Cespite | Q15: CategoriaCespite | R15: ID_Immobilizzazione | S15: IMMOBILIZZAZIONE | T15: AnnoCespite | U15: IP | V15: FAIP | W15: CFP | X15: FACP | Y15: - | Z15: ERC | AA15: Attività | AB15: foglio di origine | AC15: controllo_errori
A16: =+ROW(A16)-15 -> 1 | I16: =+IFERROR(HLOOKUP(F16,$D$8:$G$13,6,FALSE)*G16,0) -> 0 | J16: =+I16+H16 -> 0 | K16: =idato -> 0 | L16: =idgestore -> 0 | M16: Gestore | N16: 0 | O16: IP | P16: =+IFERROR(VLOOKUP(Q16,TT_Tabelle_Riferimento!$G$32:$H$48,2,0),0) -> 0 | Q16: =+IFERROR(VLOOKUP(B16,TT_Tabelle_Riferimento!$G$32:$H$48,1,0),0) -> 0 | R16: =+IFERROR(VLOOKUP(S16,cat_imm_new,2,0),0) -> 0 | S16: =+IFERROR(VLOOKUP(C16,cat_imm_new,1,0),0) -> 0 | T16: =F16 -> 0 | U16: =G16 -> 0 | V16: 0 | W16: =J16 -> 0 | X16: 0 | Z16: =+IF(OR(E16="Res",E16="Env",E16="Non ERC"),E16,"") ->  | AA16: =+IF(OR(D16="Acquedotto",D16="Fognatura",D16="Depurazione",D16="Comune"),D16,"") ->  | AB16: Nuovi_Investimenti | AC16: =+IF(OR(K16:L16=0,P16=0,R16=0),TRUE,FALSE) -> TRUE

Sheet Dismissioni
B1: IMMOBILIZZAZIONI DEL GESTORE | G1: Tutti i valori si intendono a moneta dell'anno del cespite
A2: 3. DISMISSIONI
M3: Sono presenti errori
M4: =+OR(INDEX(Dismissioni,0,32)) -> FALSE
A7: N_riga | B7: Categoria del cespite | C7: Categoria di Immobilizzazione | D7: Attività | E7: Tipologia di costo sotteso ("Env", "Res", "Non ERC") | F7: Anno dismissione | G7: Anno cespite | H7: IP (Euro) | I7: FA (Euro) | J7: CFP (Euro) | K7: FA cfp (Euro) | M7: IDATO | N7: IDGESTORE | O7: Gestore_Proprietario | P7: N_prop | Q7: Fonte | R7: ID_Categoria_Cespite | S7: CategoriaCespite | T7: ID_Immobilizzazione | U7: IMMOBILIZZAZIONE | V7: AnnoDismissione | W7: IP | X7: FAIP | Y7: CFP | Z7: FACFP | AA7: - | AB7: ERC | AC7: Attività | AD7: foglio di origine | AE7: AnnoCespite | AF7: controllo_errori
A8: =+ROW(A8)-8 -> 0 | M8: =idato -> 0 | N8: =idgestore -> 0 | O8: Gestore | P8: 0 | Q8: IP | R8: =+IFERROR(VLOOKUP(S8,TT_Tabelle_Riferimento!$G$32:$H$48,2,0),0) -> 0 | S8: =+IFERROR(VLOOKUP(B8,TT_Tabelle_Riferimento!$G$32:$H$48,1,0),0) -> 0 | T8: =+IFERROR(VLOOKUP(U8,cat_imm_new,2,0),0) -> 0 | U8: =+IFERROR(VLOOKUP(C8,cat_imm_new,1,0),0) -> 0 | V8: =+F8 -> 0 | W8: =+IFERROR(IP(ABS($H8),$R8,$T8,$G8,V8+2,ifl),0)*-1 -> 0 | X8: =+IFERROR(FondoAmm(ABS($H8),ABS($I8),$G8,$R8,$T8,V8+2,vite_regolatorie,ifl),0)*-1 -> 0 | Y8: =+IFERROR(CFP_A(ABS($J8),$R8,$T8,$G8,V8+2,ifl),0)*-1 -> 0 | Z8: =+IFERROR(FACFP(ABS($J8),ABS($K8),$G8,$R8,$T8,V8+2,vite_regolatorie,ifl),0)*-1 -> 0 | AB8: =+IF(OR(E8="Res",E8="Env",E8="Non ERC"),E8,"") ->  | AC8: =+IF(OR(D8="Acquedotto",D8="Fognatura",D8="Depurazione",D8="Comune"),D8,"") ->  | AD8: Dismissioni | AE8: =+G8 -> 0 | AF8: =+IF(OR(M8:N8=0,R8=0,T8=0),IF(COUNTA(A:A)>3,TRUE,FALSE),FALSE) -> FALSE

Sheet Ammortamento_Finanziario
B1: IMMOBILIZZAZIONI DEL GESTORE
A2: 4. VITE UTILI PER LO SVILUPPO DELLA RAB | E2: area dati storici MTT - MTI | T2: area dati storici MTI-2 - MTI-2 aggiornamento | AN2: area MTI-3 | BB2: area MTI-3
D3: Anno del Cespite | E3: ANNI 1967 - 2011 | J3: ANNO 2012 | O3: ANNO 2013 | T3: ANNO 2014 | Y3: ANNO 2015 | AD3: ANNO 2016 | AI3: ANNO 2017 | AN3: ANNO 2018 | AS3: ANNO 2019 | BB3: ANNO 2020 | BE3: ANNO 2021
E4: =+IF(iAF="SI","SI","NO") -> NO | J4: =+IF(OR(iAF="SI",Dati_Anni_precedenti!E90="SI"),"SI","NO") -> NO | O4: =+IF(OR(iAF="SI",Dati_Anni_precedenti!E90="SI"),"SI","NO") -> NO | T4: =+IF(OR(iAF="SI",Dati_Anni_precedenti!E81="SI"),"SI","NO") -> NO | Y4: =+IF(OR(iAF="SI",Dati_Anni_precedenti!E81="SI"),"SI","NO") -> NO | AD4: =+IF(OR(iAF="SI",Dati_Anni_precedenti!G65="SI"),"SI","NO") -> NO | AI4: =+IF(OR(iAF="SI",Dati_Anni_precedenti!G65="SI"),"SI","NO") -> NO | AN4: =+IF(OR(iAF="SI",schema="IV",schema="V",schema="VI"),"SI","NO") -> NO | AS4: =+IF(OR(iAF="SI",schema="IV",schema="V",schema="VI"),"SI","NO") -> NO | BB4: =+IF(OR(iAF="SI",schema="IV",schema="V",schema="VI"),"SI","NO") -> NO | BE4: =+IF(OR(iAF="SI",schema="IV",schema="V",schema="VI"),"SI","NO") -> NO
D5: Anno di calcolo | F5: 2020 | G5: 2021 | H5: 2022 | I5: 2023 | K5: 2020 | L5: 2021 | M5: 2022 | N5: 2023 | P5: 2020 | Q5: 2021 | R5: 2022 | S5: 2023 | U5: 2020 | V5: 2021 | W5: 2022 | X5: 2023 | Z5: 2020 | AA5: 2021 | AB5: 2022 | AC5: 2023 | AE5: 2020 | AF5: 2021 | AG5: 2022 | AH5: 2023 | AJ5: 2020 | AK5: 2021 | AL5: 2022 | AM5: 2023 | AO5: 2020 | AP5: 2021 | AQ5: 2022 | AR5: 2023 | AT5: 2021 | AU5: 2022 | AV5: 2023 | BC5: 2022 | BD5: 2023 | BF5: 2023
E6: Periodo di ammortamento: | J6: Periodo di ammortamento: | O6: Periodo di ammortamento: | T6: Periodo di ammortamento: | Y6: Periodo di ammortamento: | AD6: Periodo di ammortamento: | AI6: Periodo di ammortamento: | AN6: Periodo di ammortamento: | AS6: Periodo di ammortamento: | BB6: Periodo di ammortamento: | BE6: Periodo di ammortamento:
B7: ID | C7: Categoria Cespite | E7: vite utili regolatorie (MTT) | F7: durata ammortamento finanziario | G7: durata ammortamento finanziario | H7: durata ammortamento finanziario | I7: durata ammortamento finanziario | J7: vite utili regolatorie (MTI) | K7: durata ammortamento finanziario | L7: durata ammortamento finanziario | M7: durata ammortamento finanziario | N7: durata ammortamento finanziario | O7: vite utili regolatorie (MTI) | P7: durata ammortamento finanziario | Q7: durata ammortamento finanziario | R7: durata ammortamento finanziario | S7: durata ammortamento finanziario | T7: vite utili regolatorie (MTI-2) | U7: durata ammortamento finanziario | V7: durata ammortamento finanziario | W7: durata ammortamento finanziario | X7: durata ammortamento finanziario | Y7: vite utili regolatorie (MTI-2) | Z7: durata ammortamento finanziario | AA7: durata ammortamento finanziario | AB7: durata ammortamento finanziario | AC7: durata ammortamento finanziario | AD7: vite utili regolatorie (MTI-2) | AE7: durata ammortamento finanziario | AF7: durata ammortamento finanziario | AG7: durata ammortamento finanziario | AH7: durata ammortamento finanziario | AI7: vite utili regolatorie (MTI-2) | AJ7: durata ammortamento finanziario | AK7: durata ammortamento finanziario | AL7: durata ammortamento finanziario | AM7: durata ammortamento finanziario | AN7: vite utili regolatorie (MTI-3) | AO7: durata ammortamento finanziario | AP7: durata ammortamento finanziario | AQ7: durata ammortamento finanziario | AR7: durata ammortamento finanziario | AS7: vite utili regolatorie (MTI-3) | AT7: durata ammortamento finanziario | AU7: durata ammortamento finanziario | AV7: durata ammortamento finanziario | AX7: ID | AY7: Categoria Cespite | AZ7: Macro-indicatore di riferimento* | BA7: Categoria di immobilizzazioni | BB7: vite utili regolatorie (MTI-3) | BC7: durata ammortamento finanziario | BD7: durata ammortamento finanziario | BE7: vite utili regolatorie (MTI-3) | BF7: durata ammortamento finanziario
B8: 1 | C8: Terreni | AX8: 1 | AY8: Terreni | AZ8: - | BA8: Comune
B9: 2 | C9: Fabbricati non industriali | E9: 40 | J9: 40 | O9: 40 | T9: 40 | Y9: 40 | AD9: 40 | AI9: 40 | AN9: 40 | AS9: 40 | AX9: 2 | AY9: Condotte di acquedotto | AZ9: M1-M2-MC1 | BA9: Acquedotto | BB9: 40 | BE9: 40
B10: 3 | C10: Fabbricati industriali | E10: 40 | J10: 40 | O10: 40 | T10: 40 | Y10: 40 | AD10: 40 | AI10: 40 | AN10: 40 | AS10: 40 | AX10: 3 | AY10: Opere idrauliche fisse di acquedotto | AZ10: M1-M2-M3 | BA10: Acquedotto | BB10: 40 | BE10: 40
B11: 4 | C11: Costruzioni leggere | E11: 40 | J11: 40 | O11: 40 | T11: 40 | Y11: 40 | AD11: 40 | AI11: 40 | AN11: 40 | AS11: 40 | AX11: 4 | AY11: Serbatoi | AZ11: M1-M2 | BA11: Acquedotto | BB11: 40 | BE11: 40
B12: 5 | C12: Condutture e opere idrauliche fisse | E12: 40 | J12: 40 | O12: 40 | T12: 40 | Y12: 40 | AD12: 40 | AI12: 40 | AN12: 40 | AS12: 40 | AX12: 5 | AY12: Impianti di sollevamento e pompaggio di acquedotto | AZ12: M1-M2-M3 | BA12: Acquedotto | BB12: 8 | BE12: 8
B13: 6 | C13: Serbatoi | E13: 50 | J13: 50 | O13: 50 | T13: 50 | Y13: 50 | AD13: 50 | AI13: 50 | AN13: 50 | AS13: 50 | AX13: 6 | AY13: Impianti di potabilizzazione | AZ13: M3 | BA13: Acquedotto | BB13: 20 | BE13: 20
B14: 7 | C14: Impianti di trattamento | E14: 12 | J14: 12 | O14: 12 | T14: 12 | Y14: 12 | AD14: 12 | AI14: 12 | AN14: 12 | AS14: 12 | AX14: 7 | AY14: Altri trattamenti di potabilizzazione (tra cui dispositivi di disinfezione, stacciatura, filtrazione, addolcimento) | AZ14: M3 | BA14: Acquedotto | BB14: 12 | BE14: 12
B15: 8 | C15: Impianti di sollevamento e pompaggio | E15: 8 | J15: 8 | O15: 8 | T15: 8 | Y15: 8 | AD15: 8 | AI15: 8 | AN15: 8 | AS15: 8 | AX15: 8 | AY15: Gruppi di misura - altre attrezzature di acquedotto | AZ15: M1-MC1-MC2 | BA15: Acquedotto | BB15: 10 | BE15: 10
B16: 9 | C16: Gruppi di misura meccanici | E16: 15 | J16: 15 | O16: 15 | T16: 15 | Y16: 15 | AD16: 15 | AI16: 15 | AN16: 15 | AS16: 15 | AX16: 9 | AY16: Sistemi informativi di acquedotto | AZ16: M1-M2-M3 | BA16: Acquedotto | BB16: 5 | BE16: 5
B17: 10 | C17: Gruppi di misura elettronici | E17: 15 | J17: 15 | O17: 15 | T17: 15 | Y17: 15 | AD17: 15 | AI17: 15 | AN17: 15 | AS17: 15 | AX17: 10 | AY17: Telecontrollo e teletrasmissione di acquedotto | AZ17: M1-M2-M3 | BA17: Acquedotto | BB17: 8 | BE17: 8
B18: 11 | C18: Altri impianti | E18: 20 | J18: 20 | O18: 20 | T18: 20 | Y18: 20 | AD18: 20 | AI18: 20 | AN18: 20 | AS18: 20 | AX18: 11 | AY18: Condotte fognarie | AZ18: M4 | BA18: Fognatura | BB18: 50 | BE18: 50
B19: 12 | C19: Laboratori | E19: 10 | J19: 10 | O19: 10 | T19: 10 | Y19: 10 | AD19: 10 | AI19: 10 | AN19: 10 | AS19: 10 | AX19: 12 | AY19: Sifoni e scaricatori di piena e altre opere idrauliche fisse di fognatura | AZ19: M4 | BA19: Fognatura | BB19: 40 | BE19: 40
B20: 13 | C20: Telecontrollo | E20: 8 | J20: 8 | O20: 8 | T20: 8 | Y20: 8 | AD20: 8 | AI20: 8 | AN20: 8 | AS20: 8 | AX20: 13 | AY20: Vasche di laminazione e vasche di prima pioggia | AZ20: M4 | BA20: Fognatura | BB20: 40 | BE20: 40
B21: 14 | C21: Autoveicoli | E21: 5 | J21: 5 | O21: 5 | T21: 5 | Y21: 5 | AD21: 5 | AI21: 5 | AN21: 5 | AS21: 5 | AX21: 14 | AY21: Impianti di sollevamento e pompaggio di fognatura | AZ21: M4 | BA21: Fognatura | BB21: 8 | BE21: 8
B22: 15 | C22: Studi, ricerche, brevetti, diritti di utilizzazione | E22: 5 | J22: 5 | O22: 5 | T22: 5 | Y22: 5 | AD22: 5 | AI22: 5 | AN22: 5 | AS22: 5 | AX22: 15 | AY22: Gruppi di misura - altre attrezzature di fognatura | AZ22: M4 | BA22: Fognatura | BB22: 10 | BE22: 10
B23: 16 | C23: Altre immobilizzazioni materiali e immateriali | E23: 7 | J23: 7 | O23: 7 | T23: 7 | Y23: 7 | AD23: 7 | AI23: 7 | AN23: 7 | AS23: 7 | AX23: 16 | AY23: Sistemi informativi di fognatura | AZ23: M4 | BA23: Fognatura | BB23: 5 | BE23: 5
B24: 17 | C24: Immobilizzazioni immateriali: avviamenti, capitalizzazione concessione, etc. | AX24: 18 | AY24: Telecontrollo e teletrasmissione di fognatura | AZ24: M4 | BA24: Fognatura | BB24: 8 | BE24: 8
AX25: 19 | AY25: Impianti di sollevamento e pompaggio di depurazione | AZ25: M5-M6 | BA25: Depurazione | BB25: 8 | BE25: 8
AX26: 20 | AY26: Tecniche naturali di depurazione (tra cui fitodepurazione e lagunaggio) | AZ26: M6 | BA26: Depurazione | BB26: 40 | BE26: 40
AX27: 21 | AY27: Impianti di depurazione – trattamenti sino al preliminare, integrativo, primario - fosse settiche e fosse Imhoff | AZ27: M6 | BA27: Depurazione | BB27: 20 | BE27: 20
AX28: 22 | AY28: Impianti di depurazione – trattamenti sino al secondario | AZ28: M5-M6 | BA28: Depurazione | BB28: 20 | BE28: 20
AX29: 23 | AY29: Impianti di depurazione – trattamenti sino al terziario e terziario avanzato | AZ29: M5-M6 | BA29: Depurazione | BB29: 20 | BE29: 20
AX30: 24 | AY30: Impianti di essiccamento fanghi e di valorizzazione dei fanghi (tra cui mono-incenerimento, pirolisi, gassificazione) | AZ30: M5 | BA30: Depurazione | BB30: 20 | BE30: 20
AX31: 25 | AY31: Gruppi di misura - altre attrezzature di depurazione | AZ31: M5-M6 | BA31: Depurazione | BB31: 10 | BE31: 10
AX32: 26 | AY32: Sistemi informativi di depurazione | AZ32: M5-M6 | BA32: Depurazione | BB32: 5 | BE32: 5
AX33: 27 | AY33: Telecontrollo e teletrasmissione di depurazione | AZ33: M6 | BA33: Depurazione | BB33: 8 | BE33: 8
AX34: 28 | AY34: Altri impianti | AZ34: M1-M2-M3-M4-M5-M6 | BA34: Comune | BB34: 20 | BE34: 20
AX35: 29 | AY35: Laboratori e attrezzature | AZ35: M3-M6 | BA35: Comune | BB35: 10 | BE35: 10
AX36: 30 | AY36: Sistemi informativi | AZ36: MC1-MC2-M1-M2-M3-M4-M5-M6 | BA36: Comune | BB36: 5 | BE36: 5
AX37: 31 | AY37: Telecontrollo e teletrasmissione | AZ37: M1-M2-M3-M4-M5-M6 | BA37: Comune | BB37: 8 | BE37: 8
AX38: 32 | AY38: Autoveicoli - automezzi | AZ38: MC1-MC2- M1-M2-M3-M4-M5-M6 | BA38: Comune | BB38: 5 | BE38: 5
AX39: 33 | AY39: Fabbricati non industriali | AZ39: MC1-MC2 | BA39: Comune | BB39: 40 | BE39: 40
AX40: 34 | AY40: Fabbricati industriali | AZ40: M1-M2-M3-M4-M5-M6 | BA40: Comune | BB40: 40 | BE40: 40
AX41: 35 | AY41: Costruzioni leggere | AZ41: - | BA41: Comune | BB41: 20 | BE41: 20
AX42: 36 | AY42: Studi, ricerche, brevetti, diritti di utilizzazione | AZ42: M1-M2-M3-M4-M5-M6 | BA42: Comune | BB42: 5 | BE42: 5
AX43: 37 | AY43: Altre immobilizzazioni materiali e immateriali | AZ43: M3-M6-MC1-MC2 | BA43: Comune | BB43: 7 | BE43: 7

Sheet Info_eventuali_aggregazioni
B1: AGGREGAZIONI
M2: Sono presenti errori
M3: =+OR(R:R) -> FALSE
B4: In caso di compilazione, fornire tutte le informazioni richieste
B5: 1. INFORMAZIONI SUI SOGGETTI AGGREGATI
B9: Nome del soggetto | C9: IDGestore della gestione aggregata | D9: Tipologia di gestione | E9: P. IVA | F9: Codice Istat Comune | G9: gestore esercente il servizio di Acquedotto | H9: gestore esercente il servizio di Fognatura | I9: gestore esercente il servizio di Depurazione | J9: popolazione servita (la maggiore tra i servizi forniti in origine) | K9: grado di completezza dei dati | M9: Nome soggetto | N9: idgestore | O9: popolazione | P9: Regolazione tariffaria applicabile | R9: Sono presenti errori
A10: =+ROW(A10)-9 -> 1 | M10: =+IF(B10="","-",B10) -> - | N10: =+IF(C10="","-",C10) -> - | O10: =+IF(J10="","-",J10) -> - | P10: =+IF(Input_per_calcoli_finali!$I$22="","",Input_per_calcoli_finali!$I$22) ->  | R10: =+AND((COUNTA(B10:E10)+COUNTA(G10:K10))<>9,COUNTA(B10:K10)>0) -> FALSE

Sheet Elenco_Bacini_Tariffari
B1: RICAVI TARIFFARI
G2: Sono presenti errori
G3: =+OR(F:F) -> TRUE
B5: 1 - Bacini Tariffari
B7: N_Riga | C7: Bacino Tariffario | D7: N_Riga bis | F7: Errore denominazione Ambito
B8: =+ROW(A8)-7 -> 1 | D8: =+B8 -> 1 | F8: =+C8="" -> TRUE

Sheet Bacini_Tariffari_Comuni
B1: RICAVI TARIFFARI
B5: 2 - Comuni per ciascun Bacino Tariffario
A7: N_Riga | B7: Ambito tariffario | C7: Comune | D7: Codice ISTAT
A8: =+ROW(A8)-7 -> 1 | D8: =IFERROR(VLOOKUP(C8,TT_Comuni_ATO!X:Y,2,0),"") -> 

Sheet Struttura_corrispettivi
B1: RICAVI TARIFFARI
B5: 3 - Articolazione Tariffaria
G8: vigente al 31/12/2015 | I8: vigente al 31/12/2015
B9: Bacino tariffario | C9: Tipologia d'uso | D9: Sottotipologia | E9: 1° scaglione a tariffa agevolata | F9: Servizio idrico | G9: Min di scaglione (m3/2018) | H9: Max di scaglione (m3/2018) | I9: Min di scaglione (m3/2019) | J9: Max di scaglione (m3/2019) | K9: QV (Euro/m3) 2018 | L9: QV (Euro/m3) 2019 | M9: Volumi (m3/anno) 2018 | N9: Volumi (m3/anno) 2019 | O9: QF (Euro/utenti/anno) 2018 | P9: QF (Euro/utenti/anno) 2019 | Q9: Utenze (numero/anno) 2018 | R9: Utenze (numero/anno) 2019 | S9: Bacino_Tariffario | T9: Tipologia | U9: Sottotipologia | V9: Servizio | W9: tar2019*vscal2018 | X9: tar2018*vscal2018 | Y9: tar2019*vscal2019
G10: Min_Scaglione | H10: Max_Scaglione | I10: Min_Scaglione | J10: Max_Scaglione | S10: Ambito_Tariffario
F11: Acquedotto | G11: 0 | I11: 0 | S11: =B11 -> 0 | T11: =+C11 -> 0 | U11: =+D11 -> 0 | V11: Acquedotto | W11: =+L11*M11+P11*Q11 -> 0 | X11: =+K11*M11+O11*Q11 -> 0 | Y11: =+L11*N11+P11*R11 -> 0
G12: =+IF(H11=0,"",H11+1) ->  | I12: =+IF(J11=0,"",J11+1) ->  | S12: =S11 -> 0 | T12: =+T11 -> 0 | U12: =+U11 -> 0 | V12: Acquedotto | W12: =+L12*M12 -> 0 | X12: =+K12*M12 -> 0 | Y12: =+L12*N12 -> 0
G13: =+IF(H12=0,"",H12+1) ->  | S13: 0 | T13: =+T12 -> 0 | U13: =+U12 -> 0 | V13: Acquedotto | W13: =+L13*M13 -> 0 | X13: =+K13*M13 -> 0 | Y13: =+L13*N13 -> 0
S14: 0 | T14: 0 | U14: 0 | V14: Acquedotto | W14: 0 | X14: 0 | Y14: 0
S15: 0 | T15: 0 | U15: 0 | V15: Acquedotto | W15: 0 | X15: 0 | Y15: 0
S16: 0 | T16: 0 | U16: 0 | V16: Acquedotto | W16: 0 | X16: 0 | Y16: 0
S17: 0 | T17: 0 | U17: 0 | V17: Acquedotto | W17: 0 | X17: 0 | Y17: 0
S18: 0 | T18: 0 | U18: 0 | V18: Acquedotto | W18: 0 | X18: 0 | Y18: 0
S19: 0 | T19: 0 | U19: 0 | V19: Acquedotto | W19: 0 | X19: 0 | Y19: 0
S20: 0 | T20: 0 | U20: 0 | V20: Acquedotto | W20: 0 | X20: 0 | Y20: 0
F21: Fognatura | S21: 0 | T21: 0 | U21: 0 | V21: Fognatura | W21: =+L21*M21+P21*Q21 -> 0 | X21: =+K21*M21+O21*Q21 -> 0 | Y21: =+L21*N21+P21*R21 -> 0
F22: Depurazione | S22: 0 | T22: 0 | U22: 0 | V22: Depurazione | W22: 0 | X22: 0 | Y22: 0

Sheet Ricavi_Coll_Dep
B1: RICAVI TARIFFARI
B5: 4 - Totale ricavi da Tariffe Industriali
B9: Ricavi Tariffe Industriali articolazione previgente | G9: Variabili di scala
B10: Notazione dato | C10: Descrizione dato | D10: tarifind2018 * (vscalind2016)T | E10: tarifind2019 * (vscalind2017)T | G10: Descrizione dato | H10: ΣVp (m3) Anno 2018 | I10: ΣVp (m3) Anno 2019
B11: [tarifaind,FOG * (vscala-2ind,FOG)T] | C11: Ricavo fognatura da articolazione previgente per reflui industriali (co. 18.1 TICSI) | G11: Fognatura
B12: [tarifaind,DEP * (vscala-2ind,DEP)T] | C12: Ricavo depurazione da articolazione previgente per reflui industriali (co. 19.1 TICSI) | G12: Depurazione
B13: [tarifaind,FOG * (vscala-2ind,FOG)T + tarifaind,DEP * (vscala-2ind,DEP)T] | C13: Ricavo fognatura e depurazione per reflui industriali da articolazione previgente | D13: =D11+D12 -> 0 | E13: =E11+E12 -> 0
B17: Ricavi Tariffe Industriali da formula TICSI
B18: Notazione dato | C18: Descrizione dato | D18: tarifindnew,2018 * (vscalindnew,2016)T | E18: tarifindnew,2019 * (vscalindnew,2017)T | F18: tarifindnew,2018 * (vscalindnew,2018)T | G18: tarifindnew,2019 * (vscalindnew,2018)T | H18: tarifindnew,2019 * (vscalindnew,2019)T
B19: ∑p Tp | C19: Ricavi complessivi da nuova struttura dei corrispettivi per collettamento e depurazione dei reflui industriali
B20: ∑p Tp cap 10% annuo | C20: Ricavi complessivi da nuova struttura dei corrispettivi per collettamento e trattamento dei reflui industriali - post applicazione condizione di sostenibilità su singolo utente p-esimo ex comma 21.2 TICSI
B25: Ricavi Tariffe Industriali per componente RCvol
B26: Notazione dato | C26: Descrizione dato | D26: J2018*tarifind2015 * (vscalind2016)T | E26: J2019*tarifind2015 * (vscalind2017)T | F26: tarifindnew,2018 * (vscalindnew,2018)T | G26: tarifindnew,2019 * (vscalindnew,2019)T
B27: per Rcvol,ind | C27: Ricavi per scostamento tra tariffe effettivamente applicate rispetto al VRG calcolato per l'anno (a-2) | D27: =+MIN(D19,D13*1.1) -> 0 | E27: =+MIN(E19,E13*1.1) -> 0 | F27: =+F20 -> 0 | G27: =+H20 -> 0
B28: Notazione dato | C28: Descrizione dato | D28: DTG,ind2018 in tariffa 2020 | E28: DTG,ind2019 in tariffa 2021
B29: DTG,indATO | C29: Variazione complessiva dei ricavi afferenti all'implementazione della nuova struttura dei corrispettivi per reflui industriali rispetto all'articolazione previgente (co. 21.3 TICSI)

Sheet Ricavi_bacini_tariffari
B1: RICAVI TARIFFARI
B5: 5 - Totale ricavi per ciascun bacino tariffario
B9: N_riga | C9: Ambito_Tariffario | D9: tar2019*vscal2018 | E9: tar2018*vscal2018 | F9: tar2019*vscal2019 | G9: tar2019*vscal2018 | H9: tar2018*vscal2018 | I9: tar2019*vscal2019 | J9: SPIEGAZIONE EVENTUALE DIFFERENZA CON LA STRUTTURA TARIFFARIA | L9: tar2019*vscal2018 | M9: tar2018*vscal2018 | N9: tar2019*vscal2019
D10: per calcolo J 2020 | E10: per calcolo RCvol 2020 | F10: per calcolo J 2021 e RCvol2021 | G10: per calcolo J 2020 | H10: per calcolo RCvol 2020 | I10: per calcolo J 2021 e RCvol2021
B11: =+ROW(A11)-10 -> 1 | D11: =+SUMIF(Struttura_corrispettivi!$S:$S,$C11,Struttura_corrispettivi!W:W) -> 0 | E11: =+SUMIF(Struttura_corrispettivi!$S:$S,$C11,Struttura_corrispettivi!X:X) -> 0 | F11: =+SUMIF(Struttura_corrispettivi!$S:$S,$C11,Struttura_corrispettivi!Y:Y) -> 0 | L11: =+IF(G11=0,D11,G11) -> 0 | M11: =+IF(H11=0,E11,H11) -> 0 | N11: =+IF(I11=0,F11,I11) -> 0

Sheet Dati Bonus 2018 e 2019
B1: DATI BONUS IDRICO
B5: BONUS IDRICO ANNI 2018, 2019
B7: Dati bonus sociale idrico di cui all'articolo 12, comma 3, del TIBSI
B9: a) Volumi fatturati in relazione al servizio di acquedotto (1) | C9: UdM | D9: ANNO 2018 | E9: ANNO 2019
B10: Uso Domestico | C10: m3
B11: - uso domestico residente | C11: m3
B12: di cui residente non disagiato | C12: m3
B13: - uso domestico non residente | C13: m3
B14: - uso condominiale | C14: m3
B15: - altre sotto - tiplogie | C15: m3
B16: Altri usi diversi dal domestico | C16: m3
B17: di cui uso industriale | C17: m3
B18: di cui uso artigianale e commerciale | C18: m3
B19: di cui uso agricolo e zootecnico | C19: m3
B20: di cui uso pubblico non disalimentabile | C20: m3
B21: di cui uso pubblico disalimentabile | C21: m3
B22: di cui altri usi | C22: m3
B23: Totale volumi fatturati in relazione al servizio di acquedotto | C23: m3
B24: b) Ammontare UI3 fatturata agli utenti e versata a CSEA | C24: euro
B25: c) Ammontare bonus sociale idrico erogato(2) | C25: euro
B26: d) Nuclei familiari agevolati | C26: numero
B27: e) Utenti agevolati(3) | C27: numero
B28: f) Tariffa agevolata applicata | C28: euro/mc
B29: (1) Indicare i volumi fatturati all'utenza dal 1 gennaio 2018 al 31 dicembre 2018 e dal 1 gennaio 2019 al 31 dicembre 2019
B30: (2) Riportare il totale della compensazione effettivamente erogata all'utenza dal 1 gennaio 2018 al 31 dicembre 2018 e dal 1 gennaio 2019 al 31 dicembre 2019 (in base al criterio di cassa)
B31: (3) Indicare il numero complessivo delle persone fisiche componenti i nuclei familiari agevolati
B34: Dati bonus idrico integrativo di cui all'articolo 12, comma 4, del TIBSI
C35: UdM | D35: ANNO 2018 | E35: ANNO 2019
B36: a) Ammontare bonus idrico integrativo erogato(4) | C36: euro
B37: b) Nuclei familiari agevolati | C37: numero
B38: c) Utenti agevolati(5) | C38: numero
B39: (4) Utilizzare il criterio di cassa per la quantificazione dell'importo totale erogato nell'anno
B40: (5) Indicare il numero complessivo delle persone fisiche componenti i nuclei familiari agevolati

Sheet Dati_Anni_precedenti
K2: sono presenti errori | L2: controllo compilazione | M2: controllo valori non negativi | V2: controlli di compilazione
B3: n_riga | C3: Sezione | D3: Voce | E3: 2018 | F3: 2019 | G3: 2016-2019 | K3: =+AND(L3=TRUE,M3=TRUE) -> TRUE | L3: =+OR(V:W) -> TRUE | M3: =+OR(Y:Z) -> TRUE
B4: 1 | C4: Delibera Autorità | D4: Delibera
B5: 2 | C5: Delibera Autorità | D5: J deliberato | V5: =+OR(E5<0,E5="") -> TRUE | W5: =+OR(F5<0,F5="") -> TRUE | Y5: =+E5=0 -> TRUE | Z5: =+F5=0 -> TRUE
B6: 3 | C6: Delibera Autorità | D6: J medio
B7: 4 | C7: Delibera Autorità | D7: RC post
B8: 5 | C8: Schema regolatorio | D8: ∑Ipexp
B9: 6 | C9: Schema regolatorio | D9: Ipexp | V9: =+OR(E9<0,E9="") -> TRUE | W9: TRUE
B10: 7 | C10: Schema regolatorio | D10: ψ
B11: 8 | C11: Schema regolatorio | D11: RAB MTI
B12: 9 | C12: Schema regolatorio | D12: Schema regolatorio
B13: 10 | C13: Schema regolatorio | D13: Opnew,a | V13: =+OR(E13<0,E13="") -> TRUE | W13: =+OR(F13<0,F13="") -> TRUE
B14: 11 | C14: Schema regolatorio | D14: Opexqc | V14: TRUE | W14: TRUE
B15: 12 | C15: Schema regolatorio | D15: Opexvirt | V15: TRUE | W15: TRUE
B16: 13 | C16: Schema regolatorio | D16: OpexQT | V16: TRUE | W16: TRUE
B17: 14 | C17: Schema regolatorio | D17: Opsocial | V17: TRUE | W17: TRUE
B18: 15 | C18: Moltiplicatore | D18: VRG approvato | V18: TRUE | W18: TRUE | Y18: =+E18=0 -> TRUE | Z18: TRUE
B19: 16 | C19: Moltiplicatore | D19: ∑tarif2015 * vscala-2 | V19: TRUE | W19: TRUE | Y19: TRUE | Z19: TRUE
B20: 17 | C20: Moltiplicatore | D20: di cui: Ricavi ws | V20: TRUE | W20: TRUE
B21: 18 | C21: Moltiplicatore | D21: di cui: Ra | V21: TRUE | W21: TRUE
B22: 19 | C22: Moltiplicatore | D22: di cui: gestioni incom. | V22: TRUE | W22: TRUE
B23: 20 | C23: Moltiplicatore | D23: Rba-2 | V23: TRUE | W23: TRUE
B24: 21 | C24: Moltiplicatore | D24: Cba-2 | V24: TRUE | W24: TRUE
B25: 22 | C25: Costi delle immobilizzazioni | D25: AMM | V25: TRUE | W25: TRUE
B26: 23 | C26: Costi delle immobilizzazioni | D26: OF | V26: TRUE | W26: TRUE
B27: 24 | C27: Costi delle immobilizzazioni | D27: OFisc | V27: TRUE | W27: TRUE
B28: 25 | C28: Costi delle immobilizzazioni | D28: ΔCUITcapex | V28: TRUE | W28: TRUE
B29: 26 | C29: Immobilizzazioni | D29: IML | V29: TRUE | W29: TRUE
B30: 27 | C30: Immobilizzazioni | D30: IMN | V30: TRUE | W30: TRUE
B31: 28 | C31: Immobilizzazioni | D31: FA | V31: TRUE | W31: TRUE
B32: 29 | C32: Fondo Nuovi Investimenti | D32: AMMfoni | V32: TRUE | W32: TRUE
B33: 30 | C33: Fondo Nuovi Investimenti | D33: ΔCUITfoni | V33: TRUE | W33: TRUE
B34: 31 | C34: Fondo Nuovi Investimenti | D34: FNIfoni | V34: TRUE | W34: TRUE
B35: 32 | C35: Costi Operativi | D35: ERCQT | V35: TRUE | W35: TRUE
B36: 33 | C36: Costi Operativi | D36: ERCend | V36: TRUE | W36: TRUE
B37: 34 | C37: Costi Operativi | D37: ERCal | V37: TRUE | W37: TRUE
B38: 35 | C38: Costi Operativi | D38: COato | V38: TRUE | W38: TRUE
B39: 36 | C39: Costi Operativi | D39: COaeegsi | V39: TRUE | W39: TRUE
B40: 37 | C40: Costi Operativi | D40: COmor | V40: TRUE | W40: TRUE
B41: 38 | C41: Costi Operativi | D41: COres | V41: =+E41="" -> TRUE | W41: =+F41="" -> TRUE
B42: 39 | C42: Costi Operativi | D42: COee | V42: TRUE | W42: TRUE
B43: 40 | C43: Costi Operativi | D43: Cows - water | V43: TRUE | W43: TRUE
B44: 41 | C44: Costi Operativi | D44: Cows - other | V44: TRUE | W44: TRUE
B45: 42 | C45: Costi Operativi | D45: MT | V45: TRUE | W45: TRUE
B46: 43 | C46: Costi Operativi | D46: AC | V46: TRUE | W46: TRUE
B47: 44 | C47: Costi Operativi | D47: Opexend | V47: TRUE | W47: TRUE
B48: 45 | C48: Costi Operativi | D48: Contributi c/e | V48: TRUE | W48: TRUE
B49: 46 | C49: Sezione Conguagli | D49: RcVOL
B50: 47 | C50: Sezione Conguagli | D50: RcEE
B51: 48 | C51: Sezione Conguagli | D51: RcWS
B52: 49 | C52: Sezione Conguagli | D52: RcERCa
B53: 50 | C53: Sezione Conguagli | D53: RcaAttiv b
B54: 51 | C54: Sezione Conguagli | D54: Rcares
B55: 52 | C55: Sezione Conguagli | D55: RcaAEEGSI
B56: 53 | C56: Sezione Conguagli | D56: Costi per variazioni sistemiche/ eventi eccezionali
B57: 54 | C57: Sezione Conguagli | D57: Costo forniture all’ingrosso transfrontaliere
B58: 55 | C58: Sezione Conguagli | D58: RcIP (valori a moneta a-2)
B59: 56 | C59: Sezione Conguagli | D59: Rimb335
B60: 57 | C60: Sezione Conguagli | D60: Rcaappr (riportato a moneta a-2)
B61: 58 | C61: Sezione Conguagli | D61: recupero volumi
B62: 59 | C62: Sezione Conguagli | D62: recupero energia elettrica
B63: 60 | C63: Sezione Conguagli | D63: DOpexQC | V63: =+E63>0 -> FALSE | W63: =+F63>0 -> FALSE
B64: 61 | C64: Sezione Conguagli | D64: Rctot
B65: 62 | C65: Ammortamento finanziario | D65: AF MTI-2 agg.
B66: 63 | C66: Altri dati | D66: FoNInoninv | V66: =+OR(E66<0,E66="") -> TRUE | W66: =+OR(F66<0,F66="") -> TRUE
E69: 2016 | F69: 2017
C70: Sezione Frontiera efficiente | D70: COTOT | V70: =+OR(E70<0,E70="") -> TRUE | Y70: =+E70=0 -> TRUE
C71: Sezione altri dati | D71: Ipexp | V71: TRUE | W71: =+OR(F71<0,F71="") -> TRUE
C72: Sezione altri dati | D72: Saldo LIC | V72: TRUE | W72: TRUE
C73: Sezione altri dati | D73: KWh | V73: TRUE | W73: TRUE
C74: Sezione altri dati | D74: COrealiEE (altre gruppo - SII) | W74: TRUE
C75: Sezione altri dati | D75: COrealiEE (altre imprese - SII) | W75: TRUE
C76: Sezione altri dati | D76: COrealiEE (altre gruppo - AAI) | W76: TRUE
C77: Sezione altri dati | D77: COrealiEE (altre imprese - AAI) | W77: TRUE
C78: Sezione altri dati | D78: CO𝑓𝑎𝑛𝑔ℎ𝑖𝑒𝑓𝑓𝑒𝑡𝑡𝑖𝑣𝑜 | W78: TRUE
C79: Sezione altri dati | D79: Opexend (inclusivo di ERCend) | V79: =+OR(E79<0,E79="") -> TRUE
C80: Sezione altri dati | D80: Coeff | V80: TRUE
C81: Ammortamento finanziario | D81: AF MTI-2
C82: Sezione altri dati | D82: J deliberato | W82: =+OR(F82<0,F82="") -> TRUE | Z82: =+F82=0 -> TRUE
C83: Sezione altri dati | D83: J medio
E87: 2014 | F87: 2015
C88: Sezione altri dati | D88: Saldo LIC | W88: =+OR(F88<0,F88="") -> TRUE
C89: Sezione altri dati | D89: KWh | V89: =+OR(E89<0,E89="") -> TRUE | W89: =+OR(F89<0,F89="") -> TRUE
C90: Ammortamento finanziario | D90: AF MTI
E94: 2013
C95: Sezione altri dati | D95: PopATO | V95: =+OR(E95<0,E95="") -> TRUE | Y95: =+E95=0 -> TRUE

Sheet Frontiera_efficiente
O2: sono presenti errori
O3: =+IF(ISNUMBER(ij),FALSE,TRUE) -> TRUE
F4: Definizione schema matrice opex | H4: Cluster (j) / Classe (i) | I4: posizionamento i,j
B5: Componente | C5: Dati 2016 | F5: COStot pop + 0.25 * fluttuante | G5: =+IFERROR(EXP(SUMPRODUCT(G9:G18,H9:H18)+H19)/(C9+0.25*C15),"") ->  | H5: =IF(G5="","",IF(G5>90,"C",IF(AND(G5<=90,G5>74),"B",IF(G5<74,"A","check")))) ->  | I5: =+IFERROR(VLOOKUP(H6&"-"&H5,$AE$95:$AF$113,2,FALSE),"") -> 
B6: Costo energia elettrica | F6: Cotot pop + 0.25 * fluttuante | G6: =+IFERROR(($C$19/($C$9+0.25*$C$15)),"") ->  | H6: =IF(G6="","",IF(G6>116,"Cover",IF(AND(G6<=116,G6>103),"C2",IF(AND(G6<=103,G6>90),"C1",IF(AND(G6<=90,G6>82),"B2",IF(AND(G6<=82,G6>74),"B1",IF(G6<=74,"A","check"))))))) -> 
B7: Consumo energia elettrica | F7: Pitt and Lee (1981)
B8: Costo del lavoro | F8: Variabile | G8: Dati 2016 | H8: Coefficienti
B9: Popolazione servita (n. abitanti residenti serviti) | F9: PE | G9: =+IFERROR(LN(C6/C7+1),"") ->  | H9: 1.0315
B10: Popolazione servita acquedotto (PRA) | F10: PL | G10: =IFERROR(LN((C8/(C10+C11))+1),"") ->  | H10: 0.2817
B11: Abitanti equivalenti | F11: WS | G11: =IFERROR(LN((C12/C13)+1),"") ->  | H11: 0.7841
B12: Costi acquisto all'ingrosso | F12: V | G12: =IFERROR(LN(C13),"") ->  | H12: 0.2263
B13: Volumi A20 | F13: L | G13: =IFERROR(LN(C14),"") ->  | H13: 0.1455
B14: Lunghezza della rete | F14: Pa | G14: =IFERROR(LN(C10+0.25*C15),"") ->  | H14: 0.4685 | O14: =-9/10 -> -0.9 | P14: -1 | Q14: -1
B15: Popolazione fluttuante | F15: AE | G15: =IFERROR(LN(C11),"") ->  | H15: 0.1418 | O15: =-7/8 -> -0.875 | P15: =-9/10 -> -0.9 | Q15: -1
B16: PREQ1_4 | F16: PREQ1_4 | G16: =+IF(C16="","",C16) ->  | H16: -0.0753 | O16: =-5/6 -> -0.8333333333 | P16: =-9/10 -> -0.9 | Q16: -1
B17: PREQ3 | F17: PREQ3 | G17: =+IF(C17="","",C17) ->  | H17: -0.0611 | O17: =-3/4 -> -0.75 | P17: =-5/6 -> -0.8333333333 | Q17: =-9/10 -> -0.9
B18: M1a | F18: M1a | G18: =IFERROR(LN(C18),"") ->  | H18: 0.0281 | O18: =-1/2 -> -0.5 | P18: =-3/4 -> -0.75 | Q18: =-9/10 -> -0.9
B19: COtot | C19: =+IF(Dati_Anni_precedenti!E70="","",Dati_Anni_precedenti!E70) ->  | F19: Costante | H19: 3.2766 | O19: 0 | P19: =-1/2 -> -0.5 | Q19: =-7/8 -> -0.875
AE29: pop + 0,25popflut | AF29: COStot
AE30: =+IFERROR($G$14*(1-VALUE(ROW(D1)/10000)),"") ->  | AF30: =+IFERROR(EXP($G$9*$H$9+$G$10*$H$10+$G$11*$H$11+$G$12*$H$12+$G$13*$H$13+$G$15*$H$15+$G$16*$H$16+$G$17*$H$17+$G$18*$H$18+AE30*$H$14+$H$19)/EXP(AE30),"") -> 
AF31: =+IFERROR(EXP($G$9*$H$9+$G$10*$H$10+$G$11*$H$11+$G$12*$H$12+$G$13*$H$13+$G$15*$H$15+$G$16*$H$16+$G$17*$H$17+$G$18*$H$18+AE31*$H$14+$H$19)/EXP(AE31),"") -> 
AE55: =+IFERROR($G$14*(1-VALUE(ROW(AC26)/10000)),"") -> 
AE95: i,j | AF95: k(i,j) | AG95: γOP
AE96: A-A | AF96: 1 | AG96: -0.9
AE97: B1-A | AF97: 4 | AG97: -0.875
AE98: B2-A | AF98: 7 | AG98: -0.8333333333
AE99: C1-A | AF99: 10 | AG99: -0.75
AE100: C2-A | AF100: 13 | AG100: -0.5
AE101: Cover-A | AF101: 16 | AG101: 0
AE102: A-B | AF102: 2 | AG102: -1
AE103: B1-B | AF103: 5 | AG103: -0.9
AE104: B2-B | AF104: 8 | AG104: -0.9
AE105: C1-B | AF105: 11 | AG105: -0.8333333333
AE106: C2-B | AF106: 14 | AG106: -0.75
AE107: Cover-B | AF107: 17 | AG107: -0.5
AE108: A-C | AF108: 3 | AG108: -1
AE109: B1-C | AF109: 6 | AG109: -1
AE110: B2-C | AF110: 9 | AG110: -1
AE111: C1-C | AF111: 12 | AG111: -0.9
AE112: C2-C | AF112: 15 | AG112: -0.9
AE113: Cover-C | AF113: 18 | AG113: -0.875

Sheet Vite_utili_precedenti
D3: Anno del Cespite | E3: ANNI 1967 - 2011 | N3: ANNO 2012 | U3: ANNO 2013 | AA3: ANNO 2014 | AF3: ANNO 2015 | AJ3: ANNO 2016 | AM3: ANNO 2017
E4: =+IF(iAF="SI","SI","NO") -> NO | N4: =+IF(OR(iAF="SI",Dati_Anni_precedenti!E90="SI"),"SI","NO") -> NO | U4: =+IF(OR(iAF="SI",Dati_Anni_precedenti!E90="SI"),"SI","NO") -> NO | AA4: =+IF(OR(iAF="SI",Dati_Anni_precedenti!E81="SI"),"SI","NO") -> NO | AF4: =+IF(OR(iAF="SI",Dati_Anni_precedenti!E81="SI"),"SI","NO") -> NO | AJ4: =+IF(OR(iAF="SI",Dati_Anni_precedenti!G65="SI"),"SI","NO") -> NO | AM4: =+IF(OR(iAF="SI",Dati_Anni_precedenti!G65="SI"),"SI","NO") -> NO
D5: Anno di calcolo | F5: 2012 | G5: 2013 | H5: 2014 | I5: 2015 | J5: 2016 | K5: 2017 | L5: 2018 | M5: 2019 | O5: 2014 | P5: 2015 | Q5: 2016 | R5: 2017 | S5: 2018 | T5: 2019 | V5: 2015 | W5: 2016 | X5: 2017 | Y5: 2018 | Z5: 2019 | AB5: 2016 | AC5: 2017 | AD5: 2018 | AE5: 2019 | AG5: 2017 | AH5: 2018 | AI5: 2019 | AK5: 2018 | AL5: 2019 | AN5: 2019
E6: Periodo di ammortamento: | N6: Periodo di ammortamento: | U6: Periodo di ammortamento: | AA6: Periodo di ammortamento: | AF6: Periodo di ammortamento: | AJ6: Periodo di ammortamento: | AM6: Periodo di ammortamento:
B7: ID | C7: Categoria Cespite | E7: vite utili regolatorie (MTT) | F7: durata ammortamento finanziario | G7: durata ammortamento finanziario | H7: durata ammortamento finanziario | I7: durata ammortamento finanziario | J7: durata ammortamento finanziario | K7: durata ammortamento finanziario | L7: durata ammortamento finanziario | M7: durata ammortamento finanziario | N7: vite utili regolatorie (MTI) | O7: durata ammortamento finanziario | P7: durata ammortamento finanziario | Q7: durata ammortamento finanziario | R7: durata ammortamento finanziario | S7: durata ammortamento finanziario | T7: durata ammortamento finanziario | U7: vite utili regolatorie (MTI) | V7: durata ammortamento finanziario | W7: durata ammortamento finanziario | X7: durata ammortamento finanziario | Y7: durata ammortamento finanziario | Z7: durata ammortamento finanziario | AA7: vite utili regolatorie (MTI-2) | AB7: durata ammortamento finanziario | AC7: durata ammortamento finanziario | AD7: durata ammortamento finanziario | AE7: durata ammortamento finanziario | AF7: vite utili regolatorie (MTI-2) | AG7: durata ammortamento finanziario | AH7: durata ammortamento finanziario | AI7: durata ammortamento finanziario | AJ7: vite utili regolatorie (MTI-2) | AK7: durata ammortamento finanziario | AL7: durata ammortamento finanziario | AM7: vite utili regolatorie (MTI-2) | AN7: durata ammortamento finanziario
B8: 1 | C8: Terreni
B9: 2 | C9: Fabbricati non industriali | E9: 40 | N9: 40 | U9: 40 | AA9: 40 | AF9: 40 | AJ9: 40 | AM9: 40
B10: 3 | C10: Fabbricati industriali | E10: 40 | N10: 40 | U10: 40 | AA10: 40 | AF10: 40 | AJ10: 40 | AM10: 40
B11: 4 | C11: Costruzioni leggere | E11: 40 | N11: 40 | U11: 40 | AA11: 40 | AF11: 40 | AJ11: 40 | AM11: 40
B12: 5 | C12: Condutture e opere idrauliche fisse | E12: 40 | N12: 40 | U12: 40 | AA12: 40 | AF12: 40 | AJ12: 40 | AM12: 40
B13: 6 | C13: Serbatoi | E13: 50 | N13: 50 | U13: 50 | AA13: 50 | AF13: 50 | AJ13: 50 | AM13: 50
B14: 7 | C14: Impianti di trattamento | E14: 12 | N14: 12 | U14: 12 | AA14: 12 | AF14: 12 | AJ14: 12 | AM14: 12
B15: 8 | C15: Impianti di sollevamento e pompaggio | E15: 8 | N15: 8 | U15: 8 | AA15: 8 | AF15: 8 | AJ15: 8 | AM15: 8
B16: 9 | C16: Gruppi di misura meccanici | E16: 15 | N16: 15 | U16: 15 | AA16: 15 | AF16: 15 | AJ16: 15 | AM16: 15
B17: 10 | C17: Gruppi di misura elettronici | E17: 15 | N17: 15 | U17: 15 | AA17: 15 | AF17: 15 | AJ17: 15 | AM17: 15
B18: 11 | C18: Altri impianti | E18: 20 | N18: 20 | U18: 20 | AA18: 20 | AF18: 20 | AJ18: 20 | AM18: 20
B19: 12 | C19: Laboratori | E19: 10 | N19: 10 | U19: 10 | AA19: 10 | AF19: 10 | AJ19: 10 | AM19: 10
B20: 13 | C20: Telecontrollo | E20: 8 | N20: 8 | U20: 8 | AA20: 8 | AF20: 8 | AJ20: 8 | AM20: 8
B21: 14 | C21: Autoveicoli | E21: 5 | N21: 5 | U21: 5 | AA21: 5 | AF21: 5 | AJ21: 5 | AM21: 5
B22: 15 | C22: Studi, ricerche, brevetti, diritti di utilizzazione | E22: 5 | N22: 5 | U22: 5 | AA22: 5 | AF22: 5 | AJ22: 5 | AM22: 5
B23: 16 | C23: Altre immobilizzazioni materiali e immateriali | E23: 7 | N23: 7 | U23: 7 | AA23: 7 | AF23: 7 | AJ23: 7 | AM23: 7
B24: 17 | C24: Immobilizzazioni immateriali: avviamenti, capitalizzazione concessione, etc.

Sheet IMN_cespiti_ante2017
L1: ATTENZIONE: verificare la correttezza dei dati presenti nell'eventuale file precompilato formito
H2: Immobilizzazioni del gestore (solo immobilizzazioni al 2016 incluso) | S2: Sono presenti errori | T2: errore id categoria cespite | U2: errore id immobilizzazione | V2: errore id anno cespite | W2: errore valori non negativi
S3: =+OR(T3:W3) -> TRUE | T3: =+OR(INDEX(IMN_ante2017,0,20)) -> TRUE | U3: =+OR(INDEX(IMN_ante2017,0,21)) -> TRUE | V3: =+OR(INDEX(IMN_ante2017,0,22)) -> TRUE | W3: =+OR(INDEX(IMN_ante2017,0,23)) -> FALSE
A4: IMN gestore ante 2017
A5: IDATO | B5: IDGestore | C5: Gestore_Proprietario | D5: N_prop | E5: Fonte | F5: ID_Categoria_Cespite | G5: CategoriaCespite | H5: ID_Immobilizzazione | I5: IMMOBILIZZAZIONE | J5: AnnoCespite | K5: IP | L5: FAIP | M5: CFP | N5: FACP | O5: - | P5: ERC | Q5: Attività | R5: foglio di origine | S5: n_riga | T5: errore id categoria cespite | U5: errore id immobilizzazione | V5: errore id anno cespite | W5: errore valori non negativi
A6: =+idato -> 0 | B6: =+idgestore -> 0 | C6: Gestore | D6: 0 | E6: IP | F6: =+IFERROR(VLOOKUP(G6,id_cat_ces,2,FALSE),"") ->  | H6: =+IFERROR(VLOOKUP(I6,id_cat_imm,2,FALSE),"") ->  | R6: =+IF(MIN(K6:N6)<0,0,"RAB_cespiti_ante2017") -> RAB_cespiti_ante2017 | S6: =+ROW(A6)-5 -> 1 | T6: =++IF(S6=0,FALSE,IFERROR(VLOOKUP(G6,id_cat_ces,2,FALSE),FALSE)<>F6) -> TRUE | U6: =++IF(S6=0,FALSE,IFERROR(VLOOKUP(I6,id_cat_imm,2,FALSE),FALSE)<>H6) -> TRUE | V6: =+IF(S6=0,FALSE,J6<1967) -> TRUE | W6: =+IF(S6=0,FALSE,OR(K6<0,L6<0,M6<0,N6<0,R6<0)) -> FALSE

Sheet Conferma_investimenti_2017
P1: sono presenti errori | S1: errore id categoria cespite | U1: errore id immobilizzazione | X1: errore valori non negativi
P2: =+OR(S2,U2,X2) -> FALSE | S2: =+OR(VALUE(INDEX(Investimenti_2017,0,19)))=0 -> FALSE | U2: =+OR(INDEX(Investimenti_2017,0,21))=0 -> FALSE | X2: =+OR(VALUE(INDEX(Investimenti_2017,0,24)))<0 -> FALSE
D3: Investimenti 2017 Le colonne da D a K devono mostrare gli investimenti relativi al 2017 come da predisposizione tariffaria MTI-2 aggiornamento. Indicare nelle colonne L e M eventuali variazioni motivandole in relazione di accompagnamento, altrimenti ricopiare i valori dalle adiacenti colonne. La mancata compilazione delle colonne L e M escluderà tali cespiti dal calcolo. | L3: spazio per la compilazione manuale nessuna rivalutazione monetaria va effettuata
L4: Investimenti EFFETTIVI del 2017 (non lasciare campi vuoti) | AF4: zona per il calcolo RcIP2019
A6: n_riga | B6: IDATO | C6: IDGESTORE | D6: ID_Categoria_Cespite | E6: CategoriaCespite | F6: ID_Immobilizzazione | G6: IMMOBILIZZAZIONE | H6: AnnoCespite | I6: IP (come da approvazione tariffaria) | J6: CFP (come da approvazione tariffaria) | K6: di cui, CFP da FoNI (come da approvazione tariffaria) | L6: IP | M6: CFP | N6: IDATO | O6: Idgestore | P6: Gestore_Proprietario | Q6: N_prop | R6: Fonte | S6: ID_Categoria_Cespite | T6: CategoriaCespite | U6: ID_Immobilizzazione | V6: IMMOBILIZZAZIONE | W6: AnnoCespite | X6: IP | Z6: CFP | AB6: - | AC6: ERC | AD6: Attività | AE6: foglio di origine | AF6: ΔIP | AG6: ΔFA | AH6: ΔAMM | AI6: ΔCFP | AJ6: ΔFACFP | AK6: ΔAMM CFP | AM6: ΔIMN2017 | AN6: ΔCINcfp2017 | AO6: 1 - CINfp / CIN | AP6: Km + α (ex del. 918/2017) | AQ6: Rai rate (ex del. 918/2017) | AS6: ΔAMM - ΔAMM CFP | AT6: ΔOF | AU6: ΔOFisc | AW6: DRCIP
A7: =+ROW(A7)-ROW(A6) -> 1 | B7: =+idato -> 0 | C7: =+idgestore -> 0 | D7: =+IFERROR(VLOOKUP(E7,id_cat_ces,2,FALSE),0) -> 0 | F7: =+IFERROR(VLOOKUP(G7,id_cat_imm,2,FALSE),0) -> 0 | H7: 2017 | N7: =idato -> 0 | O7: =idgestore -> 0 | P7: Gestore | Q7: 0 | R7: IP | S7: =IFERROR(VLOOKUP(T7,TT_Tabelle_Riferimento!$G$32:$H$48,2,0),0) -> 0 | T7: =IFERROR(VLOOKUP(E7,TT_Tabelle_Riferimento!$G$32:$H$48,1,0),0) -> 0 | U7: =+IFERROR(VLOOKUP(V7,TT_Tabelle_Riferimento!$G$2:$H$6,2,0),0) -> 0 | V7: =+IFERROR(VLOOKUP(G7,TT_Tabelle_Riferimento!$G$2:$H$6,1,0),0) -> 0 | W7: =H7 -> 2017 | X7: =L7 -> 0 | Z7: =IFERROR(M7+(SUM(K:K)/SUM(X:X))*X7,0) -> 0 | AE7: Conferma_investimenti_2017 | AF7: =+IFERROR(IP(X7,S7,U7,2017,2019,ifl)-IP(I7,S7,U7,2017,2019,ifl),0) -> 0 | AG7: =+IFERROR(FondoAmm(X7,0,2017,S7,U7,2019,vite_regolatorie,ifl)-FondoAmm(I7,0,2017,S7,U7,2019,vite_regolatorie,ifl),0) -> 0 | AH7: =+IFERROR(QA(X7,0,2017,S7,U7,2019,vite_regolatorie,ifl)-QA(I7,0,2017,S7,U7,2019,vite_regolatorie,ifl),0) -> 0 | AI7: =+IFERROR(CFP_A(Z7,S7,U7,2017,2019,ifl)-CFP_A(J7,S7,U7,2017,2019,ifl),0) -> 0 | AJ7: =+IFERROR(FACFP(Z7,0,2017,S7,U7,2019,vite_regolatorie,ifl)-FACFP(J7,0,2017,S7,U7,2019,vite_regolatorie,ifl),0) -> 0 | AK7: =+IFERROR(QA_CFP(Z7,0,2017,U7,S7,2019,vite_regolatorie,ifl)-QA_CFP(J7,0,2017,U7,S7,2019,vite_regolatorie,ifl),0) -> 0 | AM7: =+IFERROR(IP(X7,S7,U7,2017,2019,ifl)-FondoAmm(X7,0,2017,S7,U7,2019,vite_regolatorie,ifl)-(IP(I7,S7,U7,2017,2019,ifl)-FondoAmm(I7,0,2017,S7,U7,2019,vite_regolatorie,ifl)),0) -> 0 | AN7: =+IFERROR(CFP_A(Z7,S7,U7,2017,2019,ifl)-FACFP(Z7,0,2017,S7,U7,2019,vite_regolatorie,ifl)-(CFP_A(J7,S7,U7,2017,2019,ifl)-FACFP(J7,0,2017,S7,U7,2019,vite_regolatorie,ifl)),0) -> 0 | AO7: =IFERROR(1-AN7/AM7,0) -> 0 | AP7: 0.03803072 | AQ7: 0.06276799664 | AS7: =+AH7-AK7 -> 0 | AT7: =+AP7*AO7*AM7 -> 0 | AU7: =+AQ7*0.275*AO7*AM7 -> 0 | AW7: =+AS7+AT7+AU7 -> 0

Sheet IMN_Proprietari
C1: IMNProprietari - Sviluppo dei costi di capitale associati alle infrastrutture di terzi | H1: ATTENZIONE: verificare la correttezza dei dati presenti nell'eventuale file precompilato fornito
A2: scarico dati
A3: IMN P.
A5: idato associato al gestore | B5: idarera associato al gestore | C5: Tipologia di Proprietario | D5: Key_Prop | E5: ID_Categoria_Cespite | F5: CategoriaCespite | G5: ID_Immobilizzazione | H5: IMMOBILIZZAZIONE | I5: AnnoCespite | J5: IP | K5: FAIP | L5: CFP | M5: FACP | N5: New_Key_prop | O5: dati da non valorizzare | P5: VU 2020 | Q5: IP 2020 | R5: FAIP 2020 | S5: IP netto 2020 | T5: AMM 2020 | U5: CFP 2020 | V5: FA CFP 2020 | W5: CFP netto 2020 | X5: AMM CFP 2020 | Y5: Nriga | Z5: VU 2021 | AA5: IP 2021 | AB5: FAIP 2021 | AC5: IP netto 2021 | AD5: AMM 2021 | AE5: CFP 2021 | AF5: FA CFP 2021 | AG5: CFP netto 2021 | AH5: AMM CFP 2021 | AI5: aaa | AJ5: VU 2022 | AK5: IP 2022 | AL5: FAIP 2022 | AM5: IP netto 2022 | AN5: AMM 2022 | AO5: CFP 2022 | AP5: FA CFP 2022 | AQ5: CFP netto 2022 | AR5: AMM CFP 2022 | AS5: aaaa | AT5: VU 2023 | AU5: IP 2023 | AV5: FAIP 2023 | AW5: IP netto 2023 | AX5: AMM 2023 | AY5: CFP 2023 | AZ5: FA CFP 2023 | BA5: CFP netto 2023 | BB5: AMM CFP 2023
A6: =+idato -> 0 | B6: =+idgestore -> 0 | E6: =+IFERROR(VLOOKUP(F6,id_cat_ces,2,FALSE),"") ->  | G6: =+IFERROR(VLOOKUP(H6,id_cat_imm,2,FALSE),"") ->  | N6: =+IF(D6="","",IFERROR(VLOOKUP(D6,Soggetti_proprietari!K:L,2,0),"")) ->  | O6: =IF(ISNA(VLOOKUP(N6,Soggetti_proprietari!N:N,1,FALSE)),IF(OR(I6=1961,I6=1962),TRUE,FALSE),TRUE) -> FALSE | P6: =+IF(OR($O6,$E6=""),0,VLOOKUP($E6,ViteRegolatorieProp,VALUE(RIGHT(P$5,4))-2011)) -> 0 | Q6: =IF(OR($O6,$E6=""),0,IFERROR(IP_PROP($J6,R6,T6,$E6,$G6,$I6,$P6,VALUE(RIGHT(Q$5,4)),ifl),0)) -> 0 | R6: =IF(OR($O6,$E6=""),0,IFERROR(FondoAmm_prop($J6,$K6,$I6,$E6,$G6,VALUE(RIGHT(R$5,4)),ViteRegolatorieProp,ifl),0)) -> 0 | S6: =+Q6-R6 -> 0 | T6: =IF(OR($O6,$E6=""),0,IFERROR(QA_PROP($J6,$K6,$I6,$E6,$G6,VALUE(RIGHT(T$5,4)),ViteRegolatorieProp,ifl),0)) -> 0 | U6: =IF(OR($O6,$E6=""),0,IFERROR(IP_PROP($L6,V6,X6,$E6,$G6,$I6,$P6,VALUE(RIGHT(U$5,4)),ifl),0)) -> 0 | V6: =IF(OR($O6,$E6=""),0,IFERROR(FondoAmm_prop($L6,$M6,$I6,$E6,$G6,VALUE(RIGHT(V$5,4)),ViteRegolatorieProp,ifl),0)) -> 0 | W6: =+U6-V6 -> 0 | X6: =IF(OR($O6,$E6=""),0,IFERROR(QA_PROP($L6,$M6,$I6,$E6,$G6,VALUE(RIGHT(X$5,4)),ViteRegolatorieProp,ifl),0)) -> 0 | Y6: =+ROW(A6)-5 -> 1 | Z6: =+IF(OR($O6,$E6=""),0,VLOOKUP($E6,ViteRegolatorieProp,VALUE(RIGHT(Z$5,4))-2011)) -> 0 | AA6: =IF(OR($O6,$E6=""),0,IFERROR(IP_PROP($J6,AB6,AD6,$E6,$G6,$I6,$P6,VALUE(RIGHT(AA$5,4)),ifl),0)) -> 0 | AB6: =IF(OR($O6,$E6=""),0,IFERROR(FondoAmm_prop($J6,$K6,$I6,$E6,$G6,VALUE(RIGHT(AB$5,4)),ViteRegolatorieProp,ifl),0)) -> 0 | AC6: =+AA6-AB6 -> 0 | AD6: =IF(OR($O6,$E6=""),0,IFERROR(QA_PROP($J6,$K6,$I6,$E6,$G6,VALUE(RIGHT(AD$5,4)),ViteRegolatorieProp,ifl),0)) -> 0 | AE6: =IF(OR($O6,$E6=""),0,IFERROR(IP_PROP($L6,AF6,AH6,$E6,$G6,$I6,$P6,VALUE(RIGHT(AE$5,4)),ifl),0)) -> 0 | AF6: =IF(OR($O6,$E6=""),0,IFERROR(FondoAmm_prop($L6,$M6,$I6,$E6,$G6,VALUE(RIGHT(AF$5,4)),ViteRegolatorieProp,ifl),0)) -> 0 | AG6: =+AE6-AF6 -> 0 | AH6: =IF(OR($O6,$E6=""),0,IFERROR(QA_PROP($L6,$M6,$I6,$E6,$G6,VALUE(RIGHT(AH$5,4)),ViteRegolatorieProp,ifl),0)) -> 0 | AJ6: =+IF(OR($O6,$E6=""),0,VLOOKUP($E6,ViteRegolatorieProp,VALUE(RIGHT(AJ$5,4))-2011)) -> 0 | AK6: =IF(OR($O6,$E6=""),0,IFERROR(IP_PROP($J6,AL6,AN6,$E6,$G6,$I6,$P6,VALUE(RIGHT(AK$5,4)),ifl),0)) -> 0 | AL6: =IF(OR($O6,$E6=""),0,IFERROR(FondoAmm_prop($J6,$K6,$I6,$E6,$G6,VALUE(RIGHT(AL$5,4)),ViteRegolatorieProp,ifl),0)) -> 0 | AM6: =+AK6-AL6 -> 0 | AN6: =IF(OR($O6,$E6=""),0,IFERROR(QA_PROP($J6,$K6,$I6,$E6,$G6,VALUE(RIGHT(AN$5,4)),ViteRegolatorieProp,ifl),0)) -> 0 | AO6: =IF(OR($O6,$E6=""),0,IFERROR(IP_PROP($L6,AP6,AR6,$E6,$G6,$I6,$P6,VALUE(RIGHT(AO$5,4)),ifl),0)) -> 0 | AP6: =IF(OR($O6,$E6=""),0,IFERROR(FondoAmm_prop($L6,$M6,$I6,$E6,$G6,VALUE(RIGHT(AP$5,4)),ViteRegolatorieProp,ifl),0)) -> 0 | AQ6: =+AO6-AP6 -> 0 | AR6: =IF(OR($O6,$E6=""),0,IFERROR(QA_PROP($L6,$M6,$I6,$E6,$G6,VALUE(RIGHT(AR$5,4)),ViteRegolatorieProp,ifl),0)) -> 0 | AT6: =+IF(OR($O6,$E6=""),0,VLOOKUP($E6,ViteRegolatorieProp,VALUE(RIGHT(AT$5,4))-2011)) -> 0 | AU6: =IF(OR($O6,$E6=""),0,IFERROR(IP_PROP($J6,AV6,AX6,$E6,$G6,$I6,$P6,VALUE(RIGHT(AU$5,4)),ifl),0)) -> 0 | AV6: =IF(OR($O6,$E6=""),0,IFERROR(FondoAmm_prop($J6,$K6,$I6,$E6,$G6,VALUE(RIGHT(AV$5,4)),ViteRegolatorieProp,ifl),0)) -> 0 | AW6: =+AU6-AV6 -> 0 | AX6: =IF(OR($O6,$E6=""),0,IFERROR(QA_PROP($J6,$K6,$I6,$E6,$G6,VALUE(RIGHT(AX$5,4)),ViteRegolatorieProp,ifl),0)) -> 0 | AY6: =IF(OR($O6,$E6=""),0,IFERROR(IP_PROP($L6,AZ6,BB6,$E6,$G6,$I6,$P6,VALUE(RIGHT(AY$5,4)),ifl),0)) -> 0 | AZ6: =IF(OR($O6,$E6=""),0,IFERROR(FondoAmm_prop($L6,$M6,$I6,$E6,$G6,VALUE(RIGHT(AZ$5,4)),ViteRegolatorieProp,ifl),0)) -> 0 | BA6: =+AY6-AZ6 -> 0 | BB6: =IF(OR($O6,$E6=""),0,IFERROR(QA_PROP($L6,$M6,$I6,$E6,$G6,VALUE(RIGHT(BB$5,4)),ViteRegolatorieProp,ifl),0)) -> 0

Sheet DCUIT
A2: comma 15.4 All. A MTI-3 | C2: ΔCUIT - Immobilizzazioni di terzi
T5: 2020 | U5: 2021 | V5: 2022 | W5: 2023 | AB5: 2020 | AC5: 2021 | AD5: 2022 | AE5: 2023 | AF5: 2020 | AG5: 2021 | AH5: 2022 | AI5: 2023 | AJ5: 2020 | AK5: 2021 | AL5: 2022 | AM5: 2023 | AN5: 2020 | AO5: 2021 | AP5: 2022 | AQ5: 2023 | AR5: 2020 | AS5: 2021 | AT5: 2022 | AU5: 2023 | AV5: 2020 | AW5: 2021 | AX5: 2022 | AY5: 2023 | AZ5: 2020 | BA5: 2021 | BB5: 2022 | BC5: 2023 | BD5: 2020 | BE5: 2021 | BF5: 2022 | BG5: 2023
A6: New_Key_prop | B6: IMN 2020 | C6: IMN 2021 | D6: IMN 2022 | E6: IMN 2023 | F6: AMM 2020 | G6: AMM 2021 | H6: AMM 2022 | I6: AMM 2023 | J6: CFP netto 2020 | K6: CFP netto 2021 | L6: CFP netto 2022 | M6: CFP netto 2023 | N6: AMM CFP 2020 | O6: AMM CFP 2021 | P6: AMM CFP 2022 | Q6: AMM CFP 2023 | T6: ΔCUIT | U6: ΔCUIT | V6: ΔCUIT | W6: ΔCUIT | AB6: CINp | AC6: CINp | AD6: CINp | AE6: CINp | AF6: CINfp,p / CIN | AG6: CINfp,p / CIN | AH6: CINfp,p / CIN | AI6: CINfp,p / CIN | AJ6: Rai | AK6: Rai | AL6: Rai | AM6: Rai | AN6: OFp | AO6: OFp | AP6: OFp | AQ6: OFp | AR6: OFiscp | AS6: OFiscp | AT6: OFiscp | AU6: OFiscp | AV6: AMMp | AW6: AMMp | AX6: AMMp | AY6: AMMp | AZ6: MT | BA6: MT | BB6: MT | BC6: MT | BD6: AC | BE6: AC | BF6: AC | BG6: AC
B7: 0 | C7: 0 | D7: 0 | E7: 0 | F7: 0 | G7: 0 | H7: 0 | I7: 0 | J7: 0 | K7: 0 | L7: 0 | M7: 0 | N7: 0 | O7: 0 | P7: 0 | Q7: 0 | T7: =MAX(0,((AV7+AN7+AR7)-(AZ7+BD7))) -> 0 | U7: =MAX(0,((AW7+AO7+AS7)-(BA7+BE7))) -> 0 | V7: =MAX(0,((AX7+AP7+AT7)-(BB7+BF7))) -> 0 | W7: =MAX(0,((AY7+AQ7+AU7)-(BC7+BG7))) -> 0 | AB7: =+IFERROR(B7*1,0) -> 0 | AC7: =+IFERROR(C7*1,0) -> 0 | AD7: =+IFERROR(D7*1,0) -> 0 | AE7: =+IFERROR(E7*1,0) -> 0 | AF7: =IFERROR(J7/AB7,0) -> 0 | AG7: =IFERROR(K7/AC7,0) -> 0 | AH7: =IFERROR(L7/AD7,0) -> 0 | AI7: =IFERROR(M7/AE7,0) -> 0 | AJ7: =((1+((TT_parametri!$BF$30+TT_parametri!$BF$31+1)*(1+TT_parametri!$BF$27)-1)/(1-TT_parametri!$BF$29))/(1+TT_parametri!$BF$27)-1)*(1-AF7)*AB7 -> 0 | AK7: =((1+((TT_parametri!$BF$30+TT_parametri!$BF$31+1)*(1+TT_parametri!$BF$27)-1)/(1-TT_parametri!$BF$29))/(1+TT_parametri!$BF$27)-1)*(1-AG7)*AC7 -> 0 | AL7: =((1+((TT_parametri!$BF$30+TT_parametri!$BF$31+1)*(1+TT_parametri!$BF$27)-1)/(1-TT_parametri!$BF$29))/(1+TT_parametri!$BF$27)-1)*(1-AH7)*AD7 -> 0 | AM7: =((1+((TT_parametri!$BF$30+TT_parametri!$BF$31+1)*(1+TT_parametri!$BF$27)-1)/(1-TT_parametri!$BF$29))/(1+TT_parametri!$BF$27)-1)*(1-AI7)*AE7 -> 0 | AN7: =MAX(+(TT_parametri!$BF$30+TT_parametri!$BF$31)*(1-AF7)*AB7,0) -> 0 | AO7: =MAX(+(TT_parametri!$BF$30+TT_parametri!$BF$31)*(1-AG7)*AC7,0) -> 0 | AP7: =MAX(+(TT_parametri!$BF$30+TT_parametri!$BF$31)*(1-AH7)*AD7,0) -> 0 | AQ7: =MAX(+(TT_parametri!$BF$30+TT_parametri!$BF$31)*(1-AI7)*AE7,0) -> 0 | AR7: =MAX(0.319*AJ7,0) -> 0 | AS7: =MAX(0.319*AK7,0) -> 0 | AT7: =MAX(0.319*AL7,0) -> 0 | AU7: =MAX(0.319*AM7,0) -> 0 | AV7: =+IFERROR(F7*1,0) -> 0 | AW7: =+IFERROR(G7*1,0) -> 0 | AX7: =+IFERROR(H7*1,0) -> 0 | AY7: =+IFERROR(I7*1,0) -> 0 | AZ7: =+IFERROR(VLOOKUP($A7,Corrispettivi_proprietari!$B:$AB,18,FALSE),0) -> 0 | BA7: =+IFERROR(VLOOKUP($A7,Corrispettivi_proprietari!$B:$AB,19,FALSE),0) -> 0 | BB7: =+IFERROR(VLOOKUP($A7,Corrispettivi_proprietari!$B:$AB,20,FALSE),0) -> 0 | BC7: =+IFERROR(VLOOKUP($A7,Corrispettivi_proprietari!$B:$AB,21,FALSE),0) -> 0 | BD7: =+IFERROR(VLOOKUP($A7,Corrispettivi_proprietari!$B:$AB,23,FALSE),0) -> 0 | BE7: =+IFERROR(VLOOKUP($A7,Corrispettivi_proprietari!$B:$AB,24,FALSE),0) -> 0 | BF7: =+IFERROR(VLOOKUP($A7,Corrispettivi_proprietari!$B:$AB,25,FALSE),0) -> 0 | BG7: =+IFERROR(VLOOKUP($A7,Corrispettivi_proprietari!$B:$AB,26,FALSE),0) -> 0

Sheet IMN_consolidamento
A3: consolidamento immobilizzazioni Include le immobilizzazioni fino ai nuovi investimenti a moneta dell'anno del cespite Il foglio è solo di supporto al calcolo | S3: Sezione di elaborazione dei dati forniti
A5: IDATO | B5: IDGestore | C5: Gestore_Proprietario | D5: N_prop | E5: Fonte | F5: ID_Categoria_Cespite | G5: CategoriaCespite | H5: ID_Immobilizzazione | I5: IMMOBILIZZAZIONE | J5: AnnoCespite | K5: IP | L5: FAIP | M5: CFP | N5: FACP | O5: - | P5: Tipologia di costo sotteso | Q5: Attività | R5: foglio di origine
A6: =+idato -> 0 | B6: =+idgestore -> 0 | J6: 2018 | K6: 0 | L6: 0 | M6: 0 | N6: 0 | O6: 0 | R6: nessun dato

Sheet IMN_gestore
A1: q_RAB
D2: IMNGestore
A5: ID categoria cespite | B5: Categoria cespite | C5: ID Immobilizzazione | D5: IMMOBILIZZAZIONE | E5: Anno Cespite | F5: foglio di origine | G5: Tipologia di costo sotteso | H5: Attività | I5: IP | J5: FAIP | K5: CFP | L5: FACFP | N5: VU 2020 | O5: IP 2020 | P5: FAIP 2020 | Q5: IP netto 2020 | R5: AMM 2020 | S5: componente tariffaria AMM 2020 | T5: CFP 2020 | U5: FA CFP 2020 | V5: CFP netto 2020 | W5: AMM CFP 2020 | X5: aa | Y5: VU 2021 | Z5: IP 2021 | AA5: FAIP 2021 | AB5: IP netto 2021 | AC5: AMM 2021 | AD5: componente tariffaria AMM 2021 | AE5: CFP 2021 | AF5: FA CFP 2021 | AG5: CFP netto 2021 | AH5: AMM CFP 2021 | AI5: aaa | AJ5: VU 2022 | AK5: IP 2022 | AL5: FAIP 2022 | AM5: IP netto 2022 | AN5: AMM 2022 | AO5: componente tariffaria AMM 2022 | AP5: CFP 2022 | AQ5: FA CFP 2022 | AR5: CFP netto 2022 | AS5: AMM CFP 2022 | AT5: aaaa | AU5: VU 2023 | AV5: IP 2023 | AW5: FAIP 2023 | AX5: IP netto 2023 | AY5: AMM 2023 | AZ5: componente tariffaria AMM 2023 | BA5: CFP 2023 | BB5: FA CFP 2023 | BC5: CFP netto 2023 | BD5: AMM CFP 2023 | BO5: \
A6: (vuoto) | B6: (vuoto) | C6: (vuoto) | D6: (vuoto) | E6: 2018 | F6: nessun dato | G6: (vuoto) | H6: (vuoto) | I6: 0 | J6: 0 | K6: 0 | L6: 0 | N6: =IFERROR(INDEX(IF($E6>=2020,vite_regolatorie_new,vite_regolatorie),$A6+1,MATCH(MAX(VALUE(RIGHT($E6,4)),2011)&"-"&VALUE(RIGHT(N$5,4)),anni_new,0)+1),0) -> 0 | O6: =IF($F6="Dismissioni",IFERROR(DISM(ABS($I6),$A6,$C6,$E6,VALUE(RIGHT(O$5,4)),ifl),0)*-1,IFERROR(IP(ABS($I6),$A6,$C6,$E6,VALUE(RIGHT(O$5,4)),ifl),0)) -> 0 | P6: =IF($F6="Dismissioni",IFERROR(FondoAmm_dism(ABS($I6),ABS($J6),$E6,$A6,$C6,VALUE(RIGHT(P$5,4)),IF($E6>=2020,vite_regolatorie_new,vite_regolatorie),ifl),0)*-1,IFERROR(FondoAmm(ABS($I6),ABS($J6),$E6,$A6,$C6,VALUE(RIGHT(P$5,4)),IF($E6>=2020,vite_regolatorie_new,vite_regolatorie),ifl),0)) -> 0 | Q6: =+O6-P6 -> 0 | R6: =IF($F6="Dismissioni",IFERROR(QA_DISM(ABS($I6),ABS($J6),$E6,$A6,$C6,VALUE(RIGHT(R$5,4)),IF($E6>=2020,vite_regolatorie_new,vite_regolatorie),ifl),0)*-1,IFERROR(QA(ABS($I6),ABS($J6),$E6,$A6,$C6,VALUE(RIGHT(R$5,4)),IF($E6>=2020,vite_regolatorie_new,vite_regolatorie),ifl),0)) -> 0 | S6: =+R6-W6 -> 0 | T6: =IF($F6="Dismissioni",IFERROR(CFP_DISM_A(ABS($K6),$A6,$E6,$C6,VALUE(RIGHT(T$5,4)),ifl)*-1,0),IFERROR(CFP_A(ABS($K6),$A6,$C6,$E6,VALUE(RIGHT(T$5,4)),ifl),0)) -> 0 | U6: =IF($F6="Dismissioni",IFERROR(FACFP_DISM(ABS($K6),ABS($L6),$E6,$A6,$C6,VALUE(RIGHT(U$5,4)),IF($E6>=2020,vite_regolatorie_new,vite_regolatorie),ifl)*-1,0),IFERROR(FACFP(ABS($K6),ABS($L6),$E6,$A6,$C6,VALUE(RIGHT(U$5,4)),IF($E6>=2020,vite_regolatorie_new,vite_regolatorie),ifl),0)) -> 0 | V6: =+T6-U6 -> 0 | W6: =IF($F6="Dismissioni",IFERROR(QA_CFP_DISM(ABS($K6),ABS($L6),$E6,$A6,$C6,VALUE(RIGHT(W$5,4)),IF($E6>=2020,vite_regolatorie_new,vite_regolatorie),ifl)*-1,0),IFERROR(QA_CFP(ABS($K6),ABS($L6),$E6,$C6,$A6,VALUE(RIGHT(W$5,4)),IF($E6>=2020,vite_regolatorie_new,vite_regolatorie),ifl),0)) -> 0 | Y6: =IFERROR(INDEX(IF($E6>=2020,vite_regolatorie_new,vite_regolatorie),$A6+1,MATCH(MAX(VALUE(RIGHT($E6,4)),2011)&"-"&VALUE(RIGHT(Y$5,4)),anni_new,0)+1),0) -> 0 | Z6: =IF($F6="Dismissioni",IFERROR(DISM(ABS($I6),$A6,$C6,$E6,VALUE(RIGHT(Z$5,4)),ifl),0)*-1,IFERROR(IP(ABS($I6),$A6,$C6,$E6,VALUE(RIGHT(Z$5,4)),ifl),0)) -> 0 | AA6: =IF($F6="Dismissioni",IFERROR(FondoAmm_dism(ABS($I6),ABS($J6),$E6,$A6,$C6,VALUE(RIGHT(AA$5,4)),IF($E6>=2020,vite_regolatorie_new,vite_regolatorie),ifl),0)*-1,IFERROR(FondoAmm(ABS($I6),ABS($J6),$E6,$A6,$C6,VALUE(RIGHT(AA$5,4)),IF($E6>=2020,vite_regolatorie_new,vite_regolatorie),ifl),0)) -> 0 | AB6: =+Z6-AA6 -> 0 | AC6: =IF($F6="Dismissioni",IFERROR(QA_DISM(ABS($I6),ABS($J6),$E6,$A6,$C6,VALUE(RIGHT(AC$5,4)),IF($E6>=2020,vite_regolatorie_new,vite_regolatorie),ifl),0)*-1,IFERROR(QA(ABS($I6),ABS($J6),$E6,$A6,$C6,VALUE(RIGHT(AC$5,4)),IF($E6>=2020,vite_regolatorie_new,vite_regolatorie),ifl),0)) -> 0 | AD6: =+AC6-AH6 -> 0 | AE6: =IF($F6="Dismissioni",IFERROR(CFP_DISM_A(ABS($K6),$A6,$E6,$C6,VALUE(RIGHT(AE$5,4)),ifl)*-1,0),IFERROR(CFP_A(ABS($K6),$A6,$C6,$E6,VALUE(RIGHT(AE$5,4)),ifl),0)) -> 0 | AF6: =IF($F6="Dismissioni",IFERROR(FACFP_DISM(ABS($K6),ABS($L6),$E6,$A6,$C6,VALUE(RIGHT(AF$5,4)),IF($E6>=2020,vite_regolatorie_new,vite_regolatorie),ifl)*-1,0),IFERROR(FACFP(ABS($K6),ABS($L6),$E6,$A6,$C6,VALUE(RIGHT(AF$5,4)),IF($E6>=2020,vite_regolatorie_new,vite_regolatorie),ifl),0)) -> 0 | AG6: =+AE6-AF6 -> 0 | AH6: =IF($F6="Dismissioni",IFERROR(QA_CFP_DISM(ABS($K6),ABS($L6),$E6,$A6,$C6,VALUE(RIGHT(AH$5,4)),IF($E6>=2020,vite_regolatorie_new,vite_regolatorie),ifl)*-1,0),IFERROR(QA_CFP(ABS($K6),ABS($L6),$E6,$C6,$A6,VALUE(RIGHT(AH$5,4)),IF($E6>=2020,vite_regolatorie_new,vite_regolatorie),ifl),0)) -> 0 | AJ6: =IFERROR(INDEX(IF($E6>=2020,vite_regolatorie_new,vite_regolatorie),$A6+1,MATCH(MAX(VALUE(RIGHT($E6,4)),2011)&"-"&VALUE(RIGHT(AJ$5,4)),anni_new,0)+1),0) -> 0 | AK6: =IF($F6="Dismissioni",IFERROR(DISM(ABS($I6),$A6,$C6,$E6,VALUE(RIGHT(AK$5,4)),ifl),0)*-1,IFERROR(IP(ABS($I6),$A6,$C6,$E6,VALUE(RIGHT(AK$5,4)),ifl),0)) -> 0 | AL6: =IF($F6="Dismissioni",IFERROR(FondoAmm_dism(ABS($I6),ABS($J6),$E6,$A6,$C6,VALUE(RIGHT(AL$5,4)),IF($E6>=2020,vite_regolatorie_new,vite_regolatorie),ifl),0)*-1,IFERROR(FondoAmm(ABS($I6),ABS($J6),$E6,$A6,$C6,VALUE(RIGHT(AL$5,4)),IF($E6>=2020,vite_regolatorie_new,vite_regolatorie),ifl),0)) -> 0 | AM6: =+AK6-AL6 -> 0 | AN6: =IF($F6="Dismissioni",IFERROR(QA_DISM(ABS($I6),ABS($J6),$E6,$A6,$C6,VALUE(RIGHT(AN$5,4)),IF($E6>=2020,vite_regolatorie_new,vite_regolatorie),ifl),0)*-1,IFERROR(QA(ABS($I6),ABS($J6),$E6,$A6,$C6,VALUE(RIGHT(AN$5,4)),IF($E6>=2020,vite_regolatorie_new,vite_regolatorie),ifl),0)) -> 0 | AO6: =+AN6-AS6 -> 0 | AP6: =IF($F6="Dismissioni",IFERROR(CFP_DISM_A(ABS($K6),$A6,$E6,$C6,VALUE(RIGHT(AP$5,4)),ifl)*-1,0),IFERROR(CFP_A(ABS($K6),$A6,$C6,$E6,VALUE(RIGHT(AP$5,4)),ifl),0)) -> 0 | AQ6: =IF($F6="Dismissioni",IFERROR(FACFP_DISM(ABS($K6),ABS($L6),$E6,$A6,$C6,VALUE(RIGHT(AQ$5,4)),IF($E6>=2020,vite_regolatorie_new,vite_regolatorie),ifl)*-1,0),IFERROR(FACFP(ABS($K6),ABS($L6),$E6,$A6,$C6,VALUE(RIGHT(AQ$5,4)),IF($E6>=2020,vite_regolatorie_new,vite_regolatorie),ifl),0)) -> 0 | AR6: =+AP6-AQ6 -> 0 | AS6: =IF($F6="Dismissioni",IFERROR(QA_CFP_DISM(ABS($K6),ABS($L6),$E6,$A6,$C6,VALUE(RIGHT(AS$5,4)),IF($E6>=2020,vite_regolatorie_new,vite_regolatorie),ifl)*-1,0),IFERROR(QA_CFP(ABS($K6),ABS($L6),$E6,$C6,$A6,VALUE(RIGHT(AS$5,4)),IF($E6>=2020,vite_regolatorie_new,vite_regolatorie),ifl),0)) -> 0 | AU6: =IFERROR(INDEX(IF($E6>=2020,vite_regolatorie_new,vite_regolatorie),$A6+1,MATCH(MAX(VALUE(RIGHT($E6,4)),2011)&"-"&VALUE(RIGHT(AU$5,4)),anni_new,0)+1),0) -> 0 | AV6: =IF($F6="Dismissioni",IFERROR(DISM(ABS($I6),$A6,$C6,$E6,VALUE(RIGHT(AV$5,4)),ifl),0)*-1,IFERROR(IP(ABS($I6),$A6,$C6,$E6,VALUE(RIGHT(AV$5,4)),ifl),0)) -> 0 | AW6: =IF($F6="Dismissioni",IFERROR(FondoAmm_dism(ABS($I6),ABS($J6),$E6,$A6,$C6,VALUE(RIGHT(AW$5,4)),IF($E6>=2020,vite_regolatorie_new,vite_regolatorie),ifl),0)*-1,IFERROR(FondoAmm(ABS($I6),ABS($J6),$E6,$A6,$C6,VALUE(RIGHT(AW$5,4)),IF($E6>=2020,vite_regolatorie_new,vite_regolatorie),ifl),0)) -> 0 | AX6: =+AV6-AW6 -> 0 | AY6: =IF($F6="Dismissioni",IFERROR(QA_DISM(ABS($I6),ABS($J6),$E6,$A6,$C6,VALUE(RIGHT(AY$5,4)),IF($E6>=2020,vite_regolatorie_new,vite_regolatorie),ifl),0)*-1,IFERROR(QA(ABS($I6),ABS($J6),$E6,$A6,$C6,VALUE(RIGHT(AY$5,4)),IF($E6>=2020,vite_regolatorie_new,vite_regolatorie),ifl),0)) -> 0 | AZ6: =+AY6-BD6 -> 0 | BA6: =IF($F6="Dismissioni",IFERROR(CFP_DISM_A(ABS($K6),$A6,$E6,$C6,VALUE(RIGHT(BA$5,4)),ifl)*-1,0),IFERROR(CFP_A(ABS($K6),$A6,$C6,$E6,VALUE(RIGHT(BA$5,4)),ifl),0)) -> 0 | BB6: =IF($F6="Dismissioni",IFERROR(FACFP_DISM(ABS($K6),ABS($L6),$E6,$A6,$C6,VALUE(RIGHT(BB$5,4)),IF($E6>=2020,vite_regolatorie_new,vite_regolatorie),ifl)*-1,0),IFERROR(FACFP(ABS($K6),ABS($L6),$E6,$A6,$C6,VALUE(RIGHT(BB$5,4)),IF($E6>=2020,vite_regolatorie_new,vite_regolatorie),ifl),0)) -> 0 | BC6: =+BA6-BB6 -> 0 | BD6: =IF($F6="Dismissioni",IFERROR(QA_CFP_DISM(ABS($K6),ABS($L6),$E6,$A6,$C6,VALUE(RIGHT(BD$5,4)),IF($E6>=2020,vite_regolatorie_new,vite_regolatorie),ifl)*-1,0),IFERROR(QA_CFP(ABS($K6),ABS($L6),$E6,$C6,$A6,VALUE(RIGHT(BD$5,4)),IF($E6>=2020,vite_regolatorie_new,vite_regolatorie),ifl),0)) -> 0

Sheet IMN_riepilogo
A2: art. 8 e seguenti | B2: IMN - Valore delle immobilizzazioni
B4: Area di riepilogo delle immobilizzazioni del GESTORE | I4: Area di riepilogo delle immobilizzazioni dei PROPRIETARI relativi al gestore
B6: IMN del gestore | I6: IMN dei proprietari
C7: 2020 | D7: 2021 | E7: 2022 | F7: 2023 | J7: 2020 | K7: 2021 | L7: 2022 | M7: 2023
B8: IML | C8: =+TT_riepilogo_IMN!E6 -> 0 | D8: =+TT_riepilogo_IMN!F6 -> 0 | E8: =+TT_riepilogo_IMN!G6 -> 0 | F8: =+TT_riepilogo_IMN!H6 -> 0 | I8: IML | J8: =+TT_riepilogo_IMN!E66 -> 0 | K8: =+TT_riepilogo_IMN!F66 -> 0 | L8: =+TT_riepilogo_IMN!G66 -> 0 | M8: =+TT_riepilogo_IMN!H66 -> 0
B9: FA | C9: =+TT_riepilogo_IMN!E7 -> 0 | D9: =+TT_riepilogo_IMN!F7 -> 0 | E9: =+TT_riepilogo_IMN!G7 -> 0 | F9: =+TT_riepilogo_IMN!H7 -> 0 | I9: FA | J9: =+TT_riepilogo_IMN!E67 -> 0 | K9: =+TT_riepilogo_IMN!F67 -> 0 | L9: =+TT_riepilogo_IMN!G67 -> 0 | M9: =+TT_riepilogo_IMN!H67 -> 0
B10: IMN | C10: =+TT_riepilogo_IMN!E8 -> 0 | D10: =+TT_riepilogo_IMN!F8 -> 0 | E10: =+TT_riepilogo_IMN!G8 -> 0 | F10: =+TT_riepilogo_IMN!H8 -> 0 | I10: IMN | J10: =+TT_riepilogo_IMN!E68 -> 0 | K10: =+TT_riepilogo_IMN!F68 -> 0 | L10: =+TT_riepilogo_IMN!G68 -> 0 | M10: =+TT_riepilogo_IMN!H68 -> 0
B12: Contributi a fondo perduto del gestore | I12: Contributi a fondo perduto dei proprietari
C13: 2020 | D13: 2021 | E13: 2022 | F13: 2023 | J13: 2020 | K13: 2021 | L13: 2022 | M13: 2023
B14: CFP | C14: =+TT_riepilogo_IMN!E10 -> 0 | D14: =+TT_riepilogo_IMN!F10 -> 0 | E14: =+TT_riepilogo_IMN!G10 -> 0 | F14: =+TT_riepilogo_IMN!H10 -> 0 | I14: CFP | J14: =+TT_riepilogo_IMN!E70 -> 0 | K14: =+TT_riepilogo_IMN!F70 -> 0 | L14: =+TT_riepilogo_IMN!G70 -> 0 | M14: =+TT_riepilogo_IMN!H70 -> 0
B15: FAcfp | C15: =+TT_riepilogo_IMN!E11 -> 0 | D15: =+TT_riepilogo_IMN!F11 -> 0 | E15: =+TT_riepilogo_IMN!G11 -> 0 | F15: =+TT_riepilogo_IMN!H11 -> 0 | I15: FAcfp | J15: =+TT_riepilogo_IMN!E71 -> 0 | K15: =+TT_riepilogo_IMN!F71 -> 0 | L15: =+TT_riepilogo_IMN!G71 -> 0 | M15: =+TT_riepilogo_IMN!H71 -> 0
B16: CINfp | C16: =+TT_riepilogo_IMN!E12 -> 0 | D16: =+TT_riepilogo_IMN!F12 -> 0 | E16: =+TT_riepilogo_IMN!G12 -> 0 | F16: =+TT_riepilogo_IMN!H12 -> 0 | I16: CINfp | J16: =+TT_riepilogo_IMN!E72 -> 0 | K16: =+TT_riepilogo_IMN!F72 -> 0 | L16: =+TT_riepilogo_IMN!G72 -> 0 | M16: =+TT_riepilogo_IMN!H72 -> 0
B20: IMN del gestore - nuovi investimenti
C21: 2020 | D21: 2021 | E21: 2022 | F21: 2023
B22: IML | C22: =+TT_riepilogo_IMN!E18 -> 0 | D22: =+TT_riepilogo_IMN!F18 -> 0 | E22: =+TT_riepilogo_IMN!G18 -> 0 | F22: =+TT_riepilogo_IMN!H18 -> 0
B23: FA | C23: =+TT_riepilogo_IMN!E19 -> 0 | D23: =+TT_riepilogo_IMN!F19 -> 0 | E23: =+TT_riepilogo_IMN!G19 -> 0 | F23: =+TT_riepilogo_IMN!H19 -> 0
B24: IMN | C24: =+TT_riepilogo_IMN!E20 -> 0 | D24: =+TT_riepilogo_IMN!F20 -> 0 | E24: =+TT_riepilogo_IMN!G20 -> 0 | F24: =+TT_riepilogo_IMN!H20 -> 0
B26: Contributi a fondo perduto del gestore - nuovi investimenti
C27: 2020 | D27: 2021 | E27: 2022 | F27: 2023
B28: CFP | C28: =+TT_riepilogo_IMN!E22 -> 0 | D28: =+TT_riepilogo_IMN!F22 -> 0 | E28: =+TT_riepilogo_IMN!G22 -> 0 | F28: =+TT_riepilogo_IMN!H22 -> 0
B29: FAcfp | C29: =+TT_riepilogo_IMN!E23 -> 0 | D29: =+TT_riepilogo_IMN!F23 -> 0 | E29: =+TT_riepilogo_IMN!G23 -> 0 | F29: =+TT_riepilogo_IMN!H23 -> 0
B30: CINfp | C30: =+TT_riepilogo_IMN!E24 -> 0 | D30: =+TT_riepilogo_IMN!F24 -> 0 | E30: =+TT_riepilogo_IMN!G24 -> 0 | F30: =+TT_riepilogo_IMN!H24 -> 0
A34: art. 10 MTI-3 | B34: AMM - Ammortamento delle immobilizzazioni | I34: comma 13.11 MTI-3
B36: Area di riepilogo delle immobilizzazioni del GESTORE | I36: Area di riepilogo delle immobilizzazioni dei PROPRIETARI relativi al gestore
B38: AMM del gestore | I38: AMM dei proprietari
C39: 2020 | D39: 2021 | E39: 2022 | F39: 2023 | J39: 2020 | K39: 2021 | L39: 2022 | M39: 2023
B40: AMM | C40: =+TT_riepilogo_IMN!E9 -> 0 | D40: =+TT_riepilogo_IMN!F9 -> 0 | E40: =+TT_riepilogo_IMN!G9 -> 0 | F40: =+TT_riepilogo_IMN!H9 -> 0 | I40: AMM | J40: =+TT_riepilogo_IMN!E69 -> 0 | K40: =+TT_riepilogo_IMN!F69 -> 0 | L40: =+TT_riepilogo_IMN!G69 -> 0 | M40: =+TT_riepilogo_IMN!H69 -> 0
B41: AMMcfp, gestore | C41: =+TT_riepilogo_IMN!E13 -> 0 | D41: =+TT_riepilogo_IMN!F13 -> 0 | E41: =+TT_riepilogo_IMN!G13 -> 0 | F41: =+TT_riepilogo_IMN!H13 -> 0 | I41: AMMcfp,proprietario | J41: =+SUMIF(IMN_Proprietari!$C:$C,"Altra società privata",IMN_Proprietari!$X:$X) -> 0 | K41: =+SUMIF(IMN_Proprietari!$C:$C,"Altra società privata",IMN_Proprietari!$AH:$AH) -> 0 | L41: =+SUMIF(IMN_Proprietari!$C:$C,"Altra società privata",IMN_Proprietari!$AR:$AR) -> 0 | M41: =+SUMIF(IMN_Proprietari!$C:$C,"Altra società privata",IMN_Proprietari!$BB:$BB) -> 0
B43: AMMcfp | C43: =TT_riepilogo_IMN!E13+SUMIF(IMN_Proprietari!$C:$C,"Altra società privata",IMN_Proprietari!$X:$X) -> 0 | D43: =TT_riepilogo_IMN!F13+SUMIF(IMN_Proprietari!$C:$C,"Altra società privata",IMN_Proprietari!$AH:$AH) -> 0 | E43: =TT_riepilogo_IMN!G13+SUMIF(IMN_Proprietari!$C:$C,"Altra società privata",IMN_Proprietari!$AR:$AR) -> 0 | F43: =TT_riepilogo_IMN!H13+SUMIF(IMN_Proprietari!$C:$C,"Altra società privata",IMN_Proprietari!$BB:$BB) -> 0

Sheet Framework_schemi
A2: Titolo 1 MTI-3 - Art. 2 Titolo 2 MTI-3 - Art. 5 | B2: Regolazione tariffaria applicabile Matrice di schemi regolatori
B4: Regolazione tariffaria applicabile
D7: 2020-2023
B8: Informazioni sulla predisposizione tariffaria | D8: =+IF(OR(Input_per_calcoli_finali!I22="",D14="",D15="",D13="",D16=""),"",IF(Input_per_calcoli_finali!I22="Schema regolatorio di convergenza","Schema regolatorio di convergenza",IF(PRODUCT(C13:C16)=0,"Escluso dall'aggiornamento tariffario","Schema regolatorio"))) -> 
B12: Verifica cause di esclusione | D12: 2020-2023
B13: Adempimenti Sblocca Italia | C13: =+IF(D13=TT_Tabelle_Riferimento!I14,1,0) -> 0 | D13: =IF(Input_per_calcoli_finali!I10="","",Input_per_calcoli_finali!I10) -> 
B14: Presenza di un consumo minimo impegnato per la fatturazione delle utenze | C14: =+IF(D14=TT_Tabelle_Riferimento!$E$4,1,0) -> 0 | D14: =IF(Input_per_calcoli_finali!I15="","",Input_per_calcoli_finali!I15) -> 
B15: Adozione Carta dei Servizi | C15: =+IF(D15=TT_Tabelle_Riferimento!$E$3,1,0) -> 0 | D15: =IF(Input_per_calcoli_finali!I14="","",Input_per_calcoli_finali!I14) -> 
B16: Versamento delle componenti perequative a CSEA | C16: =+IF(D16="SI",1,0) -> 0 | D16: =+IF(Input_per_calcoli_finali!I16="","",+Input_per_calcoli_finali!I16) -> 
B22: Matrice di schemi regolatori
G27: AGGREGAZIONI O VARIAZIONI DEI PROCESSI TECNICI SIGNIFICATIVE
C30: Schema I | E30: Schema II | G30: Schema III
C34: Schema IV | E34: Schema V | G34: Schema VI
B44: Posizionamento nella matrice | C44: elemento i,j | D44: Schema | E44: γk | F44: γx | G44: limite di prezzo | H44: % y/y massimo
B45: prima riga, prima colonna | C45: 1-1 | D45: Schema I | E45: 0 | F45: 0 | G45: =1+rpi+(1+E45)*kschema-(1+F45)*xschema -> 1.052 | H45: =+G45-1 -> 0.052
B46: prima riga, seconda colonna | C46: 1-2 | D46: Schema II | E46: 0 | F46: 1 | G46: 1.037 | H46: =+G46-1 -> 0.037
B47: prima riga, terza colonna | C47: 1-3 | D47: Schema III | E47: 0 | F47: -0.5 | G47: 1.0595 | H47: 0.0595
B48: seconda riga, prima colonna | C48: 2-1 | D48: Schema IV | E48: 0.5 | F48: 0 | G48: 1.077 | H48: 0.077
B49: seconda riga, seconda colonna | C49: 2-2 | D49: Schema V | E49: 0.5 | F49: 1 | G49: 1.062 | H49: 0.062
B50: seconda riga, terza colonna | C50: 2-3 | D50: Schema VI | E50: 0.5 | F50: -0.5 | G50: 1.0845 | H50: 0.0845
B57: Parametri per schema regolatorio | C57: 2020-2023
B58: ω | C58: =+TT_parametri!BC36 -> 0.5
B59: rpi | C59: =+TT_parametri!BC37 -> 0.017
B60: K | C60: =+TT_parametri!BC38 -> 0.05
B61: X | C61: =+TT_parametri!BC39 -> 0.015
B62: VRGPM | C62: =+TT_parametri!BC40 -> 149
B65: Identificazione della riga della matrice di schemi | C65: 2020-2023
B66: (∑2020-2023 Ipaexp + CFPaexp ) | C66: =+Input_per_calcoli_finali!I39 -> 0
B67: RAB MTI-2 | C67: =+Input_per_calcoli_finali!G45 -> 0
B68: (∑2020-2023 Ipaexp + CFPaexp ) / RABMTI-2 | C68: =+IFERROR(C66/C67,0) -> 0
B70: riga della matrice | C70: =IF(AND(Input_per_calcoli_finali!M51="Schema regolatorio",C68<=C58),1,IF(AND(Input_per_calcoli_finali!M51="Schema regolatorio",C68>C58),2,"")) -> 
B74: Identificazione della colonna della matrice di schemi | C74: 2020-2023
B75: Aggregazioni o variazioni dei processi tecnici significative | C75: =+IF(integr="nessuna","NO",IF(integr="","","SI")) -> 
B76: VRG2018 | C76: =+Input_per_calcoli_finali!G34 -> 
B77: pop + 0,25popflut | C77: =+Input_per_calcoli_finali!G35 -> 
B78: VRG2018 / pop + 0,25popflut | C78: =+IFERROR(C76/C77,"") -> 
B80: colonna della matrice | C80: =+IF(AND(Input_per_calcoli_finali!M51="Schema regolatorio",C75="SI"),3,IF(AND(Input_per_calcoli_finali!M51="Schema regolatorio",OPMi<=C62),1,IF(AND(Input_per_calcoli_finali!M51="Schema regolatorio",OPMi>C62),2,""))) -> 
B85: Identificazione dello schema della matrice | C85: 2020-2023
B86: selezione dello schema | C86: =IF(Input_per_calcoli_finali!M51="Schema regolatorio",VLOOKUP(C70&"-"&C80,$C$45:$D$50,2,FALSE),IF(mti_3="Escluso dall'aggiornamento tariffario",1,"")) -> 
B87: limite alla crescita annuale del moltiplicatore tariffario | C87: =IFERROR(VLOOKUP(Quad,$D$45:$G$50,4,FALSE),IF(mti_3="Escluso dall'aggiornamento tariffario",1,"")) -> 

Sheet VRG_Teta
A2: Titolo 2 MTI-3 | B2: Moltiplicatore tariffario e Vincolo riconosciuto ai ricavi del gestore
B4: Sviluppo del VRG
B9: Componenti nel Piano Tariffario | C9: 2020 | D9: 2021 | E9: 2022 | F9: 2023
B10: VRGa | C10: =+SUM(C11:C15) -> 0 | D10: =+SUM(D11:D15) -> 0 | E10: =+SUM(E11:E15) -> 0 | F10: =+SUM(F11:F15) -> 0
B11: Capexa | C11: =+IFERROR(Capex!C10,0) -> 0 | D11: =+IFERROR(Capex!D10,0) -> 0 | E11: =+IFERROR(Capex!E10,0) -> 0 | F11: =+IFERROR(Capex!F10,0) -> 0
B12: FoNIa | C12: =+IFERROR(FoNI!C10,0) -> 0 | D12: =+IFERROR(FoNI!D10,0) -> 0 | E12: =+IFERROR(FoNI!E10,0) -> 0 | F12: =+IFERROR(FoNI!F10,0) -> 0
B13: Opexa | C13: =+IFERROR(Opex!C10,0) -> 0 | D13: =+IFERROR(Opex!D10,0) -> 0 | E13: =+IFERROR(Opex!E10,0) -> 0 | F13: =+IFERROR(Opex!F10,0) -> 0
B14: ERCa | C14: =+IFERROR(ERC!C10,0) -> 0 | D14: =+IFERROR(ERC!D10,0) -> 0 | E14: =+IFERROR(ERC!E10,0) -> 0 | F14: =+IFERROR(ERC!F10,0) -> 0
B15: RcTOTa | C15: =IFERROR('Rc'!C10,0) -> 0 | D15: =IFERROR('Rc'!D10,0) -> 0 | E15: =IFERROR('Rc'!E10,0) -> 0 | F15: =IFERROR('Rc'!F10,0) -> 0
B19: Eventuali detrazioni | C19: 2020 | D19: 2021 | E19: 2022 | F19: 2023
B20: Capexa | C20: =+C40-C11 -> 0 | D20: 0 | E20: 0 | F20: 0
B21: FoNIa | C21: 0 | D21: 0 | E21: 0 | F21: 0
B22: Opexa | C22: 0 | D22: 0 | E22: 0 | F22: 0
B23: ERCa | C23: 0 | D23: 0 | E23: 0 | F23: 0
B24: RcTOTa | C24: 0 | D24: 0 | E24: 0 | F24: 0
B28: Componenti post detrazioni | C28: 2020 | D28: 2021 | E28: 2022 | F28: 2023
B29: VRGa | C29: =+SUM(C30:C34) -> 0 | D29: =+SUM(D30:D34) -> 0 | E29: =+SUM(E30:E34) -> 0 | F29: =+SUM(F30:F34) -> 0
B30: Capexa | C30: =+IFERROR(Capex!C10,0) -> 0 | D30: =+IFERROR(Capex!D10,0) -> 0 | E30: =+IFERROR(Capex!E10,0) -> 0 | F30: =+IFERROR(Capex!F10,0) -> 0
B31: FoNIa | C31: =+IFERROR(FoNI!C10,0) -> 0 | D31: =+IFERROR(FoNI!D10,0) -> 0 | E31: =+IFERROR(FoNI!E10,0) -> 0 | F31: =+IFERROR(FoNI!F10,0) -> 0
B32: Opexa | C32: =+IFERROR(Opex!C10,0) -> 0 | D32: =+IFERROR(Opex!D10,0) -> 0 | E32: =+IFERROR(Opex!E10,0) -> 0 | F32: =+IFERROR(Opex!F10,0) -> 0
B33: ERCa | C33: =+IFERROR(ERC!C10,0) -> 0 | D33: =+IFERROR(ERC!D10,0) -> 0 | E33: =+IFERROR(ERC!E10,0) -> 0 | F33: =+IFERROR(ERC!F10,0) -> 0
B34: RcTOTa | C34: =IFERROR('Rc'!C19,0) -> 0 | D34: =IFERROR('Rc'!D19,0) -> 0 | E34: =IFERROR('Rc'!E19,0) -> 0 | F34: =IFERROR('Rc'!F19,0) -> 0
B38: Componenti calcolate | C38: 2020 | D38: 2021 | E38: 2022 | F38: 2023
B39: VRGa | C39: =+SUM(C40:C44) -> 0 | D39: 0 | E39: =+SUM(E40:E44) -> 0 | F39: =+SUM(F40:F44) -> 0
B40: Capexa | C40: =+IFERROR(Capex!C29,0) -> 0 | D40: =+IFERROR(Capex!D29,0) -> 0 | E40: =+IFERROR(Capex!E29,0) -> 0 | F40: =+IFERROR(Capex!F29,0) -> 0
B41: FoNIa | C41: =+IFERROR(FoNI!C29,0) -> 0 | D41: =+IFERROR(FoNI!D29,0) -> 0 | E41: =+IFERROR(FoNI!E29,0) -> 0 | F41: =+IFERROR(FoNI!F29,0) -> 0
B42: Opexa | C42: =+IFERROR(Opex!C29,0) -> 0 | D42: =+IFERROR(Opex!D29,0) -> 0 | E42: =+IFERROR(Opex!E29,0) -> 0 | F42: =+IFERROR(Opex!F29,0) -> 0
B43: ERCa | C43: =+IFERROR(ERC!C29,0) -> 0 | D43: =+IFERROR(ERC!D29,0) -> 0 | E43: =+IFERROR(ERC!E29,0) -> 0 | F43: =+IFERROR(ERC!F29,0) -> 0
B44: RcTOTa | C44: =+IFERROR('Rc'!C29,0) -> 0 | D44: =+IFERROR('Rc'!D29,0) -> 0 | E44: =+IFERROR('Rc'!E29,0) -> 0 | F44: =+IFERROR('Rc'!F29,0) -> 0
A49: art. 6 All. A | B49: Moltiplicatore Tariffario J
B51: Sviluppo del Moltiplicatore
C54: 2020 | D54: 2021 | E54: 2022 | F54: 2023
B55: STar2019*Vscala-2 (include vendita all'ingrosso) | C55: =+SUM(Ricavi_bacini_tariffari!L:L)+SUM(Vendita_Servizi_ingrosso!AJ:AJ)+Ricavi_Coll_Dep!G19+Dati_conto_economico!C23+Dati_conto_economico!C24+Dati_conto_economico!C27+Dati_conto_economico!C28 -> 0 | D55: =SUM(Ricavi_bacini_tariffari!N:N)+SUM(Vendita_Servizi_ingrosso!AL:AL)+Ricavi_Coll_Dep!H19+Dati_conto_economico!I23+Dati_conto_economico!I24+Dati_conto_economico!I27+Dati_conto_economico!I28 -> 0 | E55: =+D55 -> 0 | F55: =+E55 -> 0
B56: Rba-2 | C56: =+C109+C111 -> 0 | D56: =+D109+D111 -> 0 | E56: 0 | F56: 0
B60: VRGa calcolato | C60: =+C39 -> 0 | D60: =+D39 -> 0 | E60: =+E39 -> 0 | F60: =+F39 -> 0
B61: Ja calcolato | C61: =+IFERROR(C60/(SUM(C55:C56)),"") ->  | D61: =+IFERROR(D60/(SUM(D55:D56)),"") ->  | E61: =+IFERROR(E60/(SUM(E55:E56)),"") ->  | F61: =+IFERROR(F60/(SUM(F55:F56)),"") -> 
B62: Limite al VRGa | C62: =++IFERROR(C63*SUM(C55:C56),"") ->  | D62: =++IFERROR(D63*SUM(D55:D56),"") ->  | E62: =++IFERROR(E63*SUM(E55:E56),"") ->  | F62: =++IFERROR(F63*SUM(F55:F56),"") -> 
B63: Limite al moltiplicatore | C63: =+cap ->  | D63: =+IFERROR(MIN(C63,C61)*cap,"") ->  | E63: =+IFERROR(MIN(D63,D61)*cap,"") ->  | F63: =+IFERROR(MIN(E63,E61)*cap,"") -> 
B64: info predisposizione iniziale | C64: =+IF(C61>C63,"sovracap",IF(AND(C60=0,C61=0,C62=0,C63=0),"",IF(cap="","","nei limiti"))) ->  | D64: =+IF(D61>D63,"sovracap",IF(AND(D60=0,D61=0,D62=0,D63=0),"",IF(cap="","","nei limiti"))) ->  | E64: =+IF(E61>E63,"sovracap",IF(AND(E60=0,E61=0,E62=0,E63=0),"",IF(cap="","","nei limiti"))) ->  | F64: =+IF(F61>F63,"sovracap",IF(AND(F60=0,F61=0,F62=0,F63=0),"",IF(cap="","","nei limiti"))) -> 
B67: VRGa calc post eventuali detrazioni | C67: =+C29 -> 0 | D67: =+D29 -> 0 | E67: =+E29 -> 0 | F67: =+F29 -> 0
B68: Ja calc post eventuali detrazioni | C68: =+IFERROR(C67/SUM(C55:C56),"") ->  | D68: =+IFERROR(D67/SUM(D55:D56),"") ->  | E68: =+IFERROR(E67/SUM(E55:E56),"") ->  | F68: =+IFERROR(F67/SUM(F55:F56),"") -> 
B69: Limite al VRGa post eventuali detrazioni | C69: =++IFERROR(C70*SUM(C55:C56),"") ->  | D69: =++IFERROR(D70*SUM(D55:D56),"") ->  | E69: =++IFERROR(E70*SUM(E55:E56),"") ->  | F69: =++IFERROR(F70*SUM(F55:F56),"") -> 
B70: Limite al moltiplicatore post eventuali detrazioni | C70: =+cap ->  | D70: =IFERROR(MIN(C70,C68)*cap,"") ->  | E70: =IFERROR(MIN(D70,D68)*cap,"") ->  | F70: =IFERROR(MIN(E70,E68)*cap,"") -> 
B71: info predisposizione intermedia | C71: =+IF(C68>C70,"sovracap",IF(AND(C67=0,C68=0,C69=0,C70=0),"",IF(cap="","","nei limiti"))) ->  | D71: =+IF(D68>D70,"sovracap",IF(AND(D67=0,D68=0,D69=0,D70=0),"",IF(cap="","","nei limiti"))) ->  | E71: =+IF(E68>E70,"sovracap",IF(AND(E67=0,E68=0,E69=0,E70=0),"",IF(cap="","","nei limiti"))) ->  | F71: =+IF(F68>F70,"sovracap",IF(AND(F67=0,F68=0,F69=0,F70=0),"",IF(cap="","","nei limiti"))) -> 
B74: VRGa calc post ulteriori rimodulazioni | C74: =+C10+SUM(Input_per_calcoli_finali!I227:I229) -> 0 | D74: =+D10+SUM(Input_per_calcoli_finali!J227:J229) -> 0 | E74: =+E10+SUM(Input_per_calcoli_finali!K227:K229) -> 0 | F74: =+F10+SUM(Input_per_calcoli_finali!L227:L229) -> 0
B75: Ja calc post ulteriori rimodulazioni | C75: =+IFERROR(C74/SUM(C55:C56),"") ->  | D75: =+IFERROR(D74/SUM(D55:D56),"") ->  | E75: =+IFERROR(E74/SUM(E55:E56),"") ->  | F75: =+IFERROR(F74/SUM(F55:F56),"") -> 
B76: Limite al VRGa post ulteriori rimodulazioni | C76: =IFERROR(C77*SUM(C55:C56),"") ->  | D76: =IFERROR(D77*SUM(D55:D56),"") ->  | E76: =IFERROR(E77*SUM(E55:E56),"") ->  | F76: =IFERROR(F77*SUM(F55:F56),"") -> 
B77: Limite al moltiplicatore post ulteriori rimodulazioni | C77: =+cap ->  | D77: =+IFERROR(MIN(C77,C75)*cap,"") ->  | E77: =+IFERROR(MIN(D77,D75)*cap,"") ->  | F77: =+IFERROR(MIN(E77,E75)*cap,"") -> 
B78: info predisposizione finale | C78: =+IF(C75>C77,"sovracap",IF(AND(C74=0,C75=0,C76=0,C77=0),"",IF(cap="","","nei limiti"))) ->  | D78: =+IF(D75>D77,"sovracap",IF(AND(D74=0,D75=0,D76=0,D77=0),"",IF(cap="","","nei limiti"))) ->  | E78: =+IF(E75>E77,"sovracap",IF(AND(E74=0,E75=0,E76=0,E77=0),"",IF(cap="","","nei limiti"))) ->  | F78: =+IF(F75>F77,"sovracap",IF(AND(F74=0,F75=0,F76=0,F77=0),"",IF(cap="","","nei limiti"))) -> 
B81: VRGa (calcolo per applicabile) | C81: =+C74-SUM(Input_per_calcoli_finali!I227:I229) -> 0 | D81: =+D74-SUM(Input_per_calcoli_finali!J227:J229) -> 0 | E81: =+E74-SUM(Input_per_calcoli_finali!K227:K229) -> 0 | F81: =+F74-SUM(Input_per_calcoli_finali!L227:L229) -> 0
B82: Ja (calcolo per applicabile) | C82: =+IFERROR(C81/SUM(C55:C56),"") ->  | D82: =+IFERROR(D81/SUM(D55:D56),"") ->  | E82: =+IFERROR(E81/SUM(E55:E56),"") ->  | F82: =+IFERROR(F81/SUM(F55:F56),"") -> 
B83: Limite al VRGa (calcolo per applicabile) | C83: =IFERROR(C84*SUM(C55:C56),"") ->  | D83: =IFERROR(D84*SUM(D55:D56),"") ->  | E83: =IFERROR(E84*SUM(E55:E56),"") ->  | F83: =IFERROR(F84*SUM(F55:F56),"") -> 
B84: Limite al moltiplicatore (calcolo per applicabile) | C84: =+cap ->  | D84: =+IFERROR(MIN(C84,C82)*cap,"") ->  | E84: =+IFERROR(MIN(D84,D82)*cap,"") ->  | F84: =+IFERROR(MIN(E84,E82)*cap,"") -> 
B85: info predisposizione applicabile | C85: =+IF(C82>C84,"sovracap",IF(AND(C81=0,C82=0,C83=0,C84=0),"",IF(cap="","","nei limiti"))) ->  | D85: =+IF(D82>D84,"sovracap",IF(AND(D81=0,D82=0,D83=0,D84=0),"",IF(cap="","","nei limiti"))) ->  | E85: =+IF(E82>E84,"sovracap",IF(AND(E81=0,E82=0,E83=0,E84=0),"",IF(cap="","","nei limiti"))) ->  | F85: =+IF(F82>F84,"sovracap",IF(AND(F81=0,F82=0,F83=0,F84=0),"",IF(cap="","","nei limiti"))) -> 
A88: All A - definizioni | B88: Rb - Ricavi altre attività idriche
C92: 2020 | D92: 2021 | E92: 2022 | F92: 2023
B93: Vendita di acqua non potabile o ad uso industriale | C93: =+Dati_conto_economico!F17 -> 0 | D93: =+Dati_conto_economico!L17 -> 0 | E93: =+D93 -> 0 | F93: =++E93 -> 0
B94: Prestazioni e servizi accessori | C94: =+Dati_conto_economico!F23 -> 0 | D94: =+Dati_conto_economico!L23 -> 0 | E94: =+D94 -> 0 | F94: =++E94 -> 0
B95: Vendita di acqua con autobotte | C95: =+Dati_conto_economico!F24 -> 0 | D95: =+Dati_conto_economico!L24 -> 0 | E95: =+D95 -> 0 | F95: =++E95 -> 0
B96: Trattamento percolati | C96: =+Dati_conto_economico!F25 -> 0 | D96: =+Dati_conto_economico!L25 -> 0 | E96: =+D96 -> 0 | F96: =++E96 -> 0
B97: Trattamento bottini | C97: =+Dati_conto_economico!F26 -> 0 | D97: =+Dati_conto_economico!L26 -> 0 | E97: =+D97 -> 0 | F97: =++E97 -> 0
B98: Installazione/manutenzione bocche antincendio | C98: =+Dati_conto_economico!F29 -> 0 | D98: =+Dati_conto_economico!L29 -> 0 | E98: =+D98 -> 0 | F98: =++E98 -> 0
B99: Vendita di servizi a terzi | C99: =+Dati_conto_economico!F30 -> 0 | D99: =+Dati_conto_economico!L30 -> 0 | E99: 0 | F99: 0
B100: Lavori conto terzi | C100: =+Dati_conto_economico!F31 -> 0 | D100: =+Dati_conto_economico!L31 -> 0 | E100: 0 | F100: 0
B101: Spurgo pozzi neri | C101: =+Dati_conto_economico!F32 -> 0 | D101: =+Dati_conto_economico!L32 -> 0 | E101: 0 | F101: 0
B102: Rilascio autorizzazioni allo scarico | C102: =+Dati_conto_economico!F33 -> 0 | D102: =+Dati_conto_economico!L33 -> 0 | E102: 0 | F102: 0
B103: Lottizzazioni | C103: =+Dati_conto_economico!F34 -> 0 | D103: =+Dati_conto_economico!L34 -> 0 | E103: 0 | F103: 0
B104: Riuso delle acque di depurazione | C104: =+Dati_conto_economico!F35 -> 0 | D104: =+Dati_conto_economico!L35 -> 0 | E104: 0 | F104: 0
B105: Case dell’acqua | C105: =+Dati_conto_economico!F36 -> 0 | D105: =+Dati_conto_economico!L36 -> 0 | E105: 0 | F105: 0
B106: Ricavi da altre attività (non inclusi nelle suddette voci) | C106: =+MAX(Dati_conto_economico!F40,0) -> 0 | D106: =+MAX(Dati_conto_economico!L40,0) -> 0 | E106: 0 | F106: 0
B108: di cui, per "Obiettivi di sostenibilità energetica e ambientale"
B109: Totale Ra-2b2 | C109: =+SUM(Dati_conto_economico!D110:D113) -> 0 | D109: =+SUM(Dati_conto_economico!J110:J113) -> 0 | E109: =+D109 -> 0 | F109: =+E109 -> 0
B111: Totale Ra-2b1 | C111: =+SUM(C94:C97)+SUM(C98:C106)+C93-C109 -> 0 | D111: =+SUM(D94:D97)+SUM(D98:D106)+D93-D109 -> 0 | E111: =+SUM(E94:E97)+SUM(E98:E106)+E93-E109 -> 0 | F111: =+SUM(F94:F97)+SUM(F98:F106)+F93-F109 -> 0
A116: All A - definizioni | B116: Cb - Costi altre attività idriche
C120: 2020 | D120: 2021 | E120: 2022 | F120: 2023
B121: CO altre attività idriche | C121: =+Dati_conto_economico!F42-Dati_conto_economico!F65 -> 0 | D121: =+Dati_conto_economico!L42-Dati_conto_economico!L65 -> 0 | E121: =+D121 -> 0 | F121: =+E121 -> 0
B122: Accantonamenti e rettifiche in eccesso rispetto all'applicazione di norme tributarie | C122: =+Dati_conto_economico!F74 -> 0 | D122: =+Dati_conto_economico!L74 -> 0 | E122: 0 | F122: 0
B123: Rettifiche di valori di attività finanziarie | C123: =+Dati_conto_economico!F75 -> 0 | D123: =+Dati_conto_economico!L75 -> 0 | E123: 0 | F123: 0
B124: Costi connessi all'erogazione di liberalità | C124: =+Dati_conto_economico!F76 -> 0 | D124: =+Dati_conto_economico!L76 -> 0 | E124: 0 | F124: 0
B125: Costi pubblicitari e di marketing (incluse le imposte connesse) | C125: =+Dati_conto_economico!F77 -> 0 | D125: =+Dati_conto_economico!L77 -> 0 | E125: 0 | F125: 0
B126: Oneri per sanzioni, penalità, risarcimenti automatici e simili | C126: =+Dati_conto_economico!F78 -> 0 | D126: =+Dati_conto_economico!L78 -> 0 | E126: 0 | F126: 0
B127: Oneri straordinari | C127: =+Dati_conto_economico!F79 -> 0 | D127: =+Dati_conto_economico!L79 -> 0 | E127: 0 | F127: 0
B128: Spese processuali in cui la parte è risultata soccombente | C128: =+Dati_conto_economico!F80 -> 0 | D128: =+Dati_conto_economico!L80 -> 0 | E128: 0 | F128: 0
B129: Perdite su crediti per la sola quota parte eccedente l'utilizzo del fondo | C129: =+Dati_conto_economico!F88 -> 0 | D129: =+Dati_conto_economico!L88 -> 0 | E129: 0 | F129: 0
B130: Costi di strutturazione dei progetti di finanziamento (non capitalizzati) | C130: =+Dati_conto_economico!F89 -> 0 | D130: =+Dati_conto_economico!L89 -> 0 | E130: 0 | F130: 0
B131: A2) Variazioni rimanenze di prodotti in corso di lavorazione, semilavorati e finiti | C131: =+Dati_conto_economico!F7 -> 0 | D131: =+Dati_conto_economico!L7 -> 0 | E131: 0 | F131: 0
B132: A3) Variazioni dei lavori in corso su ordinazione | C132: =+Dati_conto_economico!F8 -> 0 | D132: =+Dati_conto_economico!L8 -> 0 | E132: 0 | F132: 0
B133: A4) Incrementi di immobilizzazioni per lavori interni (inclusi costi del personale) | C133: =+Dati_conto_economico!F9 -> 0 | D133: =+Dati_conto_economico!L9 -> 0 | E133: 0 | F133: 0
B134: Rimborsi e indennizzi | C134: =+Dati_conto_economico!F39 -> 0 | D134: =+Dati_conto_economico!L39 -> 0 | E134: 0 | F134: 0
B135: Costi di realizzazione degli allacciamenti idrici e fognari | C135: =+Dati_conto_economico!F85 -> 0 | D135: =+Dati_conto_economico!L85 -> 0 | E135: 0 | F135: 0
B137: di cui, per "Obiettivi di sostenibilità energetica e ambientale"
B138: Totale Ca-2b2 | C138: =+SUM(Dati_conto_economico!F110:F113) -> 0 | D138: =+SUM(Dati_conto_economico!L110:L113) -> 0 | E138: =+D138 -> 0 | F138: =+E138 -> 0
B140: Totale Ca-2b1 | C140: =(C121-SUM(C122:C134)-C135)-C138 -> 0 | D140: =(D121-SUM(D122:D134)-D135)-D138 -> 0 | E140: =(E121-SUM(E122:E134)-E135)-E138 -> 0 | F140: =(F121-SUM(F122:F134)-F135)-F138 -> 0

Sheet Capex
A2: Titolo 3 MTI-3 | B2: Costi delle immobilizzazioni
B4: Sviluppo della componente Capex
B9: Componenti nel Piano Tariffario | C9: 2020 | D9: 2021 | E9: 2022 | F9: 2023
B10: Capex | C10: =SUM(C11:C14) -> 0 | D10: =SUM(D11:D14) -> 0 | E10: 0 | F10: 0
B11: OF | C11: =+C70 -> 0 | D11: 0 | E11: 0 | F11: =+F70 -> 0
B12: OFisc | C12: =C77 -> 0 | D12: =D77 -> 0 | E12: =E77 -> 0 | F12: =F77 -> 0
B13: AMM | C13: =+C48 -> 0 | D13: =+D48 -> 0 | E13: 0 | F13: 0
B14: ΔCUITcapex | C14: =+C135 -> 0 | D14: 0 | E14: 0 | F14: =+F135 -> 0
B28: Componenti calcolate | C28: 2020 | D28: 2021 | E28: 2022 | F28: 2023
B29: Capex | C29: =SUM(C30:C33) -> 0 | D29: =SUM(D30:D33) -> 0 | E29: =SUM(E30:E33) -> 0 | F29: =SUM(F30:F33) -> 0
B30: OF | C30: =C68 -> 0 | D30: 0 | E30: 0 | F30: 0
B31: OFisc | C31: =C75 -> 0 | D31: 0 | E31: 0 | F31: 0
B32: AMM | C32: =C46 -> 0 | D32: 0 | E32: 0 | F32: 0
B33: ΔCUITcapex | C33: =+C135 -> 0 | D33: =+D135 -> 0 | E33: 0 | F33: 0
A39: comma 11.1 All. A MTI-3 | B39: OF e OFisc - Oneri finanziari e fiscali
C43: 2020 | D43: 2021 | E43: 2022 | F43: 2023
B44: Incidenza ERC | C44: =Nuovi_Investimenti!D11+Nuovi_Investimenti!D12 -> 0 | D44: =Nuovi_Investimenti!E11+Nuovi_Investimenti!E12 -> 0 | E44: =Nuovi_Investimenti!F11+Nuovi_Investimenti!F12 -> 0 | F44: =Nuovi_Investimenti!G11+Nuovi_Investimenti!G12 -> 0
B46: AMM (componente calcolata) | C46: =+(TT_riepilogo_IMN!E9-TT_riepilogo_IMN!E45-TT_riepilogo_IMN!E57)*(1-C44) -> 0 | D46: =+(TT_riepilogo_IMN!F9-TT_riepilogo_IMN!F45-TT_riepilogo_IMN!F57)*(1-D44) -> 0 | E46: =+(TT_riepilogo_IMN!G9-TT_riepilogo_IMN!G45-TT_riepilogo_IMN!G57)*(1-E44) -> 0 | F46: =+(TT_riepilogo_IMN!H9-TT_riepilogo_IMN!H45-TT_riepilogo_IMN!H57)*(1-F44) -> 0
B47: AMM (eventuale detrazione da "Input per calcoli finali") | C47: =Input_per_calcoli_finali!I101 -> 0 | D47: =Input_per_calcoli_finali!J101 -> 0 | E47: =Input_per_calcoli_finali!K101 -> 0 | F47: =Input_per_calcoli_finali!L101 -> 0
B48: AMM | C48: =+C46-C47 -> 0 | D48: =+D46-D47 -> 0 | E48: 0 | F48: 0 | G48: al netto di quanto riconosciuto nella componente ERCcapex
B51: LICord | C51: =(Nuovi_Investimenti!D4) -> 0 | D51: =(Nuovi_Investimenti!E4) -> 0 | E51: =(Nuovi_Investimenti!F4) -> 0 | F51: =(Nuovi_Investimenti!G4) -> 0
B52: LICpos | C52: =(Nuovi_Investimenti!D5) -> 0 | D52: =(Nuovi_Investimenti!E5) -> 0 | E52: =(Nuovi_Investimenti!F5) -> 0 | F52: =(Nuovi_Investimenti!G5) -> 0
H55: Parametri finanziari e fiscali
C56: 2020 | D56: 2021 | E56: 2022 | F56: 2023 | H56: Parametro | I56: =+TT_parametri!BC20 -> 2020-2023 | J56: Parametro | K56: =+TT_parametri!BC20 -> 2020-2023
B57: CINfp | C57: =+C117 -> 0 | D57: =+D117 -> 0 | E57: 0 | F57: 0 | H57: CS/CnS | I57: =+TT_parametri!BC21 -> 1 | J57: ERP | K57: =+TT_parametri!BC26 -> 0.04
B58: CINfp / (CIN - LICord) | C58: =+IFERROR(C57/(C116-C51),0) -> 0 | D58: =+IFERROR(D57/(D116-D51),0) -> 0 | E58: =+IFERROR(E57/(E116-E51),0) -> 0 | F58: =+IFERROR(F57/(F116-F51),0) -> 0 | H58: risk free rate | I58: =+TT_parametri!BC22 -> 0.005 | J58: rpi | K58: =+TT_parametri!BC27 -> 0.017
B59: Km | C59: =+(I58+I60)*(1-(I57/(1+I57)))+I59*(1-K59)*(I57/(1+I57)) -> 0.021526 | D59: =+(I58+I60)*(1-(I57/(1+I57)))+I59*(1-K59)*(I57/(1+I57)) -> 0.021526 | E59: =+(I58+I60)*(1-(I57/(1+I57)))+I59*(1-K59)*(I57/(1+I57)) -> 0.021526 | F59: =+(I58+I60)*(1-(I57/(1+I57)))+I59*(1-K59)*(I57/(1+I57)) -> 0.021526 | H59: Kd | I59: =+TT_parametri!BC23 -> 0.0277 | J59: tc | K59: =+TT_parametri!BC28 -> 0.24
B60: α | C60: =+(1-(I57/(1+I57)))*I61*K57 -> 0.0158 | D60: =+(1-(I57/(1+I57)))*I61*K57 -> 0.0158 | E60: =+(1-(I57/(1+I57)))*I61*K57 -> 0.0158 | F60: =+(1-(I57/(1+I57)))*I61*K57 -> 0.0158 | H60: WRP | I60: =+TT_parametri!BC24 -> 0.017 | J60: T | K60: =+TT_parametri!BC29 -> 0.319
B61: SLIC | C61: =+C59+C60 -> 0.037326 | D61: =+D59+D60 -> 0.037326 | E61: 0.0277 | F61: 0.0277 | H61: β levered | I61: =+TT_parametri!BC25 -> 0.79 | J61: time lag | K61: =+TT_parametri!BC30 -> 0.01
B63: OF (time lag) | C63: =+(TT_riepilogo_IMN!E20-TT_riepilogo_IMN!E24-(TT_riepilogo_IMN!E44-TT_riepilogo_IMN!E46+TT_riepilogo_IMN!E56-TT_riepilogo_IMN!E58))*($K$61) -> 0 | D63: =+(TT_riepilogo_IMN!F20-TT_riepilogo_IMN!F24-(TT_riepilogo_IMN!F44-TT_riepilogo_IMN!F46+TT_riepilogo_IMN!F56-TT_riepilogo_IMN!F58))*($K$61) -> 0 | E63: =+(TT_riepilogo_IMN!G20-TT_riepilogo_IMN!G24-(TT_riepilogo_IMN!G44-TT_riepilogo_IMN!G46+TT_riepilogo_IMN!G56-TT_riepilogo_IMN!G58))*($K$61) -> 0 | F63: =+(TT_riepilogo_IMN!H20-TT_riepilogo_IMN!H24-(TT_riepilogo_IMN!H44-TT_riepilogo_IMN!H46+TT_riepilogo_IMN!H56-TT_riepilogo_IMN!H58))*($K$61) -> 0
B64: OFimm | C64: =MAX(+(C59+C60)*(1-C58)*(C116-C51),0) -> 0 | D64: =MAX(+(D59+D60)*(1-D58)*(D116-D51),0) -> 0 | E64: =MAX(+(E59+E60)*(1-E58)*(E116-E51),0) -> 0 | F64: =MAX(+(F59+F60)*(1-F58)*(F116-F51),0) -> 0
B65: OFlic, ord | C65: =+C61*C51 -> 0 | D65: =+D61*D51 -> 0 | E65: 0 | F65: 0
B67: OF, di cui ERC | C67: =+ERC!C79+ERC!C113 -> 0 | D67: =+ERC!D79+ERC!D113 -> 0 | E67: =+ERC!E79+ERC!E113 -> 0 | F67: =+ERC!F79+ERC!F113 -> 0
B68: OF (componente calcolata) | C68: =+(C63+C64+C65)*(1-C44) -> 0 | D68: =+(D63+D64+D65)*(1-D44) -> 0 | E68: =+(E63+E64+E65)*(1-E44) -> 0 | F68: =+(F63+F64+F65)*(1-F44) -> 0
B69: OF (eventuale detrazione da "Input per calcoli finali") | C69: =Input_per_calcoli_finali!I105 -> 0 | D69: =Input_per_calcoli_finali!J105 -> 0 | E69: =Input_per_calcoli_finali!K105 -> 0 | F69: =Input_per_calcoli_finali!L105 -> 0
B70: OF | C70: =+C68-C69 -> 0 | D70: =+D68-D69 -> 0 | E70: 0 | F70: 0 | G70: al netto di quanto riconosciuto nella componente ERCcapex
B72: Rai rate | C72: =+(((1+((C59+C60+1)*(1+$K58)-1)/(1-$K60))/(1+$K58))-1) -> 0.06264074897 | D72: =+(((1+((D59+D60+1)*(1+$K58)-1)/(1-$K60))/(1+$K58))-1) -> 0.06264074897 | E72: =+(((1+((E59+E60+1)*(1+$K58)-1)/(1-$K60))/(1+$K58))-1) -> 0.06264074897 | F72: =+(((1+((F59+F60+1)*(1+$K58)-1)/(1-$K60))/(1+$K58))-1) -> 0.06264074897
B73: Rai | C73: =+C72*(C116-C57) -> 0 | D73: =+D72*(D116-D57) -> 0 | E73: =+E72*(E116-E57) -> 0 | F73: =+F72*(F116-F57) -> 0
B74: OFisc, di cui ERC | C74: =+ERC!C86+ERC!C120 -> 0 | D74: =+ERC!D86+ERC!D120 -> 0 | E74: =+ERC!E86+ERC!E120 -> 0 | F74: =+ERC!F86+ERC!F120 -> 0
B75: OFisc (componente calcolata) | C75: =MAX($K59*C73,0)*(1-C44) -> 0 | D75: =MAX($K59*D73,0)*(1-D44) -> 0 | E75: =MAX($K59*E73,0)*(1-E44) -> 0 | F75: =MAX($K59*F73,0)*(1-F44) -> 0
B76: OFisc ( (eventuale detrazione da "Input per calcoli finali") | C76: =Input_per_calcoli_finali!I109 -> 0 | D76: =Input_per_calcoli_finali!J109 -> 0 | E76: =Input_per_calcoli_finali!K109 -> 0 | F76: =Input_per_calcoli_finali!L109 -> 0
B77: OFisc | C77: =+C75-C76 -> 0 | D77: =+D75-D76 -> 0 | E77: 0 | F77: 0 | G77: al netto di quanto riconosciuto nella componente ERCcapex
A83: art. 9 All. A MTI-3 | B83: CIN e CINfp - Capitale Investito Netto
C87: 2020 | D87: 2021 | E87: 2022 | F87: 2023
B88: IMN | C88: =(TT_riepilogo_IMN!E8-TT_riepilogo_IMN!E44-TT_riepilogo_IMN!E56) -> 0 | D88: =(TT_riepilogo_IMN!F8-TT_riepilogo_IMN!F44-TT_riepilogo_IMN!F56) -> 0 | E88: =(TT_riepilogo_IMN!G8-TT_riepilogo_IMN!G44-TT_riepilogo_IMN!G56) -> 0 | F88: =(TT_riepilogo_IMN!H8-TT_riepilogo_IMN!H44-TT_riepilogo_IMN!H56) -> 0 | G88: al netto di quanto riconosciuto nella componente ERCcapex
B91: Saldo LIC (ord+POS) | C91: =+C51+C52 -> 0 | D91: =+D51+D52 -> 0 | E91: =+E51+E52 -> 0 | F91: =+F51+F52 -> 0
B92: LIC | C92: =+C91 -> 0 | D92: =+D91 -> 0 | E92: 0 | F92: 0
B95: TFR | C95: =+'Altri dati economico_finanziari'!E17 -> 0 | D95: =+'Altri dati economico_finanziari'!F17 -> 0 | E95: =+D95 -> 0 | F95: =+E95 -> 0
B96: Fondo di quiescenza | C96: =+'Altri dati economico_finanziari'!E18 -> 0 | D96: =+'Altri dati economico_finanziari'!F18 -> 0 | E96: =+D96 -> 0 | F96: 0
B97: Fondo rischi e oneri | C97: =+'Altri dati economico_finanziari'!E19 -> 0 | D97: =+'Altri dati economico_finanziari'!F19 -> 0 | E97: =+D97 -> 0 | F97: 0
B98: Fondo sentenza Corte Costituzionale 335/2008 | C98: =+'Altri dati economico_finanziari'!E24 -> 0 | D98: =+'Altri dati economico_finanziari'!F24 -> 0 | E98: =+D98 -> 0 | F98: 0
B99: Fondo per il ripristino di beni di terzi | C99: =+'Altri dati economico_finanziari'!E25 -> 0 | D99: =+'Altri dati economico_finanziari'!F25 -> 0 | E99: =+D99 -> 0 | F99: 0
B100: Fondo vincolato al finanziamento della spesa per investimenti comma 9.2 lett. f) MTI-3
B101: Fondo per il finanziamento di tariffe sociali o di solidarietà | C101: =+'Altri dati economico_finanziari'!E27 -> 0 | D101: =+'Altri dati economico_finanziari'!F27 -> 0 | E101: =+D101 -> 0 | F101: 0
B102: Accantonamenti e rettifiche in eccesso rispetto all'applicazione di norme tributarie | C102: =+-ABS(Dati_conto_economico!C74)-ABS(Dati_conto_economico!F74) -> 0 | D102: =+-ABS(Dati_conto_economico!I74)-ABS(Dati_conto_economico!L74) -> 0 | E102: =+D102 -> 0 | F102: 0
B105: FACC | C105: =+SUM(C95:C102) -> 0 | D105: =+SUM(D95:D102) -> 0 | E105: 0 | F105: 0
B107: Ricavia,A1 | C107: =+(SUM(Dati_conto_economico!C14:'Dati_conto_economico'!C21)+Dati_conto_economico!C23+Dati_conto_economico!C24+Dati_conto_economico!C27+Dati_conto_economico!C28) -> 0 | D107: =+(SUM(Dati_conto_economico!I14:'Dati_conto_economico'!I21)+Dati_conto_economico!I23+Dati_conto_economico!I24+Dati_conto_economico!I27+Dati_conto_economico!I28) -> 0 | E107: =+D107 -> 0 | F107: =+E107 -> 0 | H107: giorni di dilazione:
B108: COa,B6+B7 | C108: =+Dati_conto_economico!C43+SUM(Dati_conto_economico!C47:C58) -> 0 | D108: =+Dati_conto_economico!I43+SUM(Dati_conto_economico!I47:I58) -> 0 | E108: =+D108 -> 0 | F108: =+E108 -> 0 | H108: fatture | I108: 90
B109: CCN | C109: =($I$108/365*C107-$I$109/365*C108)*C121 -> 0 | D109: =($I$108/365*D107-$I$109/365*D108)*D121 -> 0 | E109: 0 | F109: 0 | H109: fornitori | I109: 60
B111: CCN | C111: =+C109 -> 0 | D111: =+D109 -> 0 | E111: 0 | F111: 0
B114: FoNIanon_inv | C114: =+FoNI!C150 -> 0 | D114: =+FoNI!D150 -> 0 | E114: =+FoNI!E150 -> 0 | F114: =+FoNI!F150 -> 0
B116: CIN | C116: =+MAX(C88+C111+C92-C105-C114,0) -> 0 | D116: =+MAX(D88+D111+D92-D105-D114,0) -> 0 | E116: 0 | F116: 0
B117: CINfp | C117: =+(TT_riepilogo_IMN!E12-TT_riepilogo_IMN!E48-TT_riepilogo_IMN!E60) -> 0 | D117: =+(TT_riepilogo_IMN!F12-TT_riepilogo_IMN!F48-TT_riepilogo_IMN!F60) -> 0 | E117: =+(TT_riepilogo_IMN!G12-TT_riepilogo_IMN!G48-TT_riepilogo_IMN!G60) -> 0 | F117: =+(TT_riepilogo_IMN!H12-TT_riepilogo_IMN!H48-TT_riepilogo_IMN!H60) -> 0
C119: 2020 | D119: 2021 | E119: 2022 | F119: 2023
B120: dfl | C120: =+VLOOKUP(C87-2,ifl,C87 - 2010,FALSE) -> 1.011028 | D120: =+VLOOKUP(D87-2,ifl,D87 - 2010,FALSE) -> 1.007 | E120: =+VLOOKUP(E87-2,ifl,E87 - 2010,FALSE) -> 1 | F120: =+VLOOKUP(F87-2,ifl,F87 - 2010,FALSE) -> 1
B121: ∏(1+It) | C121: =+TT_parametri!BJ8 -> 1.020099 | D121: =+TT_parametri!BK8 -> 1.011 | E121: =+TT_parametri!BL8 -> 1 | F121: =+TT_parametri!BM8 -> 1
A127: comma 7.1 All. A MTI-3 | B127: DCUITcapex
C131: 2020 | D131: 2021 | E131: 2022 | F131: 2023
B132: ΔCUIT | C132: =+SUM(DCUIT!T:T) -> 0 | D132: =+SUM(DCUIT!U:U) -> 0 | E132: =+SUM(DCUIT!V:V) -> 0 | F132: =+SUM(DCUIT!W:W) -> 0
B133: ΔCUITcapex da foglio "Altri dati economico_finanziari" | C133: =+'Altri dati economico_finanziari'!E61 -> 0 | D133: =+'Altri dati economico_finanziari'!F61 -> 0 | E133: =+'Altri dati economico_finanziari'!G61 -> 0 | F133: =+'Altri dati economico_finanziari'!H61 -> 0
B134: ΔCUITcapex (controllo ammissibilità) | C134: =+IF(SUM(Dati_Anni_precedenti!$E$28:$F$28)>0,"SI","NO") -> NO | D134: =+IF(SUM(Dati_Anni_precedenti!$E$28:$F$28)>0,"SI","NO") -> NO | E134: =+IF(SUM(Dati_Anni_precedenti!$E$28:$F$28)>0,"SI","NO") -> NO | F134: =+IF(SUM(Dati_Anni_precedenti!$E$28:$F$28)>0,"SI","NO") -> NO
B135: ΔCUITcapex | C135: =+IF(AND(C133<=C132,C134="SI"),C133,0) -> 0 | D135: 0 | E135: 0 | F135: 0

Sheet FoNI
A2: Titolo 4 MTI-3 | B2: Fondo nuovi investimenti
B4: Sviluppo della componente FoNI
B9: Componenti nel Piano Tariffario | C9: 2020 | D9: 2021 | E9: 2022 | F9: 2023
B10: FoNIa | C10: =+SUM(C11:C15) -> 0 | D10: =+SUM(D11:D15) -> 0 | E10: =+SUM(E11:E15) -> 0 | F10: =+SUM(F11:F15) -> 0
B11: AMMaFoNI | C11: =C95 -> 0 | D11: =D95 -> 0 | E11: =E95 -> 0 | F11: =F95 -> 0
B12: FNIa | C12: =+C81 -> 0 | D12: =+D81 -> 0 | E12: =+E81 -> 0 | F12: =+F81 -> 0
B13: ΔCUITaFoNI | C13: =+C109 -> 0 | D13: =+D109 -> 0 | E13: =+E109 -> 0 | F13: =+F109 -> 0
B14: DTATOG,ind | C14: =C122 -> 0 | D14: 0 | E14: 0 | F14: 0
B15: DTG,tot | C15: =C136 -> 0 | D15: =D136 -> 0 | E15: =E136 -> 0 | F15: =F136 -> 0
B28: Componenti calcolate | C28: 2020 | D28: 2021 | E28: 2022 | F28: 2023
B29: FoNIa | C29: =SUM(C30:C34) -> 0 | D29: =SUM(D30:D34) -> 0 | E29: =SUM(E30:E34) -> 0 | F29: =SUM(F30:F34) -> 0
B30: AMMaFoNI | C30: =+C92 -> 0 | D30: =+D92 -> 0 | E30: 0 | F30: 0
B31: FNIa | C31: =+IF(OR(schema="IV",schema="V",schema="VI"),C79,0) -> 0 | D31: =+IF(OR(schema="IV",schema="V",schema="VI"),D79,0) -> 0 | E31: =+IF(OR(schema="IV",schema="V",schema="VI"),E79,0) -> 0 | F31: =+IF(OR(schema="IV",schema="V",schema="VI"),F79,0) -> 0
B32: ΔCUITaFoNI | C32: =+C107 -> 0 | D32: =+D107 -> 0 | E32: =+E107 -> 0 | F32: =+F107 -> 0
B33: DTATOG,ind | C33: =C122 -> 0 | D33: =D122 -> 0 | E33: 0 | F33: 0
B34: DTG,tot | C34: =C136 -> 0 | D34: =D136 -> 0 | E34: =E136 -> 0 | F34: =F136 -> 0
A71: comma 15.2 All. A MTI-3 | B71: FNI - Anticipazione per il finanziamento di nuovi investimenti
C75: 2020 | D75: 2021 | E75: 2022 | F75: 2023
B76: Iptexp | C76: ='PdI-riepilogo'!D15-'PdI-riepilogo'!D21 -> 0 | D76: ='PdI-riepilogo'!E15-'PdI-riepilogo'!E21 -> 0 | E76: ='PdI-riepilogo'!F15-'PdI-riepilogo'!F21 -> 0 | F76: ='PdI-riepilogo'!G15-'PdI-riepilogo'!G21 -> 0
B77: Capexa | C77: =+Capex!C10 -> 0 | D77: =+Capex!D10 -> 0 | E77: =+Capex!E10 -> 0 | F77: =+Capex!F10 -> 0
B78: ψ [0,4÷0,8] | C78: =Input_per_calcoli_finali!$I$47 -> 0 | D78: =Input_per_calcoli_finali!$I$47 -> 0 | E78: =Input_per_calcoli_finali!$I$47 -> 0 | F78: =Input_per_calcoli_finali!$I$47 -> 0
B79: FNInew,a da formula | C79: =IF(OR(schema="IV",schema="V",schema="VI"),MAX(0,C78*(C76-C77)),0) -> 0 | D79: =IF(OR(schema="IV",schema="V",schema="VI"),MAX(0,D78*(D76-D77)),0) -> 0 | E79: =IF(OR(schema="IV",schema="V",schema="VI"),MAX(0,E78*(E76-E77)),0) -> 0 | F79: =IF(OR(schema="IV",schema="V",schema="VI"),MAX(0,F78*(F76-F77)),0) -> 0
B80: FNInew,a rinunciato da soggetto compilante | C80: =Input_per_calcoli_finali!I121 -> 0 | D80: =Input_per_calcoli_finali!J121 -> 0 | E80: =Input_per_calcoli_finali!K121 -> 0 | F80: =Input_per_calcoli_finali!L121 -> 0
B81: FNIa | C81: =IF(OR(schema="IV",schema="V",schema="VI"),MAX(0,C79-C80),0) -> 0 | D81: =IF(OR(schema="IV",schema="V",schema="VI"),MAX(0,D79-D80),0) -> 0 | E81: =IF(OR(schema="IV",schema="V",schema="VI"),MAX(0,E79-E80),0) -> 0 | F81: =IF(OR(schema="IV",schema="V",schema="VI"),MAX(0,F79-F80),0) -> 0
A87: comma 15.3 All. A MTI-3 | B87: AMMFoNI - Ammortamento sui contributi a fondo perduto
C91: 2020 | D91: 2021 | E91: 2022 | F91: 2023
B92: AMMaCFP da formula | C92: =TT_riepilogo_IMN!E13+SUMIF(IMN_Proprietari!$C:$C,"Altra società privata",IMN_Proprietari!$X:$X) -> 0 | D92: =TT_riepilogo_IMN!F13+SUMIF(IMN_Proprietari!$C:$C,"Altra società privata",IMN_Proprietari!$AH:$AH) -> 0 | E92: =TT_riepilogo_IMN!G13+SUMIF(IMN_Proprietari!$C:$C,"Altra società privata",IMN_Proprietari!$AR:$AR) -> 0 | F92: =TT_riepilogo_IMN!H13+SUMIF(IMN_Proprietari!$C:$C,"Altra società privata",IMN_Proprietari!$BB:$BB) -> 0
B93: AMMaCFP massimo nel FoNI (post controllo sull'eventuale presenza di FoNInoninv) | C93: =+IF(FoNI!C164="SI",0,C92) -> 0 | D93: =+IF(FoNI!D164="SI",0,D92) -> 0 | E93: =+IF(FoNI!E164="SI",0,E92) -> 0 | F93: =+IF(FoNI!F164="SI",0,F92) -> 0
B94: AMMaFoNI rinunciato da soggetto compilante | C94: =Input_per_calcoli_finali!I125 -> 0 | D94: =Input_per_calcoli_finali!J125 -> 0 | E94: =Input_per_calcoli_finali!K125 -> 0 | F94: =Input_per_calcoli_finali!L125 -> 0
B95: AMMaFoNI | C95: =MAX(0,C93-C94) -> 0 | D95: =MAX(0,D93-D94) -> 0 | E95: 0 | F95: 0
A101: comma 15.4 All. A MTI-3 | B101: DCUITFoNI - Eccedenza del costo per l’uso delle infrastrutture di terzi
C105: 2020 | D105: 2021 | E105: 2022 | F105: 2023
B106: ΔCUITa da formula | C106: =+Capex!C132-Capex!C14 -> 0 | D106: =+Capex!D132-Capex!D14 -> 0 | E106: =+Capex!E132-Capex!E14 -> 0 | F106: =+Capex!F132-Capex!F14 -> 0
B107: ΔCUITa massimo nel FoNI (post controllo sull'eventuale presenza di FoNInoninv e Ammortamento finanziario) | C107: =+IF(FoNI!C163="SI",0,C106) -> 0 | D107: =+IF(FoNI!D163="SI",0,D106) -> 0 | E107: =+IF(FoNI!E163="SI",0,E106) -> 0 | F107: =+IF(FoNI!F163="SI",0,F106) -> 0
B108: ΔCUITaFoNI rinunciato dal soggetto compilante | C108: =+Input_per_calcoli_finali!I129 -> 0 | D108: =+Input_per_calcoli_finali!J129 -> 0 | E108: =+Input_per_calcoli_finali!K129 -> 0 | F108: =+Input_per_calcoli_finali!L129 -> 0
B109: ΔCUITaFoNI | C109: =MAX(0,C107-C108) -> 0 | D109: 0 | E109: =MAX(0,E107-E108) -> 0 | F109: =MAX(0,F107-F108) -> 0
A115: comma 15.1 All. A MTI-3 | B115: DTATOG,ind - Comma 23.2 TICSI - Vincolo ex-ante
C119: 2020 | D119: 2021 | E119: 2022 | F119: 2023
B120: Componente da allocare a FoNI (indicare SI/NO) | C120: SI | D120: SI
B121: DTATOG,ind (da formula) | C121: =+Ricavi_Coll_Dep!D29 -> 0 | D121: =+Ricavi_Coll_Dep!E29 -> 0
B122: DTATOG,ind | C122: =+IF(AND(C121>0,C120="SI"),C121,0) -> 0 | D122: =+IF(AND(D121>0,D120="SI"),D121,0) -> 0
A128: comma 15.1 All. A MTI-3 | B128: DTG,tot - Comma 24.2 TICSI - Vincolo ex-post
C132: 2020 | D132: 2021 | E132: 2022 | F132: 2023
B133: Σtarifnew,a*vscalnew,a-2 | C133: ='Altri dati economico_finanziari'!$E$52 -> 0
B134: Componente da allocare a FoNI (indicare SI/NO) | C134: SI
B135: DTG,tot (da formula) | C135: =(SUM(Ricavi_bacini_tariffari!M:M)+SUM(Vendita_Servizi_ingrosso!AK:AK)+Ricavi_Coll_Dep!F20)-C133 -> 0
B136: DTG,tot | C136: =+IF(AND(C135>0,C134="SI"),C135,0) -> 0
A141: art. 35 MTI-3 | B141: Controllo sul rispetto del vincolo di destinazione del FoNI
B145: Controllo sull'eventuale presenza di FoNI - MTI-2 aggiormento non speso
C147: 2020 | D147: 2021 | E147: 2022 | F147: 2023
B148: FoNIa-2 dal foglio "Dati anni precedenti" | C148: =+SUM(Dati_Anni_precedenti!E32:E34) -> 0 | D148: =+SUM(Dati_Anni_precedenti!F32:F34) -> 0
B149: FoNIspesa ai sensi del comma 35.3 del MTI-3 | C149: =+'Altri dati economico_finanziari'!E54 -> 0 | D149: =+'Altri dati economico_finanziari'!F54 -> 0
B150: SFoNInoninv | C150: =+MAX(C148-C149/(1-0),0) -> 0 | D150: =+MAX(D148-D149/(1-0),0) -> 0
B151: SFoNInoninv (a moneta dell'anno) | C151: =+MAX(C150*C153,0) -> 0 | D151: =+MAX((C150/(1-0))*TT_parametri!K64+(D150/(1-0))*D153,0) -> 0
B153: dfl | C153: =TT_parametri!$J$64 -> 1.011028 | D153: =TT_parametri!$K$65 -> 1.007
B157: Condizioni di azzeramento delle componenti ΔCUITFoNI e AMMfoni
C159: 2020 | D159: 2021 | E159: 2022 | F159: 2023
B160: Presenza FoNInoninv | C160: =+IF(ROUND(C151,0)=0,"NO","SI") -> NO | D160: =+IF(ROUND(D151,0)=0,"NO","SI") -> NO
B161: AMMORTAMENTO FINANZIARIO | C161: =+pre_af_2018 -> NO | D161: =+pre_af_2019 -> NO | E161: =+pre_af_2020 -> NO | F161: =+pre_af_2021 -> NO
B163: Azzeramento ΔCUITaFoNI | C163: =+IF(OR(C161="SI",C160="SI"),"SI","NO") -> NO | D163: =+IF(OR(D161="SI",D160="SI"),"SI","NO") -> NO | E163: =+IF(OR(E161="SI",E160="SI"),"SI","NO") -> NO | F163: =+IF(OR(F161="SI",F160="SI"),"SI","NO") -> NO
B164: Azzeramento AMMaFoNI | C164: =+IF(AND(C160="SI",C150>C109),"SI","NO") -> NO | D164: =+IF(AND(D160="SI",D150>D109),"SI","NO") -> NO

Sheet Opex
A2: Titolo 5 MTI-3 | B2: Costi operativi
B4: Sviluppo della componente Opex
B9: Componenti nel Piano Tariffario | C9: 2020 | D9: 2021 | E9: 2022 | F9: 2023
B10: Opexa | C10: =+SUM(C11:C13) -> 0 | D10: =+SUM(D11:D13) -> 0 | E10: =+SUM(E11:E13) -> 0 | F10: =+SUM(F11:F13) -> 0
B11: Opexend | C11: =+C55 -> 0 | D11: =+D55 -> 0 | E11: =+E55 -> 0 | F11: =+F55 -> 0
B12: Opexal | C12: =+C68 -> 0 | D12: =+D68 -> 0 | E12: =+E68 -> 0 | F12: =+F68 -> 0
B13: Opextel | C13: =+C220 -> 0 | D13: =+D220 -> 0 | E13: 0 | F13: 0
B28: Componenti calcolate | C28: 2020 | D28: 2021 | E28: 2022 | F28: 2023
B29: Opexa | C29: =+SUM(C30:C32) -> 0 | D29: =+SUM(D30:D32) -> 0 | E29: =+SUM(E30:E32) -> 0 | F29: =+SUM(F30:F32) -> 0
B30: Opexend | C30: =+C53 -> 0 | D30: =+D53 -> 0 | E30: =+E53 -> 0 | F30: =+F53 -> 0
B31: Opexal | C31: =+C66 -> 0 | D31: =+D66 -> 0 | E31: =+E66 -> 0 | F31: =+F66 -> 0
B32: Opextel | C32: =+C220 -> 0 | D32: =+D220 -> 0 | E32: 0 | F32: 0
A38: art. 17 MTI-3 | B38: Opexend - Costi endogeni
C42: 2020 | D42: 2021 | E42: 2022 | F42: 2023
B43: Classe (i) | C43: =Frontiera_efficiente!$H$6 ->  | D43: =Frontiera_efficiente!$H$6 ->  | E43: =Frontiera_efficiente!$H$6 ->  | F43: =Frontiera_efficiente!$H$6 -> 
B44: Cluster (j) | C44: =Frontiera_efficiente!$H$5 ->  | D44: =Frontiera_efficiente!$H$5 ->  | E44: =Frontiera_efficiente!$H$5 ->  | F44: =Frontiera_efficiente!$H$5 -> 
B45: γOP | C45: =+IFERROR(VLOOKUP(C43&"-"&C44,matrice_gamma,3,FALSE),"") ->  | D45: =+IFERROR(VLOOKUP(D43&"-"&D44,matrice_gamma,3,FALSE),"") ->  | E45: =+IFERROR(VLOOKUP(E43&"-"&E44,matrice_gamma,3,FALSE),"") ->  | F45: =+IFERROR(VLOOKUP(F43&"-"&F44,matrice_gamma,3,FALSE),"") -> 
B46: Opexend 2016 | C46: =Dati_Anni_precedenti!$E79 -> 0 | D46: =Dati_Anni_precedenti!$E79 -> 0 | E46: =Dati_Anni_precedenti!$E79 -> 0 | F46: =Dati_Anni_precedenti!$E79 -> 0
B47: Coeff 2016 | C47: =Dati_Anni_precedenti!$E80 -> 0 | D47: =Dati_Anni_precedenti!$E80 -> 0 | E47: =Dati_Anni_precedenti!$E80 -> 0 | F47: =Dati_Anni_precedenti!$E80 -> 0
B48: ΔOpex | C48: =+IF(C45="","",MAX(0,C46-C47)) ->  | D48: =+IF(D45="","",MAX(0,D46-D47)) -> 
B49: ∏(1+It) | C49: =+TT_parametri!BJ$8 -> 1.020099 | D49: =+TT_parametri!BK$9 -> 1.020099 | E49: =+TT_parametri!BL$10 -> 1.020099 | F49: =+TT_parametri!BM$11 -> 1.020099
B50: (1+γOPi,j)*max(0;ΔOpex) | C50: =+IFERROR((1+C45)*MAX(0,C48),"") ->  | D50: =+IFERROR((1+D45)*MAX(0,D48),"") -> 
B51: Opexend al lordo degli ERCend | C51: =+IFERROR((Dati_Anni_precedenti!$E47+Dati_Anni_precedenti!$E36)*C49-C50,"") ->  | D51: =+IFERROR((Dati_Anni_precedenti!$E47+Dati_Anni_precedenti!$E36)*D49-D50,"") ->  | E51: =+IFERROR((Dati_Anni_precedenti!$E47+Dati_Anni_precedenti!$E36)*E49-E50,"") ->  | F51: =+IFERROR((Dati_Anni_precedenti!$E47+Dati_Anni_precedenti!$E36)*F49-F50,"") -> 
B53: Opexend da formula | C53: =+IFERROR(C51-ERC!C176,0) -> 0 | D53: =+IFERROR(D51-ERC!D176,0) -> 0 | E53: =+IFERROR(E51-ERC!E176,0) -> 0 | F53: =+IFERROR(F51-ERC!F176,0) -> 0 | G53: al netto degli ERCend
B54: Opexend (eventuale detrazione da "Input per calcoli finali") | C54: =Input_per_calcoli_finali!I141 -> 0 | D54: =Input_per_calcoli_finali!J141 -> 0 | E54: =Input_per_calcoli_finali!K141 -> 0 | F54: =Input_per_calcoli_finali!L141 -> 0
B55: Opexend al netto degli ERCend | C55: =+IFERROR(C53-C54,0) -> 0 | D55: =+IFERROR(D53-D54,0) -> 0 | E55: 0 | F55: 0
A61: art. 19 MTI-3 | B61: Opexal - Costi aggiornabili
C65: 2020 | D65: 2021 | E65: 2022 | F65: 2023
B66: Opexala da formula | C66: =+C88+C101+C120+C152+C136 -> 0 | D66: =+D88+D101+D120+D152+D136 -> 0 | E66: 0 | F66: 0
B67: Opexala (eventuale detrazione da "Input per calcoli finali") | C67: =+Input_per_calcoli_finali!I145 -> 0 | D67: =+Input_per_calcoli_finali!J145 -> 0 | E67: =+Input_per_calcoli_finali!K145 -> 0 | F67: =+Input_per_calcoli_finali!L145 -> 0
B68: Opexala | C68: =+IFERROR(C66-C67,0) -> 0 | D68: =+IFERROR(D66-D67,0) -> 0 | E68: 0 | F68: 0
A74: art. 20 MTI-3 | B74: Coee - Costi di energia elettrica
C78: 2020 | D78: 2021 | E78: 2022 | F78: 2023
B79: COeff,a-2EE | C79: =+SUM(Dati_conto_economico!C47:C48,Dati_conto_economico!F47:F48) -> 0 | D79: =+SUM(Dati_conto_economico!I47:I48,Dati_conto_economico!L47:L48) -> 0 | E79: =+D79 -> 0 | F79: =+E79 -> 0
B80: COmedio,a-2EE | C80: =+TT_parametri!$AV36 -> 0.1473 | D80: =+TT_parametri!$AV37 -> 0.1597 | E80: =+TT_parametri!$AV38 -> 0.1597 | F80: =+TT_parametri!$AV39 -> 0.1597
B81: kWh a-2 | C81: =+Dati_tecnici!E3 -> 0 | D81: =+Dati_tecnici!F3 -> 0 | E81: =+D81 -> 0 | F81: =+E81 -> 0
B82: Δrisparmio | C82: =+IFERROR(((SUM(Dati_Anni_precedenti!$E$73:$F$73,Dati_Anni_precedenti!$E$89:$F$89)/4)-C81)*MIN(C79/C81,C80*1.1),0) -> 0 | D82: =+IFERROR(((SUM(Dati_Anni_precedenti!$E$73:$F$73,Dati_Anni_precedenti!$F$89,$C81:C81)/4)-D81)*MIN(D79/D81,D80*1.1),0) -> 0 | E82: =+IFERROR(((SUM(Dati_Anni_precedenti!$E$73:$F$73,$C81:D81)/4)-E81)*MIN(E79/E81,E80*1.1),0) -> 0 | F82: =+IFERROR(((SUM(Dati_Anni_precedenti!$F$73,$C81:E81)/4)-F81)*MIN(F79/F81,F80*1.1),0) -> 0
B83: γEE | C83: =+IF(C82<0,0,0.25) -> 0.25 | D83: =+IF(D82<0,0,0.25) -> 0.25 | E83: =+IF(E82<0,0,0.25) -> 0.25 | F83: =+IF(F82<0,0,0.25) -> 0.25
B84: ∏(1+It) | C84: =+TT_parametri!BJ8 -> 1.020099 | D84: =+TT_parametri!BK8 -> 1.011 | E84: =+TT_parametri!BL8 -> 1 | F84: =+TT_parametri!BM8 -> 1
B88: COEE | C88: =+(MIN(C79,C80*C81*1.1)+C83*C82)*C84 -> 0 | D88: =+(MIN(D79,D80*D81*1.1)+D83*D82)*D84 -> 0 | E88: 0 | F88: 0
A94: art. 21 MTI-3 | B94: Cows - Costi all'ingrosso
C98: 2020 | D98: 2021 | E98: 2022 | F98: 2023
B101: COws | C101: =+SUM(Acquisto_Servizi_ingrosso!K:K) -> 0 | D101: =+SUM(Acquisto_Servizi_ingrosso!AB:AB) -> 0 | E101: =+D101 -> 0 | F101: =+E101 -> 0
A107: art. 22 MTI-3 | B107: COΔfanghi - Oneri aggiuntivi per lo smaltimento dei fanghi di depurazione
C111: 2020 | D111: 2021 | E111: 2022 | F111: 2023
B112: Coeffettivo,2017fanghi | C112: =+Dati_Anni_precedenti!$F$78 -> 0 | D112: =+Dati_Anni_precedenti!$F$78 -> 0 | E112: =+Dati_Anni_precedenti!$F$78 -> 0 | F112: =+Dati_Anni_precedenti!$F$78 -> 0
B113: Coeffettivo,a-2fanghi | C113: =+SUM(Dati_conto_economico!C53:C54,Dati_conto_economico!F53:F54,Dati_conto_economico!C91,Dati_conto_economico!F91) -> 0 | D113: =+SUM(Dati_conto_economico!I53:I54,Dati_conto_economico!L53:L54,Dati_conto_economico!I91,Dati_conto_economico!L91) -> 0 | E113: =+D113 -> 0 | F113: =+E113 -> 0
B114: F | C114: 0.02 | D114: 0.02 | E114: 0.02 | F114: 0.02
B115: ∏(1+It) | C115: =+TT_parametri!BJ$8 -> 1.020099 | D115: =+TT_parametri!BK$8 -> 1.011 | E115: =+TT_parametri!BL$8 -> 1 | F115: =+TT_parametri!BM$8 -> 1
B117: COΔfanghi (rispetto condizionalità) | C117: =+'Altri dati economico_finanziari'!$E$67 -> 0 | D117: =+'Altri dati economico_finanziari'!$F$67 -> 0 | E117: =+D117 -> 0 | F117: =+E117 -> 0
B120: COΔfanghi | C120: =+IFERROR(IF(C117="SI",C112*C115*MAX(((C113/C112)-C114)-1,0),0),0) -> 0 | D120: =+IFERROR(IF(D117="SI",D112*D115*MAX(((D113/D112)-D114)-1,0),0),0) -> 0 | E120: =+IFERROR(IF(E117="SI",E112*E115*MAX(((E113/E112)-E114)-1,0),0),0) -> 0 | F120: =+IFERROR(IF(F117="SI",F112*F115*MAX(((F113/F112)-F114)-1,0),0),0) -> 0
A126: comma 19.1 MTI-3 | B126: MT, AC - Mutui e Altri corrispettivi
C130: 2020 | D130: 2021 | E130: 2022 | F130: 2023
B131: MT | C131: =+SUM(Corrispettivi_proprietari!S:S) -> 0 | D131: =+SUM(Corrispettivi_proprietari!T:T) -> 0 | E131: =+SUM(Corrispettivi_proprietari!U:U) -> 0 | F131: =+SUM(Corrispettivi_proprietari!V:V) -> 0
B132: AC | C132: =+SUM(Corrispettivi_proprietari!X:X) -> 0 | D132: =+SUM(Corrispettivi_proprietari!Y:Y) -> 0 | E132: =+SUM(Corrispettivi_proprietari!Z:Z) -> 0 | F132: =+SUM(Corrispettivi_proprietari!AA:AA) -> 0
B136: MT + AC | C136: =+C131+C132 -> 0 | D136: =+D131+D132 -> 0 | E136: =+E131+E132 -> 0 | F136: =+F131+F132 -> 0
A142: comma 23.1 MTI-3 | B142: Coaltri - Altri costi
C146: 2020 | D146: 2021 | E146: 2022 | F146: 2023
B147: COATOa | C147: =+C175 -> 0 | D147: =+D175 -> 0 | E147: =+E175 -> 0 | F147: =+F175 -> 0
B148: COARERAa | C148: =+C189 -> 0 | D148: =+D189 -> 0 | E148: =+E189 -> 0 | F148: =+F189 -> 0
B149: COmora | C149: =+Opex!C302 -> 0 | D149: =+Opex!D302 -> 0 | E149: =+Opex!E302 -> 0 | F149: =+Opex!F302 -> 0
B150: COdila | C150: =$C$317 -> 0
B151: COresa | C151: =+C203 -> 0 | D151: =+D203 -> 0 | E151: =+E203 -> 0 | F151: =+F203 -> 0
B152: COaltria | C152: =SUM(C147:C151) -> 0 | D152: =SUM(D147:D151) -> 0 | E152: =SUM(E147:E151) -> 0 | F152: =SUM(F147:F151) -> 0
A158: comma 23.2 MTI-3 | B158: CoATO - Costi dell'ATO
B162: COmedio,2013ATO | C162: =+TT_parametri!$AV$45 -> 1.01
B163: popATO di competenza del gestore | C163: =IF(popolazione_ato<>0,popolazione_ato,MAX(Dati_tecnici!E12,Dati_tecnici!E20,Dati_tecnici!E26)) -> 0
B164: COmedio,2013ATO * pop2013*z | C164: =+C162*C163*2 -> 0
C167: 2020 | D167: 2021 | E167: 2022 | F167: 2023
B168: COa-2ATO | C168: =+Dati_conto_economico!C83+Dati_conto_economico!F83 -> 0 | D168: =+Dati_conto_economico!I83+Dati_conto_economico!L83 -> 0 | E168: =+D168 -> 0 | F168: =+E168 -> 0
L169: SI | M169: Accoglimento Istanza per soggetto competente
B170: Produttoria(1+It) 2013 - anno a | C170: =+TT_parametri!BJ13 -> 1.052995443 | D170: =+TT_parametri!BK14 -> 1.052995443 | E170: =+TT_parametri!BL15 -> 1.052995443 | F170: =+TT_parametri!BM16 -> 1.052995443
B171: Produttoria(1+It) mobile di 2 anni | C171: =+TT_parametri!BJ8 -> 1.020099 | D171: =+TT_parametri!BK8 -> 1.011 | E171: =+TT_parametri!BL8 -> 1 | F171: =+TT_parametri!BM8 -> 1
B175: COATOa | C175: =MIN(C168*C171,$C$164*C170) -> 0 | D175: =MIN(D168*D171,$C$164*D170) -> 0 | E175: =MIN(E168*E171,$C$164*E170) -> 0 | F175: =MIN(F168*F171,$C$164*F170) -> 0
A181: comma 23.4 MTI-3 | B181: CoARERA - Costi dell'Autorità
C185: 2020 | D185: 2021 | E185: 2022 | F185: 2023
B186: Ricavia-2A1+A5 | C186: =+Dati_conto_economico!C5+Dati_conto_economico!C11 -> 0 | D186: =+Dati_conto_economico!I5+Dati_conto_economico!I11 -> 0 | E186: =+D186 -> 0 | F186: =+E186 -> 0
B187: quota‰ | C187: =+TT_parametri!$BC$50 -> 0.00027 | D187: =+TT_parametri!$BC$50 -> 0.00027 | E187: =+TT_parametri!$BC$50 -> 0.00027 | F187: =+TT_parametri!$BC$51 -> 0.00027
B189: COaARERA | C189: =+C186*C187 -> 0 | D189: =+D186*D187 -> 0 | E189: =+E186*E187 -> 0 | F189: =+F186*F187 -> 0
A195: comma 23.1 MTI-3 | B195: Cores - Oneri locali
C199: 2020 | D199: 2021 | E199: 2022 | F199: 2023
B200: Oneri locali a-2 (esclusi ERC) | C200: =+SUM(Dati_conto_economico!E97:F102) -> 0 | D200: =SUM(Dati_conto_economico!K97:L102) -> 0 | E200: =+D200 -> 0 | F200: =+E200 -> 0
B201: contrib in c/e a-2 | C201: =+Dati_conto_economico!C38+Dati_conto_economico!F38 -> 0 | D201: =+Dati_conto_economico!I38+Dati_conto_economico!L38 -> 0 | E201: =+D201 -> 0 | F201: =+E201 -> 0
B203: COares | C203: =+C200-C201 -> 0 | D203: =+D200-D201 -> 0 | E203: 0 | F203: 0
A209: art. 18 MTI-3 | B209: Opexatel - Costi operativi associati a specifiche finalità
C213: 2020 | D213: 2021 | E213: 2022 | F213: 2023
B214: OPnew | C214: =C232 -> 0 | D214: =D232 -> 0 | E214: =E232 -> 0 | F214: =F232 -> 0
B215: OpexQT | C215: =C245 -> 0 | D215: 0 | E215: 0 | F215: 0
B216: OpexQC | C216: =C259 -> 0 | D216: 0 | E216: 0 | F216: 0
B217: Opsocial | C217: =C272 -> 0 | D217: =D272 -> 0 | E217: =E272 -> 0 | F217: =F272 -> 0
B218: Opmis | C218: =C283 -> 0 | D218: 0 | E218: 0 | F218: 0
B219: OpCOVID | C219: ='Altri dati economico_finanziari'!$E$75 -> 0
B220: Opextel | C220: =+SUM(C214:C219) -> 0 | D220: =+SUM(D214:D218) -> 0 | E220: =+SUM(E214:E218) -> 0 | F220: =+SUM(F214:F218) -> 0
A226: commi da 18.1 a 18.7 MTI-3 | B226: Opnew,a - Costi per cambiamenti sistematici
C230: 2020 | D230: 2021 | E230: 2022 | F230: 2023
B231: Opnew,a da foglio "Input per calcoli finali" | C231: =Input_per_calcoli_finali!I28 -> 0 | D231: =Input_per_calcoli_finali!J28 -> 0 | E231: =Input_per_calcoli_finali!K28 -> 0 | F231: =Input_per_calcoli_finali!L28 -> 0
B232: Opnew,a | C232: =+IF(OR(TRIM(schema)="III",TRIM(schema)="VI"),C231,0) -> 0 | D232: =+IF(OR(TRIM(schema)="III",TRIM(schema)="VI"),D231,0) -> 0 | E232: =+IF(OR(TRIM(schema)="III",TRIM(schema)="VI"),E231,0) -> 0 | F232: =+IF(OR(TRIM(schema)="III",TRIM(schema)="VI"),F231,0) -> 0
A238: comma 18.8 MTI-3 | B238: OpexQT - Costi per gli adeguamenti agli standard di qualità tecnica
C242: 2020 | D242: 2021 | E242: 2022 | F242: 2023
B245: OpexQT (al netto della componente ERCQT) | C245: =+MIN(Dati_Anni_precedenti!F16,'PdI-riepilogo'!I39) -> 0 | D245: =+MIN(Dati_Anni_precedenti!F16,'PdI-riepilogo'!I39) -> 0 | E245: =+MIN(Dati_Anni_precedenti!F16,'PdI-riepilogo'!I39) -> 0 | F245: =+MIN(Dati_Anni_precedenti!F16,'PdI-riepilogo'!I39) -> 0
A251: comma 18.9 MTI-3 | B251: OpexaQC - Costi per gli adeguamenti standard qualità Carta Servizie e eventuali oneri aggiuntivi
C255: 2020 | D255: 2021 | E255: 2022 | F255: 2023
B257: OpexaQC lett. a) co. 18.9 MTI-3 | C257: =MIN(Dati_Anni_precedenti!F14,'Altri dati economico_finanziari'!F65) -> 0 | D257: =MIN(Dati_Anni_precedenti!F14,'Altri dati economico_finanziari'!F65) -> 0 | E257: =MIN(Dati_Anni_precedenti!F14,'Altri dati economico_finanziari'!F65) -> 0 | F257: =MIN(Dati_Anni_precedenti!F14,'Altri dati economico_finanziari'!F65) -> 0
B258: OpexaQC lett. b) co. 18.9 MTI-3 | C258: ='Altri dati economico_finanziari'!E70 -> 0 | D258: ='Altri dati economico_finanziari'!F70 -> 0 | E258: ='Altri dati economico_finanziari'!G70 -> 0 | F258: ='Altri dati economico_finanziari'!H70 -> 0
B259: OpexaQC | C259: =+C257+C258 -> 0 | D259: =+D257+D258 -> 0 | E259: 0 | F259: 0
A265: comma 18.10 MTI-3 | B265: Opsocial
C269: 2020 | D269: 2021 | E269: 2022 | F269: 2023
B270: Opasocial per il mantenimento o l'introduzione di eventuali agevolazioni migliorative | C270: ='Altri dati economico_finanziari'!E72 -> 0 | D270: ='Altri dati economico_finanziari'!F72 -> 0 | E270: ='Altri dati economico_finanziari'!G72 -> 0 | F270: ='Altri dati economico_finanziari'!H72 -> 0
B271: Opasocial comma 7.3 REMSI | C271: ='Altri dati economico_finanziari'!E73 -> 0 | D271: ='Altri dati economico_finanziari'!F73 -> 0 | E271: ='Altri dati economico_finanziari'!G73 -> 0 | F271: ='Altri dati economico_finanziari'!H73 -> 0
B272: Opsocial | C272: =+C270+C271 -> 0 | D272: =+D270+D271 -> 0 | E272: 0 | F272: 0
A278: comma 18.11 MTI-3 | B278: Opmis
C282: 2020 | D282: 2021 | E282: 2022 | F282: 2023
B283: Opmis | C283: ='Altri dati economico_finanziari'!E74 -> 0 | D283: ='Altri dati economico_finanziari'!F74 -> 0 | E283: ='Altri dati economico_finanziari'!G74 -> 0 | F283: ='Altri dati economico_finanziari'!H74 -> 0
A289: art. 28 MTI-3 | B289: Comor - Costi della morosità
B292: Trattamento dei costi di morosità
C294: 2020 | D294: 2021 | E294: 2022 | F294: 2023 | K294: +IVA 10% | L294: =1+0.1 -> 1.1
B295: fatturatoa-2 | C295: =+(SUM(Dati_conto_economico!C14:'Dati_conto_economico'!C21)+Dati_conto_economico!C23+Dati_conto_economico!C24+Dati_conto_economico!C27+Dati_conto_economico!C28)*$L$294 -> 0 | D295: =+(SUM(Dati_conto_economico!I14:'Dati_conto_economico'!I21)+Dati_conto_economico!I23+Dati_conto_economico!I24+Dati_conto_economico!I27+Dati_conto_economico!I28)*$L$294 -> 0 | E295: =+D295 -> 0 | F295: =+E295 -> 0 | K295: Area Geogr | L295: =+IFERROR(VLOOKUP(VALUE(idato),TT_Comuni_ATO!N2:O99,2,FALSE),0) -> 0
B296: Unpaid Ratio [UR] reale | C296: ='Altri dati economico_finanziari'!E31 -> 0 | D296: ='Altri dati economico_finanziari'!F31 -> 0 | E296: =+D296 -> 0 | F296: =+E296 -> 0
B297: Unpaid Ratio [UR] art. 28 all. A | C297: =IFERROR(VLOOKUP($L295,TT_parametri!$AU$50:$AV$52,2,FALSE),0) -> 0 | D297: =IFERROR(VLOOKUP($L295,TT_parametri!$AU$50:$AV$52,2,FALSE),0) -> 0 | E297: =IFERROR(VLOOKUP($L295,TT_parametri!$AU$50:$AV$52,2,FALSE),0) -> 0 | F297: =IFERROR(VLOOKUP($L295,TT_parametri!$AU$50:$AV$52,2,FALSE),0) -> 0
B298: Unpaid Ratio [UR] indicato | C298: =+Input_per_calcoli_finali!I64 -> 0 | D298: =+Input_per_calcoli_finali!I64 -> 0 | E298: =+Input_per_calcoli_finali!I64 -> 0 | F298: =+Input_per_calcoli_finali!I64 -> 0
B302: COamor | C302: =MAX(C295*IF(C298="",C297,MIN(C298,C297)),0) -> 0 | D302: =MAX(D295*IF(D298="",D297,MIN(D298,D297)),0) -> 0 | E302: =MAX(E295*IF(E298="",E297,MIN(E298,E297)),0) -> 0 | F302: =MAX(F295*IF(F298="",F297,MIN(F298,F297)),0) -> 0
A308: art. 28 MTI-3 | B308: Codil - Effetti delle dilazioni di pagamento
B311: Effetto delle dilazioni di pagamento
C313: 2020 | D313: 2021 | E313: 2022 | F313: 2023 | K313: +IVA 10% | L313: =1+0.1 -> 1.1
B314: fatturatoa-2 | C314: =+(SUM(Dati_conto_economico!C14:'Dati_conto_economico'!C21)+Dati_conto_economico!C23+Dati_conto_economico!C24+Dati_conto_economico!C27+Dati_conto_economico!C28)*$L$313 -> 0 | K314: Verifica schema | L314: =+IF(Input_per_calcoli_finali!I22="Matrice di schemi regolatori",IF(OR(schema="I",schema="II",schema="III"),0.3%,0.6%),0%) -> 0
B315: Percentuale al fatturato anno a-2 | C315: ='Altri dati economico_finanziari'!$E$33 -> 0
B316: Percentuale massima applicabile | C316: =+$L$314 -> 0
B317: COadil | C317: =+MIN(C316,C315)*C314 -> 0
A321: art. 36 MTI-3 | B321: Modalità di copertura di premi - strumento allocativo
B325: Meccanismi incentivanti per il miglioramento della qualità, controllo sui livelli raggiunti e modalità di copertura dei premi
C327: 2020 | D327: 2021 | E327: 2022 | F327: 2023
B328: Strumento allocativo (€/mc) | C328: =+IFERROR(C329/C330,"") ->  | D328: =+IFERROR(D329/D330,"") ->  | E328: =+IFERROR(E329/E330,"") ->  | F328: =+IFERROR(F329/F330,"") -> 
B329: (1+γOPi,j)*max(0;ΔOpex) | C329: =Opex!C50 ->  | D329: =Opex!D50 ->  | E329: =Opex!E50 ->  | F329: =Opex!F50 -> 
B330: Volumi | C330: =+IFERROR(C337,"") -> 0 | D330: =+IFERROR(D337,"") -> 0 | E330: =+IFERROR(E337,"") -> 0 | F330: =+IFERROR(F337,"") -> 0
B332: Totale Volumi
B333: Acquedotto | C333: =+SUMIF(Struttura_corrispettivi!$V:$V,"Acquedotto",Struttura_corrispettivi!M:M) -> 0 | D333: =+SUMIF(Struttura_corrispettivi!$V:$V,"Acquedotto",Struttura_corrispettivi!N:N) -> 0 | E333: =+D333 -> 0 | F333: 0
B334: Fognatura | C334: =+SUMIF(Struttura_corrispettivi!$V:$V,"Fognatura",Struttura_corrispettivi!M:M) -> 0 | D334: =+SUMIF(Struttura_corrispettivi!$V:$V,"Fognatura",Struttura_corrispettivi!N:N) -> 0 | E334: 0 | F334: 0
B335: Depurazione | C335: =+SUMIF(Struttura_corrispettivi!$V:$V,"Depurazione",Struttura_corrispettivi!M:M) -> 0 | D335: =+SUMIF(Struttura_corrispettivi!$V:$V,"Depurazione",Struttura_corrispettivi!N:N) -> 0 | E335: 0 | F335: 0
B336: Utenze di cui al Titolo 4 (TICSI) | C336: =+MAX(Ricavi_Coll_Dep!H11,Ricavi_Coll_Dep!H12) -> 0 | D336: =+MAX(Ricavi_Coll_Dep!I11,Ricavi_Coll_Dep!I12) -> 0 | E336: 0 | F336: 0
B337: Volumi per modalità di copertura premi | C337: =+SUM(C333:C336) -> 0 | D337: 0 | E337: 0 | F337: 0

Sheet ERC
A2: Titolo 6 MTI-3 | B2: Costi ambientali e della risorsa
B4: Sviluppo della componente ERC
B9: Componenti nel Piano Tariffario | C9: 2020 | D9: 2021 | E9: 2022 | F9: 2023
B10: ERC | C10: =+C11+C12 -> 0 | D10: =+D11+D12 -> 0 | E10: =+E11+E12 -> 0 | F10: =+F11+F12 -> 0
B11: ERCcapex | C11: =+C51 -> 0 | D11: =+D51 -> 0 | E11: 0 | F11: 0
B12: ERCopex | C12: =+C137 -> 0 | D12: =+D137 -> 0 | E12: 0 | F12: 0
B28: Componenti calcolate | C28: 2020 | D28: 2021 | E28: 2022 | F28: 2023
B29: ERC | C29: =+C30+C31 -> 0 | D29: =+D30+D31 -> 0 | E29: =+E30+E31 -> 0 | F29: =+F30+F31 -> 0
B30: ERCcapex | C30: =C49 -> 0 | D30: 0 | E30: 0 | F30: 0
B31: ERCopex | C31: =C135 -> 0 | D31: 0 | E31: 0 | F31: 0
B41: Sviluppo della componente ERCcapex
C45: 2020 | D45: 2021 | E45: 2022 | F45: 2023
B46: ENVcapex | C46: =+C64+C79+C86 -> 0 | D46: =+D64+D79+D86 -> 0 | E46: =+E64+E79+E86 -> 0 | F46: =+F64+F79+F86 -> 0
B47: REScapex | C47: =+C99+C113+C120 -> 0 | D47: =+D99+D113+D120 -> 0 | E47: 0 | F47: 0
B49: ERCcapex da calcolo | C49: =+C46+C47 -> 0 | D49: =+D46+D47 -> 0 | E49: =+E46+E47 -> 0 | F49: =+F46+F47 -> 0
B50: ERCcapex (eventuale detrazione da "Input per calcoli finali") | C50: =+Input_per_calcoli_finali!I157 -> 0 | D50: =+Input_per_calcoli_finali!J157 -> 0 | E50: =+Input_per_calcoli_finali!K157 -> 0 | F50: =+Input_per_calcoli_finali!L157 -> 0
B51: ERCcapex | C51: =+C49-C50 -> 0 | D51: =+D49-D50 -> 0 | E51: 0 | F51: 0
A55: art. 25 All. A MTI-3 | B55: Envcapex
C59: 2020 | D59: 2021 | E59: 2022 | F59: 2023
B62: Incidenza ENV | C62: =+Nuovi_Investimenti!D11 -> 0 | D62: =+Nuovi_Investimenti!E11 -> 0 | E62: =+Nuovi_Investimenti!F11 -> 0 | F62: =+Nuovi_Investimenti!G11 -> 0
B64: AMMenv | C64: =+TT_riepilogo_IMN!E45+(TT_riepilogo_IMN!E9-TT_riepilogo_IMN!E45-TT_riepilogo_IMN!E57)*C62 -> 0 | D64: =+TT_riepilogo_IMN!F45+(TT_riepilogo_IMN!F9-TT_riepilogo_IMN!F45-TT_riepilogo_IMN!F57)*D62 -> 0 | E64: =+TT_riepilogo_IMN!G45+(TT_riepilogo_IMN!G9-TT_riepilogo_IMN!G45-TT_riepilogo_IMN!G57)*E62 -> 0 | F64: =+TT_riepilogo_IMN!H45+(TT_riepilogo_IMN!H9-TT_riepilogo_IMN!H45-TT_riepilogo_IMN!H57)*F62 -> 0
B67: Km | C67: =Capex!$C$59 -> 0.021526 | D67: =Capex!$D$59 -> 0.021526 | E67: =Capex!$E$59 -> 0.021526 | F67: =Capex!$F$59 -> 0.021526
B68: α | C68: =Capex!$C$60 -> 0.0158 | D68: =Capex!$D$60 -> 0.0158 | E68: =Capex!$E$60 -> 0.0158 | F68: =Capex!$F$60 -> 0.0158
B70: CINenv | C70: =+MAX(TT_riepilogo_IMN!E44,0) -> 0 | D70: =+MAX(TT_riepilogo_IMN!F44,0) -> 0 | E70: =+MAX(TT_riepilogo_IMN!G44,0) -> 0 | F70: =+MAX(TT_riepilogo_IMN!H44,0) -> 0
B71: CINfp,env | C71: =+MAX(TT_riepilogo_IMN!E46,0) -> 0 | D71: =+MAX(TT_riepilogo_IMN!F46,0) -> 0 | E71: =+MAX(TT_riepilogo_IMN!G46,0) -> 0 | F71: =+MAX(TT_riepilogo_IMN!H46,0) -> 0
B72: CINfp / (CIN) env | C72: =+IFERROR(C71/C70,0) -> 0 | D72: =+IFERROR(D71/D70,0) -> 0 | E72: =+IFERROR(E71/E70,0) -> 0 | F72: =+IFERROR(F71/F70,0) -> 0
B74: OFenv (time lag) | C74: =Capex!$K$61*(C70-C71) -> 0 | D74: =Capex!$K$61*(D70-D71) -> 0 | E74: =Capex!$K$61*(E70-E71) -> 0 | F74: =Capex!$K$61*(F70-F71) -> 0
B75: OFenv (escluso time lag) | C75: =+(C67+C68)*(1-C72)*C70 -> 0 | D75: =+(D67+D68)*(1-D72)*D70 -> 0 | E75: =+(E67+E68)*(1-E72)*E70 -> 0 | F75: =+(F67+F68)*(1-F72)*F70 -> 0
B79: OFenv | C79: =+C74+C75+(Capex!C68/(1-Capex!C44))*ERC!C62 -> 0 | D79: =+D74+D75+(Capex!D68/(1-Capex!D44))*ERC!D62 -> 0 | E79: =+E74+E75+(Capex!E68/(1-Capex!E44))*ERC!E62 -> 0 | F79: =+F74+F75+(Capex!F68/(1-Capex!F44))*ERC!F62 -> 0
B81: Rai rate | C81: =Capex!$C$72 -> 0.06264074897 | D81: =Capex!$D$72 -> 0.06264074897 | E81: =Capex!$E$72 -> 0.06264074897 | F81: =Capex!$F$72 -> 0.06264074897
B82: Raienv | C82: =+(C70-C71)*C81 -> 0 | D82: =+(D70-D71)*D81 -> 0 | E82: =+(E70-E71)*E81 -> 0 | F82: =+(F70-F71)*F81 -> 0
B86: OFiscenv | C86: =+MAX(Capex!$K$59*C82,0)+(Capex!C75/(1-Capex!C44))*ERC!C62 -> 0 | D86: =+MAX(Capex!$K$59*D82,0)+(Capex!D75/(1-Capex!D44))*ERC!D62 -> 0 | E86: =+MAX(Capex!$K$59*E82,0)+(Capex!E75/(1-Capex!E44))*ERC!E62 -> 0 | F86: =+MAX(Capex!$K$59*F82,0)+(Capex!F75/(1-Capex!F44))*ERC!F62 -> 0
A90: art. 25 All. A MTI-3 | B90: Rescapex
C94: 2020 | D94: 2021 | E94: 2022 | F94: 2023
B97: Incidenza Res | C97: =+Nuovi_Investimenti!D12 -> 0 | D97: =+Nuovi_Investimenti!E12 -> 0 | E97: =+Nuovi_Investimenti!F12 -> 0 | F97: =+Nuovi_Investimenti!G12 -> 0
B99: AMMres | C99: =+TT_riepilogo_IMN!E57+(TT_riepilogo_IMN!E9-TT_riepilogo_IMN!E45-TT_riepilogo_IMN!E57)*C97 -> 0 | D99: =+TT_riepilogo_IMN!F57+(TT_riepilogo_IMN!F9-TT_riepilogo_IMN!F45-TT_riepilogo_IMN!F57)*D97 -> 0 | E99: =+TT_riepilogo_IMN!G57+(TT_riepilogo_IMN!G9-TT_riepilogo_IMN!G45-TT_riepilogo_IMN!G57)*E97 -> 0 | F99: =+TT_riepilogo_IMN!H57+(TT_riepilogo_IMN!H9-TT_riepilogo_IMN!H45-TT_riepilogo_IMN!H57)*F97 -> 0
B101: Km | C101: =Capex!$C$59 -> 0.021526 | D101: =Capex!$D$59 -> 0.021526 | E101: =Capex!$E$59 -> 0.021526 | F101: =Capex!$F$59 -> 0.021526
B102: α | C102: =Capex!$C$60 -> 0.0158 | D102: =Capex!$D$60 -> 0.0158 | E102: =Capex!$E$60 -> 0.0158 | F102: =Capex!$F$60 -> 0.0158
B104: CINres | C104: =+MAX(TT_riepilogo_IMN!E56,0) -> 0 | D104: =+MAX(TT_riepilogo_IMN!F56,0) -> 0 | E104: =+MAX(TT_riepilogo_IMN!G56,0) -> 0 | F104: =+MAX(TT_riepilogo_IMN!H56,0) -> 0
B105: CINfp,res | C105: =+MAX(TT_riepilogo_IMN!E58,0) -> 0 | D105: =+MAX(TT_riepilogo_IMN!F58,0) -> 0 | E105: =+MAX(TT_riepilogo_IMN!G58,0) -> 0 | F105: =+MAX(TT_riepilogo_IMN!H58,0) -> 0
B106: CINfp / (CIN) res | C106: =+IFERROR(C105/C104,0) -> 0 | D106: =+IFERROR(D105/D104,0) -> 0 | E106: =+IFERROR(E105/E104,0) -> 0 | F106: =+IFERROR(F105/F104,0) -> 0
B108: OFres (time lag) | C108: =Capex!$K$61*(C104-C105) -> 0 | D108: =Capex!$K$61*(D104-D105) -> 0 | E108: =Capex!$K$61*(E104-E105) -> 0 | F108: =Capex!$K$61*(F104-F105) -> 0
B109: OFres (escluso time lag) | C109: =+(C67+C68)*(1-C106)*C104 -> 0 | D109: =+(D67+D68)*(1-D106)*D104 -> 0 | E109: =+(E67+E68)*(1-E106)*E104 -> 0 | F109: =+(F67+F68)*(1-F106)*F104 -> 0
B113: OFres | C113: =+C108+C109+(Capex!C68/(1-Capex!C44))*ERC!C97 -> 0 | D113: =+D108+D109+(Capex!D68/(1-Capex!D44))*ERC!D97 -> 0 | E113: =+E108+E109+(Capex!E68/(1-Capex!E44))*ERC!E97 -> 0 | F113: =+F108+F109+(Capex!F68/(1-Capex!F44))*ERC!F97 -> 0
B115: Rai rate | C115: =Capex!$C$72 -> 0.06264074897 | D115: =Capex!$D$72 -> 0.06264074897 | E115: =Capex!$E$72 -> 0.06264074897 | F115: =Capex!$F$72 -> 0.06264074897
B116: Raires | C116: =+(C104-C105)*C81 -> 0 | D116: =+(D104-D105)*D81 -> 0 | E116: =+(E104-E105)*E81 -> 0 | F116: =+(F104-F105)*F81 -> 0
B120: OFiscres | C120: =+MAX(Capex!$K$59*C116,0)+(Capex!C75/(1-Capex!C44))*ERC!C97 -> 0 | D120: =+MAX(Capex!$K$59*D116,0)+(Capex!D75/(1-Capex!D44))*ERC!D97 -> 0 | E120: =+MAX(Capex!$K$59*E116,0)+(Capex!E75/(1-Capex!E44))*ERC!E97 -> 0 | F120: =+MAX(Capex!$K$59*F116,0)+(Capex!F75/(1-Capex!F44))*ERC!F97 -> 0
B127: Sviluppo della componente ERCopex
C130: 2020 | D130: 2021 | E130: 2022 | F130: 2023
B131: ERCend | C131: =+C176 -> 0 | D131: =+D176 -> 0 | E131: 0 | F131: 0
B132: ERCal | C132: =+C157 -> 0 | D132: =+D157 -> 0 | E132: 0 | F132: 0
B133: ERCtel | C133: =+C190 -> 0 | D133: =+D190 -> 0 | E133: 0 | F133: 0
B135: ERCopex da calcolo | C135: =+SUM(C131:C133) -> 0 | D135: =+SUM(D131:D133) -> 0 | E135: 0 | F135: 0
B136: ERCopex (eventuale detrazione da "Input per calcoli finali") | C136: =+Input_per_calcoli_finali!I161 -> 0 | D136: =+Input_per_calcoli_finali!J161 -> 0 | E136: =+Input_per_calcoli_finali!K161 -> 0 | F136: =+Input_per_calcoli_finali!L161 -> 0
B137: ERCopex | C137: =+C135-C136 -> 0 | D137: =+D135-D136 -> 0 | E137: 0 | F137: 0
A143: art. 26 All. A MTI-3 | B143: ERCal - ERC aggiornabili
B147: Valori da bilancio dell'anno a-2 | C147: 2020 | D147: 2021 | E147: 2022 | F147: 2023
B148: Canoni di derivaz/sottens idrica (quota ERC) | C148: =+Dati_conto_economico!D97 -> 0 | D148: =+Dati_conto_economico!J97 -> 0 | E148: =+D148 -> 0 | F148: =+E148 -> 0
B149: contributi per consorzi di bonifica | C149: =+Dati_conto_economico!D98 -> 0 | D149: =+Dati_conto_economico!J98 -> 0 | E149: =+D149 -> 0 | F149: 0
B150: Comunità Montane (quota ERC) | C150: =+Dati_conto_economico!D99 -> 0 | D150: =+Dati_conto_economico!J99 -> 0 | E150: =+D150 -> 0 | F150: 0
B151: canoni per restituzione acque | C151: =+Dati_conto_economico!D100 -> 0 | D151: =+Dati_conto_economico!J100 -> 0 | E151: =+D151 -> 0 | F151: 0
B152: oneri per la gestione di aree di salvaguardia | C152: =+Dati_conto_economico!D101 -> 0 | D152: =+Dati_conto_economico!J101 -> 0 | E152: =+D152 -> 0 | F152: 0
B155: ERCaal da formula
B156: ERCaal (detrazione)
B157: ERCaal | C157: =+SUM(C148:C152) -> 0 | D157: =+SUM(D148:D152) -> 0 | E157: 0 | F157: 0
A161: art. 26 All. A MTI-3 | B161: ERCend - ERC endogeni
B165: Valori da bilancio dell'anno a-2 | C165: 2020 | D165: 2021 | E165: 2022 | F165: 2023
B166: B6) Per materie prime, sussidiarie, di consumo e merci | C166: =+Dati_conto_economico!D43 -> 0 | D166: =+Dati_conto_economico!J43 -> 0 | E166: =+D166 -> 0 | F166: =+E166 -> 0
B167: B7) Altri servizi da altre imprese del gruppo | C167: =+Dati_conto_economico!D57 -> 0 | D167: =+Dati_conto_economico!J57 -> 0 | E167: =+D167 -> 0 | F167: 0
B168: B7) Altri servizi da altre imprese | C168: =+Dati_conto_economico!D58 -> 0 | D168: =+Dati_conto_economico!J58 -> 0 | E168: =+D168 -> 0 | F168: 0
B169: B8) Per godimento beni di terzi | C169: =+Dati_conto_economico!D59 -> 0 | D169: =+Dati_conto_economico!J59 -> 0 | E169: =+D169 -> 0 | F169: 0
B170: B9) Per il personale | C170: =+Dati_conto_economico!D62 -> 0 | D170: =+Dati_conto_economico!J62 -> 0 | E170: =+D170 -> 0 | F170: 0
B171: B14) Oneri diversi di gestione | C171: =+Dati_conto_economico!D72-SUM(C148:C152) -> 0 | D171: =+Dati_conto_economico!J72-SUM(D148:D152) -> 0 | E171: =+D171 -> 0 | F171: 0
B172: ∏(1+It) | C172: =TT_parametri!BJ8 -> 1.020099 | D172: =TT_parametri!BK8 -> 1.011 | E172: =TT_parametri!BL8 -> 1 | F172: =TT_parametri!BM8 -> 1
B176: ERCaend | C176: =++SUM(C166:C171)*C172 -> 0 | D176: =++SUM(D166:D171)*D172 -> 0 | E176: 0 | F176: 0
A180: art. 26 All. A MTI-3 | B180: ERCtel - specifiche finalità
C184: 2020 | D184: 2021 | E184: 2022 | F184: 2023
B185: ERCQT 2019 previsionale | C185: =+Dati_Anni_precedenti!$F$35 -> 0 | D185: =+Dati_Anni_precedenti!$F$35 -> 0 | E185: =+Dati_Anni_precedenti!$F$35 -> 0 | F185: =+Dati_Anni_precedenti!$F$35 -> 0
B186: ERCQT 2019 consuntivo (da foglio "PdI-riepilogo") | C186: =+'PdI-riepilogo'!G39+'PdI-riepilogo'!H39 -> 0 | D186: =+'PdI-riepilogo'!G39+'PdI-riepilogo'!H39 -> 0 | E186: =+'PdI-riepilogo'!G39+'PdI-riepilogo'!H39 -> 0 | F186: =+'PdI-riepilogo'!G39+'PdI-riepilogo'!H39 -> 0
B187: ERCa QT | C187: =+MIN(C185:C186) -> 0 | D187: =+MIN(D185:D186) -> 0 | E187: 0 | F187: 0
B190: ERCa tel | C190: =+C187 -> 0 | D190: =+D187 -> 0 | E190: 0 | F190: 0

Sheet Rc
A2: Titolo 7 MTI-3 | B2: Sostenibilità finanziaria efficiente
B4: Sviluppo della componente Rc
B9: Componenti nel Piano Tariffario | C9: 2020 | D9: 2021 | E9: 2022 | F9: 2023
B10: RcTOTa | C10: =+C12 -> 0 | D10: =+D12 -> 0 | E10: =+E12 -> 0 | F10: =+F12 -> 0
B11: RcTOTa calcolato (include inflazione) | C11: =+C19 -> 0 | D11: =+D19 -> 0 | E11: =+E19 -> 0 | F11: =+F19 -> 0
B12: RcTOTa da input per calcoli finali | C12: =++IFERROR(Input_per_calcoli_finali!I217,0) -> 0 | D12: =++IFERROR(Input_per_calcoli_finali!J217,0) -> 0 | E12: =++IFERROR(Input_per_calcoli_finali!K217,0) -> 0 | F12: =++IFERROR(Input_per_calcoli_finali!L217,0) -> 0
B18: Componenti post detrazioni | C18: 2020 | D18: 2021 | E18: 2022 | F18: 2023
B19: RcTOTa | C19: =+SUM(C20:C24) -> 0 | D19: =+SUM(D20:D24) -> 0 | E19: =+SUM(E21:E24) -> 0 | F19: =+SUM(F21:F24) -> 0 | G19: Prima della eventuale ulteriore riallocazione dei conguagli
B20: Rcvol | C20: =(C59)*(+TT_parametri!BJ$8) -> 0 | D20: =(D59)*(+TT_parametri!BK$8) -> 0
B21: RcEE | C21: =(C85)*(+TT_parametri!BJ$8) -> 0 | D21: =(D85)*(+TT_parametri!BK$8) -> 0 | E21: =(E85)*(+TT_parametri!BL$8) -> 0 | F21: =(F85)*(+TT_parametri!BM$8) -> 0
B22: RcWS | C22: =(C106)*(+TT_parametri!BJ$8) -> 0 | D22: =(D106)*(+TT_parametri!BK$8) -> 0 | E22: =(E106)*(+TT_parametri!BL$8) -> 0 | F22: =(F106)*(+TT_parametri!BM$8) -> 0
B23: RcERC | C23: =(C127)*(+TT_parametri!BJ$8) -> 0 | D23: =(D127)*(+TT_parametri!BK$8) -> 0 | E23: =(E127)*(+TT_parametri!BL$8) -> 0 | F23: =(F127)*(+TT_parametri!BM$8) -> 0
B24: RcALTRO | C24: =(C162)*(+TT_parametri!BJ$8) -> 0 | D24: =(D162)*(+TT_parametri!BK$8) -> 0 | E24: =(E162)*(+TT_parametri!BL$8) -> 0 | F24: =(F162)*(+TT_parametri!BM$8) -> 0
B28: Componenti calcolate | C28: 2020 | D28: 2021 | E28: 2022 | F28: 2023
B29: RcTOTa | C29: =+SUM(C30:C34) -> 0 | D29: =+SUM(D30:D34) -> 0 | E29: =+SUM(E31:E34) -> 0 | F29: =+SUM(F31:F34) -> 0
B30: Rcvol | C30: =(C57)*(+TT_parametri!BJ$8) -> 0 | D30: =(D57)*(+TT_parametri!BK$8) -> 0
B31: RcEE | C31: =(C83)*(+TT_parametri!BJ$8) -> 0 | D31: =(D83)*(+TT_parametri!BK$8) -> 0 | E31: =(E83)*(+TT_parametri!BL$8) -> 0 | F31: =(F83)*(+TT_parametri!BM$8) -> 0
B32: RcWS | C32: =(C104)*(+TT_parametri!BJ$8) -> 0 | D32: =(D104)*(+TT_parametri!BK$8) -> 0 | E32: =(E104)*(+TT_parametri!BL$8) -> 0 | F32: =(F104)*(+TT_parametri!BM$8) -> 0
B33: RcERC | C33: =(C125)*(+TT_parametri!BJ$8) -> 0 | D33: =(D125)*(+TT_parametri!BK$8) -> 0 | E33: =(E125)*(+TT_parametri!BL$8) -> 0 | F33: =(F125)*(+TT_parametri!BM$8) -> 0
B34: RcALTRO | C34: =(C160)*(+TT_parametri!BJ$8) -> 0 | D34: =(D160)*(+TT_parametri!BK$8) -> 0 | E34: =(E160)*(+TT_parametri!BL$8) -> 0 | F34: =(F160)*(+TT_parametri!BM$8) -> 0
A40: comma 27.1 MTI-3 | B40: RCvol - recupero scostamento tariffe e volumi
C44: 2020 | D44: 2021 | E44: 2022 | F44: 2023 | K44: minuendo | M44: sottraendo
B45: Ja-2 ai fini del calcolo dei conguagli | C45: =+IF(Dati_Anni_precedenti!E6="",Dati_Anni_precedenti!E5,Dati_Anni_precedenti!E6) -> 0 | D45: =+IF(Dati_Anni_precedenti!F6="",Dati_Anni_precedenti!F5,Dati_Anni_precedenti!F6) -> 0 | J45: a = 2020 | K45: J2018*tarif2015*vscal2016 | L45: - | M45: tarif2018*vscal2018
B46: tarif2015*vscala-4 | C46: =Dati_Anni_precedenti!E19-Dati_Anni_precedenti!E21-Dati_Anni_precedenti!E22 -> 0 | D46: =Dati_Anni_precedenti!F19-Dati_Anni_precedenti!F21-Dati_Anni_precedenti!F22 -> 0 | J46: a = 2021 | K46: J2019*tarif2015*vscal2017 | L46: - | M46: tarif2019*vscal2019
B47: Ja-2*tarif2015vscala-4 (minuendo, include dettaglio, ingrosso, ind) | C47: =+C45*C46 -> 0 | D47: =+D45*D46 -> 0 | J47: a = 2022 | K47: J2020*tarif2019*vscal2018 | L47: - | M47: tarif2020*vscal2020
B48: (tarifa-2vscala-2) (sottraendo, include dettaglio, ingrosso, ind) | C48: =SUM(Ricavi_bacini_tariffari!M:M)+SUM(Vendita_Servizi_ingrosso!AK:AK)+Ricavi_Coll_Dep!F27 -> 0 | D48: =SUM(Ricavi_bacini_tariffari!N:N)+SUM(Vendita_Servizi_ingrosso!AL:AL)+Ricavi_Coll_Dep!G27 -> 0 | J48: a = 2023 | K48: J2021*tarif2019*vscal2019 | L48: - | M48: tarif2021*vscal2021
B49: Rcvol (per dettaglio, ingrosso, ind) | C49: =IF(C62="manca il dato di input",0,C47-C48) -> 0 | D49: =IF(D62="manca il dato di input",0,D47-D48) -> 0
B51: Componente da allocare a FoNI (informazione raccolta nel foglio "FoNI") | C51: =+FoNI!C120 -> SI | D51: =+FoNI!D120 -> SI
B52: DTATOG,ind | C52: =IF(FoNI!C121>0,IF(C51="NO",-FoNI!C121,0),-FoNI!C121) -> 0 | D52: =IF(FoNI!D121>0,IF(D51="NO",-FoNI!D121,0),-FoNI!D121) -> 0
B54: Componente da allocare a FoNI (informazione raccolta nel foglio "FoNI") | C54: =+FoNI!C134 -> SI
B55: DTG,tot | C55: =IF(FoNI!C135>0,IF(C54="NO",-FoNI!C135,0),-FoNI!C135) -> 0
B57: Rcvol da calcolo | C57: =IF(C62="manca il dato di input",0,C47-C48) -> 0 | D57: =IF(D62="manca il dato di input",0,D47-D48) -> 0
B58: Rcvol (eventuale detrazione da "Input per calcoli finali") | C58: =Input_per_calcoli_finali!I173 -> 0 | D58: =Input_per_calcoli_finali!J173 -> 0
B59: Rcvola | C59: =+C57-C58 -> 0 | D59: =+D57-D58 -> 0
B62: controllo dati anni precedenti | C62: =+IF(Dati_Anni_precedenti!E19=0,"manca il dato di input", "ok") -> manca il dato di input | D62: =+IF(Dati_Anni_precedenti!F19=0,"manca il dato di input", "ok") -> manca il dato di input
A70: comma 27.1 MTI-3 | B70: RCEE - recupero scostamento costi di energia elettrica
C74: 2020 | D74: 2021 | E74: 2022 | F74: 2023
B75: COeff,a-2EE | C75: =+SUM(Dati_conto_economico!C47:C48,Dati_conto_economico!F47:F48) -> 0 | D75: =+SUM(Dati_conto_economico!I47:I48,Dati_conto_economico!L47:L48) -> 0 | E75: =+D75 -> 0 | F75: =+E75 -> 0
B76: COmedio,a-2EE | C76: =TT_parametri!$AV$36 -> 0.1473 | D76: =TT_parametri!$AV$37 -> 0.1597 | E76: =TT_parametri!$AV$37 -> 0.1597 | F76: =TT_parametri!$AV$37 -> 0.1597
B77: kWh a-2 | C77: =Dati_tecnici!E3 -> 0 | D77: =Dati_tecnici!F3 -> 0 | E77: =+D77 -> 0 | F77: =+E77 -> 0
B78: COmedio,a-2EE * kWha-2*1,1 | C78: =+C76*C77*1.1 -> 0 | D78: 0 | E78: 0 | F78: 0
B79: Δrisparmio | C79: 0 | D79: 0 | E79: =+IFERROR(((SUM(Dati_Anni_precedenti!$E$73:$F$73,$C77:D77)/4)-E77)*MIN(E75/E77,E76*1.1),0) -> 0 | F79: =+IFERROR(((SUM(Dati_Anni_precedenti!$F$73,$C77:E77)/4)-F77)*MIN(F75/F77,F76*1.1),0) -> 0
B80: γEE | C80: =+IF(C79<0,0,0.25) -> 0.25 | D80: =+IF(D79<0,0,0.25) -> 0.25 | E80: 0.25 | F80: 0.25
B81: COEEa-2 | C81: =Dati_Anni_precedenti!E42 -> 0 | D81: =Dati_Anni_precedenti!F42 -> 0 | E81: =+Opex!C88 -> 0 | F81: =+Opex!D88 -> 0
B83: RcEE da calcolo | C83: =IF(C88="manca il dato di input",0,(MIN(C75,C78)+C79*C80)-C81) -> 0 | D83: =IF(D88="manca il dato di input",0,(MIN(D75,D78)+D79*D80)-D81) -> 0 | E83: 0 | F83: 0
B84: RcEE (eventuale detrazione da "Input per calcoli finali") | C84: =+Input_per_calcoli_finali!I177 -> 0 | D84: =+Input_per_calcoli_finali!J177 -> 0 | E84: =+Input_per_calcoli_finali!K177 -> 0 | F84: =+Input_per_calcoli_finali!L177 -> 0
B85: RcEEa | C85: =+C83-C84 -> 0 | D85: =+D83-D84 -> 0 | E85: 0 | F85: 0
B88: controllo dati anni precedenti | C88: =+IF(OR(C77=0,Dati_Anni_precedenti!E42=""),"manca il dato di input", "ok") -> manca il dato di input | D88: =+IF(OR(D77=0,Dati_Anni_precedenti!F42=""),"manca il dato di input", "ok") -> manca il dato di input
A96: comma 27.1 MTI-3 | B96: RCws - recupero scostamento costi all'ingrosso
C100: 2020 | D100: 2021 | E100: 2022 | F100: 2023
B101: Cows,jeff,a-2 | C101: =+SUMIFS(Acquisto_Servizi_ingrosso!V:V,Acquisto_Servizi_ingrosso!AP:AP,1) -> 0 | D101: =+SUMIFS(Acquisto_Servizi_ingrosso!AM:AM,Acquisto_Servizi_ingrosso!AQ:AQ,1) -> 0 | E101: =+D101 -> 0 | F101: =+E101 -> 0
B102: Cows,ja-2 | C102: =+Dati_Anni_precedenti!E43+Dati_Anni_precedenti!E44 -> 0 | D102: =+Dati_Anni_precedenti!F43+Dati_Anni_precedenti!F44 -> 0 | E102: =Opex!C101 -> 0 | F102: =Opex!D101 -> 0
B104: Rcws da calcolo | C104: =+C101-C102 -> 0 | D104: =+D101-D102 -> 0 | E104: =+E101-E102 -> 0 | F104: 0
B105: Rcws (eventuale detrazione da "Input per calcoli finali") | C105: =+Input_per_calcoli_finali!I181 -> 0 | D105: =+Input_per_calcoli_finali!J181 -> 0 | E105: =+Input_per_calcoli_finali!K181 -> 0 | F105: =+Input_per_calcoli_finali!L181 -> 0
B106: Rcwsa | C106: =+C104-C105 -> 0 | D106: =+D104-D105 -> 0 | E106: =+E104-E105 -> 0 | F106: =+F104-F105 -> 0
A115: comma 27.1 MTI-3 | B115: RCERC - recupero scostamento componente ERC
C119: 2020 | D119: 2021 | E119: 2022 | F119: 2023
B120: ERCala-2 effettivo | C120: =+SUM(Dati_conto_economico!D97:D102) -> 0 | D120: =+SUM(Dati_conto_economico!J97:J102) -> 0 | E120: =+D120 -> 0 | F120: =+E120 -> 0
B121: ERCala-2 | C121: =+Dati_Anni_precedenti!E37 -> 0 | D121: =+Dati_Anni_precedenti!F37 -> 0 | E121: =+ERC!C157 -> 0 | F121: =+ERC!D157 -> 0
B122: ERCtela-2 effettivo | C122: =+'PdI-riepilogo'!D39+'PdI-riepilogo'!E39 -> 0 | D122: =+'PdI-riepilogo'!G39+'PdI-riepilogo'!H39 -> 0 | E122: =+D122 -> 0 | F122: =+E122 -> 0
B123: ERCtela-2 | C123: =Dati_Anni_precedenti!E35 -> 0 | D123: =Dati_Anni_precedenti!F35 -> 0 | E123: =+ERC!C186 -> 0 | F123: =+ERC!D186 -> 0
B125: RcERC da calcolo | C125: =+C120-C121+MIN(C122-C123,0) -> 0 | D125: =+D120-D121+MIN(D122-D123,0) -> 0 | E125: =+E120-E121+MIN(E122-E123,0) -> 0 | F125: =+F120-F121+MIN(F122-F123,0) -> 0
B126: RcERC (eventuale detrazione da "Input per calcoli finali") | C126: =+Input_per_calcoli_finali!I185 -> 0 | D126: =+Input_per_calcoli_finali!J185 -> 0 | E126: =+Input_per_calcoli_finali!K185 -> 0 | F126: =+Input_per_calcoli_finali!L185 -> 0
B127: RcERCa | C127: =+C125-C126 -> 0 | D127: =+D125-D126 -> 0 | E127: =+E125-E126 -> 0 | F127: =+F125-F126 -> 0
A136: comma 27.1 MTI-3 | B136: RCALTRO - recupero altri scostamenti
C140: 2020 | D140: 2021 | E140: 2022 | F140: 2023
B141: RcaAttiv b | C141: =C182 -> 0 | D141: =D182 -> 0 | E141: =E182 -> 0 | F141: =F182 -> 0
B142: Rcares | C142: =C197 -> 0 | D142: =D197 -> 0 | E142: =E197 -> 0 | F142: =F197 -> 0
B143: RcaARERA | C143: =C213 -> 0 | D143: =D213 -> 0 | E143: =E213 -> 0 | F143: =F213 -> 0
B144: Costo forniture all’ingrosso transfrontaliere | C144: =+'Altri dati economico_finanziari'!E50 -> 0 | D144: =+'Altri dati economico_finanziari'!F50 -> 0 | E144: =+D144 -> 0 | F144: =+E144 -> 0
B145: RcIP (valori a moneta a-2, include eventuale FoNInoninv) | C145: =-'Altri dati economico_finanziari'!E53 -> 0 | D145: =-'Altri dati economico_finanziari'!F53+SUM(Conferma_investimenti_2017!AW:AW) -> 0
B146: Costi per variazioni sistemiche / eventi eccezionali | C146: =+'Altri dati economico_finanziari'!E48 -> 0 | D146: =+'Altri dati economico_finanziari'!F48 -> 0
B147: Rimb335a | C147: =+'Altri dati economico_finanziari'!E51 -> 0 | D147: =+'Altri dati economico_finanziari'!F51 -> 0
B148: Rcaappr | C148: =Input_per_calcoli_finali!I74+Input_per_calcoli_finali!I75 -> 0 | D148: =Input_per_calcoli_finali!J74+Input_per_calcoli_finali!J75 -> 0 | E148: =Input_per_calcoli_finali!K74+Input_per_calcoli_finali!K75 -> 0 | F148: =Input_per_calcoli_finali!L74+Input_per_calcoli_finali!L75 -> 0
B149: DOpCOVID
B150: DOpexQC | C150: =C229 -> 0 | D150: 0
B151: DOpexQT | C151: =C245 -> 0 | D151: 0
B152: DOpsocial | C152: =+C262 -> 0 | D152: =+D262 -> 0
B153: DOpmis
B154: Recupero volumi 2017 | D154: =+D292 -> 0
B155: Recupero energia elettrica 2017 | D155: =+D312 -> 0
B156: Rinvio di quota parte degli oneri ammissibili a riconoscimento tariffario nel 2020 | C156: ='Altri dati economico_finanziari'!E57/(+TT_parametri!BJ$8) -> 0
B157: Rcappr2020,COVID | D157: ='Altri dati economico_finanziari'!F57/(TT_parametri!BK$8) -> 0 | E157: ='Altri dati economico_finanziari'!G57/(TT_parametri!BL$8) -> 0 | F157: ='Altri dati economico_finanziari'!H57/(TT_parametri!BM$8) -> 0
B160: RcaAltro da calcolo | C160: =+SUM(C141:C156) -> 0 | D160: =+SUM(D141:D157) -> 0 | E160: =+SUM(E141:E157) -> 0 | F160: =+SUM(F141:F157) -> 0
B161: RcaAltro (eventuale detrazione da "Input per calcoli finali") | C161: =+Input_per_calcoli_finali!I189 -> 0 | D161: =+Input_per_calcoli_finali!J189 -> 0 | E161: =+Input_per_calcoli_finali!K189 -> 0 | F161: =+Input_per_calcoli_finali!L189 -> 0
B162: RcaAltro | C162: =+C160-C161 -> 0 | D162: =+D160-D161 -> 0 | E162: 0 | F162: 0
B170: RCattività b
C174: 2020 | D174: 2021 | E174: 2022 | F174: 2023
B175: %b | C175: 0.5 | D175: 0.5 | E175: 0.5 | F175: 0.5
B176: Rb1a-2 | C176: =+VRG_Teta!C111 -> 0 | D176: =+VRG_Teta!D111 -> 0 | E176: =+VRG_Teta!E111 -> 0 | F176: =+VRG_Teta!F111 -> 0
B177: Cb1a-2 | C177: =+VRG_Teta!C140 -> 0 | D177: =+VRG_Teta!D140 -> 0 | E177: =+VRG_Teta!E140 -> 0 | F177: =+VRG_Teta!F140 -> 0
B179: γb | C179: 0.5 | D179: 0.5 | E179: 0.5 | F179: 0.5
B180: Rb2a-2 | C180: =VRG_Teta!C109 -> 0 | D180: =VRG_Teta!D109 -> 0 | E180: =VRG_Teta!E109 -> 0 | F180: =VRG_Teta!F109 -> 0
B181: Cb2a-2 | C181: =VRG_Teta!C138 -> 0 | D181: =VRG_Teta!D138 -> 0 | E181: =VRG_Teta!E138 -> 0 | F181: =VRG_Teta!F138 -> 0
B182: RcaAttiv b | C182: =+IF((C176+C180-C177-C181)>0,C175*(C176-C177)+(C175*(1+C179))*(C180-C181),0) -> 0 | D182: =+IF((D176+D180-D177-D181)>0,D175*(D176-D177)+(D175*(1+D179))*(D180-D181),0) -> 0 | E182: =+IF((E176+E180-E177-E181)>0,E175*(E176-E177)+(E175*(1+E179))*(E180-E181),0) -> 0 | F182: =+IF((F176+F180-F177-F181)>0,F175*(F176-F177)+(F175*(1+F179))*(F180-F181),0) -> 0
B190: RCres
C194: 2020 | D194: 2021 | E194: 2022 | F194: 2023
B195: Oneri locali a-2 | C195: =+SUM(Dati_conto_economico!E97:E102)+SUM(Dati_conto_economico!F97:F102) -> 0 | D195: =SUM(Dati_conto_economico!K97:K102)+SUM(Dati_conto_economico!L97:L102) -> 0 | E195: =+D195 -> 0 | F195: =+E195 -> 0
B196: COresa-2 (al lordo dei contributi) | C196: =Dati_Anni_precedenti!E41+Dati_Anni_precedenti!E48 -> 0 | D196: =Dati_Anni_precedenti!F41+Dati_Anni_precedenti!F48 -> 0 | E196: =+Opex!C200 -> 0 | F196: =+Opex!D200 -> 0
B197: Rcares | C197: =+C195-C196 -> 0 | D197: =+D195-D196 -> 0 | E197: =+E195-E196 -> 0 | F197: =+F195-F196 -> 0
B206: RCARERA - Recupero COARERA
C210: 2020 | D210: 2021 | E210: 2022 | F210: 2023
B211: COa-2ARERA,effettivo | C211: =+'Altri dati economico_finanziari'!E47 -> 0 | D211: =+'Altri dati economico_finanziari'!F47 -> 0 | E211: =+D211 -> 0 | F211: =+E211 -> 0
B212: COa-2ARERA | C212: =+Dati_Anni_precedenti!E39 -> 0 | D212: =+Dati_Anni_precedenti!F39 -> 0 | E212: =+Opex!C189 -> 0 | F212: =+Opex!D189 -> 0
B213: RcaARERA | C213: =+C211-C212 -> 0 | D213: 0 | E213: =+E211-E212 -> 0 | F213: =+F211-F212 -> 0
B222: DOpexQC - Recupero (a vantaggio utenza) OpexQC
C226: 2020 | D226: 2021 | E226: 2022 | F226: 2023
B227: OpexQC effettivamente sostenuti dal gestore | C227: ='Altri dati economico_finanziari'!E65 -> 0 | D227: ='Altri dati economico_finanziari'!F65 -> 0
B228: Opexa-2QC | C228: =Dati_Anni_precedenti!E14 -> 0 | D228: =Dati_Anni_precedenti!F14 -> 0
B229: DOpexQC | C229: =+MIN(C227-C228,0) -> 0 | D229: =+MIN(D227-D228,0) -> 0
B238: DOpexQT - Recupero (a vantaggio utenza) OpexQT
C242: 2020 | D242: 2021 | E242: 2022 | F242: 2023
B243: OpexQT effettivamente sostenuti dal gestore | C243: ='PdI-riepilogo'!F39 -> 0 | D243: ='PdI-riepilogo'!I39 -> 0
B244: Opexa-2QT | C244: =Dati_Anni_precedenti!E16 -> 0 | D244: =Dati_Anni_precedenti!F16 -> 0
B245: DOpexQT | C245: =+MIN(C243-C244,0) -> 0 | D245: =+MIN(D243-D244,0) -> 0
B254: DOpsocial - Recupero Opsocial
C258: 2020 | D258: 2021 | E258: 2022 | F258: 2023
B259: Opsocial effettivamente sostenuti dal gestore | C259: ='Altri dati economico_finanziari'!E66 -> 0 | D259: ='Altri dati economico_finanziari'!F66 -> 0
B260: Opsocial - scostamento da destinare all'emergenza COVID (comma 27.1 MTI-3) | C260: ='Altri dati economico_finanziari'!E71 -> 0 | D260: ='Altri dati economico_finanziari'!F71 -> 0
B261: Opsocial in tariffa | C261: =+Dati_Anni_precedenti!E17 -> 0 | D261: =+Dati_Anni_precedenti!F17 -> 0
B262: DOpsocial | C262: =+C259+C260-C261 -> 0 | D262: =+D259+D260-D261 -> 0
B271: DOpmis - Recupero (a vantaggio utenza) Opmis
C275: 2020 | D275: 2021 | E275: 2022 | F275: 2023
B276: Opmis effettivamente sostenuti dal gestore
B277: Opmis in tariffa
B278: DOpmis
B285: Integrazioni componenti a conguaglio: recupero volumi
C289: 2020 | D289: 2021 | E289: 2022 | F289: 2023
B290: minuendoa-2
B291: sottraendoa-2
B292: Recupero volumi 2017 | D292: =+IF(D295="manca il dato di input",0,D290-D291) -> 0
B295: controllo dati anni precedenti | D295: =+IF(AND(D290=0,D291=0),"OK",IF(OR(D290=0,D291=0),"manca il dato di input", "ok")) -> OK
B301: Integrazioni componenti a conguaglio: recupero energia elettrica
C305: 2020 | D305: 2021 | E305: 2022 | F305: 2023
B306: Coee,consuntivo 2017 | D306: =+Dati_tecnici!G5 -> 0 | J306: anno | K306: costo medio EE per calcolo COEE | L306: u.d.m.
B307: Kwhconsuntivo 2017 | D307: =+Dati_tecnici!G3 -> 0 | J307: 918/2017 | K307: =TT_parametri!$AV$35 -> 0.1585 | L307: =+TT_parametri!AW31 -> €/KWh
B308: minuendoa-2 | D308: =+MIN(D306,D307*K308*1.1) -> 0 | J308: 2017 | K308: =TT_parametri!$AV$35 -> 0.1585 | L308: =+TT_parametri!AW32 -> €/KWh
B309: Coee,preconsuntivo 2017 | D309: =+SUM(Dati_Anni_precedenti!F74:F77) -> 0
B310: Kwhpreconsuntivo 2017 | D310: =Dati_Anni_precedenti!$F$73 -> 0
B311: sottraendoa-2 | D311: =+MIN(D309,D310*K307*1.1) -> 0
B312: Recupero energia elettrica 2017 | D312: =+IF(D315="manca il dato di input",0,D308-D311) -> 0
B315: controllo dati anni precedenti | D315: =+IF(AND(D308=0,D311=0),"OK",IF(OR(D308=0,D311=0),"manca il dato di input", "ok")) -> OK

Sheet Schema di convergenza
A2: Titolo 8 MTI-3 | B2: Meccanismi di convergenza
B4: Scelta delle casistiche ai sensi del comma 31.6 MTI-3
C8: 2020 | D8: 2021 | E8: 2022 | F8: 2023
B9: Tipologia di schema adottato da foglio "Input per calcoli finali" | C9: =+IF(var="","",var) -> 
B10: Determinazione del parametro α da foglio "Input per calcoli finali" | C10: =+IF(incid="","",Input_per_calcoli_finali!F23&": "&incid) -> 
B12: Numero delle gestioni integrate | C12: =+COUNTIF(Info_eventuali_aggregazioni!P:P,"Schema regolatorio di convergenza") -> 0 | D12: =+C12 -> 0 | E12: 0 | F12: 0
B13: Popolazione residente delle gestioni integrate | C13: =+SUMIF(Info_eventuali_aggregazioni!P:P,"Schema regolatorio di convergenza",Info_eventuali_aggregazioni!O:O) -> 0 | D13: 0 | E13: 0 | F13: 0
B17: J | C17: =+IFERROR(1+(C18*C19),"Non applicabile") -> 1.05 | D17: =+IFERROR(1+(D18*D19),"Non applicabile") -> 1.04 | E17: 1.03 | F17: 1.02
B18: Fattore di aggregazione α | C18: =+IF(RIGHT($C9,2)<>"c)",IF(RIGHT($C10,2)="SI",1.5,1),"Non applicabile") -> 1 | D18: =+IF(RIGHT($C9,2)<>"c)",IF(RIGHT($C10,2)="SI",1.5,1),"Non applicabile") -> 1 | E18: 1 | F18: 1
B19: Fattore di incremento Y | C19: =+IF(RIGHT($C9,2)<>"c)",5%,"Non applicabile") -> 0.05 | D19: =+IF(RIGHT($C9,2)<>"c)",4%,"Non applicabile") -> 0.04 | E19: =+IF(RIGHT($C9,2)<>"c)",3%,"Non applicabile") -> 0.03 | F19: =+IF(RIGHT($C9,2)<>"c)",2%,"Non applicabile") -> 0.02
B21: COSTOT | C21: =+IF(SUM(Frontiera_efficiente!$G$9:$G$18)=0,"",EXP(SUMPRODUCT(Frontiera_efficiente!$G$9:$G$18,Frontiera_efficiente!$H$9:$H$18)+Frontiera_efficiente!$H$19)) ->  | D21: =+IF(SUM(Frontiera_efficiente!$G$9:$G$18)=0,"",EXP(SUMPRODUCT(Frontiera_efficiente!$G$9:$G$18,Frontiera_efficiente!$H$9:$H$18)+Frontiera_efficiente!$H$19)) ->  | E21: =+IF(SUM(Frontiera_efficiente!$G$9:$G$18)=0,"",EXP(SUMPRODUCT(Frontiera_efficiente!$G$9:$G$18,Frontiera_efficiente!$H$9:$H$18)+Frontiera_efficiente!$H$19)) ->  | F21: =+IF(SUM(Frontiera_efficiente!$G$9:$G$18)=0,"",EXP(SUMPRODUCT(Frontiera_efficiente!$G$9:$G$18,Frontiera_efficiente!$H$9:$H$18)+Frontiera_efficiente!$H$19)) -> 
B22: Ricavi tariffari delle gestioni integrate | C22: =++SUMIF(Ricavi_bacini_tariffari!C:C,"Bacino tariffario schema di convergenza",Ricavi_bacini_tariffari!L:L) -> 0 | D22: =+SUMIF(Ricavi_bacini_tariffari!C:C,"Bacino tariffario schema di convergenza",Ricavi_bacini_tariffari!N:N) -> 0 | E22: =+D22 -> 0 | F22: =+E22 -> 0
B23: In caso di "Schema di convergenza" indicare un unico bacino tariffario scrivendo "Bacino tariffario schema di convergenza" nel foglio "Elenco Bacini Tariffari" e compilare conseguentemente i successivi fogli dei ricavi.
B24: VRGconv | C24: =+IF(RIGHT($C9,2)="c)",C25+C26+C27,"Non applicabile") -> Non applicabile | D24: =+IF(RIGHT($C9,2)="c)",D25+D26+D27,"Non applicabile") -> Non applicabile | E24: Non applicabile | F24: Non applicabile
B25: Capexconv | C25: =+IF(RIGHT($C9,2)="c)",0.16*C26*C13,"Non applicabile") -> Non applicabile | D25: =+IF(RIGHT($C9,2)="c)",0.16*D26*D13,"Non applicabile") -> Non applicabile | E25: Non applicabile | F25: Non applicabile
B26: Opexconv | C26: =+IF(RIGHT($C9,2)="c)",74*1.1*C13,"Non applicabile") -> Non applicabile | D26: =+IF(RIGHT($C9,2)="c)",74*1.1*D13,"Non applicabile") -> Non applicabile | E26: Non applicabile | F26: Non applicabile
B27: Rcappr2020,COVID | H27: ATTENZIONE: la somma deve essere nulla
B28: Inserire manualmente il valore Rcappr2020,COVID
B32: OPM (€/abitante) | C32: =+VRG_PM -> 149 | D32: =+VRG_PM -> 149 | E32: =+VRG_PM -> 149 | F32: =+VRG_PM -> 149

Sheet Input_per_calcoli_finali
M1: =+M51 -> 
P2: Sono presenti errori
P3: =+M239<>"Compilazione conclusa!" -> TRUE
F4: Compilare - secondo l'ordine proposto - tutti i campi. Utilizzare lo zero, quando è richiesto di "compilare tutti i campi", in luogo della cella vuota
I6: Area di input per i soggetti competenti | M6: Area suggerimenti
G7: info | I7: 2020 | J7: 2021 | K7: 2022 | L7: 2023
I9: Sezione "verifica cause di esclusione dall'aggiornamento tariffario"
F10: Adempimenti sblocca italia | G10: Compilare il campo --> | M10: =+IF(I10="","<-- Iniziare da qui la compilazione",IF(OR(I10="conforme",I10="non conforme"),"OK, continuare la compilazione","Compilare correttamente il campo")) -> <-- Iniziare da qui la compilazione
F11: Tipo affidamento | G11: Assicurarsi di aver correttamente fornito tali informazioni nel foglio dati tecnici | I11: =+IF(AND(Dati_tecnici!E32<>"",LEFT(M10,2)="OK"),Dati_tecnici!E32,"") ->  | M11: =++IF(LEFT(M10,2)="OK",+IF(OR(I11="Affidamento del SII",I11="Aziende speciali, gestioni in economia",I11="Gestioni in economia comuni montani autorizzati da AATO",I11="Gestioni salvaguardate",I11="Gestioni tutelate, concessioni esistenti"),"OK, continuare la compilazione","Compilare il campo"),"") -> 
F12: Data inizio affidamento | I12: =+IF(OR(I11="",Dati_tecnici!E33=""),"",Dati_tecnici!E33) ->  | M12: =++IF(AND(LEFT(M11,2)="OK",I11="Affidamento del SII"),+IF(LEN(I12)=5,"OK, continuare la compilazione","Compilare correttamente il campo. Formato data: gg/mm/aaaa"),IF(I11="","","OK, compilare o continuare la compilazione (formato gg/mm/aaaa)")) -> 
F13: Data fine affidamento | I13: =+IF(OR(Dati_tecnici!E34="",I12=""),"",Dati_tecnici!E34) ->  | M13: =++IF(AND(LEFT(M12,2)="OK",I11="Affidamento del SII"),+IF(LEN(I13)=5,"OK, continuare la compilazione","Compilare correttamente il campo. Formato data: gg/mm/aaaa"),IF(AND(LEFT(M12,2)="OK",I11="Affidamento del SII",I13=""),"Compilare il campo",IF(LEFT(M12,2)="OK","OK, compilare o continuare la compilazione (formato gg/mm/aaaa)",""))) -> 
F14: Presenza Carta dei servizi | I14: =+IF(OR(Dati_tecnici!E35="",I13=""),"",Dati_tecnici!E35) ->  | M14: =++IF(LEFT(M13,2)="OK",+IF(OR(I14="SI",I14="NO"),"OK, continuare la compilazione","Compilare correttamente il campo"),"") -> 
F15: Presenza di un consumo minimo impegnato per la fatturazione delle utenze | I15: =+IF(OR(Dati_tecnici!E36="",I14=""),"",Dati_tecnici!E36) ->  | M15: =++IF(LEFT(M14,2)="OK",+IF(OR(I15="SI",I15="NO"),"OK, continuare la compilazione","Compilare correttamente il campo"),"") -> 
F16: Versamento delle componenti perequative a CSEA | I16: =+IF(OR(Dati_tecnici!E37="",I15=""),"",Dati_tecnici!E37) ->  | M16: =++IF(LEFT(M15,2)="OK",+IF(OR(I16="SI",I16="NO"),"OK, continuare la compilazione","Compilare correttamente il campo"),"") -> 
I19: Sezione "Interventi sullo schema regolatorio" e Oneri aggiuntivi
G21: info | I21: 2020 | J21: 2021 | K21: 2022 | L21: 2023
F22: Regolazione tariffaria applicabile | G22: non compilabile | M22: =+IF(AND(I22="Matrice di schemi regolatori",LEFT(M16,2)="OK"),"OK, continuare la compilazione",IF(AND(LEFT(M16,2)="OK",I22<>""),"Schema regolatorio di convergenza",IF(AND(LEFT(M16,2)="OK",I22=""),"<--- Continuare da qui la compilazione",""))) -> 
F23: Avvio dei processi di aggregazione del gestore unico d'ambito | M23: =+IF(AND(LEFT(M22,2)<>"OK",LEFT(M22,2)<>"<-"),IF(I23<>"","OK, continuare la compilazione",IF(AND(LEFT(M22,2)<>"OK",I22="Schema regolatorio di convergenza"),"<--- Continuare da qui la compilazione",IF(M22="","","OK, continuare la compilazione (il campo non va compilato)"))),"") -> 
F24: Eventuale tipologia di Schema di convergenza | M24: =+IF(OR(I22<>"Schema regolatorio di convergenza",LEFT(M23,4)="<---"),"",IF(AND(I22="Schema regolatorio di convergenza",LEFT(M23,2)="OK",var=""),"<--- Continuare da qui la compilazione",IF(AND(I22="Schema regolatorio di convergenza",LEFT(M23,2)="OK",var<>""),"OK, compilazione completata!",""))) -> 
F25: Aggregazioni o variazioni dei processi tecnici significative (comma 5.1) | M25: =+IF(LEFT(M22,2)<>"OK","",IF(AND(LEFT(M22,2)="OK",integr=""),"<--- Continuare da qui la compilazione","OK, continuare la compilazione")) -> 
F28: Opnew,a | G28: non compilabile | I28: =+I29*IF(OR(RIGHT($M$29,1)=")",LEFT($M$25,2)<>"OK",$M$29=""),0,1)+I30*IF(OR(RIGHT($M$30,1)=")",LEFT($M$25,2)<>"OK",$M$30=""),0,1)+I31*IF(OR(RIGHT($M$31,1)=")",LEFT($M$25,2)<>"OK",$M$31=""),0,1) -> 0 | J28: =+J29*IF(OR(RIGHT($M$29,1)=")",LEFT($M$25,2)<>"OK",$M$29=""),0,1)+J30*IF(OR(RIGHT($M$30,1)=")",LEFT($M$25,2)<>"OK",$M$30=""),0,1)+J31*IF(OR(RIGHT($M$31,1)=")",LEFT($M$25,2)<>"OK",$M$31=""),0,1) -> 0 | K28: =+K29*IF(OR(RIGHT($M$29,1)=")",LEFT($M$25,2)<>"OK",$M$29=""),0,1)+K30*IF(OR(RIGHT($M$30,1)=")",LEFT($M$25,2)<>"OK",$M$30=""),0,1)+K31*IF(OR(RIGHT($M$31,1)=")",LEFT($M$25,2)<>"OK",$M$31=""),0,1) -> 0 | L28: =+L29*IF(OR(RIGHT($M$29,1)=")",LEFT($M$25,2)<>"OK",$M$29=""),0,1)+L30*IF(OR(RIGHT($M$30,1)=")",LEFT($M$25,2)<>"OK",$M$30=""),0,1)+L31*IF(OR(RIGHT($M$31,1)=")",LEFT($M$25,2)<>"OK",$M$31=""),0,1) -> 0
F29: di cui per "Integrazione di gestioni significative" comma 18.3 sub a) | M29: =+IF(AND(LEFT(M25,2)="OK",OR(integr="integrazione territorio",integr="entrambi"),OR(I29="",J29="",K29="",L29="")),"<--- Continuare da qui la compilazione (compilare tutti i campi)",IF(AND(LEFT(M25,2)="OK",integr<>"integrazione territorio",integr<>"entrambi"),"OK, continuare la compilazione (il campo non va compilato)",IF(AND(I29<>"",J29<>"",K29<>"",L29<>"",LEFT(M25,2)="OK"),"OK, continuare la compilazione",""))) -> 
F30: di cui per "Integrazione di gestioni d'ambito con corrdo informativo completo in ATO diversi" comma 18.3 sub b) | M30: =+IF(AND(LEFT(M25,2)="OK",LEFT(M29,2)="OK",OR(integr="integrazione territorio",integr="entrambi"),OR(I30="",J30="",K30="",L30="")),"<--- Continuare da qui la compilazione (compilare tutti i campi)",IF(AND(LEFT(M25,2)="OK",LEFT(M29,2)="OK",integr<>"integrazione territorio",integr<>"entrambi"),"OK, continuare la compilazione (il campo non va compilato)",IF(AND(I30<>"",J30<>"",K30<>"",L30<>"",LEFT(M29,2)="OK"),"OK, continuare la compilazione",""))) -> 
F31: di cui per "Presenza di nuovi processi tecnici gestiti" comma 18.3 sub c) | M31: =+IF(AND(LEFT(M25,2)="OK",LEFT(M30,2)="OK",OR(integr="integrazione processi tecnici",integr="entrambi"),OR(I31="",J31="",K31="",L31="")),"<--- Continuare da qui la compilazione (compilare tutti i campi)",IF(AND(LEFT(M25,2)="OK",LEFT(M30,2)="OK",integr<>"integrazione processi tecnici",integr<>"entrambi"),"OK, continuare la compilazione (il campo non va compilato)",IF(AND(I31<>"",J31<>"",K31<>"",L31<>"",LEFT(M30,2)="OK"),"OK, continuare la compilazione",""))) -> 
F34: VRG2018 (per confronto con VRGPM) | G34: =IF(I34="",IF(Dati_Anni_precedenti!E18="","",Dati_Anni_precedenti!E18),I34) -> 
F35: pop + 0,25 popflut | G35: =IF(I35="",IF(Frontiera_efficiente!C9+0.25*Frontiera_efficiente!C15=0,"",Frontiera_efficiente!C9+0.25*Frontiera_efficiente!C15),I35) ->  | M35: =+IF(AND(LEFT(M31,2)="OK",P24=""),IF(G36="compilare correttamente i campi","Attenzione: compilare i campi necessari", "OK, continuare la compilazione"),IF(P24<>"","OK, continuare la compilazione","")) -> 
F36: VRGPM,i | G36: =+IFERROR(I34/I35,IFERROR(G34/G35,IF(LEFT(M31,2)="OK","Compilare correttamente i campi",""))) ->  | I36: non compilabile
F39: ∑Iptexp + CFPexp 2020-2023 | G39: non compilabile | I39: =+SUM(I40:L40) -> 0
F40: Sviluppo Iptexp + CFPexp MTI-3 | I40: ='PdI-riepilogo'!D15 -> 0 | J40: ='PdI-riepilogo'!E15 -> 0 | K40: ='PdI-riepilogo'!F15 -> 0 | L40: ='PdI-riepilogo'!G15 -> 0 | M40: =+IF(LEFT(M35,2)="OK",IF(OR(K40="",L40=""),"Attenzione: compilare tutti i campi","OK, continuare la compilazione"),"") -> 
F41: Sviluppo contributi relativi agli Iptexp MTI-3 | I41: ='PdI-riepilogo'!D21 -> 0 | J41: ='PdI-riepilogo'!E21 -> 0 | K41: ='PdI-riepilogo'!F21 -> 0 | L41: ='PdI-riepilogo'!G21 -> 0 | M41: =+IF(LEFT(M40,2)="OK",IF(OR(K41="",L41=""),"Attenzione: compilare tutti i campi","OK, continuare la compilazione"),"") -> 
F45: RAB MTI-2 | G45: =+IF(I45="",Dati_Anni_precedenti!F30,I45) -> 0 | M45: =+IF(LEFT(M41,2)="OK",IF(G46<>"","OK, continuare la compilazione",IF(mti_3<>"schema regolatorio","OK, continuare la compilazione","Inserire valore RAB o controllare dati anni precedenti")),"") -> 
G46: =+IF(mti_3<>"schema regolatorio","",IFERROR(IFERROR(I39/I45,I39/G45),"")) -> 
F47: ψ (0,4-0,8) | G47: non compilabile | M47: =+IF(AND(mti_3<>"schema regolatorio",LEFT(M41,2)="OK"),"OK, continuare la compilazione",IF(LEFT(M45,2)="OK",+IF(G45=0,"Inserire valore RAB MTI-2 (cella I48)",IF(G46<=omega,"OK, continuare la compilazione (psi non necessario)",IF(AND(G46>omega,I47=""),"<--- Continuare da qui la compilazione",IF(OR(I47<0.4,I47>0.8),"Attenzione: compilare correttamente i dati","OK, continuare la compilazione")))),"")) -> 
F48: Ammortamento finanziario ammissibile ai sensi del comma 10.7 lettera a) | G48: non compilabile | I48: =+iAF -> 0
F51: output | G51: Tipo di elaborazione tariffaria: | M51: =+IF(LEFT(M47,2)="OK",mti_3,"") -> 
F52: output | G52: Eventuale schema regolatorio | M52: =IF(M51="schema regolatorio",schema,IF(schema="","","verificare coerenza dati inseriti")) -> 
I55: Sezione "Trattamento costi di morosità - Unpaid ratio"
G57: info | I57: 2020 | J57: 2021 | K57: 2022 | L57: 2023
M58: =+IF(LEFT(M47,2)="OK",+IF(OR(I58<0,J58<0,K58<0,L58<0),"Attenzione: valori fuori dominio",IF(OR(I58="",J58="",K58="",L58=""),"OK, compilare o continuare la compilazione","OK, continuare la compilazione")),"") -> 
M60: =+IF(LEFT(M58,2)="OK",+IF(AND(I60=""),"OK, compilare o continuare la compilazione",IF(AND(I60<>""),IF(OR(I60<I62,I60>100),"Attenzione: valori fuori dominio","OK, continuare la compilazione"),"Attenzione: compilare correttamente tutti i campi")),"") -> 
F62: Comor - art. 28 All. A - valore di zona | G62: non compilabile | I62: =+Opex!C297 -> 0 | J62: =+Opex!D297 -> 0 | K62: =+Opex!E297 -> 0 | L62: =+K62 -> 0
F63: Comor - art. 28 All. A - valore effettivo del gestore | I63: =+Opex!C296 -> 0 | J63: =+Opex!D296 -> 0 | K63: =+Opex!E296 -> 0 | L63: =+K63 -> 0
F64: Comor - Unpaid ratio indicato dal soggetto competente (% compatibile con "costo massimo riconosciuto" come da comma 28.2 all. A) | G64: valori in % | M64: =+IF(LEFT(M47,2)="OK","OK, compilare o continuare la compilazione",IF(LEFT(M47,2)="","",IF(AND(I64<I62,I64>=MIN(I63:I63),I64<>"",K64<K62,K64>=MIN(K63:L63),K64<>""),"OK, continuare la compilazione","Attenzione: compilare correttamente tutti i campi (diversi da 0, inferiori a quelli di zona, superiori a quelli del gestore)"))) -> 
I71: Sezione "Sviluppo temporale dei conguagli MTI e MTI-2 rinviati al futuro"
I73: 2020 | J73: 2021 | K73: 2022 | L73: 2023
F74: importo conguagli MTI (deliberati dall'Autorità) rinviati al futuro (valori a moneta 2015) | G74: verificare l'effettiva esistenza di importi residui da allocare in MTI-3 | M74: =+IF(OR(LEFT(M64,2)="OK"),IF(AND(K74="",L74="",K74="",L74=""),"OK, compilare o proseguire la compilazione",IF(OR(I74="",J74="",K74="",L74=""),"<--- Continuare da qui la compilazione","OK, continuare la compilazione")),"") -> 
F75: importo conguagli MTI-2 aggiornamento (deliberati dall'Autorità) rinviati al futuro (valori a moneta 2019) | G75: =+Dati_Anni_precedenti!G7 -> 0 | M75: =+IF(LEFT(M74,2)="OK",IF(SUM(I75:L75)>G75,"compilazione non ammissibile","OK compilare o proseguire la compilazione"),"") -> 
G76: area di controllo | I76: =+IF(SUM($I$75:$L$75)>$G$75,0,I75) -> 0 | J76: =+IF(SUM($I$75:$L$75)>$G$75,0,J75) -> 0 | K76: 0 | L76: 0 | M76: =+IF(OR(LEFT(M75,2)="OK"),IF(G76=0,"OK, ricontrollare dati storici o proseguire la compilazione (eventuali compilazioni non avranno impatti)",IF(OR(I76="",J76="",K76="",L76=""),"<--- Continuare da qui la compilazione",IF(AND(K76<>"",L76<>"",K76>=0,L76>=0),"OK, continuare la compilazione","Attenzione: compilare correttamente i campi"))),"") -> 
I83: Elaborazioni Iniziali
I85: 2020 | J85: 2021 | K85: 2022 | L85: 2023
F86: VRGa calcolato | G86: non compilabile | I86: =+IF($M$47<>"",VRG_Teta!C60,"") ->  | J86: =+IF($M$47<>"",VRG_Teta!D60,"") ->  | K86: =+IF($M$47<>"",VRG_Teta!E60,"") ->  | L86: =+IF($M$47<>"",VRG_Teta!F60,"") ->  | M86: =+IF(LEFT($M$75,2)="OK",IF(AND(I90="nei limiti",J90="nei limiti",K90="nei limiti",L90="nei limiti"),"OK, proseguire se necessario la compilazione","ATTENZIONE: proposta sovracap per almeno un'annualità"),"") -> 
F87: ϑa calcolato | G87: non compilabile | I87: =+IF($M$47<>"",VRG_Teta!C61,"") ->  | J87: =+IF($M$47<>"",VRG_Teta!D61,"") ->  | K87: =+IF($M$47<>"",VRG_Teta!E61,"") ->  | L87: =+IF($M$47<>"",VRG_Teta!F61,"") -> 
F88: VRGa al cap | G88: non compilabile | I88: =+IF($M$47<>"",VRG_Teta!C62,"") ->  | J88: =+IF($M$47<>"",VRG_Teta!D62,"") ->  | K88: =+IF($M$47<>"",VRG_Teta!E62,"") ->  | L88: =+IF($M$47<>"",VRG_Teta!F62,"") -> 
F89: ϑa massimo applicabile | G89: non compilabile | I89: =+IF($M$47<>"",VRG_Teta!C63,"") ->  | J89: =+IF($M$47<>"",VRG_Teta!D63,"") ->  | K89: =+IF($M$47<>"",VRG_Teta!E63,"") ->  | L89: =+IF($M$47<>"",VRG_Teta!F63,"") -> 
F90: info predisposizione | G90: non compilabile | I90: =+IF($M$47<>"",VRG_Teta!C64,"") ->  | J90: =+IF($M$47<>"",VRG_Teta!D64,"") ->  | K90: =+IF($M$47<>"",VRG_Teta!E64,"") ->  | L90: =+IF($M$47<>"",VRG_Teta!F64,"") -> 
I96: Sezione "Interventi sulle componenti del Capex"
I98: 2020 | J98: 2021 | K98: 2022 | L98: 2023
F99: AMM calcolato | G99: non compilabile | I99: =+Capex!C32 -> 0 | J99: =+Capex!D32 -> 0 | K99: =+Capex!E32 -> 0 | L99: =+Capex!F32 -> 0
F100: Detrazione della componente AMM | I100: 0 | J100: 0 | K100: 0 | L100: 0 | M100: =+IF(LEFT(M76,2)="OK",+IF(OR(I99-I100<0,J99-J100<0,K99-K100<0,L99-L100<0),"Attenzione: valori fuori dominio",IF(AND(I100="",J100="",K100="",L100=""),"<--- Continuare da qui la compilazione (compilare tutti i campi)","OK, continuare la compilazione")),"") -> 
I101: =+IFERROR(IF(I99-I100<0,0,I100),0) -> 0 | J101: =+IFERROR(IF(J99-J100<0,0,J100),0) -> 0 | K101: =+IFERROR(IF(K99-K100<0,0,K100),0) -> 0 | L101: =+IFERROR(IF(L99-L100<0,0,L100),0) -> 0
F103: OF calcolato | G103: non compilabile | I103: =Capex!C30 -> 0 | J103: =Capex!D30 -> 0 | K103: =Capex!E30 -> 0 | L103: =Capex!F30 -> 0
F104: Detrazione della componente OF | I104: 0 | J104: 0 | K104: 0 | L104: 0 | M104: =+IF(LEFT(M100,2)="OK",+IF(OR(I103-I104<0,J103-J104<0,K103-K104<0,L103-L104<0),"Attenzione: valori fuori dominio",IF(AND(I104="",J104="",K104="",L104=""),"<--- Continuare da qui la compilazione (compilare tutti i campi)","OK, continuare la compilazione")),"") -> 
I105: =+IFERROR(IF(I103-I104<0,0,I104),0) -> 0 | J105: =+IFERROR(IF(J103-J104<0,0,J104),0) -> 0 | K105: =+IFERROR(IF(K103-K104<0,0,K104),0) -> 0 | L105: =+IFERROR(IF(L103-L104<0,0,L104),0) -> 0
F107: OFisc calcolato | G107: non compilabile | I107: =Capex!C31 -> 0 | J107: =Capex!D31 -> 0 | K107: =Capex!E31 -> 0 | L107: =Capex!F31 -> 0
F108: Detrazione della componente OFisc | I108: 0 | J108: 0 | K108: 0 | L108: 0 | M108: =+IF(LEFT(M104,2)="OK",+IF(OR(I107-I108<0,J107-J108<0,K107-K108<0,L107-L108<0),"Attenzione: valori fuori dominio",IF(AND(I108="",J108="",K108="",L108=""),"<--- Continuare da qui la compilazione (compilare tutti i campi)","OK, continuare la compilazione")),"") -> 
I109: =+IFERROR(IF(I107-I108<0,0,I108),0) -> 0 | J109: =+IFERROR(IF(J107-J108<0,0,J108),0) -> 0 | K109: =+IFERROR(IF(K107-K108<0,0,K108),0) -> 0 | L109: =+IFERROR(IF(L107-L108<0,0,L108),0) -> 0
I116: Sezione "Interventi sulle componenti del FoNI"
I118: 2020 | J118: 2021 | K118: 2022 | L118: 2023
F119: FNI calcolato | G119: non compilabile | I119: =+FoNI!C79 -> 0 | J119: =+FoNI!D79 -> 0 | K119: =+FoNI!E79 -> 0 | L119: =+FoNI!F79 -> 0
F120: Detrazione della componente FNI | I120: 0 | J120: 0 | K120: 0 | L120: 0 | M120: =+IF(LEFT(M108,2)="OK",+IF(OR(I120<0,J120<0,K120<0,L120<0,I120>I119,J120>J119,K120>K119,L120>L119),"Attenzione: valori fuori dominio",IF(AND(I120="",J120="",K120="",L120=""),"<--- Continuare da qui la compilazione (compilare tutti i campi)","OK, continuare la compilazione")),"") -> 
I121: =+IFERROR(IF(I119-I120<0,0,I120),0) -> 0 | J121: =+IFERROR(IF(J119-J120<0,0,J120),0) -> 0 | K121: 0 | L121: 0
F123: AMMcfp calcolato | G123: non compilabile | I123: =+FoNI!C93 -> 0 | J123: =+FoNI!D93 -> 0 | K123: =+FoNI!E93 -> 0 | L123: =+FoNI!F93 -> 0
F124: Detrazione della componente AMMcfp | I124: 0 | J124: 0 | K124: 0 | L124: 0 | M124: =+IF(LEFT(M120,2)="OK",+IF(OR(I124<0,J124<0,K124<0,L124<0,I124>I123,J124>J123,K124>K123,L124>L123),"Attenzione: valori fuori dominio",IF(AND(I124="",J124="",K124="",L124=""),"<--- Continuare da qui la compilazione (compilare tutti i campi)","OK, continuare la compilazione")),"") -> 
I125: =+IFERROR(IF(I123-I124<0,0,I124),0) -> 0 | J125: =+IFERROR(IF(J123-J124<0,0,J124),0) -> 0 | K125: 0 | L125: 0
F127: DCUIT massimo nel FoNI | G127: non compilabile | I127: =+FoNI!C107 -> 0 | J127: =+FoNI!D107 -> 0 | K127: =+FoNI!E107 -> 0 | L127: =+FoNI!F107 -> 0 | M127: =+IF(LEFT($M$88,2)="OK","OK, continuare la compilazione","") -> 
F128: Detrazione della componente DCUIT | I128: 0 | J128: 0 | K128: 0 | L128: 0 | M128: =+IF(LEFT(M124,2)="OK",+IF(OR(I128<0,J128<0,K128<0,L128<0,I128>I127,J128>J127,K128>K127,L128>L127),"Attenzione: valori fuori dominio",IF(AND(I128="",J128="",K128="",L128=""),"<--- Continuare da qui la compilazione (compilare tutti i campi)","OK, continuare la compilazione")),"") -> 
I129: =+IFERROR(IF(I127-I128<0,0,I128),0) -> 0 | J129: =+IFERROR(IF(J127-J128<0,0,J128),0) -> 0 | K129: 0 | L129: 0
I136: Sezione "Interventi sulle componenti dell'Opex"
I138: 2020 | J138: 2021 | K138: 2022 | L138: 2023
F139: Opexend calcolato | G139: non compilabile | I139: =+Opex!C30 -> 0 | J139: =+Opex!D30 -> 0 | K139: =+Opex!E30 -> 0 | L139: =+Opex!F30 -> 0
F140: Detrazione della componente Opexend | I140: 0 | J140: 0 | K140: 0 | L140: 0 | M140: =+IF(LEFT(M128,2)="OK",+IF(OR(I139-I140<0,J139-J140<0,K139-K140<0,L139-L140<0),"Attenzione: valori fuori dominio",IF(AND(I140="",J140="",K140="",L140=""),"<--- Continuare da qui la compilazione (compilare tutti i campi)","OK, continuare la compilazione")),"") -> 
I141: =+IFERROR(IF(I139-I140<0,0,I140),0) -> 0 | J141: 0 | K141: 0 | L141: 0
F143: Opexal calcolato | G143: non compilabile | I143: =+Opex!C31 -> 0 | J143: =+Opex!D31 -> 0 | K143: =+Opex!E31 -> 0 | L143: =+Opex!F31 -> 0
F144: Detrazione della componente Opexal | I144: 0 | J144: 0 | K144: 0 | L144: 0 | M144: =+IF(LEFT(M140,2)="OK",+IF(OR(I143-I144<0,J143-J144<0,K143-K144<0,L143-L144<0),"Attenzione: valori fuori dominio",IF(AND(I144="",J144="",K144="",L144=""),"<--- Continuare da qui la compilazione (compilare tutti i campi)","OK, continuare la compilazione")),"") -> 
I145: =+IFERROR(IF(I143-I144<0,0,I144),0) -> 0 | J145: =+IFERROR(IF(J143-J144<0,0,J144),0) -> 0 | K145: =+IFERROR(IF(K143-K144<0,0,K144),0) -> 0 | L145: =+IFERROR(IF(L143-L144<0,0,L144),0) -> 0
I152: Sezione "Interventi sulle componenti dell'ERC"
I154: 2020 | J154: 2021 | K154: 2022 | L154: 2023
F155: ERCcapex calcolato | G155: non compilabile | I155: =ERC!C30 -> 0 | J155: =ERC!D30 -> 0 | K155: =ERC!E30 -> 0 | L155: =ERC!F30 -> 0
F156: Detrazione della componente ERCcapex | I156: 0 | J156: 0 | K156: 0 | L156: 0 | M156: =+IF(LEFT(M144,2)="OK",+IF(OR(I155-I156<0,J155-J156<0,K155-K156<0,L155-L156<0),"Attenzione: valori fuori dominio",IF(AND(I156="",J156="",K156="",L156=""),"<--- Continuare da qui la compilazione (compilare tutti i campi)","OK, continuare la compilazione")),"") -> 
I157: =+IFERROR(IF(I155-I156<0,0,I156),0) -> 0 | J157: =+IFERROR(IF(J155-J156<0,0,J156),0) -> 0 | K157: =+IFERROR(IF(K155-K156<0,0,K156),0) -> 0 | L157: =+IFERROR(IF(L155-L156<0,0,L156),0) -> 0
F159: ERCopex calcolato | G159: non compilabile | I159: =ERC!C31 -> 0 | J159: =ERC!D31 -> 0 | K159: =ERC!E31 -> 0 | L159: =ERC!F31 -> 0
F160: Detrazione della componente ERCopex | I160: 0 | J160: 0 | K160: 0 | L160: 0 | M160: =+IF(LEFT(M156,2)="OK",+IF(OR(I159-I160<0,J159-J160<0,K159-K160<0,L159-L160<0),"Attenzione: valori fuori dominio",IF(AND(I160="",J160="",K160="",L160=""),"<--- Continuare da qui la compilazione (compilare tutti i campi)","OK, continuare la compilazione")),"") -> 
I161: =+IFERROR(IF(I159-I160<0,0,I160),0) -> 0 | J161: =+IFERROR(IF(J159-J160<0,0,J160),0) -> 0 | K161: =+IFERROR(IF(K159-K160<0,0,K160),0) -> 0 | L161: =+IFERROR(IF(L159-L160<0,0,L160),0) -> 0
I168: Sezione "Interventi sulle componenti dell'RC"
I170: 2020 | J170: 2021 | K170: 2022 | L170: 2023
F171: RCvol calcolato | G171: non compilabile | I171: ='Rc'!C30 -> 0 | J171: ='Rc'!D30 -> 0
F172: Detrazione della componente Rcvol | I172: 0 | J172: 0 | K172: 0 | L172: 0 | M172: =+IF(LEFT(M160,2)="OK",+IF(OR(I172<0,J172<0,),"Attenzione: valori fuori dominio",IF(AND(I172="",J172=""),"<--- Continuare da qui la compilazione (compilare tutti i campi)","OK, continuare la compilazione")),"") -> 
I173: =+IFERROR(IF(I171-I172<0,0,I172),0) -> 0 | J173: =+IFERROR(IF(J171-J172<0,0,J172),0) -> 0
F175: RCEE calcolato | G175: non compilabile | I175: ='Rc'!C31 -> 0 | J175: ='Rc'!D31 -> 0 | K175: ='Rc'!E31 -> 0 | L175: ='Rc'!F31 -> 0
F176: Detrazione della componente RcEE | I176: 0 | J176: 0 | K176: 0 | L176: 0 | M176: =+IF(LEFT(M172,2)="OK",+IF(OR(I176<0,J176<0,K176<0,L176<0),"Attenzione: valori fuori dominio",IF(AND(I176="",J176="",K176="",L176=""),"<--- Continuare da qui la compilazione (compilare tutti i campi)","OK, continuare la compilazione")),"") -> 
I177: =+IFERROR(IF(I175-I176<0,0,I176),0) -> 0 | J177: 0 | K177: 0 | L177: 0
F179: RCws calcolato | G179: non compilabile | I179: ='Rc'!C32 -> 0 | J179: ='Rc'!D32 -> 0 | K179: ='Rc'!E32 -> 0 | L179: ='Rc'!F32 -> 0
F180: Detrazione della componente RCws | I180: 0 | J180: 0 | K180: 0 | L180: 0 | M180: =+IF(LEFT(M176,2)="OK",+IF(OR(I180<0,J180<0,K180<0,L180<0),"Attenzione: valori fuori dominio",IF(AND(I180="",J180="",K180="",L180=""),"<--- Continuare da qui la compilazione (compilare tutti i campi)","OK, continuare la compilazione")),"") -> 
I181: =+IFERROR(IF(I179-I180<0,0,I180),0) -> 0 | J181: 0 | K181: 0 | L181: 0
F183: RCERC calcolato | G183: non compilabile | I183: ='Rc'!C33 -> 0 | J183: ='Rc'!D33 -> 0 | K183: ='Rc'!E33 -> 0 | L183: ='Rc'!F33 -> 0
F184: Detrazione della componente RCERC | I184: 0 | J184: 0 | K184: 0 | L184: 0 | M184: =+IF(LEFT(M180,2)="OK",+IF(OR(I184<0,J184<0,K184<0,L184<0),"Attenzione: valori fuori dominio",IF(AND(I184="",J184="",K184="",L184=""),"<--- Continuare da qui la compilazione (compilare tutti i campi)","OK, continuare la compilazione")),"") -> 
I185: =+IFERROR(IF(I183-I184<0,0,I184),0) -> 0 | J185: 0 | K185: 0 | L185: 0
F187: RCALTRO calcolato | G187: non compilabile | I187: ='Rc'!C34 -> 0 | J187: ='Rc'!D34 -> 0 | K187: ='Rc'!E34 -> 0 | L187: ='Rc'!F34 -> 0
F188: Detrazione della componente RCALTRO | I188: 0 | J188: 0 | K188: 0 | L188: 0 | M188: =+IF(LEFT(M184,2)="OK",+IF(OR(I188<0,J188<0,K188<0,L188<0),"Attenzione: valori fuori dominio",IF(AND(I188="",J188="",K188="",L188=""),"<--- Continuare da qui la compilazione (compilare tutti i campi)","OK, continuare la compilazione")),"") -> 
I189: =+IFERROR(IF(I187-I188<0,0,I188),0) -> 0 | J189: 0 | K189: 0 | L189: 0
I196: Elaborazioni Intermedie
I198: 2020 | J198: 2021 | K198: 2022 | L198: 2023
F199: VRGa calcolato | G199: non compilabile | I199: =+IF(mti_3<>"",VRG_Teta!C67,"") ->  | J199: =+IF(mti_3<>"",VRG_Teta!D67,"") ->  | K199: =+IF(mti_3<>"",VRG_Teta!E67,"") ->  | L199: =+IF(mti_3<>"",VRG_Teta!F67,"") ->  | M199: =+IF(M128<>"",IF(AND(I203="nei limiti",J203="nei limiti",K203="nei limiti",L203="nei limiti"),"OK, proseguire se necessario la compilazione","ATTENZIONE: proposta sovracap per almeno un'annualità"),"") -> 
F200: ϑa calcolato | G200: non compilabile | I200: =+IF(mti_3<>"",VRG_Teta!C68,"") ->  | J200: =+IF(mti_3<>"",VRG_Teta!D68,"") ->  | K200: =+IF(mti_3<>"",VRG_Teta!E68,"") ->  | L200: =+IF(mti_3<>"",VRG_Teta!F68,"") -> 
F201: VRGa al cap | G201: non compilabile | I201: =+IF(mti_3<>"",VRG_Teta!C69,"") ->  | J201: =+IF(mti_3<>"",VRG_Teta!D69,"") ->  | K201: =+IF(mti_3<>"",VRG_Teta!E69,"") ->  | L201: =+IF(mti_3<>"",VRG_Teta!F69,"") -> 
F202: ϑa massimo applicabile | G202: non compilabile | I202: =+IF(mti_3<>"",VRG_Teta!C70,"") ->  | J202: =+IF(mti_3<>"",VRG_Teta!D70,"") ->  | K202: =+IF(mti_3<>"",VRG_Teta!E70,"") ->  | L202: =+IF(mti_3<>"",VRG_Teta!F70,"") -> 
F203: info predisposizione | G203: non compilabile | I203: =+IF(mti_3<>"",VRG_Teta!C71,"") ->  | J203: =+IF(mti_3<>"",VRG_Teta!D71,"") ->  | K203: =+IF(mti_3<>"",VRG_Teta!E71,"") ->  | L203: =+IF(mti_3<>"",VRG_Teta!F71,"") -> 
I210: Sezione "Ulteriori interventi sul VRG"
I212: 2020 | J212: 2021 | K212: 2022 | L212: 2023
F213: RCTOT MTI-3 calcolati (include inflazione) | G213: non compilabile | I213: ='Rc'!C11 -> 0 | J213: ='Rc'!D11 -> 0 | K213: ='Rc'!E11 -> 0 | L213: ='Rc'!F11 -> 0
G214: non compilabile | I214: =+IF(ISERR(MAX(I88-I86,0)),0,MAX(I88-I86,0)) -> 0 | J214: =+IF(ISERR(MAX(J88-J86,0)),0,MAX(J88-J86,0)) -> 0 | K214: =+IF(ISERR(MAX(K88-K86,0)),0,MAX(K88-K86,0)) -> 0 | L214: =+IF(ISERR(MAX(L88-L86,0)),0,MAX(L88-L86,0)) -> 0
F215: Sviluppo richiesto dei conguagli MTI-3 | G215: non compilabile | M215: =+IF(LEFT(M188,2)="OK",+IF(AND(I215>=0,J215>=0,K215>=0,L215>=0),"OK, continuare la compilazione","OK, riallocare conguagli oppure continuare la compilazione"),"") -> 
F216: eventuale rinuncia a conguagli RC MTI-3 | I216: 0 | M216: =+IF(AND(LEFT(M215,2)="OK",ISNUMBER(I216)=TRUE,I216>0,I216<SUM(I213:L213)),"OK, continuare la compilazione",IF(LEFT(M215,2)="OK",IF(OR(ISNUMBER(I216)=FALSE,I216<0,ABS(I216)>ABS(SUM(I213:L213))),"Attenzione, compilare correttamente il campo","OK, continuare la compilazione"),"")) -> 
F217: RCTOT MTI-3 | G217: non compilabile | I217: =+IF(I215="",I213,I215) -> 0 | J217: 0 | K217: 0 | L217: =+IF(L215="",L213,L215) -> 0
F218: RC MTI-3 post 2023 | G218: non compilabile | I218: =+IF(LEFT(M216,2)="OK",IF(SUM(I213:L213)-(SUM(I217:L217)+I216)<0,IF(SUM(I213:L213)<0,IF(SUM(I213:L213)-(SUM(I217:L217)+I216)<0,"Attenzione, ricontrollare gli addendi",SUM(I213:L213)-(SUM(I217:L217)+I216)),"Attenzione, ricontrollare gli addendi"),SUM(I213:L213)-(SUM(I217:L217)+I216)),"") ->  | M218: =+IF(OR(I218="Attenzione, ricontrollare gli addendi",I218=""),"","OK, continuare la compilazione") -> 
I225: Sezione "Rimodulazioni"
F227: Rimodulazioni relative alla componente Capex | G227: non compilabile | M227: =+IF(LEFT(M218,2)="OK","OK, compilare tutti i campi o continuare la compilazione","") -> 
F228: Rimodulazioni relative alla componente Opex | G228: non compilabile | M228: =+IF(LEFT(M227,2)="OK","OK, compilare tutti i campi o continuare la compilazione","") -> 
F229: Rimodulazioni relative alla componente ERC | G229: non compilabile | M229: =+IF(LEFT(M228,2)="OK","OK, compilare tutti i campi o continuare la compilazione","") -> 
I236: Elaborazioni finali
I238: 2020 | J238: 2021 | K238: 2022 | L238: 2023
F239: VRGa calcolato | G239: non compilabile | I239: =+IF($M$218<>"",VRG_Teta!C74,"") ->  | J239: =+IF($M$218<>"",VRG_Teta!D74,"") ->  | K239: =+IF($M$218<>"",VRG_Teta!E74,"") ->  | L239: =+IF($M$218<>"",VRG_Teta!F74,"") ->  | M239: =+IF(M218="","",IF(AND(I243="nei limiti",J243="nei limiti",K243="nei limiti",L243="nei limiti"),"Compilazione conclusa!",IF(OR(I243<>"nei limiti",J243<>"nei limiti",K243<>"nei limiti",L243<>"nei limiti"),"ATTENZIONE: proposta sovracap per almeno un'annualità",""))) -> 
F240: ϑa calcolato | G240: non compilabile | I240: =+IF($M$218<>"",VRG_Teta!C75,"") ->  | J240: =+IF($M$218<>"",VRG_Teta!D75,"") ->  | K240: =+IF($M$218<>"",VRG_Teta!E75,"") ->  | L240: =+IF($M$218<>"",VRG_Teta!F75,"") -> 
F241: VRGa al cap | G241: non compilabile | I241: =+IF($M$218<>"",VRG_Teta!C76,"") ->  | J241: =+IF($M$218<>"",VRG_Teta!D76,"") ->  | K241: =+IF($M$218<>"",VRG_Teta!E76,"") ->  | L241: =+IF($M$218<>"",VRG_Teta!F76,"") -> 
F242: ϑa massimo applicabile | G242: non compilabile | I242: =+IF($M$218<>"",VRG_Teta!C77,"") ->  | J242: =+IF($M$218<>"",VRG_Teta!D77,"") ->  | K242: =+IF($M$218<>"",VRG_Teta!E77,"") ->  | L242: =+IF($M$218<>"",VRG_Teta!F77,"") -> 
F243: info predisposizione | G243: non compilabile | I243: =+IF($M$218<>"",VRG_Teta!C78,"") ->  | J243: =+IF($M$218<>"",VRG_Teta!D78,"") ->  | K243: =+IF($M$218<>"",VRG_Teta!E78,"") ->  | L243: =+IF($M$218<>"",VRG_Teta!F78,"") -> 

Sheet VRG_ulteriori_specificazioni
J2: sono presenti errori | K2: mancata compilazione | L2: errore compilazione
A3: Sezione | B3: Voce | C3: 2020 | D3: 2021 | E3: 2022 | F3: 2023 | G3: 2020-2023 | J3: =+OR(K3:L3) -> TRUE | K3: =+OR(P:T) -> TRUE | L3: =+OR(U:Y) -> FALSE | P3: controlli di compilazione
A4: Delibera Autorità | B4: Delibera
A5: Delibera Autorità | B5: J deliberato | C5: =+MIN(VRG_Teta!C75,VRG_Teta!C82) -> 0 | D5: =+MIN(VRG_Teta!D75,VRG_Teta!D82) -> 0 | E5: =+MIN(VRG_Teta!E75,VRG_Teta!E82) -> 0 | F5: =+MIN(VRG_Teta!F75,VRG_Teta!F82) -> 0 | P5: =+OR(C5="",C5=0) -> TRUE | Q5: =+OR(D5="",D5=0) -> TRUE | R5: =+OR(E5="",E5=0) -> TRUE | S5: =+OR(F5="",F5=0) -> TRUE | U5: =+C5<0 -> FALSE | V5: FALSE | W5: FALSE | X5: FALSE
A6: Delibera Autorità | B6: J medio | U6: FALSE | V6: FALSE | W6: FALSE | X6: FALSE
A7: Delibera Autorità | B7: RC post | G7: =+IFERROR(VALUE(Input_per_calcoli_finali!I218),0) -> 0 | T7: =+G7="" -> FALSE
A8: Schema regolatorio | B8: (∑2020-2023 Ipaexp + CFPaexp ) | G8: =+Piano_Tariffario!K10 -> 0 | T8: =+G8="" -> FALSE
A9: Schema regolatorio | B9: ψ | G9: =Piano_Tariffario!$K$14 -> 
A10: Schema regolatorio | B10: RAB MTI-2 | G10: =+Input_per_calcoli_finali!G45 -> 0 | T10: =+G10="" -> FALSE | Y10: =+G10<0 -> FALSE
A11: Schema regolatorio | B11: Schema regolatorio | G11: =+Piano_Tariffario!K15 ->  | T11: =+G11="" -> TRUE
A12: Totale investimenti pianificati | B12: Iptexp + CFPexp | C12: =+Piano_Tariffario!K86 -> 0 | D12: =+Piano_Tariffario!L86 -> 0 | E12: =+Piano_Tariffario!M86 -> 0 | F12: =+Piano_Tariffario!N86 -> 0 | P12: =+C12="" -> FALSE | Q12: =+D12="" -> FALSE | R12: =+E12="" -> FALSE | S12: =+F12="" -> FALSE
A13: Totale investimenti pianificati | B13: CFPexp | C13: =+Piano_Tariffario!K87 -> 0 | D13: =+Piano_Tariffario!L87 -> 0 | E13: =+Piano_Tariffario!M87 -> 0 | F13: =+Piano_Tariffario!N87 -> 0
A14: Totale investimenti pianificati | B14: Iptexp | C14: =+Piano_Tariffario!K88 -> 0 | D14: =+Piano_Tariffario!L88 -> 0 | E14: =+Piano_Tariffario!M88 -> 0 | F14: =+Piano_Tariffario!N88 -> 0
A15: Moltiplicatore | B15: VRG approvato | C15: =+Piano_Tariffario!K66 -> 0 | D15: =+Piano_Tariffario!L66 -> 0 | E15: =+Piano_Tariffario!M66 -> 0 | F15: =+Piano_Tariffario!N66 -> 0 | P15: =+OR(C15="",C15=0) -> TRUE | Q15: =+OR(D15="",D15=0) -> TRUE | R15: =+OR(E15="",E15=0) -> TRUE | S15: =+OR(F15="",F15=0) -> TRUE | U15: =+C15<0 -> FALSE | V15: FALSE | W15: FALSE | X15: FALSE
A16: Moltiplicatore | B16: ∑tarif2019 * vscala-2 | C16: =+Piano_Tariffario!K68 -> 0 | D16: =+Piano_Tariffario!L68 -> 0 | E16: =+Piano_Tariffario!M68 -> 0 | F16: =+Piano_Tariffario!N68 -> 0 | P16: =+OR(C16="",C16=0) -> TRUE | Q16: TRUE | R16: TRUE | S16: TRUE | U16: FALSE | V16: FALSE | W16: FALSE | X16: FALSE
A17: Moltiplicatore | B17: di cui: Ricavi ws | C17: =+SUM(Vendita_Servizi_ingrosso!AJ:AJ) -> 0 | D17: =+SUM(Vendita_Servizi_ingrosso!AL:AL) -> 0 | E17: =+D17 -> 0 | F17: 0 | U17: FALSE | V17: FALSE | W17: FALSE | X17: FALSE
A18: Moltiplicatore | B18: di cui: tarif*scal | C18: =+SUM(Ricavi_bacini_tariffari!L:L) -> 0 | D18: =+SUM(Ricavi_bacini_tariffari!N:N) -> 0 | E18: 0 | F18: 0 | U18: FALSE | V18: FALSE | W18: FALSE | X18: FALSE
A19: Moltiplicatore | B19: di cui: tarifindnew,2019vscalindnew,a-2 | C19: =+Ricavi_Coll_Dep!G19 -> 0 | D19: =+Ricavi_Coll_Dep!H19 -> 0 | E19: 0 | F19: 0 | U19: FALSE | V19: FALSE | W19: FALSE | X19: FALSE
A20: Moltiplicatore | B20: Rba-2 | C20: =+Piano_Tariffario!K67 -> 0 | D20: =+Piano_Tariffario!L67 -> 0 | E20: =+Piano_Tariffario!M67 -> 0 | F20: =+Piano_Tariffario!N67 -> 0 | P20: =+C20="" -> FALSE | Q20: =+D20="" -> FALSE | R20: =+E20="" -> FALSE | S20: =+F20="" -> FALSE | U20: FALSE | V20: FALSE | W20: FALSE | X20: FALSE
A21: Moltiplicatore | B21: Cba-2 | C21: =+VRG_Teta!C140+VRG_Teta!C138 -> 0 | D21: =+VRG_Teta!D140+VRG_Teta!D138 -> 0 | E21: =+VRG_Teta!E140+VRG_Teta!E138 -> 0 | F21: =+VRG_Teta!F140+VRG_Teta!F138 -> 0 | P21: FALSE | Q21: FALSE | R21: FALSE | S21: FALSE | U21: FALSE | V21: FALSE | W21: FALSE | X21: FALSE
A22: Costi delle immobilizzazioni | B22: AMM | C22: =+Piano_Tariffario!K31 -> 0 | D22: =+Piano_Tariffario!L31 -> 0 | E22: =+Piano_Tariffario!M31 -> 0 | F22: =+Piano_Tariffario!N31 -> 0 | P22: FALSE | Q22: FALSE | R22: FALSE | S22: FALSE
A23: Costi delle immobilizzazioni | B23: OF | C23: =+Piano_Tariffario!K32 -> 0 | D23: =+Piano_Tariffario!L32 -> 0 | E23: =+Piano_Tariffario!M32 -> 0 | F23: =+Piano_Tariffario!N32 -> 0 | P23: FALSE | Q23: FALSE | R23: FALSE | S23: FALSE
A24: Costi delle immobilizzazioni | B24: OFisc | C24: =+Piano_Tariffario!K33 -> 0 | D24: =+Piano_Tariffario!L33 -> 0 | E24: =+Piano_Tariffario!M33 -> 0 | F24: =+Piano_Tariffario!N33 -> 0 | P24: FALSE | Q24: FALSE | R24: FALSE | S24: FALSE
A25: Costi delle immobilizzazioni | B25: ΔCUITcapex | C25: =+Piano_Tariffario!K34 -> 0 | D25: =+Piano_Tariffario!L34 -> 0 | E25: =+Piano_Tariffario!M34 -> 0 | F25: =+Piano_Tariffario!N34 -> 0 | P25: FALSE | Q25: FALSE | R25: FALSE | S25: FALSE | U25: =+C25<0 -> FALSE | V25: FALSE | W25: FALSE | X25: FALSE
A26: Immobilizzazioni | B26: IML | C26: =+TT_riepilogo_IMN!E6 -> 0 | D26: =+TT_riepilogo_IMN!F6 -> 0 | E26: =+TT_riepilogo_IMN!G6 -> 0 | F26: =+TT_riepilogo_IMN!H6 -> 0 | P26: FALSE | Q26: FALSE | R26: FALSE | S26: FALSE | U26: FALSE | V26: FALSE | W26: FALSE | X26: FALSE
A27: Immobilizzazioni | B27: IMN | C27: =+TT_riepilogo_IMN!E8 -> 0 | D27: =+TT_riepilogo_IMN!F8 -> 0 | E27: =+TT_riepilogo_IMN!G8 -> 0 | F27: =+TT_riepilogo_IMN!H8 -> 0 | P27: FALSE | Q27: FALSE | R27: FALSE | S27: FALSE | U27: FALSE | V27: FALSE | W27: FALSE | X27: FALSE
A28: Immobilizzazioni | B28: FA | C28: =+TT_riepilogo_IMN!E7 -> 0 | D28: =+TT_riepilogo_IMN!F7 -> 0 | E28: =+TT_riepilogo_IMN!G7 -> 0 | F28: =+TT_riepilogo_IMN!H7 -> 0 | P28: FALSE | Q28: FALSE | R28: FALSE | S28: FALSE | U28: FALSE | V28: FALSE | W28: FALSE | X28: FALSE
A29: Fondo Nuovi Investimenti | B29: AMMfoni | C29: =+Piano_Tariffario!K49 -> 0 | D29: =+Piano_Tariffario!L49 -> 0 | E29: =+Piano_Tariffario!M49 -> 0 | F29: =+Piano_Tariffario!N49 -> 0 | P29: FALSE | Q29: FALSE | R29: FALSE | S29: FALSE | U29: FALSE | V29: FALSE | W29: FALSE | X29: FALSE
A30: Fondo Nuovi Investimenti | B30: ΔCUITfoni | C30: =+Piano_Tariffario!K50 -> 0 | D30: =+Piano_Tariffario!L50 -> 0 | E30: =+Piano_Tariffario!M50 -> 0 | F30: =+Piano_Tariffario!N50 -> 0 | P30: FALSE | Q30: FALSE | R30: FALSE | S30: FALSE | U30: FALSE | V30: FALSE | W30: FALSE | X30: FALSE
A31: Fondo Nuovi Investimenti | B31: FNIfoni | C31: =+Piano_Tariffario!K48 -> 0 | D31: =+Piano_Tariffario!L48 -> 0 | E31: =+Piano_Tariffario!M48 -> 0 | F31: =+Piano_Tariffario!N48 -> 0 | P31: FALSE | Q31: FALSE | R31: FALSE | S31: FALSE | U31: FALSE | V31: FALSE | W31: FALSE | X31: FALSE
A32: Fondo Nuovi Investimenti | B32: DTATOG,ind | C32: =+Piano_Tariffario!K51 -> 0 | D32: =+Piano_Tariffario!L51 -> 0 | E32: =+Piano_Tariffario!M51 -> 0 | F32: =+Piano_Tariffario!N51 -> 0
A33: Fondo Nuovi Investimenti | B33: DTG,tot | C33: =+Piano_Tariffario!K52 -> 0 | D33: =+Piano_Tariffario!L52 -> 0 | E33: =+Piano_Tariffario!M52 -> 0 | F33: =+Piano_Tariffario!N52 -> 0
A34: Costi Operativi | B34: Opnew,a | C34: =+Opex!C214 -> 0 | D34: =+Opex!D214 -> 0 | E34: =+Opex!E214 -> 0 | F34: =+Opex!F214 -> 0 | U34: =+C34<0 -> FALSE | V34: =+D34<0 -> FALSE | W34: =+E34<0 -> FALSE | X34: =+F34<0 -> FALSE
A35: Costi Operativi | B35: OpexQT | C35: =+Opex!C215 -> 0 | D35: =+Opex!D215 -> 0 | E35: =+Opex!E215 -> 0 | F35: =+Opex!F215 -> 0
A36: Costi Operativi | B36: Opexqc | C36: =+Opex!C216 -> 0 | D36: =+Opex!D216 -> 0 | E36: =+Opex!E216 -> 0 | F36: =+Opex!F216 -> 0 | U36: =+C36<0 -> FALSE | V36: =+D36<0 -> FALSE | W36: =+E36<0 -> FALSE | X36: =+F36<0 -> FALSE
A37: Costi Operativi | B37: Opsocial | C37: =+Opex!C217 -> 0 | D37: =+Opex!D217 -> 0 | E37: =+Opex!E217 -> 0 | F37: =+Opex!F217 -> 0
A38: Costi Operativi | B38: Opmis | C38: =+Opex!C218 -> 0 | D38: =+Opex!D218 -> 0 | E38: =+Opex!E218 -> 0 | F38: =+Opex!F218 -> 0
A39: Costi Operativi | B39: OpCOVID | C39: =+Opex!C219 -> 0
A40: Costi Operativi | B40: COee | C40: =Opex!C88 -> 0 | D40: =Opex!D88 -> 0 | E40: =Opex!E88 -> 0 | F40: =Opex!F88 -> 0 | P40: =+C40="" -> FALSE | Q40: =+D40="" -> FALSE | R40: =+E40="" -> FALSE | S40: =+F40="" -> FALSE | U40: =+C40<0 -> FALSE | V40: FALSE | W40: FALSE | X40: FALSE
A41: Costi Operativi | B41: Cows | C41: =Opex!C101 -> 0 | D41: =Opex!D101 -> 0 | E41: =Opex!E101 -> 0 | F41: =Opex!F101 -> 0 | P41: FALSE | Q41: FALSE | R41: FALSE | S41: FALSE | U41: FALSE | V41: FALSE | W41: FALSE | X41: FALSE
A42: Costi Operativi | B42: CoΔfanghi | C42: =Opex!C120 -> 0 | D42: =Opex!D120 -> 0 | E42: =Opex!E120 -> 0 | F42: =Opex!F120 -> 0 | P42: FALSE | Q42: FALSE | R42: FALSE | S42: FALSE | U42: FALSE | V42: FALSE | W42: FALSE | X42: FALSE
A43: Costi Operativi | B43: MT | C43: =Opex!C131 -> 0 | D43: =Opex!D131 -> 0 | E43: =Opex!E131 -> 0 | F43: =Opex!F131 -> 0 | P43: FALSE | Q43: FALSE | R43: FALSE | S43: FALSE | U43: FALSE | V43: FALSE | W43: FALSE | X43: FALSE
A44: Costi Operativi | B44: AC | C44: =Opex!C132 -> 0 | D44: =Opex!D132 -> 0 | E44: =Opex!E132 -> 0 | F44: =Opex!F132 -> 0 | P44: FALSE | Q44: FALSE | R44: FALSE | S44: FALSE | U44: FALSE | V44: FALSE | W44: FALSE | X44: FALSE
A45: Costi Operativi | B45: COato | C45: =Opex!C147 -> 0 | D45: =Opex!D147 -> 0 | E45: =Opex!E147 -> 0 | F45: =Opex!F147 -> 0 | P45: FALSE | Q45: FALSE | R45: FALSE | S45: FALSE | U45: FALSE | V45: FALSE | W45: FALSE | X45: FALSE
A46: Costi Operativi | B46: COARERA | C46: =Opex!C148 -> 0 | D46: =Opex!D148 -> 0 | E46: =Opex!E148 -> 0 | F46: =Opex!F148 -> 0 | P46: FALSE | Q46: FALSE | R46: FALSE | S46: FALSE | U46: FALSE | V46: FALSE | W46: FALSE | X46: FALSE
A47: Costi Operativi | B47: COmor | C47: =Opex!C149 -> 0 | D47: =Opex!D149 -> 0 | E47: =Opex!E149 -> 0 | F47: =Opex!F149 -> 0 | P47: FALSE | Q47: FALSE | R47: FALSE | S47: FALSE | U47: FALSE | V47: FALSE | W47: FALSE | X47: FALSE
A48: Costi Operativi | B48: COres | C48: =Opex!C151 -> 0 | D48: =Opex!D151 -> 0 | E48: =Opex!E151 -> 0 | F48: =Opex!F151 -> 0 | P48: FALSE | Q48: FALSE | R48: FALSE | S48: FALSE
A49: Costi Operativi | B49: Contributi c/e | C49: =Opex!C201 -> 0 | D49: =Opex!D201 -> 0 | E49: =Opex!E201 -> 0 | F49: =Opex!F201 -> 0 | P49: FALSE | Q49: FALSE | R49: FALSE | S49: FALSE | U49: =+C49<0 -> FALSE | V49: FALSE | W49: FALSE | X49: FALSE
A50: Costi Operativi | B50: Opexend | C50: =+Opex!C11 -> 0 | D50: =+Opex!D11 -> 0 | E50: =+Opex!E11 -> 0 | F50: =+Opex!F11 -> 0 | P50: FALSE | Q50: FALSE | R50: FALSE | S50: FALSE | U50: FALSE | V50: FALSE | W50: FALSE | X50: FALSE
A51: Costi ambientali e della risorsa | B51: ENVcapex | C51: =ERC!C46 -> 0 | D51: =ERC!D46 -> 0 | E51: =ERC!E46 -> 0 | F51: =ERC!F46 -> 0
A52: Costi ambientali e della risorsa | B52: REScapex | C52: =ERC!C47 -> 0 | D52: =ERC!D47 -> 0 | E52: =ERC!E47 -> 0 | F52: =ERC!F47 -> 0
A53: Costi ambientali e della risorsa | B53: ERCend | C53: =ERC!C131 -> 0 | D53: =ERC!D131 -> 0 | E53: =ERC!E131 -> 0 | F53: =ERC!F131 -> 0 | P53: =+C53="" -> FALSE | Q53: FALSE | R53: FALSE | S53: FALSE
A54: Costi ambientali e della risorsa | B54: ERCal | C54: =ERC!C132 -> 0 | D54: =ERC!D132 -> 0 | E54: =ERC!E132 -> 0 | F54: =ERC!F132 -> 0 | P54: FALSE | Q54: FALSE | R54: FALSE | S54: FALSE
A55: Costi ambientali e della risorsa | B55: ERCtel | C55: =ERC!C133 -> 0 | D55: =ERC!D133 -> 0 | E55: =ERC!E133 -> 0 | F55: =ERC!F133 -> 0 | R55: =+E55="" -> FALSE | S55: =+F55="" -> FALSE
A56: Sezione Conguagli (include inflazione) | B56: RcVOL | C56: ='Rc'!C20 -> 0 | D56: ='Rc'!D20 -> 0
A57: Sezione Conguagli (include inflazione) | B57: RcEE | C57: ='Rc'!C21 -> 0 | D57: ='Rc'!D21 -> 0 | E57: ='Rc'!E21 -> 0 | F57: ='Rc'!F21 -> 0
A58: Sezione Conguagli (include inflazione) | B58: RcWS | C58: ='Rc'!C22 -> 0 | D58: ='Rc'!D22 -> 0 | E58: ='Rc'!E22 -> 0 | F58: ='Rc'!F22 -> 0
A59: Sezione Conguagli (include inflazione) | B59: RcERCa | C59: ='Rc'!C23 -> 0 | D59: ='Rc'!D23 -> 0 | E59: ='Rc'!E23 -> 0 | F59: ='Rc'!F23 -> 0
A60: Sezione Conguagli (include inflazione) | B60: RcaAttiv b | C60: =+'Rc'!C141*(TT_parametri!BJ$8) -> 0 | D60: =+'Rc'!D141*(TT_parametri!BK$8) -> 0 | E60: =+'Rc'!E141*(TT_parametri!BL$8) -> 0 | F60: =+'Rc'!F141*(TT_parametri!BM$8) -> 0
A61: Sezione Conguagli (include inflazione) | B61: Rcares | C61: =+'Rc'!C142*(TT_parametri!BJ$8) -> 0 | D61: =+'Rc'!D142*(TT_parametri!BK$8) -> 0 | E61: =+'Rc'!E142*(TT_parametri!BL$8) -> 0 | F61: =+'Rc'!F142*(TT_parametri!BM$8) -> 0
A62: Sezione Conguagli (include inflazione) | B62: RcaARERA | C62: =+'Rc'!C143*(TT_parametri!BJ$8) -> 0 | D62: =+'Rc'!D143*(TT_parametri!BK$8) -> 0 | E62: =+'Rc'!E143*(TT_parametri!BL$8) -> 0 | F62: =+'Rc'!F143*(TT_parametri!BM$8) -> 0
A63: Sezione Conguagli (include inflazione) | B63: Costo forniture all’ingrosso transfrontaliere | C63: =+'Rc'!C144*(TT_parametri!BJ$8) -> 0 | D63: =+'Rc'!D144*(TT_parametri!BK$8) -> 0 | E63: =+'Rc'!E144*(TT_parametri!BL$8) -> 0 | F63: =+'Rc'!F144*(TT_parametri!BM$8) -> 0
A64: Sezione Conguagli (include inflazione) | B64: RcIP (valori a moneta a-2, include eventuale FoNInoninv) | C64: =+'Rc'!C145*(TT_parametri!BJ$8) -> 0 | D64: =+'Rc'!D145*(TT_parametri!BK$8) -> 0 | E64: =+'Rc'!E145*(TT_parametri!BL$8) -> 0 | F64: =+'Rc'!F145*(TT_parametri!BM$8) -> 0
A65: Sezione Conguagli (include inflazione) | B65: Costi per variazioni sistemiche / eventi eccezionali | C65: =+'Rc'!C146*(TT_parametri!BJ$8) -> 0 | D65: =+'Rc'!D146*(TT_parametri!BK$8) -> 0
A66: Sezione Conguagli (include inflazione) | B66: Rimb335a | C66: =+'Rc'!C147*(TT_parametri!BJ$8) -> 0 | D66: =+'Rc'!D147*(TT_parametri!BK$8) -> 0
A67: Sezione Conguagli (include inflazione) | B67: Rcaappr | C67: =+'Rc'!C148*(TT_parametri!BJ$8) -> 0 | D67: =+'Rc'!D148*(TT_parametri!BK$8) -> 0 | E67: =+'Rc'!E148*(TT_parametri!BL$8) -> 0 | F67: =+'Rc'!F148*(TT_parametri!BM$8) -> 0
A68: Sezione Conguagli (include inflazione) | B68: DOpexQC | C68: =+'Rc'!C150*(TT_parametri!BJ$8) -> 0 | D68: =+'Rc'!D150*(TT_parametri!BK$8) -> 0
A69: Sezione Conguagli (include inflazione) | B69: DOpexQT | C69: =+'Rc'!C151*(TT_parametri!BJ$8) -> 0 | D69: =+'Rc'!D151*(TT_parametri!BK$8) -> 0
A70: Sezione Conguagli (include inflazione) | B70: DOpsocial | C70: =+'Rc'!C152*(TT_parametri!BJ$8) -> 0 | D70: =+'Rc'!D152*(TT_parametri!BK$8) -> 0
A71: Sezione Conguagli (include inflazione) | B71: DOpmis
A72: Sezione Conguagli (include inflazione) | B72: Recupero volumi 2017 | D72: ='Rc'!D154*(TT_parametri!BK$8) -> 0
A73: Sezione Conguagli (include inflazione) | B73: Recupero energia elettrica 2017 | D73: ='Rc'!D155*(TT_parametri!BK$8) -> 0
A74: Sezione Conguagli (include inflazione) | B74: Rinvio di quota parte degli oneri ammissibili a riconoscimento tariffario nel 2020 | C74: ='Altri dati economico_finanziari'!E57 -> 0
A75: Sezione Conguagli (include inflazione) | B75: Rcappr2020,COVID | D75: ='Altri dati economico_finanziari'!F57 -> 0 | E75: ='Altri dati economico_finanziari'!G57 -> 0 | F75: ='Altri dati economico_finanziari'!H57 -> 0
A76: Sezione Conguagli (include inflazione) | B76: Rctot | C76: =+Piano_Tariffario!K60 -> 0 | D76: =+Piano_Tariffario!L60 -> 0 | E76: =+Piano_Tariffario!M60 -> 0 | F76: =+Piano_Tariffario!N60 -> 0 | P76: =+C76="" -> FALSE | Q76: =+D76="" -> FALSE | R76: =+E76="" -> FALSE | S76: =+F76="" -> FALSE
A77: Ammortamento finanziario MTI | B77: AF MTI-2 agg | G77: =+IF(OR(iAF="SI",schema="IV",schema="V",schema="VI"),"SI","NO") -> NO | T77: =+G77="" -> FALSE

Sheet Piano_Tariffario
C2: PIANO TARIFFARIO
C3: SCHEMI REGOLATORI
I4: Note | J4: UdM | K4: Del 580/2019/R/IDR
J5: UdM | K5: 2016 | N5: 2019 | O5: 2020 | P5: 2021 | Q5: 2022 | R5: 2023 | S5: 2024 | T5: 2025 | U5: 2026 | V5: 2027 | W5: 2028 | X5: 2029 | Y5: 2030 | Z5: 2031 | AA5: 2032 | AB5: 2033 | AC5: 2034 | AD5: 2035 | AE5: 2036 | AF5: 2037 | AG5: 2038 | AH5: 2039 | AI5: 2040 | AJ5: 2041 | AK5: 2042 | AL5: 2043 | AM5: 2044 | AN5: 2045
C6: VRG2018 | J6: euro | K6: =IF(Input_per_calcoli_finali!M51<>"Schema regolatorio","",Framework_schemi!$C$76) -> 
C7: Popolazione residente cui aggiungere 0,25xabitanti fluttuanti | J7: n. abitante | K7: =IF(Input_per_calcoli_finali!M51<>"Schema regolatorio","",Framework_schemi!$C$77) -> 
J8: SI/NO | K8: =+IFERROR(IF((K6/K7)<=149,"SI","NO"),"") -> 
C9: Nessuna aggregazione o variazione dei processi tecnici significativa: (NO) oppure Presenza di aggregazioni o variazioni dei processi tecnici significative: (SI) | J9: SI/NO | K9: =IF(Input_per_calcoli_finali!M51<>"Schema regolatorio","",Framework_schemi!C75) -> 
J10: euro | K10: =Framework_schemi!$C$66 -> 0
C11: RABMTI-2 | J11: euro | K11: =+Framework_schemi!C67 -> 0
J12: SI/NO | K12: =+IF(Framework_schemi!C70="","",IF(Framework_schemi!C70=1,"SI","NO")) -> 
C13: SCHEMA REGOLATORIO (A) SCHEMA REGOLATORIO DI CONVERGENZA (B) | J13: A/B | K13: =+IF(mti_3="","",mti_3) -> 
C14: y | J14: (0,4-0,8) | K14: =+IF(Input_per_calcoli_finali!M51<>"Schema regolatorio","",Input_per_calcoli_finali!$I$47) -> 
C15: SCHEMA REGOLATORIO | J15: (I, II, III, IV, V, VI) | K15: =+IF(Input_per_calcoli_finali!M51<>"Schema regolatorio","",IF(OR(schema="I",schema="II",schema="III",schema="IV",schema="V",schema="VI"),schema,"")) -> 
C20: COMPONENTI DI COSTO Opex, Capex , FNInew, ERC
I21: Note | J21: UdM | K21: 2020 | L21: 2021 | M21: 2022 | N21: 2023 | O21: 2024 | P21: 2025 | Q21: 2026 | R21: 2027 | S21: 2028 | T21: 2029 | U21: 2030 | V21: 2031 | W21: 2032 | X21: 2033 | Y21: 2034 | Z21: 2035 | AA21: 2036 | AB21: 2037 | AC21: 2038 | AD21: 2039 | AE21: 2040 | AF21: 2041 | AG21: 2042 | AH21: 2043 | AI21: 2044 | AJ21: 2045 | AK21: 2046 | AL21: 2047 | AM21: 2048 | AN21: 2049 | AO21: 2050 | AP21: 2051 | AQ21: 2052 | AR21: 2053 | AS21: 2054 | AT21: 2055 | AU21: 2056 | AV21: 2057 | AW21: 2058 | AX21: 2059
C22: Opexaend | J22: euro | K22: =Opex!C11 -> 0 | L22: =Opex!D11 -> 0 | M22: =Opex!E11 -> 0 | N22: =Opex!F11 -> 0
C23: Opexaal | J23: euro | K23: =Opex!C12 -> 0 | L23: =Opex!D12 -> 0 | M23: =Opex!E12 -> 0 | N23: =Opex!F12 -> 0
C24: Opnew,a | J24: euro | K24: =Opex!C214 -> 0 | L24: =Opex!D214 -> 0 | M24: =Opex!E214 -> 0 | N24: =Opex!F214 -> 0
C25: OpexaQT | J25: euro | K25: =Opex!C215 -> 0 | L25: =Opex!D215 -> 0 | M25: =Opex!E215 -> 0 | N25: =Opex!F215 -> 0
C26: OpexaQC | J26: euro | K26: =Opex!C216 -> 0 | L26: =Opex!D216 -> 0 | M26: =Opex!E216 -> 0 | N26: =Opex!F216 -> 0
C27: Opasocial | J27: euro | K27: =Opex!C217 -> 0 | L27: =Opex!D217 -> 0 | M27: =Opex!E217 -> 0 | N27: =Opex!F217 -> 0
C28: Opamis | J28: euro | K28: =Opex!C218 -> 0 | L28: =Opex!D218 -> 0 | M28: =Opex!E218 -> 0 | N28: =Opex!F218 -> 0
C29: OpaCOVID | J29: euro | K29: =Opex!C219 -> 0
C30: Opexa (al netto degli ERC) | J30: euro | K30: =+SUM(K22:K29) -> 0 | L30: =+SUM(L22:L23,L24:L28) -> 0 | M30: =+SUM(M22:M23,M24:M28) -> 0 | N30: =+SUM(N22:N23,N24:N28) -> 0
C31: AMMa | J31: euro | K31: =+Capex!C13 -> 0 | L31: =+Capex!D13 -> 0 | M31: =+Capex!E13 -> 0 | N31: =+Capex!F13 -> 0
C32: OFa | J32: euro | K32: =+Capex!C11 -> 0 | L32: =+Capex!D11 -> 0 | M32: =+Capex!E11 -> 0 | N32: =+Capex!F11 -> 0
C33: OFisca | J33: euro | K33: =+Capex!C12 -> 0 | L33: =+Capex!D12 -> 0 | M33: =+Capex!E12 -> 0 | N33: =+Capex!F12 -> 0
C34: DCUITaCapex | J34: euro | K34: =+Capex!C14 -> 0 | L34: =+Capex!D14 -> 0 | M34: =+Capex!E14 -> 0 | N34: =+Capex!F14 -> 0
C35: Capexa (al netto degli ERC) | J35: euro | K35: =SUM(K31:K34) -> 0 | L35: =SUM(L31:L34) -> 0 | M35: =SUM(M31:M34) -> 0 | N35: =SUM(N31:N34) -> 0
C36: IPtexp | J36: euro | K36: =FoNI!C76 -> 0 | L36: =FoNI!D76 -> 0 | M36: =FoNI!E76 -> 0 | N36: =FoNI!F76 -> 0
C37: Capexa | J37: euro | K37: =FoNI!C77 -> 0 | L37: =FoNI!D77 -> 0 | M37: =FoNI!E77 -> 0 | N37: =FoNI!F77 -> 0
C38: FNInew,a | J38: euro | K38: =+FoNI!C12 -> 0 | L38: =+FoNI!D12 -> 0 | M38: =+FoNI!E12 -> 0 | N38: =+FoNI!F12 -> 0
C42: ERCacapex | J42: euro | K42: =ERC!C11 -> 0 | L42: =ERC!D11 -> 0 | M42: =ERC!E11 -> 0 | N42: =ERC!F11 -> 0
C43: ERCaopex | J43: euro | K43: =ERC!C12 -> 0 | L43: =ERC!D12 -> 0 | M43: =ERC!E12 -> 0 | N43: =ERC!F12 -> 0
C44: ERCa | J44: euro | K44: =+K42+K43 -> 0 | L44: =+L42+L43 -> 0 | M44: 0 | N44: 0
C46: FONDO NUOVI INVESTIMENTI
I47: Note | J47: UdM | K47: 2020 | L47: 2021 | M47: 2022 | N47: 2023 | O47: 2024 | P47: 2025 | Q47: 2026 | R47: 2027 | S47: 2028 | T47: 2029 | U47: 2030 | V47: 2031 | W47: 2032 | X47: 2033 | Y47: 2034 | Z47: 2035 | AA47: 2036 | AB47: 2037 | AC47: 2038 | AD47: 2039 | AE47: 2040 | AF47: 2041 | AG47: 2042 | AH47: 2043 | AI47: 2044 | AJ47: 2045 | AK47: 2046 | AL47: 2047 | AM47: 2048 | AN47: 2049 | AO47: 2050 | AP47: 2051 | AQ47: 2052 | AR47: 2053 | AS47: 2054 | AT47: 2055 | AU47: 2056 | AV47: 2057 | AW47: 2058 | AX47: 2059
C48: FNIaFoNI | J48: euro | K48: =+FoNI!C12 -> 0 | L48: =+FoNI!D12 -> 0 | M48: =+FoNI!E12 -> 0 | N48: =+FoNI!F12 -> 0
C49: AMMaFoNI | J49: euro | K49: =+FoNI!C11 -> 0 | L49: =+FoNI!D11 -> 0 | M49: =+FoNI!E11 -> 0 | N49: =+FoNI!F11 -> 0
C50: DCUITaFoNI | J50: euro | K50: =+FoNI!C13 -> 0 | L50: =+FoNI!D13 -> 0 | M50: =+FoNI!E13 -> 0 | N50: =+FoNI!F13 -> 0
C51: DTATOG,ind | J51: euro | K51: =+FoNI!C14 -> 0 | L51: =+FoNI!D14 -> 0 | M51: =+FoNI!E14 -> 0 | N51: =+FoNI!F14 -> 0
C52: DTG,tot | J52: euro | K52: =+FoNI!C15 -> 0 | L52: =+FoNI!D15 -> 0 | M52: =+FoNI!E15 -> 0 | N52: =+FoNI!F15 -> 0
C53: FoNIa | J53: euro | K53: =+SUM(K48:K52) -> 0 | L53: =+SUM(L48:L52) -> 0 | M53: 0 | N53: 0
C55: SVILUPPO DEL VRG predisposto dal soggetto competente (include eventuali rimodulazioni)
I56: Note | J56: UdM | K56: 2020 | L56: 2021 | M56: 2022 | N56: 2023 | O56: 2024 | P56: 2025 | Q56: 2026 | R56: 2027 | S56: 2028 | T56: 2029 | U56: 2030 | V56: 2031 | W56: 2032 | X56: 2033 | Y56: 2034 | Z56: 2035 | AA56: 2036 | AB56: 2037 | AC56: 2038 | AD56: 2039 | AE56: 2040 | AF56: 2041 | AG56: 2042 | AH56: 2043 | AI56: 2044 | AJ56: 2045 | AK56: 2046 | AL56: 2047 | AM56: 2048 | AN56: 2049 | AO56: 2050 | AP56: 2051 | AQ56: 2052 | AR56: 2053 | AS56: 2054 | AT56: 2055 | AU56: 2056 | AV56: 2057 | AW56: 2058 | AX56: 2059
C57: Opexa | J57: euro | K57: =+K30+Input_per_calcoli_finali!I228 -> 0 | L57: =+L30+Input_per_calcoli_finali!J228 -> 0 | M57: =+M30+Input_per_calcoli_finali!K228 -> 0 | N57: =+N30+Input_per_calcoli_finali!L228 -> 0
C58: Capexa | J58: euro | K58: =+K35+Input_per_calcoli_finali!I227 -> 0 | L58: =+L35+Input_per_calcoli_finali!J227 -> 0 | M58: =+M35+Input_per_calcoli_finali!K227 -> 0 | N58: =+N35+Input_per_calcoli_finali!L227 -> 0
C59: FoNIa | J59: euro | K59: =+K53 -> 0 | L59: =+L53 -> 0 | M59: 0 | N59: 0
C60: RCaTOT | J60: euro | K60: =+'Rc'!C10 -> 0 | L60: =+'Rc'!D10 -> 0 | M60: =+'Rc'!E10 -> 0 | N60: =+'Rc'!F10 -> 0
C61: ERCa | J61: euro | K61: =+K44+Input_per_calcoli_finali!I229 -> 0 | L61: =+L44+Input_per_calcoli_finali!J229 -> 0 | M61: =+M44+Input_per_calcoli_finali!K229 -> 0 | N61: =+N44+Input_per_calcoli_finali!L229 -> 0
C62: VRGa predisposto dal soggetto competente | J62: euro | K62: =+SUM(K57:K61) -> 0 | L62: =+SUM(L57:L61) -> 0 | M62: 0 | N62: 0
C64: SVILUPPO DEL MOLTIPLICATORE TARIFFARIO predisposto dal soggetto competente
I65: Note | J65: UdM | K65: 2020 | L65: 2021 | M65: 2022 | N65: 2023 | O65: 2024 | P65: 2025 | Q65: 2026 | R65: 2027 | S65: 2028 | T65: 2029 | U65: 2030 | V65: 2031 | W65: 2032 | X65: 2033 | Y65: 2034 | Z65: 2035 | AA65: 2036 | AB65: 2037 | AC65: 2038 | AD65: 2039 | AE65: 2040 | AF65: 2041 | AG65: 2042 | AH65: 2043 | AI65: 2044 | AJ65: 2045 | AK65: 2046 | AL65: 2047 | AM65: 2048 | AN65: 2049 | AO65: 2050 | AP65: 2051 | AQ65: 2052 | AR65: 2053 | AS65: 2054 | AT65: 2055 | AU65: 2056 | AV65: 2057 | AW65: 2058 | AX65: 2059
C66: VRGa predisposto dal soggetto competente | J66: euro | K66: =+K62 -> 0 | L66: =+L62 -> 0 | M66: 0 | N66: 0
C67: Ra-2b | J67: euro | K67: =+VRG_Teta!C56 -> 0 | L67: =+VRG_Teta!D56 -> 0 | M67: =+VRG_Teta!E56 -> 0 | N67: =+VRG_Teta!F56 -> 0
C68: S tarif2019*vscala-2 | J68: euro | K68: =+VRG_Teta!C55 -> 0 | L68: =+VRG_Teta!D55 -> 0 | M68: =+VRG_Teta!E55 -> 0 | N68: =+VRG_Teta!F55 -> 0
C69: Ja predisposto dal soggetto competente | J69: n. (3 cifre decimali) | K69: =+VRG_Teta!C75 ->  | L69: =+VRG_Teta!D75 ->  | M69: =+VRG_Teta!E75 ->  | N69: =+VRG_Teta!F75 -> 
C71: Rcaappr2020,COVID | J71: euro | K71: =-'Altri dati economico_finanziari'!E57 -> 0
C73: SVILUPPO DEL MOLTIPLICATORE TARIFFARIO applicabile (nelle more dell'approvazione ARERA)
J74: UdM | K74: 2020 | L74: 2021 | M74: 2022 | N74: 2023 | O74: 2024 | P74: 2025 | Q74: 2026 | R74: 2027 | S74: 2028 | T74: 2029 | U74: 2030 | V74: 2031 | W74: 2032 | X74: 2033 | Y74: 2034 | Z74: 2035 | AA74: 2036 | AB74: 2037 | AC74: 2038 | AD74: 2039 | AE74: 2040 | AF74: 2041 | AG74: 2042 | AH74: 2043 | AI74: 2044 | AJ74: 2045 | AK74: 2046 | AL74: 2047 | AM74: 2048 | AN74: 2049 | AO74: 2050 | AP74: 2051 | AQ74: 2052 | AR74: 2053 | AS74: 2054 | AT74: 2055 | AU74: 2056 | AV74: 2057 | AW74: 2058 | AX74: 2059
C75: Limite al moltiplicatore tariffario | J75: n. (3 cifre decimali) | K75: =+VRG_Teta!C84 ->  | L75: =+VRG_Teta!D84 ->  | M75: =+VRG_Teta!E84 ->  | N75: =+VRG_Teta!F84 -> 
C76: VRGa (coerente con J applicabile) | J76: euro | K76: =++MIN(VRG_Teta!C81,VRG_Teta!C83) -> 0 | L76: =++MIN(VRG_Teta!D81,VRG_Teta!D83) -> 0 | M76: =++MIN(VRG_Teta!E81,VRG_Teta!E83) -> 0 | N76: =++MIN(VRG_Teta!F81,VRG_Teta!F83) -> 0
C77: Ja applicabile | J77: n. (3 cifre decimali) | K77: =+IFERROR(IF(mti_3="escluso dall'aggiornamento",1,MIN(VRG_Teta!C82,+VRG_Teta!C84)),"") ->  | L77: =+IFERROR(IF(mti_3="escluso dall'aggiornamento",1,MIN(VRG_Teta!D82,+VRG_Teta!D84)),"") ->  | M77: =+IFERROR(IF(mti_3="escluso dall'aggiornamento",1,MIN(VRG_Teta!E82,+VRG_Teta!E84)),"") ->  | N77: =+IFERROR(IF(mti_3="escluso dall'aggiornamento",1,MIN(VRG_Teta!F82,+VRG_Teta!F84)),"") -> 
C79: Meccanismi incentivanti per il miglioramento della qualità, controllo sui livelli raggiunti e modalità di copertura dei premi
J80: UdM | K80: 2020 | L80: 2021 | M80: 2022 | N80: 2023 | O80: 2024 | P80: 2025 | Q80: 2026 | R80: 2027 | S80: 2028 | T80: 2029 | U80: 2030 | V80: 2031 | W80: 2032 | X80: 2033 | Y80: 2034 | Z80: 2035 | AA80: 2036 | AB80: 2037 | AC80: 2038 | AD80: 2039 | AE80: 2040 | AF80: 2041 | AG80: 2042 | AH80: 2043 | AI80: 2044 | AJ80: 2045 | AK80: 2046 | AL80: 2047 | AM80: 2048 | AN80: 2049 | AO80: 2050 | AP80: 2051 | AQ80: 2052 | AR80: 2053 | AS80: 2054 | AT80: 2055 | AU80: 2056 | AV80: 2057 | AW80: 2058 | AX80: 2059
C81: Strumento allocativo (€/mc) | J81: €/mc | K81: =Opex!C328 ->  | L81: =Opex!D328 ->  | M81: =Opex!E328 ->  | N81: =Opex!F328 -> 
C82: (1+γOPi,j)*max(0;ΔOpex) | J82: euro | K82: =Opex!C329 ->  | L82: =Opex!D329 ->  | M82: =Opex!E329 ->  | N82: =Opex!F329 -> 
C84: INVESTIMENTI
I85: Note | J85: UdM | K85: 2020 | L85: 2021 | M85: 2022 | N85: 2023 | O85: 2024 | P85: 2025 | Q85: 2026 | R85: 2027 | S85: 2028 | T85: 2029 | U85: 2030 | V85: 2031 | W85: 2032 | X85: 2033 | Y85: 2034 | Z85: 2035 | AA85: 2036 | AB85: 2037 | AC85: 2038 | AD85: 2039 | AE85: 2040 | AF85: 2041 | AG85: 2042 | AH85: 2043 | AI85: 2044 | AJ85: 2045 | AK85: 2046 | AL85: 2047 | AM85: 2048 | AN85: 2049 | AO85: 2050 | AP85: 2051 | AQ85: 2052 | AR85: 2053 | AS85: 2054 | AT85: 2055 | AU85: 2056 | AV85: 2057 | AW85: 2058 | AX85: 2059
C86: Investimenti al lordo dei contributi | J86: euro | K86: =+Input_per_calcoli_finali!I40 -> 0 | L86: =+Input_per_calcoli_finali!J40 -> 0 | M86: =+Input_per_calcoli_finali!K40 -> 0 | N86: =+Input_per_calcoli_finali!L40 -> 0
C87: Contributi | J87: euro | K87: =+Input_per_calcoli_finali!I41 -> 0 | L87: =+Input_per_calcoli_finali!J41 -> 0 | M87: =+Input_per_calcoli_finali!K41 -> 0 | N87: =+Input_per_calcoli_finali!L41 -> 0
C88: Investimenti al netto dei contributi | J88: euro | K88: =+K86-K87 -> 0 | L88: =+L86-L87 -> 0 | M88: 0 | N88: 0
C89: CIN | J89: euro | K89: =+Capex!C116+ERC!C70+ERC!C104 -> 0 | L89: =+Capex!D116+ERC!D70+ERC!D104 -> 0 | M89: =+Capex!E116+ERC!E70+ERC!E104 -> 0 | N89: =+Capex!F116+ERC!F70+ERC!F104 -> 0
C90: CINfp | J90: euro | K90: =+Capex!C117+ERC!C71+ERC!C105 -> 0 | L90: =+Capex!D117+ERC!D71+ERC!D105 -> 0 | M90: =+Capex!E117+ERC!E71+ERC!E105 -> 0 | N90: =+Capex!F117+ERC!F71+ERC!F105 -> 0
C91: OF/CIN | J91: % | K91: =+IFERROR(K32/K89,0) -> 0 | L91: =+IFERROR(L32/L89,0) -> 0 | M91: =+IFERROR(M32/M89,0) -> 0 | N91: =+IFERROR(N32/N89,0) -> 0
C93: Trasferimento importi dovuti alla contabilità speciale del Commissario Unico (Del. 440/2017/R/idr)
I94: Note | J94: UdM | K94: 2020-2023
C95: Fabbisogno degli investimenti per adeguamento agglomerati oggetto di condanne UE del 19/07/2012 e 10/04/2014 | J95: euro | K95: ='PdI-riepilogo'!D53 -> 0
C96: Fabbisogno di investimenti coperto da tariffa | J96: euro | K96: ='PdI-riepilogo'!D54 -> 0
C97: Fabbisogno di investimenti coperto con risorse regionali o altre fonti pubbliche | J97: euro | K97: ='PdI-riepilogo'!D55 -> 0
C98: Risorse da destinare alla contabilità speciale del Commissario Unico | J98: euro | K98: =+K99+K100 -> 0
C99: Parte del VRG destinata alla contabilità speciale del Commissario Unico | J99: euro | K99: ='PdI-riepilogo'!D56 -> 0
C100: Risorse regionali o altre fonti pubbliche destinate alla contabilità speciale del Commissario Unico | J100: euro | K100: ='PdI-riepilogo'!D57 -> 0
C102: VALORE RESIDUO A FINE CONCESSIONE
I103: Note | J103: UdM | K103: Del 580/2019/R/IDR
C104: Ipc,t | J104: euro
C105: FAIP,c,t | J105: euro
C106: CFPc,t | J106: euro
C107: FACFP,c,t | J107: euro
C108: LIC | J108: euro
C109: VR a fine concessione | J109: euro

Sheet Conto_Economico
B1: CONTO ECONOMICO
B2: Voce_Conto_Economico | C2: UdM | D2: 2020 | E2: 2021 | F2: 2022 | G2: 2023 | H2: 2024 | I2: 2025 | J2: 2026 | K2: 2027 | L2: 2028 | M2: 2029 | N2: 2030 | O2: 2031 | P2: 2032 | Q2: 2033 | R2: 2034 | S2: 2035 | T2: 2036 | U2: 2037 | V2: 2038 | W2: 2039 | X2: 2040 | Y2: 2041 | Z2: 2042 | AA2: 2043 | AB2: 2044 | AC2: 2045 | AD2: 2046 | AE2: 2047 | AF2: 2048 | AG2: 2049 | AH2: 2050 | AI2: 2051 | AJ2: 2052 | AK2: 2053 | AL2: 2054 | AM2: 2055 | AN2: 2056 | AO2: 2057 | AP2: 2058 | AQ2: 2059
B3: Ricavi da tariffe | C3: euro
B4: Contributi di allacciamento | C4: euro
B5: Altri ricavi SII | C5: euro
B6: Ricavi da Altre Attività Idriche | C6: euro
B7: Totale Ricavi | C7: euro
B8: Costi Operativi (al netto del costo del personale) | C8: euro
B9: Costo del personale | C9: euro
B10: Totale Costi | C10: euro
B11: MOL | C11: euro
B12: Ammortamenti | C12: euro
B13: Reddito Operativo | C13: euro
B14: Interessi passivi | C14: euro
B15: Risultato ante imposte | C15: euro
B16: IRES | C16: euro
B17: IRAP | C17: euro
B18: Totale imposte | C18: euro
B19: Risultato di esercizio | C19: euro

Sheet Rendiconto_Finanziario
B1: RENDICONTO FINANZIARIO
B2: Voce_Rendiconto_Finanziario | C2: UdM | D2: 2020 | E2: 2021 | F2: 2022 | G2: 2023 | H2: 2024 | I2: 2025 | J2: 2026 | K2: 2027 | L2: 2028 | M2: 2029 | N2: 2030 | O2: 2031 | P2: 2032 | Q2: 2033 | R2: 2034 | S2: 2035 | T2: 2036 | U2: 2037 | V2: 2038 | W2: 2039 | X2: 2040 | Y2: 2041 | Z2: 2042 | AA2: 2043 | AB2: 2044 | AC2: 2045 | AD2: 2046 | AE2: 2047 | AF2: 2048 | AG2: 2049 | AH2: 2050 | AI2: 2051 | AJ2: 2052 | AK2: 2053 | AL2: 2054 | AM2: 2055 | AN2: 2056 | AO2: 2057 | AP2: 2058 | AQ2: 2059
B3: Ricavi da Tariffa SII (al netto del FONI) | C3: euro
B4: Contributi di allacciamento | C4: euro
B5: Altri ricavi SII | C5: euro
B6: Ricavi da Altre Attività Idriche | C6: euro
B7: RICAVI OPERATIVI | C7: euro
B8: Costi operativi | C8: euro
B9: COSTI OPERATIVI MONETARI | C9: euro
B10: Imposte | C10: euro
B11: IMPOSTE | C11: euro
B12: FLUSSI DI CASSA ECONOMICO | C12: euro
B13: Variazioni circolante commerciale | C13: euro
B14: Variazione credito IVA | C14: euro
B15: Variazione debito IVA | C15: euro
B16: FLUSSI DI CASSA OPERATIVO | C16: euro
B17: Investimenti con utilizzo del FoNI | C17: euro
B18: Altri investimenti | C18: euro
B19: FLUSSO DI CASSA ANTE FONTI FINANZIAMENTO | C19: euro
B20: FoNI | C20: euro
B21: Eventuale anticipazione da CSEA | C21: euro
B22: Erogazione debito finanziario a breve | C22: euro
B23: Erogazione debito finanziario medio - lungo termine | C23: euro
B24: Erogazione contributi pubblici | C24: euro
B25: Apporto capitale sociale | C25: euro
B26: FLUSSO DI CASSA DISPONIBILE PER RIMBORSI | C26: euro
B27: Rimborso quota capitale per finanziamenti pregressi | C27: euro
B28: Rimborso quota interessi per finanziamenti pregressi | C28: euro
B29: Rimborso quota capitale per nuovi finanziamenti | C29: euro
B30: Rimborso quota interessi per nuovi finanziamenti | C30: euro
B31: Eventuale restituzione a CSEA | C31: euro
B32: TOTALE SERVIZIO DEL DEBITO | C32: euro
B33: FLUSSO DI CASSA DISPONIBILE POST SERVIZIO DEL DEBITO | C33: euro
B34: Valore residuo a fine concessione | C34: euro
B35: Stock di debito non rimborsato a fine affidamento (capitale + interessi) | C35: euro
B38: INDICATORI DI REDDITIVITA' E LIQUIDITA'
B39: Indicatore | C39: Udm
B40: TIR unlevered | C40: %
B41: TIR levered | C41: %
B42: ADSCR | C42: n.
B43: DSCR minimo | C43: n.
B44: LLCR | C44: n.

Sheet Stato_Patrimoniale
A1: STATO PATRIMONIALE
B4: 2020 | C4: 2021 | D4: 2022 | E4: 2023 | F4: 2024 | G4: 2025 | H4: 2026 | I4: 2027 | J4: 2028 | K4: 2029 | L4: 2030 | M4: 2031 | N4: 2032 | O4: 2033 | P4: 2034 | Q4: 2035 | R4: 2036 | S4: 2037 | T4: 2038 | U4: 2039 | V4: 2040 | W4: 2041 | X4: 2042 | Y4: 2043 | Z4: 2044 | AA4: 2045 | AB4: 2046 | AC4: 2047 | AD4: 2048 | AE4: 2049 | AF4: 2050 | AG4: 2051 | AH4: 2052 | AI4: 2053 | AJ4: 2054 | AK4: 2055 | AL4: 2056 | AM4: 2057 | AN4: 2058 | AO4: 2059
A5: ATTIVO
A6: A) Crediti verso soci per versamenti ancora dovuti
A7: B) Immobilizzazioni, con separata indicazione di quelle concesse in locazione finanziaria
A8: I - Immobilizzazioni immateriali
A9: II - Immobilizzazioni materiali
A10: III - Immobilizzazioni finanziarie
A11: C) Attivo circolante
A12: I - Rimanenze
A13: II - Crediti
A14: III - Attività finanziarie che non costituiscono immobilizzazioni
A15: IV - Disponibilità liquide
A16: D) Ratei e risconti
A18: PASSIVO
A19: A) Patrimonio netto
A20: I - Capitale
A21: II - Riserva da soprapprezzo delle azioni
A22: III - Riserve di rivalutazione
A23: IV - Riserva legale
A24: V - Riserve statutarie
A25: VI - Altre riserve
A26: VII - Riserva per operazioni di copertura dei flussi finanziari attesi
A27: VIII - Utile (perdita) portato a nuovo
A28: IX - Utile (perdita) dell'esercizio
A29: X - Riserva negativa per azioni proprie in portafoglio
A30: B) Fondi per rischi e oneri
A31: C) Trattamento di fine rapporto di lavoro subordinato
A32: D) Debiti
A33: 1) obbligazioni
A34: 2) obbligazioni convertibili
A35: 3) debiti verso soci per finanziamenti
A36: 4) debiti verso banche
A37: 5) debiti verso altri finanziatori
A38: 6) acconti
A39: 7) debiti verso fornitori
A40: 8) debiti rappresentati da titoli di credito
A41: 9) debiti verso imprese controllate
A42: 10) debiti verso imprese collegate
A43: 11) debiti verso controllanti
A44: 11-bis) debiti verso imprese sottoposte al controllo delle controllanti
A45: 12) debiti tributari
A46: 13) debiti verso istituti di previdenza e di sicurezza sociale
A47: 14) altri debiti
A48: E) Ratei e risconti
A50: Dividend Payout Ratio

Sheet TT_Gestori
A6: Area elenco gestori in Anagrafica Operatori | C6: aggiornata 24/02/2020
A7: IDARERA | B7: P. IVA | C7: Denominazione / Ragione Sociale | D7: =+A7 -> IDARERA
A8: 5 | B8: 00734480213 | C8: AZIENDA PUBBLISERVIZI BRUNICO | D8: =+A8 -> 5
A9: 52 | B9: 04015810874 | C9: SOGIP S.R.L. | D9: =+A9 -> 52
A10: 55 | B10: 00343510228 | C10: COMUNE DI VERMIGLIO | D10: 55
A11: 78 | B11: 00128850229 | C11: Comune di Castello - Molina di Fiemme | D11: 78
A12: 79 | B12: 00124130220 | C12: COMUNE DI CAVALESE - AEC | D12: 79
A13: 183 | B13: 00100510213 | C13: COMUNE DI PARCINES | D13: 183
A14: 188 | B14: 00148360662 | C14: COMUNE DI BARETE | D14: 188
A15: 195 | B15: 00110800901 | C15: COMUNE DI OSCHIRI | D15: 195
A16: 199 | B16: 00272300229 | C16: COMUNE DI PALU' DEL FERSINA | D16: 199
A17: 201 | B17: 00149110223 | C17: COMUNE DI BESENELLO | D17: 201
A18: 206 | B18: 00431040229 | C18: COMUNE DI FAI DELLA PAGANELLA | D18: 206
A19: 230 | B19: 01210650436 | C19: A.S.SE.M. SPA | D19: 230
A20: 245 | B20: 00110390226 | C20: COMUNE DI AVIO | D20: 245
A21: 258 | B21: 00161690664 | C21: COMUNE DI ANVERSA DEGLI ABRUZZI | D21: 258
A22: 259 | B22: 00291090876 | C22: COMUNE DI CASTIGLIONE DI SICILIA | D22: 259
A23: 308 | B23: 02191980420 | C23: VIVA Servizi SpA | D23: 308
A24: 314 | B24: 00159650837 | C24: COMUNE DI FRANCAVILLA DI SICILIA | D24: 314
A25: 335 | B25: 02066710605 | C25: AMEA S.P.A. | D25: 335
A26: 349 | B26: 00114540669 | C26: COMUNE DI CASTEL DEL MONTE | D26: 349
A27: 371 | B27: 02216150017 | C27: COMUNE DI VALPRATO SOANA | D27: 371
A28: 380 | B28: 13171830154 | C28: EROGASMET S.P.A. | D28: 380
A29: 384 | B29: 00685130163 | C29: COMUNE DI MAPELLO | D29: 384
A30: 424 | B30: 01812230223 | C30: STET SPA - SERVIZI TERRITORIALI EST TRENTINO | D30: 424
A31: 433 | B31: 02127560163 | C31: AMIAS SERVIZI SRL | D31: 433
A32: 436 | B32: 02231010212 | C32: SEAB - SERVIZI ENERGIA AMBIENTE BOLZANO S.P.A. / SEAB - ENERGIE- UMWELTBETRIEBE BOZEN A.G. | D32: 436
A33: 439 | B33: 00399050087 | C33: AMAIE SPA | D33: 439
A34: 464 | B34: 01474680418 | C34: ASET S.P.A. | D34: 464
A35: 542 | B35: 00319630224 | C35: COMUNE DI ANDALO | D35: 542
A36: 544 | B36: 00482100211 | C36: Comune di Corvara in Badia | D36: 544
A37: 583 | B37: 00186560215 | C37: COMUNE DI TIRES - AZIENDA ELETTRICA | D37: 583
A38: 630 | B38: 02728750247 | C38: ACQUE DEL CHIAMPO S.P.A. SERVIZIO IDRICO INTEGRATO | D38: 630
A39: 650 | B39: 00149120222 | C39: COMUNE DI MOLVENO | D39: 650
A40: 692 | B40: 00971870258 | C40: BIM GESTIONE SERVIZI PUBBLICI SPA | D40: 692
A41: 723 | B41: 00414320218 | C41: COMUNE DI TUBRE | D41: 723
A42: 739 | B42: 02315390985 | C42: SERVER SRL | D42: 739
A43: 759 | B43: 01177760491 | C43: A.S.A. - AZIENDA SERVIZI AMBIENTALI SPA | D43: 759
A44: 779 | B44: 00807660212 | C44: COMUNE DI SLUDERNO | D44: 779
A45: 780 | B45: 01531350229 | C45: ASM TIONE - AZIENDA SERVIZI MUNICIPALIZZATI | D45: 780
A46: 805 | B46: 00126510213 | C46: AZIENDA ELETTRICA COMUNALE - VIPITENO | D46: 805
A47: 815 | B47: 00172780702 | C47: COMUNE DI JELSI | D47: 815
A48: 841 | B48: 04245520376 | C48: HERA S.P.A. | D48: 841
A49: 926 | B49: 00930530324 | C49: AcegasApsAmga S.p.A. | D49: 926
A50: 927 | B50: 01581060223 | C50: ALTO GARDA SERVIZI SPA | D50: 927
A51: 940 | B51: 01639620069 | C51: AZIENDA MULTISERVIZI CASALESE SPA | D51: 940
A52: 990 | B52: 01938630025 | C52: ASM VERCELLI SPA | D52: 990
A53: 992 | B53: 01405600220 | C53: NOVARETI SPA | D53: 992
A54: 1042 | B54: 00453310211 | C54: Comune di Nalles | D54: 1042
A55: 1045 | B55: 01501460438 | C55: ASTEA SPA | D55: 1045
A56: 1090 | B56: 00664670361 | C56: AIMAG S.P.A. | D56: 1090
A57: 1161 | B57: 02569060540 | C57: VALLE UMBRA SERVIZI S.P.A. | D57: 1161
A58: 1188 | B58: 01349510436 | C58: ATAC CIVITANOVA SPA UNIPERSONALE | D58: 1188
A59: 1193 | B59: 02259590129 | C59: Lura Ambiente SpA | D59: 1193
A60: 1211 | B60: 00584970982 | C60: COMUNE DI VEZZA D'OGLIO | D60: 1211
A61: 1218 | B61: 03119540130 | C61: LARIO RETI HOLDING | D61: 1218
A62: 1226 | B62: 00148590227 | C62: COMUNE DI PREDAZZO - AEC | D62: 1226
A63: 1234 | B63: 00203870225 | C63: COMUNE DI ISERA | D63: 1234
A64: 1261 | B64: 02013000985 | C64: AZIENDA SERVIZI VALTROMPIA SPA | D64: 1261
A65: 1280 | B65: 02059030417 | C65: Marche Multiservizi S.p.A. | D65: 1280
A66: 1300 | B66: 02119730428 | C66: ACQUAMBIENTE MARCHE SRL | D66: 1300
A67: 1310 | B67: 00070680947 | C67: COMUNE DI FROSOLONE | D67: 1310
A68: 1330 | B68: 01106460213 | C68: COMUNE DI VANDOIES | D68: 1330
A69: 1343 | B69: 01717730210 | C69: ASM Bressanone SpA | D69: 1343
A70: 1348 | B70: 00670090141 | C70: S.EC.AM. S.P.A. | D70: 1348
A71: 1352 | B71: 00149220220 | C71: COMUNE DI SANT'ORSOLA TERME | D71: 1352
A72: 1362 | B72: 00437620222 | C72: COMUNE DI CALDES | D72: 1362
A73: 1373 | B73: 00571350214 | C73: COMUNE DI CURON VENOSTA (BZ) | D73: =+A73 -> 1373
A74: 1391 | B74: 00196170666 | C74: COMUNE DI PACENTRO | D74: 1391
A75: 1392 | B75: 01210690432 | C75: A.S.S.M. S.P.A. - TOLENTINO | D75: 1392
A76: 1417 | B76: 01579450220 | C76: A.I.R. - AZ. INTERCOMUNALE ROTALIANA S.P.A. | D76: 1417
A77: 1439 | B77: 00111860193 | C77: PADANIA ACQUE S.P.A. | D77: 1439
A78: 1440 | B78: 01522960671 | C78: RUZZO RETI SPA | D78: 1440
A79: 1531 | B79: 00129330213 | C79: COMUNE DI CAMPO TURES | D79: 1531
A80: 1643 | B80: 01531480216 | C80: ECO-CENTER SPA | D80: 1643
A81: 1657 | B81: 01142420056 | C81: A.S.P. S.P.A. | D81: 1657
A82: 1699 | B82: 00244230082 | C82: Comune di Molini di Triora | D82: 1699
A83: 1704 | B83: 02177670649 | C83: Solofra Servizi SpA | D83: 1704
A84: 1761 | B84: 00132380874 | C84: ACOSET | D84: 1761
A85: 1791 | B85: 01133700219 | C85: Comune di Rio di Pusteria | D85: 1791
A86: 1812 | B86: 00166310433 | C86: COMUNE DI USSITA | D86: 1812
A87: 1874 | B87: 00571490879 | C87: COMUNE DI FIUMEFREDDO DI SICILIA | D87: 1874
A88: 1879 | B88: 00144520665 | C88: COMUNE DI ROCCA PIA | D88: 1879
A89: 1905 | B89: 00104260229 | C89: COMUNE DI CLES | D89: 1905
A90: 1914 | B90: 00222010654 | C90: COMUNE DI PERDIFUMO | D90: 1914
A91: 1927 | B91: 00827900218 | C91: COMUNE DI MALLES VENOSTA | D91: 1927
A92: 1953 | B92: 00672670163 | C92: COMUNE DI RONCOBELLO | D92: 1953
A93: 1961 | B93: 00337870406 | C93: Romagna Acque Società delle Fonti S.p.A. | D93: 1961
A94: 1976 | B94: 00070680707 | C94: COMUNE DI SAN GIULIANO DI PUGLIA | D94: 1976
A95: 1988 | B95: 00075910703 | C95: COMUNE DI RICCIA | D95: 1988
A96: 2071 | B96: 01685020065 | C96: Azienda Multiservizi Valenzana Spa | D96: 2071
A97: 2136 | B97: 00125770073 | C97: COMUNE DI CHAMPDEPRAZ | D97: 2136
A98: 2149 | B98: 00617120217 | C98: Comune di Cornedo all'Isarco | D98: 2149
A99: 2189 | B99: 03341820276 | C99: VERITAS SPA | D99: 2189
A100: 2323 | B100: 00177740214 | C100: Comune Moso in Passiria | D100: 2323
A101: 2325 | B101: 00409340213 | C101: COMUNE DI PERCA | D101: 2325
A102: 2326 | B102: 00447010216 | C102: Gemeinde St. Leonhard in Passeier | D102: 2326
A103: 2332 | B103: 01081070219 | C103: Gemeinde Lüsen | D103: 2332
A104: 2468 | B104: 02216751202 | C104: UNIFLOTTE S.r.L. | D104: 2468
A105: 2510 | B105: 02119870208 | C105: TEA ACQUE | D105: 2510
A106: 2572 | B106: 00409320215 | C106: comune di Rasun-Anterselva | D106: 2572
A107: 2872 | B107: 00146270228 | C107: COMUNE DI BASELGA DI PINE' | D107: 2872
A108: 2886 | B108: 00288090228 | C108: COMUNE DI CARISOLO | D108: 2886
A109: 2937 | B109: 07937540016 | C109: SOCIETA' METROPOLITANA ACQUE TORINO | D109: 2937
A110: 2946 | B110: 00246330088 | C110: COMUNE DI MENDATICA | D110: 2946
A111: 2958 | B111: 00432110211 | C111: Comune Città di Glorenza | D111: 2958
A112: 2967 | B112: 03278040245 | C112: ETRA SPA | D112: 2967
A113: 2982 | B113: 07063880962 | C113: Lereti S.p.A. | D113: 2982
A114: 3005 | B114: 02199110020 | C114: CONSORZIO DI BONIFICA DELLA BARAGGIA BIELLESE E VERCELLESE | D114: 3005
A115: 3045 | B115: 01791490343 | C115: IRETI S.p.A. | D115: 3045
A116: 3061 | B116: 01340850211 | C116: Comunità Comprensoriale Val Venosta | D116: 3061
A117: 3125 | B117: 00347000721 | C117: ACQUEDOTTO PUGLIESE SPA | D117: 3125
A118: 3299 | B118: 03258180987 | C118: A2A CICLO IDRICO | D118: 3299
A119: 3548 | B119: 01066120211 | C119: Gemeinde Terlan | D119: 3548
A120: 3577 | B120: 01093630216 | C120: Comune di Chiusa | D120: 3577
A121: 3659 | B121: 00508670213 | C121: Comune di Chienes | D121: 3659
A122: 3714 | B122: 00396990210 | C122: COMUNE DI LACES | D122: 3714
A123: 3720 | B123: 00575930219 | C123: COMUNE DI SARENTINO | D123: 3720
A124: 3733 | B124: 01965360991 | C124: Iren Acqua S.p.A. | D124: 3733
A125: 3913 | B125: 00169490257 | C125: CONSORZIO PER L'ACQUEDOTTO DI AZZON | D125: 3913
A126: 4080 | B126: 00232370213 | C126: Comune di Marlengo | D126: 4080
A127: 4082 | B127: 00253800213 | C127: Comune di Verano | D127: 4082
A128: 4917 | B128: 00446860215 | C128: Comune di Scena | D128: 4917
A129: 5096 | B129: 00848050217 | C129: Comune di Lasa | D129: 5096
A130: 5098 | B130: 00194370219 | C130: Comune di Lana | D130: 5098
A131: 5156 | B131: 01084890217 | C131: Gemeinde Jenesien | D131: 5156
A132: 5461 | B132: 00264460213 | C132: Comune di Appiano sulla Strada del Vino | D132: 5461
A133: 5462 | B133: 00668860216 | C133: Comune di Terento | D133: 5462
A134: 5516 | B134: 00247030224 | C134: COMUNE DI CASTELLO TESINO | D134: 5516
A135: 5657 | B135: 01452870619 | C135: COMUNE DI MIGNANO MONTE LUNGO | D135: 5657
A136: 5673 | B136: 00243880127 | C136: comune di jerago con orago | D136: 5673
A137: 5720 | B137: 02093350516 | C137: ENTE ACQUE UMBRE-TOSCANE | D137: =+A137 -> 5720
A138: 6188 | B138: 00095730560 | C138: COMUNE DI GROTTE DI CASTRO | D138: 6188
A139: 6618 | B139: 00062150941 | C139: COMUNE DI PESCOPENNATARO | D139: 6618
A140: 7331 | B140: 01271960021 | C140: CO.R.D.A.R. VALSESIA spa | D140: 7331
A141: 7345 | B141: 00073940058 | C141: ACQUEDOTTO VALTIGLIONE S.P.A. | D141: 7345
A142: 7373 | B142: 03798601211 | C142: ENERGIA VERDE ED IDRICA SPA IN LIQUIDAZIONE | D142: 7373
A143: 7379 | B143: 00162000871 | C143: COMUNE DI ACI CASTELLO | D143: 7379
A144: 7381 | B144: 01880180060 | C144: GESTIONE ACQUA SPA | D144: 7381
A145: 7391 | B145: 00559790126 | C145: COMUNE DI BRUSIMPIANO | D145: 7391
A146: 7396 | B146: 01070220312 | C146: IRISACQUA SRL | D146: 7396
A147: 7442 | B147: 00411590136 | C147: COMODEPUR S.C.P.A. | D147: 7442
A148: 7462 | B148: 03299640163 | C148: UNIACQUE SPA | D148: 7462
A149: 7473 | B149: 00593600984 | C149: Comune di Cerveno | D149: 7473
A150: 7521 | B150: 04564950485 | C150: Acque Toscane | D150: 7521
A151: 7534 | B151: 01250250550 | C151: SERVIZIO IDRICO INTEGRATO S.C.p.A. | D151: 7534
A152: 7608 | B152: 04201250877 | C152: SERVIZI IDRICI ETNEI S.P.A | D152: 7608
A153: 7700 | B153: 01280290386 | C153: C.A.D.F. S.p.A. | D153: 7700
A154: 7702 | B154: 00182790659 | C154: Consac Gestioni Idriche S.p.a. | D154: 7702
A155: 7725 | B155: 00934000621 | C155: Gestione Servizi Sannio - GE.SE.SA. | D155: 7725
A156: 7778 | B156: 01321570663 | C156: SACA SERVIZI AMBIENTALI CENTRO ABRUZZO | D156: 7778
A157: 7806 | B157: 00451260046 | C157: ACQUEDOTTO LANGHE E ALPI CUNEESI SPA | D157: 7806
A158: 7942 | B158: 00131630873 | C158: Acque di Casalotto S.p.A. | D158: 7942
A159: 8051 | B159: 01270510660 | C159: Consorzio Aquedottistico Marsicano S.p.a. | D159: 8051
A160: 8054 | B160: 02634920546 | C160: Umbra Acque S.p.A. | D160: 8054
A161: 8092 | B161: 03079180364 | C161: SORGEAQUA S.R.L. | D161: 8092
A162: 8186 | B162: 00451940043 | C162: CALSO SPA - COMUNI DELL'ACQUEDOTTO LANGHE SUD OCCIDENTALI SPA | D162: 8186
A163: 8241 | B163: 00133090878 | C163: ACQUE CARCACI DEL FASANO SPA | D163: 8241
A164: 8246 | B164: 01855890230 | C164: AZIENDA GARDESANA SERVIZI SPA | D164: 8246
A165: 8294 | B165: 01390570065 | C165: VALLE ORBA DEPURAZIONE S.R.L. | D165: 8294
A166: 8302 | B166: 02102300064 | C166: COMUNI RIUNITI BELFORTE MONFERRATO SRL | D166: 8302
A167: 9039 | B167: 04017080872 | C167: A.M.A. S.p.A. | D167: 9039
A168: 9229 | B168: 02504010345 | C168: EMILIAMBIENTE | D168: 9229
A169: 9253 | B169: 01866890021 | C169: CORDAR SPA BIELLA SERVIZI | D169: 9253
A170: 9281 | B170: 02180710879 | C170: ACQUE SUD S.R.L. | D170: 9281
A171: 9369 | B171: 00083520668 | C171: GRAN SASSO ACQUA S.P.A. | D171: 9369
A172: 9768 | B172: 00593060650 | C172: AUSINO S.P.A | D172: 9768
A173: 9844 | B173: 00268520657 | C173: ASIS SALERNITANA RETI ED IMPIANTI SPA | D173: 9844
A174: 9907 | B174: 00057170946 | C174: Comune di Capracotta | D174: 9907
A175: 9909 | B175: 05175700482 | C175: Acque S.p.A. | D175: 9909
A176: 9918 | B176: 02111820029 | C176: COMUNI RIUNITI SOCIETA' DI GESTIONE DI SERVIZI COMUNALI | D176: 9918
A177: 10042 | B177: 01494020462 | C177: G.E.A.L. S.P.A. Gestione esercizio acquedotti Lucchesi | D177: 10042
A178: 10202 | B178: 07599620635 | C178: GORI S.p.A. | D178: 10202
A179: 10468 | B179: 02200370167 | C179: Realizzazione e gestione servizi pubblici locali spa, per brevità COGEIDE spa | D179: 10468
A180: 10612 | B180: 00064780281 | C180: acquevenete spa | D180: 10612
A181: 10626 | B181: 02645680162 | C181: ABM NEXT SRL | D181: 10626
A182: 10783 | B182: 02468770041 | C182: Azienda Cuneese Dell' Acqua-Società per Azioni | D182: 10783
A183: 10839 | B183: 02482390842 | C183: GIRGENTI ACQUE S.P.A. | D183: 10839
A184: 11605 | B184: 01887790341 | C184: MONTAGNA2000 | D184: 11605
A185: 12341 | B185: 03988240960 | C185: BRIANZACQUE SRL | D185: 12341
A186: 12351 | B186: 00076070705 | C186: Comune di Bojano | D186: 12351
A187: 12577 | B187: 00701890659 | C187: COMUNE DI SANT'ARSENIO | D187: 12577
A188: 12616 | B188: 00165890997 | C188: Società dell'Acqua Potabile S.r.l. | D188: 12616
A189: 12617 | B189: 02749880130 | C189: AQUA SEPRIO SERVIZI SRL | D189: 12617
A190: 12619 | B190: 01526780216 | C190: Azienda Servizi Municipalizzati di Merano Spa | D190: 12619
A191: 12622 | B191: 00069690709 | C191: COMUNE DI FOSSALTO | D191: 12622
A192: 12683 | B192: 06564080155 | C192: ORINVEST SRL | D192: 12683
A193: 12701 | B193: 10200211000 | C193: CREA GESTIONI Srl | D193: 12701
A194: 12732 | B194: 03567090232 | C194: Acque Veronesi s.c. a r.l. | D194: 12732
A195: 12785 | B195: 00459960126 | C195: COMUNE DI BARASSO | D195: 12785
A196: 12786 | B196: 00201720943 | C196: comune di monteroduni | D196: 12786
A197: 12790 | B197: 02078000037 | C197: ACQUA NOVARA.VCO S.P.A. | D197: 12790
A198: 12816 | B198: 00158530303 | C198: CAFC S.p.A. | D198: 12816
A199: 12836 | B199: 00139710701 | C199: COMUNE DI MIRABELLO SANNITICO | D199: 12836
A200: 12850 | B200: 00622530822 | C200: COMUNE DI SCILLATO | D200: 12850
A201: 12856 | B201: 00055460943 | C201: COMUNE DI PESCHE | D201: =+A201 -> 12856
A202: 12859 | B202: 00192920890 | C202: Comune di Carlentini | D202: 12859
A203: 12905 | B203: 02660800042 | C203: ALPI ACQUE | D203: 12905
A204: 12911 | B204: 02537750040 | C204: ALTA LANGA SERVIZI S.P.A. | D204: 12911
A205: 12929 | B205: 02584940924 | C205: A.C.Q.U.A. V.I.T.A.N.A. | D205: 12929
... 2173 more rows

Sheet TT_Comuni_ATO
A1: REGIONE | B1: Comune | C1: Comune_Prov | D1: Ente_Ambito | E1: ID_ATO | F1: ID_ATO | G1: PROVINCIA | H1: PROV | I1: Istat_Comune | J1: Comune | L1: ATO | M1: ID_ATO | N1: ID_ATO | O1: N/C/S | Q1: ID_Ente_Ambito | R1: Ente_Ambito | V1: ID_ATO | X1: Comune_Prov | Y1: Istat_Comune | Z1: REGIONE | AA1: PROVINCIA | AB1: PROV | AC1: Comune | AD1: Ente_Ambito | AE1: ID_ATO | AF1: ID_ATO
A2: Abruzzo | B2: Acciano | C2: Acciano (AQ) | D2: Ente Regionale per il Servizio Idrico Integrato | E2: 1301 | F2: 1301 | G2: L'Aquila | H2: AQ | I2: 066001 | J2: Acciano | L2: ATO LEMENE (Friuli Venezia Giulia-Veneto) | M2: 1 | N2: 1 | O2: N | Q2: 19855 | R2: Consiglio di Bacino Brenta
A3: Abruzzo | B3: Barete | C3: Barete (AQ) | D3: Ente Regionale per il Servizio Idrico Integrato | E3: 1301 | F3: 1301 | G3: L'Aquila | H3: AQ | I3: 066008 | J3: Barete | L3: ATO 1 - VERBANO-CUSIO-OSSOLA E PIANURA NOVARESE | M3: 101 | N3: 101 | O3: N | Q3: 19857 | R3: ATO 1 Verbano Cusio Ossola e Pianura Novarese
A4: Abruzzo | B4: Barisciano | C4: Barisciano (AQ) | D4: Ente Regionale per il Servizio Idrico Integrato | E4: 1301 | F4: 1301 | G4: L'Aquila | H4: AQ | I4: 066009 | J4: Barisciano | L4: ATO 2 - BIELLESE, VERCELLESE, CASALESE | M4: 102 | N4: 102 | O4: N | Q4: 19858 | R4: Consiglio di Bacino Valle del Chiampo
A5: Abruzzo | B5: Cagnano Amiterno | C5: Cagnano Amiterno (AQ) | D5: Ente Regionale per il Servizio Idrico Integrato | E5: 1301 | F5: 1301 | G5: L'Aquila | H5: AQ | I5: 066013 | J5: Cagnano Amiterno | L5: ATO 3 - TORINO | M5: 103 | N5: 103 | O5: N | Q5: 19859 | R5: Consiglio di Bacino Veronese
A6: Abruzzo | B6: Calascio | C6: Calascio (AQ) | D6: Ente Regionale per il Servizio Idrico Integrato | E6: 1301 | F6: 1301 | G6: L'Aquila | H6: AQ | I6: 066014 | J6: Calascio | L6: ATO 4 - CUNEO | M6: 104 | N6: 104 | O6: N | Q6: 19860 | R6: UFFICIO D'AMBITO DELLA PROVINCIA DI SONDRIO
A7: Abruzzo | B7: Campotosto | C7: Campotosto (AQ) | D7: Ente Regionale per il Servizio Idrico Integrato | E7: 1301 | F7: 1301 | G7: L'Aquila | H7: AQ | I7: 066016 | J7: Campotosto | L7: ATO 5 - ASTIGIANO, MONFERRATO | M7: 105 | N7: 105 | O7: N | Q7: 19862 | R7: UFFICIO DI AMBITO DELLA PROVINCIA DI MANTOVA
A8: Abruzzo | B8: Capestrano | C8: Capestrano (AQ) | D8: Ente Regionale per il Servizio Idrico Integrato | E8: 1301 | F8: 1301 | G8: L'Aquila | H8: AQ | I8: 066019 | J8: Capestrano | L8: ATO 6 - ALESSANDRIA | M8: 106 | N8: 106 | O8: N | Q8: 19864 | R8: Consiglio di Bacino "Dolomiti Bellunesi"
A9: Abruzzo | B9: Capitignano | C9: Capitignano (AQ) | D9: Ente Regionale per il Servizio Idrico Integrato | E9: 1301 | F9: 1301 | G9: L'Aquila | H9: AQ | I9: 066021 | J9: Capitignano | L9: ATO VALLE D'AOSTA | M9: 201 | N9: 201 | O9: N | Q9: 19865 | R9: Consiglio di Bacino Polesine
A10: Abruzzo | B10: Caporciano | C10: Caporciano (AQ) | D10: Ente Regionale per il Servizio Idrico Integrato | E10: 1301 | F10: 1301 | G10: L'Aquila | H10: AQ | I10: 066022 | J10: Caporciano | L10: ATO BG - BERGAMO | M10: 301 | N10: 301 | O10: N | Q10: 19867 | R10: Ufficio d'Ambito Territoriale Ottimale della Provincia di Varese
A11: Abruzzo | B11: Carapelle Calvisio | C11: Carapelle Calvisio (AQ) | D11: Ente Regionale per il Servizio Idrico Integrato | E11: 1301 | F11: 1301 | G11: L'Aquila | H11: AQ | I11: 066024 | J11: Carapelle Calvisio | L11: ATO BS - BRESCIA | M11: 302 | N11: 302 | O11: N | Q11: 19869 | R11: Consiglio di Bacino Bacchiglione
A12: Abruzzo | B12: Castel del Monte | C12: Castel del Monte (AQ) | D12: Ente Regionale per il Servizio Idrico Integrato | E12: 1301 | F12: 1301 | G12: L'Aquila | H12: AQ | I12: 066026 | J12: Castel del Monte | L12: ATO CO - COMO | M12: 304 | N12: 304 | O12: N | Q12: 19872 | R12: Consiglio di Bacino "Veneto Orientale"
A13: Abruzzo | B13: Castelvecchio Calvisio | C13: Castelvecchio Calvisio (AQ) | D13: Ente Regionale per il Servizio Idrico Integrato | E13: 1301 | F13: 1301 | G13: L'Aquila | H13: AQ | I13: 066030 | J13: Castelvecchio Calvisio | L13: ATO CR - CREMONA | M13: 305 | N13: 305 | O13: N | Q13: 19873 | R13: A.T.O. - Ovest - Provincia di Imperia
A14: Abruzzo | B14: Collepietro | C14: Collepietro (AQ) | D14: Ente Regionale per il Servizio Idrico Integrato | E14: 1301 | F14: 1301 | G14: L'Aquila | H14: AQ | I14: 066040 | J14: Collepietro | L14: ATO LC - LECCO | M14: 306 | N14: 306 | O14: N | Q14: 19880 | R14: UFFICIO D'AMBITO DI LODI
A15: Abruzzo | B15: Fagnano Alto | C15: Fagnano Alto (AQ) | D15: Ente Regionale per il Servizio Idrico Integrato | E15: 1301 | F15: 1301 | G15: L'Aquila | H15: AQ | I15: 066042 | J15: Fagnano Alto | L15: ATO LO - LODI | M15: 307 | N15: 307 | O15: N | Q15: 19881 | R15: UFFICIO D'AMBITO DELLA PROVINCIA DI CREMONA
A16: Abruzzo | B16: Fontecchio | C16: Fontecchio (AQ) | D16: Ente Regionale per il Servizio Idrico Integrato | E16: 1301 | F16: 1301 | G16: L'Aquila | H16: AQ | I16: 066043 | J16: Fontecchio | L16: ATO MI - Città Metropolitana di Milano | M16: 308 | N16: 308 | O16: N | Q16: 19882 | R16: Autorità Idrica Pugliese
A17: Abruzzo | B17: Fossa | C17: Fossa (AQ) | D17: Ente Regionale per il Servizio Idrico Integrato | E17: 1301 | F17: 1301 | G17: L'Aquila | H17: AQ | I17: 066044 | J17: Fossa | L17: ATO MN - MANTOVA | M17: 309 | N17: 309 | O17: N | Q17: 19883 | R17: ENTE D'AMBITO TERRITORIALE OTTIMALE n4 "LAZIO MERIDIONALE-LATINA"
A18: Abruzzo | B18: L'Aquila | C18: L'Aquila (AQ) | D18: Ente Regionale per il Servizio Idrico Integrato | E18: 1301 | F18: 1301 | G18: L'Aquila | H18: AQ | I18: 066049 | J18: L'Aquila | L18: ATO PV - PAVIA | M18: 310 | N18: 310 | O18: N | Q18: 19884 | R18: ATO 2 Biellese, Vercellese e Casalese
A19: Abruzzo | B19: Lucoli | C19: Lucoli (AQ) | D19: Ente Regionale per il Servizio Idrico Integrato | E19: 1301 | F19: 1301 | G19: L'Aquila | H19: AQ | I19: 066052 | J19: Lucoli | L19: ATO SO - SONDRIO | M19: 311 | N19: 311 | O19: N | Q19: 19885 | R19: Ufficio d'ambito di Lecco
A20: Abruzzo | B20: Montereale | C20: Montereale (AQ) | D20: Ente Regionale per il Servizio Idrico Integrato | E20: 1301 | F20: 1301 | G20: L'Aquila | H20: AQ | I20: 066056 | J20: Montereale | L20: ATO VA - VARESE | M20: 312 | N20: 312 | O20: N | Q20: 19886 | R20: Assemblea di Ambito territoriale ottimale n. 2 Marche Centro - Ancona
A21: Abruzzo | B21: Navelli | C21: Navelli (AQ) | D21: Ente Regionale per il Servizio Idrico Integrato | E21: 1301 | F21: 1301 | G21: L'Aquila | H21: AQ | I21: 066058 | J21: Navelli | L21: ATO MB - MONZA E DELLA BRIANZA | M21: 313 | N21: 313 | O21: N | Q21: 19888 | R21: Consiglio di Bacino Laguna di Venezia
A22: Abruzzo | B22: Ocre | C22: Ocre (AQ) | D22: Ente Regionale per il Servizio Idrico Integrato | E22: 1301 | F22: 1301 | G22: L'Aquila | H22: AQ | I22: 066059 | J22: Ocre | L22: ATO NL - TRENTO | M22: 401 | N22: 401 | O22: N | Q22: 19898 | R22: Ambito Territoriale Ottimale 2 Lazio Centrale - Roma
A23: Abruzzo | B23: Ofena | C23: Ofena (AQ) | D23: Ente Regionale per il Servizio Idrico Integrato | E23: 1301 | F23: 1301 | G23: L'Aquila | H23: AQ | I23: 066060 | J23: Ofena | L23: ATO BOLZANO | M23: 402 | N23: 402 | O23: N | Q23: 19900 | R23: UFFICIO D'AMBITO DELLA PROVINCIA DI BERGAMO
A24: Abruzzo | B24: Pizzoli | C24: Pizzoli (AQ) | D24: Ente Regionale per il Servizio Idrico Integrato | E24: 1301 | F24: 1301 | G24: L'Aquila | H24: AQ | I24: 066072 | J24: Pizzoli | L24: ATO PUSTERIA | M24: 403 | N24: 403 | O24: N | Q24: 19901 | R24: Ente di governo d'Ambito n.4 Cuneese per i Servizi Idrici
A25: Abruzzo | B25: Poggio Picenze | C25: Poggio Picenze (AQ) | D25: Ente Regionale per il Servizio Idrico Integrato | E25: 1301 | F25: 1301 | G25: L'Aquila | H25: AQ | I25: 066073 | J25: Poggio Picenze | L25: ATO VAL VENOSTA | M25: 404 | N25: 404 | O25: N | Q25: 19905 | R25: Ente di Governo d'Ambito Ottimale n.6 “Alessandrino”
A26: Abruzzo | B26: Prata d'Ansidonia | C26: Prata d'Ansidonia (AQ) | D26: Ente Regionale per il Servizio Idrico Integrato | E26: 1301 | F26: 1301 | G26: L'Aquila | H26: AQ | I26: 066074 | J26: Prata d'Ansidonia | L26: ATO VALLE ISARCO | M26: 405 | N26: 405 | O26: N | Q26: 19912 | R26: Autorità di Ambito Territoriale Ottimale n. 4 MARCHE Centro Sud - Fermano e Maceratese
A27: Abruzzo | B27: Rocca di Cambio | C27: Rocca di Cambio (AQ) | D27: Ente Regionale per il Servizio Idrico Integrato | E27: 1301 | F27: 1301 | G27: L'Aquila | H27: AQ | I27: 066081 | J27: Rocca di Cambio | L27: ATO AV - ALTO VENETO | M27: 501 | N27: 501 | O27: N | Q27: 19913 | R27: Azienda Speciale "Ufficio d'Ambito Territoriale Ottimale della Provincia di Pavia"
A28: Abruzzo | B28: Rocca di Mezzo | C28: Rocca di Mezzo (AQ) | D28: Ente Regionale per il Servizio Idrico Integrato | E28: 1301 | F28: 1301 | G28: L'Aquila | H28: AQ | I28: 066082 | J28: Rocca di Mezzo | L28: ATO B - BACCHIGLIONE | M28: 502 | N28: 502 | O28: N | Q28: 19914 | R28: Assemblea di Ambito Territoriale Ottimale n. 3 Marche Centro - Macerata
A29: Abruzzo | B29: San Benedetto in Perillis | C29: San Benedetto in Perillis (AQ) | D29: Ente Regionale per il Servizio Idrico Integrato | E29: 1301 | F29: 1301 | G29: L'Aquila | H29: AQ | I29: 066086 | J29: San Benedetto in Perillis | L29: ATO BR - BRENTA | M29: 503 | N29: 503 | O29: N | Q29: 19916 | R29: Assemblea di Ambito Territoriale Ottimale n. 5 MARCHE SUD - ASCOLI PICENO E FERMO
A30: Abruzzo | B30: San Demetrio ne' Vestini | C30: San Demetrio ne' Vestini (AQ) | D30: Ente Regionale per il Servizio Idrico Integrato | E30: 1301 | F30: 1301 | G30: L'Aquila | H30: AQ | I30: 066087 | J30: San Demetrio ne' Vestini | L30: ATO LV - LAGUNA DI VENEZIA | M30: 504 | N30: 504 | O30: N | Q30: 19918 | R30: Ufficio d'Ambito di Brescia
A31: Abruzzo | B31: San Pio delle Camere | C31: San Pio delle Camere (AQ) | D31: Ente Regionale per il Servizio Idrico Integrato | E31: 1301 | F31: 1301 | G31: L'Aquila | H31: AQ | I31: 066088 | J31: San Pio delle Camere | L31: ATO P - POLESINE | M31: 505 | N31: 505 | O31: N | Q31: 19920 | R31: Autorità d'ambito n. 3 Torinese
A32: Abruzzo | B32: Sant'Eusanio Forconese | C32: Sant'Eusanio Forconese (AQ) | D32: Ente Regionale per il Servizio Idrico Integrato | E32: 1301 | F32: 1301 | G32: L'Aquila | H32: AQ | I32: 066090 | J32: Sant'Eusanio Forconese | L32: ATO V - VERONA | M32: 506 | N32: 506 | O32: N | Q32: 19926 | R32: CITTA' METROPOLITANA DI GENOVA ENTE DI GOVERNO D'AMBITO CENTRO EST
A33: Abruzzo | B33: Santo Stefano di Sessanio | C33: Santo Stefano di Sessanio (AQ) | D33: Ente Regionale per il Servizio Idrico Integrato | E33: 1301 | F33: 1301 | G33: L'Aquila | H33: AQ | I33: 066091 | J33: Santo Stefano di Sessanio | L33: ATO VC - VALLE DEL CHIAMPO | M33: 507 | N33: 507 | O33: N | Q33: 19928 | R33: Ufficio d'Ambito della Città Metropolitana di Milano
A34: Abruzzo | B34: Scoppito | C34: Scoppito (AQ) | D34: Ente Regionale per il Servizio Idrico Integrato | E34: 1301 | F34: 1301 | G34: L'Aquila | H34: AQ | I34: 066095 | J34: Scoppito | L34: ATO VO - VENETO ORIENTALE | M34: 508 | N34: 508 | O34: N | Q34: 19929 | R34: Ufficio d'Ambito di Como
A35: Abruzzo | B35: Tione degli Abruzzi | C35: Tione degli Abruzzi (AQ) | D35: Ente Regionale per il Servizio Idrico Integrato | E35: 1301 | F35: 1301 | G35: L'Aquila | H35: AQ | I35: 066100 | J35: Tione degli Abruzzi | L35: ATO CEN - CENTRALE UDINE | M35: 601 | N35: 601 | O35: N | Q35: 19931 | R35: ENTE DI GOVERNO DELL'AMBITO DELLA SARDEGNA
A36: Abruzzo | B36: Tornimparte | C36: Tornimparte (AQ) | D36: Ente Regionale per il Servizio Idrico Integrato | E36: 1301 | F36: 1301 | G36: L'Aquila | H36: AQ | I36: 066101 | J36: Tornimparte | L36: ATO OCC - OCCIDENTALE PORDENONE | M36: 602 | N36: 602 | O36: N | Q36: 19934 | R36: Assemblea di Ambito territoriale ottimale n.1 Marche Nord Pesaro e Urbino
A37: Abruzzo | B37: Villa Sant'Angelo | C37: Villa Sant'Angelo (AQ) | D37: Ente Regionale per il Servizio Idrico Integrato | E37: 1301 | F37: 1301 | G37: L'Aquila | H37: AQ | I37: 066105 | J37: Villa Sant'Angelo | L37: ATO ORG - ORIENTALE-GORIZIANO | M37: 603 | N37: 603 | O37: N | Q37: 19938 | R37: Ufficio d'ambito della Provincia di Monza Brianza
A38: Abruzzo | B38: Villa Santa Lucia degli Abruzzi | C38: Villa Santa Lucia degli Abruzzi (AQ) | D38: Ente Regionale per il Servizio Idrico Integrato | E38: 1301 | F38: 1301 | G38: L'Aquila | H38: AQ | I38: 066104 | J38: Villa Santa Lucia degli Abruzzi | L38: ATO ORT - ORIENTALE-TRIESTINO | M38: 604 | N38: 604 | O38: N | Q38: 19939 | R38: Consorzio ATO 5 ENNA in liquidazione
A39: Abruzzo | B39: Aielli | C39: Aielli (AQ) | D39: Ente Regionale per il Servizio Idrico Integrato | E39: 1302 | F39: 1302 | G39: L'Aquila | H39: AQ | I39: 066002 | J39: Aielli | L39: ATO Centro-Est (GENOVA) | M39: 701 | N39: 701 | O39: N | Q39: 19941 | R39: CONSORZIO AMBITO TERRITORIALE OTTIMALE 6 CALTANISSETTA in liquidazione
A40: Abruzzo | B40: Avezzano | C40: Avezzano (AQ) | D40: Ente Regionale per il Servizio Idrico Integrato | E40: 1302 | F40: 1302 | G40: L'Aquila | H40: AQ | I40: 066006 | J40: Avezzano | L40: ATO Ovest (IMPERIA) | M40: 702 | N40: 702 | O40: N | Q40: 19947 | R40: Ente di Governo dell'Ambito n. 5 Astigiano Monferrato
A41: Abruzzo | B41: Balsorano | C41: Balsorano (AQ) | D41: Ente Regionale per il Servizio Idrico Integrato | E41: 1302 | F41: 1302 | G41: L'Aquila | H41: AQ | I41: 066007 | J41: Balsorano | L41: ATO Est (LA SPEZIA) | M41: 703 | N41: 703 | O41: N | Q41: 19964 | R41: Autorità Idrica Toscana
A42: Abruzzo | B42: Bisegna | C42: Bisegna (AQ) | D42: Ente Regionale per il Servizio Idrico Integrato | E42: 1302 | F42: 1302 | G42: L'Aquila | H42: AQ | I42: 066011 | J42: Bisegna | L42: ATO Centro-Ovest 1 (SAVONA) | M42: 705 | N42: 705 | O42: N | Q42: 19984 | R42: Autorità d'Ambito Territoriale Ottimale 5 Lazio Meridionale - Frosinone
A43: Abruzzo | B43: Canistro | C43: Canistro (AQ) | D43: Ente Regionale per il Servizio Idrico Integrato | E43: 1302 | F43: 1302 | G43: L'Aquila | H43: AQ | I43: 066017 | J43: Canistro | L43: ATO Centro-Ovest 2 (SAVONA) | M43: 706 | N43: 706 | O43: N | Q43: 19992 | R43: ENTE DI GOVERNO DELL'A.T.O. N° 1 LAZIO NORD - VITERBO
A44: Abruzzo | B44: Capistrello | C44: Capistrello (AQ) | D44: Ente Regionale per il Servizio Idrico Integrato | E44: 1302 | F44: 1302 | G44: L'Aquila | H44: AQ | I44: 066020 | J44: Capistrello | L44: ATO 1 - PIACENZA | M44: 801 | N44: 801 | O44: N | Q44: 19997 | R44: AGENZIA TERRITORIALE DELL'EMILIA ROMAGNA PER I SERVIZI IDRICI E I RIFIUTI
A45: Abruzzo | B45: Cappadocia | C45: Cappadocia (AQ) | D45: Ente Regionale per il Servizio Idrico Integrato | E45: 1302 | F45: 1302 | G45: L'Aquila | H45: AQ | I45: 066023 | J45: Cappadocia | L45: ATO 2 - PARMA | M45: 802 | N45: 802 | O45: N | Q45: 20007 | R45: Regione Molise
A46: Abruzzo | B46: Carsoli | C46: Carsoli (AQ) | D46: Ente Regionale per il Servizio Idrico Integrato | E46: 1302 | F46: 1302 | G46: L'Aquila | H46: AQ | I46: 066025 | J46: Carsoli | L46: ATO 3 - REGGIO NELL'EMILIA | M46: 803 | N46: 803 | O46: N | Q46: 20011 | R46: Consorzio dei Comuni della Valle d'Aosta Bacino Imbrifero Montano
A47: Abruzzo | B47: Castellafiume | C47: Castellafiume (AQ) | D47: Ente Regionale per il Servizio Idrico Integrato | E47: 1302 | F47: 1302 | G47: L'Aquila | H47: AQ | I47: 066029 | J47: Castellafiume | L47: ATO 4 - MODENA | M47: 804 | N47: 804 | O47: N | Q47: 20129 | R47: ATO EST: PROVINCIA DELLA SPEZIA
A48: Abruzzo | B48: Celano | C48: Celano (AQ) | D48: Ente Regionale per il Servizio Idrico Integrato | E48: 1302 | F48: 1302 | G48: L'Aquila | H48: AQ | I48: 066032 | J48: Celano | L48: ATO 5 - BOLOGNA | M48: 805 | N48: 805 | O48: N | Q48: 35319 | R48: Assemblea Territoriale Idrica di Siracusa
A49: Abruzzo | B49: Cerchio | C49: Cerchio (AQ) | D49: Ente Regionale per il Servizio Idrico Integrato | E49: 1302 | F49: 1302 | G49: L'Aquila | H49: AQ | I49: 066033 | J49: Cerchio | L49: ATO 6 - FERRARA | M49: 806 | N49: 806 | O49: N | Q49: 20426 | R49: Provincia di Savona - Ente di Governo degli Ambiti ATO Centro Ovest 1 e Centro Ovest 2
A50: Abruzzo | B50: Civita d'Antino | C50: Civita d'Antino (AQ) | D50: Ente Regionale per il Servizio Idrico Integrato | E50: 1302 | F50: 1302 | G50: L'Aquila | H50: AQ | I50: 066034 | J50: Civita d'Antino | L50: ATO 7 - RAVENNA | M50: 807 | N50: 807 | O50: N | Q50: 20492 | R50: Autorità dell'Ambito Territoriale Ottimale n.3 Lazio Centrale - Rieti
A51: Abruzzo | B51: Civitella Roveto | C51: Civitella Roveto (AQ) | D51: Ente Regionale per il Servizio Idrico Integrato | E51: 1302 | F51: 1302 | G51: L'Aquila | H51: AQ | I51: 066036 | J51: Civitella Roveto | L51: ATO 8 - FORLI'-CESENA | M51: 808 | N51: 808 | O51: N | Q51: 25403 | R51: Ente di Governo per i Rifiuti e le Risorse Idriche della Basilicata
A52: Abruzzo | B52: Collarmele | C52: Collarmele (AQ) | D52: Ente Regionale per il Servizio Idrico Integrato | E52: 1302 | F52: 1302 | G52: L'Aquila | H52: AQ | I52: 066038 | J52: Collarmele | L52: ATO 9 - RIMINI | M52: 809 | N52: 809 | O52: N | Q52: 26079 | R52: Assemblea Territoriale Idrica AG9 - Agrigento
A53: Abruzzo | B53: Collelongo | C53: Collelongo (AQ) | D53: Ente Regionale per il Servizio Idrico Integrato | E53: 1302 | F53: 1302 | G53: L'Aquila | H53: AQ | I53: 066039 | J53: Collelongo | L53: ATO 1 - TOSCANA NORD | M53: 901 | N53: 901 | O53: C | Q53: 27256 | R53: Autorità Umbra Rifiuti Idrico
A54: Abruzzo | B54: Gioia dei Marsi | C54: Gioia dei Marsi (AQ) | D54: Ente Regionale per il Servizio Idrico Integrato | E54: 1302 | F54: 1302 | G54: L'Aquila | H54: AQ | I54: 066046 | J54: Gioia dei Marsi | L54: ATO 2 - BASSO VALDARNO (PISA) | M54: 902 | N54: 902 | O54: C | Q54: 27302 | R54: Ente Regionale per il Servizio Idrico Integrato
A55: Abruzzo | B55: Lecce nei Marsi | C55: Lecce nei Marsi (AQ) | D55: Ente Regionale per il Servizio Idrico Integrato | E55: 1302 | F55: 1302 | G55: L'Aquila | H55: AQ | I55: 066050 | J55: Lecce nei Marsi | L55: ATO 3 - MEDIO VALDARNO (FIRENZE) | M55: 903 | N55: 903 | O55: C | Q55: 27432 | R55: ASSEMBLEA TERRITORIALE IDRICA PALERMO
A56: Abruzzo | B56: Luco dei Marsi | C56: Luco dei Marsi (AQ) | D56: Ente Regionale per il Servizio Idrico Integrato | E56: 1302 | F56: 1302 | G56: L'Aquila | H56: AQ | I56: 066051 | J56: Luco dei Marsi | L56: ATO 4 - ALTO VALDARNO (AREZZO) | M56: 904 | N56: 904 | O56: C | Q56: 27828 | R56: Assemblea Territoriale Idrica Catania
A57: Abruzzo | B57: Magliano de' Marsi | C57: Magliano de' Marsi (AQ) | D57: Ente Regionale per il Servizio Idrico Integrato | E57: 1302 | F57: 1302 | G57: L'Aquila | H57: AQ | I57: 066053 | J57: Magliano de' Marsi | L57: ATO 5 - TOSCANA COSTA | M57: 905 | N57: 905 | O57: C | Q57: 28124 | R57: Autorità Idrica della Calabria
A58: Abruzzo | B58: Massa d'Albe | C58: Massa d'Albe (AQ) | D58: Ente Regionale per il Servizio Idrico Integrato | E58: 1302 | F58: 1302 | G58: L'Aquila | H58: AQ | I58: 066054 | J58: Massa d'Albe | L58: ATO 6 - OMBRONE (GROSSETO) | M58: 906 | N58: 906 | O58: C | Q58: 28178 | R58: assemblea territoriale idrica di messina
A59: Abruzzo | B59: Morino | C59: Morino (AQ) | D59: Ente Regionale per il Servizio Idrico Integrato | E59: 1302 | F59: 1302 | G59: L'Aquila | H59: AQ | I59: 066057 | J59: Morino | L59: ATI 1 e 2– Ambito 1 e Ambito 2 | M59: 1001 | N59: 1001 | O59: C | Q59: 28469 | R59: Ente Idrico Campano
A60: Abruzzo | B60: Oricola | C60: Oricola (AQ) | D60: Ente Regionale per il Servizio Idrico Integrato | E60: 1302 | F60: 1302 | G60: L'Aquila | H60: AQ | I60: 066062 | J60: Oricola | L60: ATI 3 – Ambito 3 | M60: 1002 | N60: 1002 | O60: C | Q60: 28577 | R60: Assemblea territoriale idrica di Trapani
A61: Abruzzo | B61: Ortona dei Marsi | C61: Ortona dei Marsi (AQ) | D61: Ente Regionale per il Servizio Idrico Integrato | E61: 1302 | F61: 1302 | G61: L'Aquila | H61: AQ | I61: 066063 | J61: Ortona dei Marsi | L61: ATI 4 – Ambito 4 | M61: 1003 | N61: 1003 | O61: C | Q61: 29854 | R61: ASSEMBLEA TERRITORIALE IDRICA DI RAGUSA
A62: Abruzzo | B62: Ortucchio | C62: Ortucchio (AQ) | D62: Ente Regionale per il Servizio Idrico Integrato | E62: 1302 | F62: 1302 | G62: L'Aquila | H62: AQ | I62: 066064 | J62: Ortucchio | L62: ATO 1 - MARCHE NORD PESARO E URBINO | M62: 1101 | N62: 1101 | O62: C | Q62: 30527 | R62: AUTORITA' UNICA PER I SERVIZI IDRICI E I RIFIUTI
A63: Abruzzo | B63: Ovindoli | C63: Ovindoli (AQ) | D63: Ente Regionale per il Servizio Idrico Integrato | E63: 1302 | F63: 1302 | G63: L'Aquila | H63: AQ | I63: 066065 | J63: Ovindoli | L63: ATO 2 - MARCHE CENTRO ANCONA | M63: 1102 | N63: 1102 | O63: C
A64: Abruzzo | B64: Pereto | C64: Pereto (AQ) | D64: Ente Regionale per il Servizio Idrico Integrato | E64: 1302 | F64: 1302 | G64: L'Aquila | H64: AQ | I64: 066067 | J64: Pereto | L64: ATO 3 - MARCHE CENTRO MACERATA | M64: 1103 | N64: 1103 | O64: C
A65: Abruzzo | B65: Pescina | C65: Pescina (AQ) | D65: Ente Regionale per il Servizio Idrico Integrato | E65: 1302 | F65: 1302 | G65: L'Aquila | H65: AQ | I65: 066069 | J65: Pescina | L65: ATO 4 - MARCHE SUD ALTO PICENO MACERATESE | M65: 1104 | N65: 1104 | O65: C
A66: Abruzzo | B66: Rocca di Botte | C66: Rocca di Botte (AQ) | D66: Ente Regionale per il Servizio Idrico Integrato | E66: 1302 | F66: 1302 | G66: L'Aquila | H66: AQ | I66: 066080 | J66: Rocca di Botte | L66: ATO 5 - MARCHE SUD ASCOLI PICENO | M66: 1105 | N66: 1105 | O66: C
A67: Abruzzo | B67: San Benedetto dei Marsi | C67: San Benedetto dei Marsi (AQ) | D67: Ente Regionale per il Servizio Idrico Integrato | E67: 1302 | F67: 1302 | G67: L'Aquila | H67: AQ | I67: 066085 | J67: San Benedetto dei Marsi | L67: ATO 1 - LAZIO NORD VITERBO | M67: 1201 | N67: 1201 | O67: C
A68: Abruzzo | B68: San Vincenzo Valle Roveto | C68: San Vincenzo Valle Roveto (AQ) | D68: Ente Regionale per il Servizio Idrico Integrato | E68: 1302 | F68: 1302 | G68: L'Aquila | H68: AQ | I68: 066092 | J68: San Vincenzo Valle Roveto | L68: ATO 2 - LAZIO CENTRALE ROMA | M68: 1202 | N68: 1202 | O68: C
A69: Abruzzo | B69: Sante Marie | C69: Sante Marie (AQ) | D69: Ente Regionale per il Servizio Idrico Integrato | E69: 1302 | F69: 1302 | G69: L'Aquila | H69: AQ | I69: 066089 | J69: Sante Marie | L69: ATO 3 - LAZIO CENTRALE RIETI | M69: 1203 | N69: 1203 | O69: C
A70: Abruzzo | B70: Scurcola Marsicana | C70: Scurcola Marsicana (AQ) | D70: Ente Regionale per il Servizio Idrico Integrato | E70: 1302 | F70: 1302 | G70: L'Aquila | H70: AQ | I70: 066096 | J70: Scurcola Marsicana | L70: ATO 4 - LAZIO MERIDIONALE LATINA | M70: 1204 | N70: 1204 | O70: C
A71: Abruzzo | B71: Tagliacozzo | C71: Tagliacozzo (AQ) | D71: Ente Regionale per il Servizio Idrico Integrato | E71: 1302 | F71: 1302 | G71: L'Aquila | H71: AQ | I71: 066099 | J71: Tagliacozzo | L71: ATO 5 - LAZIO MERIDIONALE FROSINONE | M71: 1205 | N71: 1205 | O71: C
A72: Abruzzo | B72: Trasacco | C72: Trasacco (AQ) | D72: Ente Regionale per il Servizio Idrico Integrato | E72: 1302 | F72: 1302 | G72: L'Aquila | H72: AQ | I72: 066102 | J72: Trasacco | L72: ATO 1 - AQUILANO | M72: 1301 | N72: 1301 | O72: S
A73: Abruzzo | B73: Villavallelonga | C73: Villavallelonga (AQ) | D73: Ente Regionale per il Servizio Idrico Integrato | E73: 1302 | F73: 1302 | G73: L'Aquila | H73: AQ | I73: 066106 | J73: Villavallelonga | L73: ATO 2 - MARSICANO | M73: 1302 | N73: 1302 | O73: S
A74: Abruzzo | B74: Alfedena | C74: Alfedena (AQ) | D74: Ente Regionale per il Servizio Idrico Integrato | E74: 1303 | F74: 1303 | G74: L'Aquila | H74: AQ | I74: 066003 | J74: Alfedena | L74: ATO 3 - PELIGNO ALTO SANGRO | M74: 1303 | N74: 1303 | O74: S
A75: Abruzzo | B75: Anversa degli Abruzzi | C75: Anversa degli Abruzzi (AQ) | D75: Ente Regionale per il Servizio Idrico Integrato | E75: 1303 | F75: 1303 | G75: L'Aquila | H75: AQ | I75: 066004 | J75: Anversa degli Abruzzi | L75: ATO 4 - PESCARA | M75: 1304 | N75: 1304 | O75: S
A76: Abruzzo | B76: Ateleta | C76: Ateleta (AQ) | D76: Ente Regionale per il Servizio Idrico Integrato | E76: 1303 | F76: 1303 | G76: L'Aquila | H76: AQ | I76: 066005 | J76: Ateleta | L76: ATO 5 - TERAMO | M76: 1305 | N76: 1305 | O76: S
A77: Abruzzo | B77: Barrea | C77: Barrea (AQ) | D77: Ente Regionale per il Servizio Idrico Integrato | E77: 1303 | F77: 1303 | G77: L'Aquila | H77: AQ | I77: 066010 | J77: Barrea | L77: ATO 6 - CHIETI | M77: 1306 | N77: 1306 | O77: S
A78: Abruzzo | B78: Bugnara | C78: Bugnara (AQ) | D78: Ente Regionale per il Servizio Idrico Integrato | E78: 1303 | F78: 1303 | G78: L'Aquila | H78: AQ | I78: 066012 | J78: Bugnara | L78: ATO MOLISE | M78: 1401 | N78: 1401 | O78: S
A79: Abruzzo | B79: Campo di Giove | C79: Campo di Giove (AQ) | D79: Ente Regionale per il Servizio Idrico Integrato | E79: 1303 | F79: 1303 | G79: L'Aquila | H79: AQ | I79: 066015 | J79: Campo di Giove | L79: AMBITO DISTRETTUALE CALORE IRPINO | M79: 1501 | N79: 1501 | O79: S
A80: Abruzzo | B80: Cansano | C80: Cansano (AQ) | D80: Ente Regionale per il Servizio Idrico Integrato | E80: 1303 | F80: 1303 | G80: L'Aquila | H80: AQ | I80: 066018 | J80: Cansano | L80: AMBITO DISTRETTUALE NAPOLI | M80: 1502 | N80: 1502 | O80: S
A81: Abruzzo | B81: Castel di Ieri | C81: Castel di Ieri (AQ) | D81: Ente Regionale per il Servizio Idrico Integrato | E81: 1303 | F81: 1303 | G81: L'Aquila | H81: AQ | I81: 066027 | J81: Castel di Ieri | L81: AMBITO DISTRETTUALE SELE | M81: 1503 | N81: 1503 | O81: S
A82: Abruzzo | B82: Castel di Sangro | C82: Castel di Sangro (AQ) | D82: Ente Regionale per il Servizio Idrico Integrato | E82: 1303 | F82: 1303 | G82: L'Aquila | H82: AQ | I82: 066028 | J82: Castel di Sangro | L82: AMBITO DISTRETTUALE SARNESE-VESUVIANO | M82: 1504 | N82: 1504 | O82: S
A83: Abruzzo | B83: Castelvecchio Subequo | C83: Castelvecchio Subequo (AQ) | D83: Ente Regionale per il Servizio Idrico Integrato | E83: 1303 | F83: 1303 | G83: L'Aquila | H83: AQ | I83: 066031 | J83: Castelvecchio Subequo | L83: AMBITO DISTRETTUALE CASERTA - TERRA DI LAVORO | M83: 1505 | N83: 1505 | O83: S
A84: Abruzzo | B84: Civitella Alfedena | C84: Civitella Alfedena (AQ) | D84: Ente Regionale per il Servizio Idrico Integrato | E84: 1303 | F84: 1303 | G84: L'Aquila | H84: AQ | I84: 066035 | J84: Civitella Alfedena | L84: ATO PUGLIA | M84: 1601 | N84: 1601 | O84: S
A85: Abruzzo | B85: Cocullo | C85: Cocullo (AQ) | D85: Ente Regionale per il Servizio Idrico Integrato | E85: 1303 | F85: 1303 | G85: L'Aquila | H85: AQ | I85: 066037 | J85: Cocullo | L85: ATO BASILICATA | M85: 1701 | N85: 1701 | O85: S
A86: Abruzzo | B86: Corfinio | C86: Corfinio (AQ) | D86: Ente Regionale per il Servizio Idrico Integrato | E86: 1303 | F86: 1303 | G86: L'Aquila | H86: AQ | I86: 066041 | J86: Corfinio | L86: ATO UNICO REGIONE CALABRIA | M86: 1806 | N86: 1806 | O86: S
A87: Abruzzo | B87: Gagliano Aterno | C87: Gagliano Aterno (AQ) | D87: Ente Regionale per il Servizio Idrico Integrato | E87: 1303 | F87: 1303 | G87: L'Aquila | H87: AQ | I87: 066045 | J87: Gagliano Aterno | L87: ATO 1 - PALERMO | M87: 1901 | N87: 1901 | O87: S
A88: Abruzzo | B88: Goriano Sicoli | C88: Goriano Sicoli (AQ) | D88: Ente Regionale per il Servizio Idrico Integrato | E88: 1303 | F88: 1303 | G88: L'Aquila | H88: AQ | I88: 066047 | J88: Goriano Sicoli | L88: ATO 2 - CATANIA | M88: 1902 | N88: 1902 | O88: S
A89: Abruzzo | B89: Introdacqua | C89: Introdacqua (AQ) | D89: Ente Regionale per il Servizio Idrico Integrato | E89: 1303 | F89: 1303 | G89: L'Aquila | H89: AQ | I89: 066048 | J89: Introdacqua | L89: ATO 3 - MESSINA | M89: 1903 | N89: 1903 | O89: S
A90: Abruzzo | B90: Molina Aterno | C90: Molina Aterno (AQ) | D90: Ente Regionale per il Servizio Idrico Integrato | E90: 1303 | F90: 1303 | G90: L'Aquila | H90: AQ | I90: 066055 | J90: Molina Aterno | L90: ATO 4 - RAGUSA | M90: 1904 | N90: 1904 | O90: S
A91: Abruzzo | B91: Opi | C91: Opi (AQ) | D91: Ente Regionale per il Servizio Idrico Integrato | E91: 1303 | F91: 1303 | G91: L'Aquila | H91: AQ | I91: 066061 | J91: Opi | L91: ATO 5 - ENNA | M91: 1905 | N91: 1905 | O91: S
A92: Abruzzo | B92: Pacentro | C92: Pacentro (AQ) | D92: Ente Regionale per il Servizio Idrico Integrato | E92: 1303 | F92: 1303 | G92: L'Aquila | H92: AQ | I92: 066066 | J92: Pacentro | L92: ATO 6 - CALTANISSETTA | M92: 1906 | N92: 1906 | O92: S
A93: Abruzzo | B93: Pescasseroli | C93: Pescasseroli (AQ) | D93: Ente Regionale per il Servizio Idrico Integrato | E93: 1303 | F93: 1303 | G93: L'Aquila | H93: AQ | I93: 066068 | J93: Pescasseroli | L93: ATO 7 - TRAPANI | M93: 1907 | N93: 1907 | O93: S
A94: Abruzzo | B94: Pescocostanzo | C94: Pescocostanzo (AQ) | D94: Ente Regionale per il Servizio Idrico Integrato | E94: 1303 | F94: 1303 | G94: L'Aquila | H94: AQ | I94: 066070 | J94: Pescocostanzo | L94: ATO 8 - SIRACUSA | M94: 1908 | N94: 1908 | O94: S
A95: Abruzzo | B95: Pettorano sul Gizio | C95: Pettorano sul Gizio (AQ) | D95: Ente Regionale per il Servizio Idrico Integrato | E95: 1303 | F95: 1303 | G95: L'Aquila | H95: AQ | I95: 066071 | J95: Pettorano sul Gizio | L95: ATO 9 - AGRIGENTO | M95: 1909 | N95: 1909 | O95: S
A96: Abruzzo | B96: Pratola Peligna | C96: Pratola Peligna (AQ) | D96: Ente Regionale per il Servizio Idrico Integrato | E96: 1303 | F96: 1303 | G96: L'Aquila | H96: AQ | I96: 066075 | J96: Pratola Peligna | L96: ATO SARDEGNA | M96: 2001 | N96: 2001 | O96: S
A97: Abruzzo | B97: Prezza | C97: Prezza (AQ) | D97: Ente Regionale per il Servizio Idrico Integrato | E97: 1303 | F97: 1303 | G97: L'Aquila | H97: AQ | I97: 066076 | J97: Prezza
A98: Abruzzo | B98: Raiano | C98: Raiano (AQ) | D98: Ente Regionale per il Servizio Idrico Integrato | E98: 1303 | F98: 1303 | G98: L'Aquila | H98: AQ | I98: 066077 | J98: Raiano
A99: Abruzzo | B99: Rivisondoli | C99: Rivisondoli (AQ) | D99: Ente Regionale per il Servizio Idrico Integrato | E99: 1303 | F99: 1303 | G99: L'Aquila | H99: AQ | I99: 066078 | J99: Rivisondoli
A100: Abruzzo | B100: Rocca Pia | C100: Rocca Pia (AQ) | D100: Ente Regionale per il Servizio Idrico Integrato | E100: 1303 | F100: 1303 | G100: L'Aquila | H100: AQ | I100: 066083 | J100: Rocca Pia
A101: Abruzzo | B101: Roccacasale | C101: Roccacasale (AQ) | D101: Ente Regionale per il Servizio Idrico Integrato | E101: 1303 | F101: 1303 | G101: L'Aquila | H101: AQ | I101: 066079 | J101: Roccacasale
A102: Abruzzo | B102: Roccaraso | C102: Roccaraso (AQ) | D102: Ente Regionale per il Servizio Idrico Integrato | E102: 1303 | F102: 1303 | G102: L'Aquila | H102: AQ | I102: 066084 | J102: Roccaraso
A103: Abruzzo | B103: Scanno | C103: Scanno (AQ) | D103: Ente Regionale per il Servizio Idrico Integrato | E103: 1303 | F103: 1303 | G103: L'Aquila | H103: AQ | I103: 066093 | J103: Scanno
A104: Abruzzo | B104: Scontrone | C104: Scontrone (AQ) | D104: Ente Regionale per il Servizio Idrico Integrato | E104: 1303 | F104: 1303 | G104: L'Aquila | H104: AQ | I104: 066094 | J104: Scontrone
A105: Abruzzo | B105: Secinaro | C105: Secinaro (AQ) | D105: Ente Regionale per il Servizio Idrico Integrato | E105: 1303 | F105: 1303 | G105: L'Aquila | H105: AQ | I105: 066097 | J105: Secinaro
A106: Abruzzo | B106: Sulmona | C106: Sulmona (AQ) | D106: Ente Regionale per il Servizio Idrico Integrato | E106: 1303 | F106: 1303 | G106: L'Aquila | H106: AQ | I106: 066098 | J106: Sulmona
A107: Abruzzo | B107: Villalago | C107: Villalago (AQ) | D107: Ente Regionale per il Servizio Idrico Integrato | E107: 1303 | F107: 1303 | G107: L'Aquila | H107: AQ | I107: 066103 | J107: Villalago
A108: Abruzzo | B108: Villetta Barrea | C108: Villetta Barrea (AQ) | D108: Ente Regionale per il Servizio Idrico Integrato | E108: 1303 | F108: 1303 | G108: L'Aquila | H108: AQ | I108: 066107 | J108: Villetta Barrea
A109: Abruzzo | B109: Vittorito | C109: Vittorito (AQ) | D109: Ente Regionale per il Servizio Idrico Integrato | E109: 1303 | F109: 1303 | G109: L'Aquila | H109: AQ | I109: 066108 | J109: Vittorito
A110: Abruzzo | B110: Bucchianico | C110: Bucchianico (CH) | D110: Ente Regionale per il Servizio Idrico Integrato | E110: 1304 | F110: 1304 | G110: Chieti | H110: CH | I110: 069008 | J110: Bucchianico
A111: Abruzzo | B111: Casalincontrada | C111: Casalincontrada (CH) | D111: Ente Regionale per il Servizio Idrico Integrato | E111: 1304 | F111: 1304 | G111: Chieti | H111: CH | I111: 069016 | J111: Casalincontrada
